{"text_format":"1","workbook":"xlsx","n_sheets":20,"sheets":["Comment compléter","Liste UA","Sommaire","BD","BGAD1","BGAD2","BGAD3","BGAD4","BGAD5","BGAD6","BGAD7","BGAD9","BGAD8","BGAD10","BGAD11","BGAD12","BGAD13","BGAD14","BGAD15","Ajustement"],"not_rendered":{"charts":0,"images":1,"macros":1,"external_links":0,"defined_names":34,"comments":0,"pivot_tables":2},"unopened":[],"bounds":{"document_bytes":16777216,"sheet_cells":100000,"rows_first":2000,"rows_last":500,"rows_between":2000,"halvings":0,"cell_chars":16384,"cell_head_chars":4096},"cells_cut":0,"cells_raw":0,"read":"whole","date_system":"1900"}

{"sheet":"Comment compléter","index":0,"n_rows":11,"n_cols":11,"rows_kept":11,"cut":false,"hidden":false,"merged":[]}
["Production du sommaire des volumes de la MLNU déclarés par BGAd",null,null,null,null,null,null,null,null,"version :","1.0"]
[]
["Le représentant des BGA n'a aucune modification de volumes à effectuer ni aucune manipulation de données."]
[]
["Le représentant des BGA doit : "]
["1 -","Inscrire l'unité d'aménagement pour laquelle le sommaire est produit"]
["2 -","S'assurer d'intégrer les déclarations de MLNU d'une seule unité d'aménagement (UA)"]
["3 -","Copier les lignes 10 à 209 de la feuille excel reçue présentant la déclaration de la MLNU de chacun des BGAD"]
["4 -","Assurer la distinction des BGAd dans les différentes feuilles en inscrivant son numéro de client dans la case C5"]
["5 -","Produire le sommaire en cliquant sur le bouton dans la feuille «SOMMAIRE»"]
["6 -","Appliquer la procédure de communication des données au ministre"]

{"sheet":"Liste UA","index":1,"n_rows":150,"n_cols":1,"rows_kept":150,"cut":false,"hidden":true,"merged":[]}
[]
["01171"]
["01272"]
["02371"]
["02471"]
["02571"]
["02651"]
["02661"]
["02662"]
["02663"]
["02664"]
["02665"]
["02666"]
["02751"]
["03153"]
["03171"]
["03351"]
["03451"]
["03571"]
["04151"]
["04251"]
["04351"]
["04352"]
["05151"]
["06151"]
["06271"]
["06452"]
["06471"]
["07151"]
["07152"]
["07251"]
["07351"]
["07352"]
["07451"]
["08151"]
["08152"]
["08251"]
["08351"]
["08451"]
["08462"]
["08551"]
["08562"]
["08651"]
["08652"]
["08663"]
["08664"]
["08665"]
["08666"]
["08751"]
["08762"]
["08763"]
["08764"]
["09351"]
["09352"]
["09471"]
["09551"]
["09751"]
["011001"]
["011050"]
["011070"]
["011071"]
["011072"]
["11161"]
["11262"]
["11263"]
["012050"]
["012051"]
["012070"]
["012071"]
["012072"]
["012073"]
["023050"]
["023070"]
["024070"]
["024071"]
["025050"]
["025051"]
["025070"]
["025071"]
["026002"]
["031050"]
["031051"]
["031071"]
["033070"]
["033071"]
["041070"]
["041071"]
["042001"]
["042050"]
["043001"]
["043002"]
["051001"]
["061070"]
["061071"]
["062070"]
["064050"]
["064070"]
["071070"]
["072070"]
["072071"]
["073001"]
["073050"]
["073070"]
["081002"]
["081003"]
["081005"]
["081006"]
["081007"]
["081008"]
["081009"]
["081011"]
["082002"]
["082003"]
["082004"]
["082050"]
["082051"]
["083001"]
["085002"]
["085003"]
["085004"]
["085005"]
["085006"]
["085007"]
["085008"]
["085009"]
["085010"]
["085011"]
["085012"]
["085013"]
["085082"]
["086001"]
["086002"]
["086003"]
["086004"]
["086005"]
["086050"]
["093050"]
["093070"]
["096001"]
["097050"]
["097070"]
["111001"]
["111002"]
["111003"]
["111070"]
["112001"]
["112002"]
["112003"]
["112050"]
["141082"]

{"sheet":"Sommaire","index":2,"n_rows":41,"n_cols":14,"rows_kept":41,"cut":false,"hidden":false,"merged":[[7,9,9,13],[11,3,11,4],[0,0,0,6],[7,1,7,3],[2,0,2,1],[2,2,2,3],[3,0,3,1],[3,2,3,3],[4,0,6,6]]}
["Sommaire de la MLNU déclarée - Tous clients"]
[]
["Année de récolte :",null,"2021-2022"]
["Unité d'aménagement :"]
["Les volumes de matière ligneuse non utilisée inscrits à ce sommaire sont la somme des volumes délarés par les BGAd et couvrent l'ensemble des secteurs d'intervention affectés par la récolte et ceux non-désirés de l'unité d'aménagement autorisé à la PRAN."]
[]
[]
[null,null,null,null,null,null,null,null,null,"Tableau indicatif des volumes associés aux superficies non traitées non justifiées (SNT) pour l'année de récolte."]
[]
["signature : _____________________________________________________ représentant des BGA        Date : ______________________"]
[]
[]
[null,null,null,"Valeurs"]
["No. Client","Code Essence","Nom essence","Volume MLNU-RG Qualité «V» (Superficies traitées)","Volume MLNU-RG Qualité \"W\" (SNT)","Volume MLNU-ND\nQualité \"X\"","Volume MLNU-ND\nQualité \"U\"",null,null,"Code d'essence","Nom essence","Volume SNT non justifiées","Volume SNT saisons antérieures","Total par essence"]
["Total général",null,null,null,null,null,null,null,null,"010","Épinette (autre que Norvège)",null,null,0]
[null,null,null,null,null,null,null,null,null,"014","Épinette de Norvège",null,null,0]
[null,null,null,null,null,null,null,null,null,"030","Mélèze laricin",null,null,0]
[null,null,null,null,null,null,null,null,null,"041","Pin blanc",null,null,0]
[null,null,null,null,null,null,null,null,null,"042","Pin rouge",null,null,0]
[null,null,null,null,null,null,null,null,null,"043","Pin gris et sylvestre",null,null,0]
[null,null,null,null,null,null,null,null,null,"050","Pruche de l’Est",null,null,0]
[null,null,null,null,null,null,null,null,null,"060","Sapin baumier",null,null,0]
[null,null,null,null,null,null,null,null,null,"080","Thuya occidental",null,null,0]
[null,null,null,null,null,null,null,null,null,"104","Bouleau jaune",null,null,0]
[null,null,null,null,null,null,null,null,null,"105","Bouleau blanc ",null,null,0]
[null,null,null,null,null,null,null,null,null,"110","Cerisier tardif",null,null,0]
[null,null,null,null,null,null,null,null,null,"120","Chêne ",null,null,0]
[null,null,null,null,null,null,null,null,null,"132","Érable à sucre",null,null,0]
[null,null,null,null,null,null,null,null,null,"133","Érable rouge",null,null,0]
[null,null,null,null,null,null,null,null,null,"135","Érables - Autres ",null,null,0]
[null,null,null,null,null,null,null,null,null,"141","Frêne d’Amérique (blanc)",null,null,0]
[null,null,null,null,null,null,null,null,null,"142","Frêne noir",null,null,0]
[null,null,null,null,null,null,null,null,null,"150","Hêtre",null,null,0]
[null,null,null,null,null,null,null,null,null,"160","Noyer",null,null,0]
[null,null,null,null,null,null,null,null,null,"165","Caryer",null,null,0]
[null,null,null,null,null,null,null,null,null,"170","Orme",null,null,0]
[null,null,null,null,null,null,null,null,null,"180","Ostryer de Virginie",null,null,0]
[null,null,null,null,null,null,null,null,null,"190","Peuplier (autre que Baumier)",null,null,0]
[null,null,null,null,null,null,null,null,null,"191","Peuplier baumier",null,null,0]
[null,null,null,null,null,null,null,null,null,"210","Tilleul d’Amérique",null,null,0]
[null,null,null,null,null,null,null,null,null,"Total général",null,null,null,0]

{"sheet":"BD","index":3,"n_rows":3349,"n_cols":13,"rows_kept":3349,"cut":false,"hidden":true,"merged":[]}
["Code Essence","Nom essence","No. Client","Superficies traitées","Superficies non traitées non justifiées «W»","Ententes\nOM MLNU","Entente allègement copeaux","MLNU-ND\nQualité \"X\"","MLNU-RG","MLNU-ND\nQualité \"W\"","MLNU-ND\nQualité \"U\"","Total du Client","SNT saisons antérieures"]
["010","Épinette (autre que Norvège)",null,null,null,null,null,null,{"$f":"SUM(D2:E2)","v":0},{"$f":"E2","v":0},{"$f":"SUM(F2:G2)","v":0},{"$f":"SUM(H2,I2,K2)","v":0}]
["014","Épinette de Norvège",null,null,null,null,null,null,{"$f":"SUM(D3:E3)","v":0},{"$f":"E3","v":0},0,{"$f":"SUM(H3,I3,K3)","v":0}]
["030","Mélèze laricin",null,null,null,null,null,null,0,0,0,0]
["043","Pin gris et sylvestre",null,null,null,null,null,null,0,0,0,0]
["060","Sapin baumier",null,null,null,null,null,null,0,0,0,0]
["190","Peuplier (autre que Baumier)",null,null,null,null,null,null,0,0,0,0]
["191","Peuplier baumier",null,null,null,null,null,null,0,0,0,0]
["105","Bouleau blanc ",null,null,null,null,null,null,0,0,0,0]
["104","Bouleau jaune",null,null,null,null,null,null,0,0,0,0]
["132","Érable à sucre",null,null,null,null,null,null,0,0,0,0]
["133","Érable rouge",null,null,null,null,null,null,0,0,0,0]
["135","Érables - Autres ",null,null,null,null,null,null,0,0,0,0]
["120","Chêne ",null,null,null,null,null,null,0,0,0,0]
["141","Frêne d’Amérique (blanc)",null,null,null,null,null,null,0,0,0,0]
["142","Frêne noir",null,null,null,null,null,null,0,0,0,0]
["150","Hêtre",null,null,null,null,null,null,0,0,0,0]
["160","Noyer",null,null,null,null,null,null,0,0,0,0]
["165","Caryer",null,null,null,null,null,null,0,0,0,0]
["170","Orme",null,null,null,null,null,null,0,0,0,0]
["180","Ostryer de Virginie",null,null,null,null,null,null,0,0,0,0]
["110","Cerisier tardif",null,null,null,null,null,null,0,0,0,0]
["210","Tilleul d’Amérique",null,null,null,null,null,null,0,0,0,0]
["041","Pin blanc",null,null,null,null,null,null,0,0,0,0]
["042","Pin rouge",null,null,null,null,null,null,0,0,0,0]
["050","Pruche de l’Est",null,null,null,null,null,null,0,0,0,0]
["080","Thuya occidental",null,null,null,null,null,null,0,0,0,0]
[null,null,null,null,null,null,null,null,0,0,0,0]
[null,null,null,null,null,null,null,null,0,0,0,0]
[null,null,null,null,null,null,null,null,0,0,0,0]
[null,null,null,null,null,null,null,null,0,0,0,0]
[null,null,null,null,null,null,null,null,0,0,0,0]
[null,null,null,null,null,null,null,null,0,0,0,0]
[null,null,null,null,null,null,null,null,0,0,0,0]
[null,null,null,null,null,null,null,null,0,0,0,0]
[null,null,null,null,null,null,null,null,0,0,0,0]
[null,null,null,null,null,null,null,null,0,0,0,0]
[null,null,null,null,null,null,null,null,0,0,0,0]
[null,null,null,null,null,null,null,null,0,0,0,0]
[null,null,null,null,null,null,null,null,0,0,0,0]
[null,null,null,null,null,null,null,null,0,0,0,0]
[null,null,null,null,null,null,null,null,0,0,0,0]
[null,null,null,null,null,null,null,null,0,0,0,0]
[null,null,null,null,null,null,null,null,0,0,0,0]
[null,null,null,null,null,null,null,null,0,0,0,0]
[null,null,null,null,null,null,null,null,0,0,0,0]
[null,null,null,null,null,null,null,null,0,0,0,0]
[null,null,null,null,null,null,null,null,0,0,0,0]
[null,null,null,null,null,null,null,null,0,0,0,0]
[null,null,null,null,null,null,null,null,0,0,0,0]
[null,null,null,null,null,null,null,null,0,0,0,0]
[null,null,null,null,null,null,null,null,0,0,0,0]
[null,null,null,null,null,null,null,null,0,0,0,0]
[null,null,null,null,null,null,null,null,0,0,0,0]
[null,null,null,null,null,null,null,null,0,0,0,0]
[null,null,null,null,null,null,null,null,0,0,0,0]
[null,null,null,null,null,null,null,null,0,0,0,0]
[null,null,null,null,null,null,null,null,0,0,0,0]
[null,null,null,null,null,null,null,null,0,0,0,0]
[null,null,null,null,null,null,null,null,0,0,0,0]
[null,null,null,null,null,null,null,null,0,0,0,0]
[null,null,null,null,null,null,null,null,0,0,0,0]
[null,null,null,null,null,null,null,null,0,0,0,0]
[null,null,null,null,null,null,null,null,0,0,0,0]
[null,null,null,null,null,null,null,null,0,0,0,0]
[null,null,null,null,null,null,null,null,0,0,{"$f":"SUM(F66:G66)","v":0},0]
[null,null,null,null,null,null,null,null,{"$f":"SUM(D67:E67)","v":0},{"$f":"E67","v":0},0,{"$f":"SUM(H67,I67,K67)","v":0}]
[null,null,null,null,null,null,null,null,0,0,0,0]
[null,null,null,null,null,null,null,null,0,0,0,0]
[null,null,null,null,null,null,null,null,0,0,0,0]
[null,null,null,null,null,null,null,null,0,0,0,0]
[null,null,null,null,null,null,null,null,0,0,0,0]
[null,null,null,null,null,null,null,null,0,0,0,0]
[null,null,null,null,null,null,null,null,0,0,0,0]
[null,null,null,null,null,null,null,null,0,0,0,0]
[null,null,null,null,null,null,null,null,0,0,0,0]
[null,null,null,null,null,null,null,null,0,0,0,0]
[null,null,null,null,null,null,null,null,0,0,0,0]
[null,null,null,null,null,null,null,null,0,0,0,0]
[null,null,null,null,null,null,null,null,0,0,0,0]
[null,null,null,null,null,null,null,null,0,0,0,0]
[null,null,null,null,null,null,null,null,0,0,0,0]
[null,null,null,null,null,null,null,null,0,0,0,0]
[null,null,null,null,null,null,null,null,0,0,0,0]
[null,null,null,null,null,null,null,null,0,0,0,0]
[null,null,null,null,null,null,null,null,0,0,0,0]
[null,null,null,null,null,null,null,null,0,0,0,0]
[null,null,null,null,null,null,null,null,0,0,0,0]
[null,null,null,null,null,null,null,null,0,0,0,0]
[null,null,null,null,null,null,null,null,0,0,0,0]
[null,null,null,null,null,null,null,null,0,0,0,0]
[null,null,null,null,null,null,null,null,0,0,0,0]
[null,null,null,null,null,null,null,null,0,0,0,0]
[null,null,null,null,null,null,null,null,0,0,0,0]
[null,null,null,null,null,null,null,null,0,0,0,0]
[null,null,null,null,null,null,null,null,0,0,0,0]
[null,null,null,null,null,null,null,null,0,0,0,0]
[null,null,null,null,null,null,null,null,0,0,0,0]
[null,null,null,null,null,null,null,null,0,0,0,0]
[null,null,null,null,null,null,null,null,0,0,0,0]
[null,null,null,null,null,null,null,null,0,0,0,0]
[null,null,null,null,null,null,null,null,0,0,0,0]
[null,null,null,null,null,null,null,null,0,0,0,0]
[null,null,null,null,null,null,null,null,0,0,0,0]
[null,null,null,null,null,null,null,null,0,0,0,0]
[null,null,null,null,null,null,null,null,0,0,0,0]
[null,null,null,null,null,null,null,null,0,0,0,0]
[null,null,null,null,null,null,null,null,0,0,0,0]
[null,null,null,null,null,null,null,null,0,0,0,0]
[null,null,null,null,null,null,null,null,0,0,0,0]
[null,null,null,null,null,null,null,null,0,0,0,0]
[null,null,null,null,null,null,null,null,0,0,0,0]
[null,null,null,null,null,null,null,null,0,0,0,0]
[null,null,null,null,null,null,null,null,0,0,0,0]
[null,null,null,null,null,null,null,null,0,0,0,0]
[null,null,null,null,null,null,null,null,0,0,0,0]
[null,null,null,null,null,null,null,null,0,0,0,0]
[null,null,null,null,null,null,null,null,0,0,0,0]
[null,null,null,null,null,null,null,null,0,0,0,0]
[null,null,null,null,null,null,null,null,0,0,0,0]
[null,null,null,null,null,null,null,null,0,0,0,0]
[null,null,null,null,null,null,null,null,0,0,0,0]
[null,null,null,null,null,null,null,null,0,0,0,0]
[null,null,null,null,null,null,null,null,0,0,0,0]
[null,null,null,null,null,null,null,null,0,0,0,0]
[null,null,null,null,null,null,null,null,0,0,0,0]
[null,null,null,null,null,null,null,null,0,0,0,0]
[null,null,null,null,null,null,null,null,0,0,0,0]
[null,null,null,null,null,null,null,null,0,0,0,0]
[null,null,null,null,null,null,null,null,0,0,{"$f":"SUM(F130:G130)","v":0},0]
[null,null,null,null,null,null,null,null,{"$f":"SUM(D131:E131)","v":0},{"$f":"E131","v":0},0,{"$f":"SUM(H131,I131,K131)","v":0}]
[null,null,null,null,null,null,null,null,0,0,0,0]
[null,null,null,null,null,null,null,null,0,0,0,0]
[null,null,null,null,null,null,null,null,0,0,0,0]
[null,null,null,null,null,null,null,null,0,0,0,0]
[null,null,null,null,null,null,null,null,0,0,0,0]
[null,null,null,null,null,null,null,null,0,0,0,0]
[null,null,null,null,null,null,null,null,0,0,0,0]
[null,null,null,null,null,null,null,null,0,0,0,0]
[null,null,null,null,null,null,null,null,0,0,0,0]
[null,null,null,null,null,null,null,null,0,0,0,0]
[null,null,null,null,null,null,null,null,0,0,0,0]
[null,null,null,null,null,null,null,null,0,0,0,0]
[null,null,null,null,null,null,null,null,0,0,0,0]
[null,null,null,null,null,null,null,null,0,0,0,0]
[null,null,null,null,null,null,null,null,0,0,0,0]
[null,null,null,null,null,null,null,null,0,0,0,0]
[null,null,null,null,null,null,null,null,0,0,0,0]
[null,null,null,null,null,null,null,null,0,0,0,0]
[null,null,null,null,null,null,null,null,0,0,0,0]
[null,null,null,null,null,null,null,null,0,0,0,0]
[null,null,null,null,null,null,null,null,0,0,0,0]
[null,null,null,null,null,null,null,null,0,0,0,0]
[null,null,null,null,null,null,null,null,0,0,0,0]
[null,null,null,null,null,null,null,null,0,0,0,0]
[null,null,null,null,null,null,null,null,0,0,0,0]
[null,null,null,null,null,null,null,null,0,0,0,0]
[null,null,null,null,null,null,null,null,0,0,0,0]
[null,null,null,null,null,null,null,null,0,0,0,0]
[null,null,null,null,null,null,null,null,0,0,0,0]
[null,null,null,null,null,null,null,null,0,0,0,0]
[null,null,null,null,null,null,null,null,0,0,0,0]
[null,null,null,null,null,null,null,null,0,0,0,0]
[null,null,null,null,null,null,null,null,0,0,0,0]
[null,null,null,null,null,null,null,null,0,0,0,0]
[null,null,null,null,null,null,null,null,0,0,0,0]
[null,null,null,null,null,null,null,null,0,0,0,0]
[null,null,null,null,null,null,null,null,0,0,0,0]
[null,null,null,null,null,null,null,null,0,0,0,0]
[null,null,null,null,null,null,null,null,0,0,0,0]
[null,null,null,null,null,null,null,null,0,0,0,0]
[null,null,null,null,null,null,null,null,0,0,0,0]
[null,null,null,null,null,null,null,null,0,0,0,0]
[null,null,null,null,null,null,null,null,0,0,0,0]
[null,null,null,null,null,null,null,null,0,0,0,0]
[null,null,null,null,null,null,null,null,0,0,0,0]
[null,null,null,null,null,null,null,null,0,0,0,0]
[null,null,null,null,null,null,null,null,0,0,0,0]
[null,null,null,null,null,null,null,null,0,0,0,0]
[null,null,null,null,null,null,null,null,0,0,0,0]
[null,null,null,null,null,null,null,null,0,0,0,0]
[null,null,null,null,null,null,null,null,{"$f":"SUM(D182:E182)","v":0},{"$f":"E182","v":0},{"$f":"SUM(F182:G182)","v":0},0]
[null,null,null,null,null,null,null,null,0,0,0,0]
[null,null,null,null,null,null,null,null,0,0,0,0]
[null,null,null,null,null,null,null,null,0,0,0,0]
[null,null,null,null,null,null,null,null,0,0,0,0]
[null,null,null,null,null,null,null,null,0,0,0,0]
[null,null,null,null,null,null,null,null,0,0,0,0]
[null,null,null,null,null,null,null,null,0,0,0,0]
[null,null,null,null,null,null,null,null,0,0,0,0]
[null,null,null,null,null,null,null,null,0,0,0,0]
[null,null,null,null,null,null,null,null,0,0,0,0]
[null,null,null,null,null,null,null,null,0,0,0,0]
[null,null,null,null,null,null,null,null,0,0,{"$f":"SUM(F194:G194)","v":0},0]
[null,null,null,null,null,null,null,null,{"$f":"SUM(D195:E195)","v":0},{"$f":"E195","v":0},0,{"$f":"SUM(H195,I195,K195)","v":0}]
[null,null,null,null,null,null,null,null,0,0,0,0]
[null,null,null,null,null,null,null,null,0,0,0,0]
[null,null,null,null,null,null,null,null,0,0,0,0]
[null,null,null,null,null,null,null,null,0,0,0,0]
[null,null,null,null,null,null,null,null,0,0,0,0]
[null,null,null,null,null,null,null,null,0,0,0,0]
[null,null,null,null,null,null,null,null,{"$f":"SUM(D202:E202)","v":0},null,{"$f":"SUM(F202:G202)","v":0},{"$f":"SUM(H202:K202)","v":0}]
[null,null,null,null,null,null,null,null,0,null,0,0]
[null,null,null,null,null,null,null,null,0,null,0,0]
[null,null,null,null,null,null,null,null,0,null,0,0]
[null,null,null,null,null,null,null,null,0,null,0,0]
[null,null,null,null,null,null,null,null,0,null,0,0]
[null,null,null,null,null,null,null,null,0,null,0,0]
[null,null,null,null,null,null,null,null,0,null,0,0]
["010","Épinette (autre que Norvège)",null,null,null,null,null,null,{"$f":"SUM(D210:E210)","v":0},{"$f":"E210","v":0},{"$f":"SUM(F210:G210)","v":0},{"$f":"SUM(H210,I210,K210)","v":0}]
["014","Épinette de Norvège",null,null,null,null,null,null,{"$f":"SUM(D211:E211)","v":0},{"$f":"E211","v":0},0,{"$f":"SUM(H211,I211,K211)","v":0}]
["030","Mélèze laricin",null,null,null,null,null,null,0,0,0,0]
["043","Pin gris et sylvestre",null,null,null,null,null,null,0,0,0,0]
["060","Sapin baumier",null,null,null,null,null,null,0,0,0,0]
["190","Peuplier (autre que Baumier)",null,null,null,null,null,null,0,0,0,0]
["191","Peuplier baumier",null,null,null,null,null,null,0,0,0,0]
["105","Bouleau blanc ",null,null,null,null,null,null,0,0,0,0]
["104","Bouleau jaune",null,null,null,null,null,null,0,0,0,0]
["132","Érable à sucre",null,null,null,null,null,null,0,0,0,0]
["133","Érable rouge",null,null,null,null,null,null,0,0,0,0]
["135","Érables - Autres ",null,null,null,null,null,null,0,0,0,0]
["120","Chêne ",null,null,null,null,null,null,0,0,0,0]
["141","Frêne d’Amérique (blanc)",null,null,null,null,null,null,0,0,0,0]
["142","Frêne noir",null,null,null,null,null,null,0,0,0,0]
["150","Hêtre",null,null,null,null,null,null,0,0,0,0]
["160","Noyer",null,null,null,null,null,null,0,0,0,0]
["165","Caryer",null,null,null,null,null,null,0,0,0,0]
["170","Orme",null,null,null,null,null,null,0,0,0,0]
["180","Ostryer de Virginie",null,null,null,null,null,null,0,0,0,0]
["110","Cerisier tardif",null,null,null,null,null,null,0,0,0,0]
["210","Tilleul d’Amérique",null,null,null,null,null,null,0,0,0,0]
["041","Pin blanc",null,null,null,null,null,null,0,0,0,0]
["042","Pin rouge",null,null,null,null,null,null,0,0,0,0]
["050","Pruche de l’Est",null,null,null,null,null,null,0,0,0,0]
["080","Thuya occidental",null,null,null,null,null,null,0,0,0,0]
[null,null,null,null,null,null,null,null,0,0,0,0]
[null,null,null,null,null,null,null,null,0,0,0,0]
[null,null,null,null,null,null,null,null,0,0,0,0]
[null,null,null,null,null,null,null,null,0,0,0,0]
[null,null,null,null,null,null,null,null,0,0,0,0]
[null,null,null,null,null,null,null,null,0,0,0,0]
[null,null,null,null,null,null,null,null,0,0,{"$f":"SUM(F242:G242)","v":0},0]
[null,null,null,null,null,null,null,null,0,0,0,0]
[null,null,null,null,null,null,null,null,0,0,0,0]
[null,null,null,null,null,null,null,null,0,0,0,0]
[null,null,null,null,null,null,null,null,0,0,0,0]
[null,null,null,null,null,null,null,null,0,0,0,0]
[null,null,null,null,null,null,null,null,0,0,0,0]
[null,null,null,null,null,null,null,null,0,0,0,0]
[null,null,null,null,null,null,null,null,0,0,0,0]
[null,null,null,null,null,null,null,null,0,0,0,0]
[null,null,null,null,null,null,null,null,0,0,0,0]
[null,null,null,null,null,null,null,null,0,0,0,0]
[null,null,null,null,null,null,null,null,0,0,0,0]
[null,null,null,null,null,null,null,null,0,0,0,0]
[null,null,null,null,null,null,null,null,0,0,0,0]
[null,null,null,null,null,null,null,null,0,0,0,0]
[null,null,null,null,null,null,null,null,0,0,0,0]
[null,null,null,null,null,null,null,null,0,0,0,0]
[null,null,null,null,null,null,null,null,0,0,0,0]
[null,null,null,null,null,null,null,null,0,0,0,0]
[null,null,null,null,null,null,null,null,0,0,0,0]
[null,null,null,null,null,null,null,null,0,0,0,0]
[null,null,null,null,null,null,null,null,0,0,0,0]
[null,null,null,null,null,null,null,null,0,0,0,0]
[null,null,null,null,null,null,null,null,0,0,0,0]
[null,null,null,null,null,null,null,null,0,0,0,0]
[null,null,null,null,null,null,null,null,0,0,0,0]
[null,null,null,null,null,null,null,null,0,0,0,0]
[null,null,null,null,null,null,null,null,0,0,0,0]
[null,null,null,null,null,null,null,null,0,0,0,0]
[null,null,null,null,null,null,null,null,0,0,0,0]
[null,null,null,null,null,null,null,null,0,0,0,0]
[null,null,null,null,null,null,null,null,0,0,0,0]
[null,null,null,null,null,null,null,null,{"$f":"SUM(D275:E275)","v":0},{"$f":"E275","v":0},0,{"$f":"SUM(H275,I275,K275)","v":0}]
[null,null,null,null,null,null,null,null,0,0,0,0]
[null,null,null,null,null,null,null,null,0,0,0,0]
[null,null,null,null,null,null,null,null,0,0,0,0]
[null,null,null,null,null,null,null,null,0,0,0,0]
[null,null,null,null,null,null,null,null,0,0,0,0]
[null,null,null,null,null,null,null,null,0,0,0,0]
[null,null,null,null,null,null,null,null,0,0,0,0]
[null,null,null,null,null,null,null,null,0,0,0,0]
[null,null,null,null,null,null,null,null,0,0,0,0]
[null,null,null,null,null,null,null,null,0,0,0,0]
[null,null,null,null,null,null,null,null,0,0,0,0]
[null,null,null,null,null,null,null,null,0,0,0,0]
[null,null,null,null,null,null,null,null,0,0,0,0]
[null,null,null,null,null,null,null,null,0,0,0,0]
[null,null,null,null,null,null,null,null,0,0,0,0]
[null,null,null,null,null,null,null,null,0,0,0,0]
[null,null,null,null,null,null,null,null,0,0,0,0]
[null,null,null,null,null,null,null,null,0,0,0,0]
[null,null,null,null,null,null,null,null,0,0,0,0]
[null,null,null,null,null,null,null,null,0,0,0,0]
[null,null,null,null,null,null,null,null,0,0,0,0]
[null,null,null,null,null,null,null,null,0,0,0,0]
[null,null,null,null,null,null,null,null,0,0,0,0]
[null,null,null,null,null,null,null,null,0,0,0,0]
[null,null,null,null,null,null,null,null,0,0,0,0]
[null,null,null,null,null,null,null,null,0,0,0,0]
[null,null,null,null,null,null,null,null,0,0,0,0]
[null,null,null,null,null,null,null,null,0,0,0,0]
[null,null,null,null,null,null,null,null,0,0,0,0]
[null,null,null,null,null,null,null,null,0,0,0,0]
[null,null,null,null,null,null,null,null,0,0,{"$f":"SUM(F306:G306)","v":0},0]
[null,null,null,null,null,null,null,null,0,0,0,0]
[null,null,null,null,null,null,null,null,0,0,0,0]
[null,null,null,null,null,null,null,null,0,0,0,0]
[null,null,null,null,null,null,null,null,0,0,0,0]
[null,null,null,null,null,null,null,null,0,0,0,0]
[null,null,null,null,null,null,null,null,0,0,0,0]
[null,null,null,null,null,null,null,null,0,0,0,0]
[null,null,null,null,null,null,null,null,0,0,0,0]
[null,null,null,null,null,null,null,null,0,0,0,0]
[null,null,null,null,null,null,null,null,0,0,0,0]
[null,null,null,null,null,null,null,null,0,0,0,0]
[null,null,null,null,null,null,null,null,0,0,0,0]
[null,null,null,null,null,null,null,null,0,0,0,0]
[null,null,null,null,null,null,null,null,0,0,0,0]
[null,null,null,null,null,null,null,null,0,0,0,0]
[null,null,null,null,null,null,null,null,0,0,0,0]
[null,null,null,null,null,null,null,null,0,0,0,0]
[null,null,null,null,null,null,null,null,0,0,0,0]
[null,null,null,null,null,null,null,null,0,0,0,0]
[null,null,null,null,null,null,null,null,0,0,0,0]
[null,null,null,null,null,null,null,null,0,0,0,0]
[null,null,null,null,null,null,null,null,0,0,0,0]
[null,null,null,null,null,null,null,null,0,0,0,0]
[null,null,null,null,null,null,null,null,0,0,0,0]
[null,null,null,null,null,null,null,null,0,0,0,0]
[null,null,null,null,null,null,null,null,0,0,0,0]
[null,null,null,null,null,null,null,null,0,0,0,0]
[null,null,null,null,null,null,null,null,0,0,0,0]
[null,null,null,null,null,null,null,null,0,0,0,0]
[null,null,null,null,null,null,null,null,0,0,0,0]
[null,null,null,null,null,null,null,null,0,0,0,0]
[null,null,null,null,null,null,null,null,0,0,0,0]
[null,null,null,null,null,null,null,null,{"$f":"SUM(D339:E339)","v":0},{"$f":"E339","v":0},0,{"$f":"SUM(H339,I339,K339)","v":0}]
[null,null,null,null,null,null,null,null,0,0,0,0]
[null,null,null,null,null,null,null,null,0,0,0,0]
[null,null,null,null,null,null,null,null,0,0,0,0]
[null,null,null,null,null,null,null,null,0,0,0,0]
[null,null,null,null,null,null,null,null,0,0,0,0]
[null,null,null,null,null,null,null,null,0,0,0,0]
[null,null,null,null,null,null,null,null,0,0,0,0]
[null,null,null,null,null,null,null,null,0,0,0,0]
[null,null,null,null,null,null,null,null,0,0,0,0]
[null,null,null,null,null,null,null,null,0,0,0,0]
[null,null,null,null,null,null,null,null,0,0,0,0]
[null,null,null,null,null,null,null,null,0,0,0,0]
[null,null,null,null,null,null,null,null,0,0,0,0]
[null,null,null,null,null,null,null,null,0,0,0,0]
[null,null,null,null,null,null,null,null,0,0,0,0]
[null,null,null,null,null,null,null,null,0,0,0,0]
[null,null,null,null,null,null,null,null,0,0,0,0]
[null,null,null,null,null,null,null,null,0,0,0,0]
[null,null,null,null,null,null,null,null,0,0,0,0]
[null,null,null,null,null,null,null,null,0,0,0,0]
[null,null,null,null,null,null,null,null,0,0,0,0]
[null,null,null,null,null,null,null,null,0,0,0,0]
[null,null,null,null,null,null,null,null,0,0,0,0]
[null,null,null,null,null,null,null,null,0,0,0,0]
[null,null,null,null,null,null,null,null,0,0,0,0]
[null,null,null,null,null,null,null,null,0,0,0,0]
[null,null,null,null,null,null,null,null,0,0,0,0]
[null,null,null,null,null,null,null,null,0,0,0,0]
[null,null,null,null,null,null,null,null,0,0,0,0]
[null,null,null,null,null,null,null,null,0,0,0,0]
[null,null,null,null,null,null,null,null,0,0,{"$f":"SUM(F370:G370)","v":0},0]
[null,null,null,null,null,null,null,null,0,0,0,0]
[null,null,null,null,null,null,null,null,0,0,0,0]
[null,null,null,null,null,null,null,null,0,0,0,0]
[null,null,null,null,null,null,null,null,0,0,0,0]
[null,null,null,null,null,null,null,null,0,0,0,0]
[null,null,null,null,null,null,null,null,0,0,0,0]
[null,null,null,null,null,null,null,null,0,0,0,0]
[null,null,null,null,null,null,null,null,0,0,0,0]
[null,null,null,null,null,null,null,null,0,0,0,0]
[null,null,null,null,null,null,null,null,0,0,0,0]
[null,null,null,null,null,null,null,null,0,0,0,0]
[null,null,null,null,null,null,null,null,0,0,0,0]
[null,null,null,null,null,null,null,null,0,0,0,0]
[null,null,null,null,null,null,null,null,0,0,0,0]
[null,null,null,null,null,null,null,null,0,0,0,0]
[null,null,null,null,null,null,null,null,0,0,0,0]
[null,null,null,null,null,null,null,null,0,0,0,0]
[null,null,null,null,null,null,null,null,0,0,0,0]
[null,null,null,null,null,null,null,null,0,0,0,0]
[null,null,null,null,null,null,null,null,0,0,0,0]
[null,null,null,null,null,null,null,null,0,0,0,0]
[null,null,null,null,null,null,null,null,0,0,0,0]
[null,null,null,null,null,null,null,null,0,0,0,0]
[null,null,null,null,null,null,null,null,0,0,0,0]
[null,null,null,null,null,null,null,null,0,0,0,0]
[null,null,null,null,null,null,null,null,0,0,0,0]
[null,null,null,null,null,null,null,null,0,0,0,0]
[null,null,null,null,null,null,null,null,0,0,0,0]
[null,null,null,null,null,null,null,null,0,0,0,0]
[null,null,null,null,null,null,null,null,0,0,0,0]
[null,null,null,null,null,null,null,null,0,0,0,0]
[null,null,null,null,null,null,null,null,0,0,0,0]
[null,null,null,null,null,null,null,null,{"$f":"SUM(D403:E403)","v":0},{"$f":"E403","v":0},0,{"$f":"SUM(H403,I403,K403)","v":0}]
[null,null,null,null,null,null,null,null,0,0,0,0]
[null,null,null,null,null,null,null,null,0,0,0,0]
[null,null,null,null,null,null,null,null,0,0,0,0]
[null,null,null,null,null,null,null,null,0,0,0,0]
[null,null,null,null,null,null,null,null,0,0,0,0]
[null,null,null,null,null,null,null,null,0,0,0,0]
[null,null,null,null,null,null,null,null,{"$f":"SUM(D410:E410)","v":0},null,{"$f":"SUM(F410:G410)","v":0},{"$f":"SUM(H410:K410)","v":0}]
[null,null,null,null,null,null,null,null,0,null,0,0]
[null,null,null,null,null,null,null,null,0,null,0,0]
[null,null,null,null,null,null,null,null,0,null,0,0]
[null,null,null,null,null,null,null,null,0,null,0,0]
[null,null,null,null,null,null,null,null,0,null,0,0]
[null,null,null,null,null,null,null,null,0,null,0,0]
[null,null,null,null,null,null,null,null,0,null,0,0]
[null,null,null,null,null,null,null,null,0,null,0,0]
[null,null,null,null,null,null,null,null,0,null,0,0]
["010","Épinette (autre que Norvège)",null,null,null,null,null,null,{"$f":"SUM(D420:E420)","v":0},{"$f":"E420","v":0},{"$f":"SUM(F420:G420)","v":0},{"$f":"SUM(H420,I420,K420)","v":0}]
["014","Épinette de Norvège",null,null,null,null,null,null,{"$f":"SUM(D421:E421)","v":0},{"$f":"E421","v":0},0,{"$f":"SUM(H421,I421,K421)","v":0}]
["030","Mélèze laricin",null,null,null,null,null,null,0,0,0,0]
["043","Pin gris et sylvestre",null,null,null,null,null,null,0,0,0,0]
["060","Sapin baumier",null,null,null,null,null,null,0,0,0,0]
["190","Peuplier (autre que Baumier)",null,null,null,null,null,null,0,0,0,0]
["191","Peuplier baumier",null,null,null,null,null,null,0,0,0,0]
["105","Bouleau blanc ",null,null,null,null,null,null,0,0,0,0]
["104","Bouleau jaune",null,null,null,null,null,null,0,0,0,0]
["132","Érable à sucre",null,null,null,null,null,null,0,0,0,0]
["133","Érable rouge",null,null,null,null,null,null,0,0,0,0]
["135","Érables - Autres ",null,null,null,null,null,null,0,0,0,0]
["120","Chêne ",null,null,null,null,null,null,0,0,0,0]
["141","Frêne d’Amérique (blanc)",null,null,null,null,null,null,0,0,0,0]
["142","Frêne noir",null,null,null,null,null,null,0,0,0,0]
["150","Hêtre",null,null,null,null,null,null,0,0,0,0]
["160","Noyer",null,null,null,null,null,null,0,0,0,0]
["165","Caryer",null,null,null,null,null,null,0,0,0,0]
["170","Orme",null,null,null,null,null,null,0,0,0,0]
["180","Ostryer de Virginie",null,null,null,null,null,null,0,0,0,0]
["110","Cerisier tardif",null,null,null,null,null,null,0,0,0,0]
["210","Tilleul d’Amérique",null,null,null,null,null,null,0,0,0,0]
["041","Pin blanc",null,null,null,null,null,null,0,0,0,0]
["042","Pin rouge",null,null,null,null,null,null,0,0,0,0]
["050","Pruche de l’Est",null,null,null,null,null,null,0,0,0,0]
["080","Thuya occidental",null,null,null,null,null,null,0,0,0,0]
[null,null,null,null,null,null,null,null,0,0,0,0]
[null,null,null,null,null,null,null,null,0,0,0,0]
[null,null,null,null,null,null,null,null,0,0,0,0]
[null,null,null,null,null,null,null,null,0,0,0,0]
[null,null,null,null,null,null,null,null,0,0,0,0]
[null,null,null,null,null,null,null,null,0,0,0,0]
[null,null,null,null,null,null,null,null,0,0,{"$f":"SUM(F452:G452)","v":0},0]
[null,null,null,null,null,null,null,null,0,0,0,0]
[null,null,null,null,null,null,null,null,0,0,0,0]
[null,null,null,null,null,null,null,null,0,0,0,0]
[null,null,null,null,null,null,null,null,0,0,0,0]
[null,null,null,null,null,null,null,null,0,0,0,0]
[null,null,null,null,null,null,null,null,0,0,0,0]
[null,null,null,null,null,null,null,null,0,0,0,0]
[null,null,null,null,null,null,null,null,0,0,0,0]
[null,null,null,null,null,null,null,null,0,0,0,0]
[null,null,null,null,null,null,null,null,0,0,0,0]
[null,null,null,null,null,null,null,null,0,0,0,0]
[null,null,null,null,null,null,null,null,0,0,0,0]
[null,null,null,null,null,null,null,null,0,0,0,0]
[null,null,null,null,null,null,null,null,0,0,0,0]
[null,null,null,null,null,null,null,null,0,0,0,0]
[null,null,null,null,null,null,null,null,0,0,0,0]
[null,null,null,null,null,null,null,null,0,0,0,0]
[null,null,null,null,null,null,null,null,0,0,0,0]
[null,null,null,null,null,null,null,null,0,0,0,0]
[null,null,null,null,null,null,null,null,0,0,0,0]
[null,null,null,null,null,null,null,null,0,0,0,0]
[null,null,null,null,null,null,null,null,0,0,0,0]
[null,null,null,null,null,null,null,null,0,0,0,0]
[null,null,null,null,null,null,null,null,0,0,0,0]
[null,null,null,null,null,null,null,null,0,0,0,0]
[null,null,null,null,null,null,null,null,0,0,0,0]
[null,null,null,null,null,null,null,null,0,0,0,0]
[null,null,null,null,null,null,null,null,0,0,0,0]
[null,null,null,null,null,null,null,null,0,0,0,0]
[null,null,null,null,null,null,null,null,0,0,0,0]
[null,null,null,null,null,null,null,null,0,0,0,0]
[null,null,null,null,null,null,null,null,0,0,0,0]
[null,null,null,null,null,null,null,null,{"$f":"SUM(D485:E485)","v":0},{"$f":"E485","v":0},0,{"$f":"SUM(H485,I485,K485)","v":0}]
[null,null,null,null,null,null,null,null,0,0,0,0]
[null,null,null,null,null,null,null,null,0,0,0,0]
[null,null,null,null,null,null,null,null,0,0,0,0]
[null,null,null,null,null,null,null,null,0,0,0,0]
[null,null,null,null,null,null,null,null,0,0,0,0]
[null,null,null,null,null,null,null,null,0,0,0,0]
[null,null,null,null,null,null,null,null,0,0,0,0]
[null,null,null,null,null,null,null,null,0,0,0,0]
[null,null,null,null,null,null,null,null,0,0,0,0]
[null,null,null,null,null,null,null,null,0,0,0,0]
[null,null,null,null,null,null,null,null,0,0,0,0]
[null,null,null,null,null,null,null,null,0,0,0,0]
[null,null,null,null,null,null,null,null,0,0,0,0]
[null,null,null,null,null,null,null,null,0,0,0,0]
[null,null,null,null,null,null,null,null,0,0,0,0]
[null,null,null,null,null,null,null,null,0,0,0,0]
[null,null,null,null,null,null,null,null,0,0,0,0]
[null,null,null,null,null,null,null,null,0,0,0,0]
[null,null,null,null,null,null,null,null,0,0,0,0]
[null,null,null,null,null,null,null,null,0,0,0,0]
[null,null,null,null,null,null,null,null,0,0,0,0]
[null,null,null,null,null,null,null,null,0,0,0,0]
[null,null,null,null,null,null,null,null,0,0,0,0]
[null,null,null,null,null,null,null,null,0,0,0,0]
[null,null,null,null,null,null,null,null,0,0,0,0]
[null,null,null,null,null,null,null,null,0,0,0,0]
[null,null,null,null,null,null,null,null,0,0,0,0]
[null,null,null,null,null,null,null,null,0,0,0,0]
[null,null,null,null,null,null,null,null,0,0,0,0]
[null,null,null,null,null,null,null,null,0,0,0,0]
[null,null,null,null,null,null,null,null,0,0,{"$f":"SUM(F516:G516)","v":0},0]
[null,null,null,null,null,null,null,null,0,0,0,0]
[null,null,null,null,null,null,null,null,0,0,0,0]
[null,null,null,null,null,null,null,null,0,0,0,0]
[null,null,null,null,null,null,null,null,0,0,0,0]
[null,null,null,null,null,null,null,null,0,0,0,0]
[null,null,null,null,null,null,null,null,0,0,0,0]
[null,null,null,null,null,null,null,null,0,0,0,0]
[null,null,null,null,null,null,null,null,0,0,0,0]
[null,null,null,null,null,null,null,null,0,0,0,0]
[null,null,null,null,null,null,null,null,0,0,0,0]
[null,null,null,null,null,null,null,null,0,0,0,0]
[null,null,null,null,null,null,null,null,0,0,0,0]
[null,null,null,null,null,null,null,null,0,0,0,0]
[null,null,null,null,null,null,null,null,0,0,0,0]
[null,null,null,null,null,null,null,null,0,0,0,0]
[null,null,null,null,null,null,null,null,0,0,0,0]
[null,null,null,null,null,null,null,null,0,0,0,0]
[null,null,null,null,null,null,null,null,0,0,0,0]
[null,null,null,null,null,null,null,null,0,0,0,0]
[null,null,null,null,null,null,null,null,0,0,0,0]
[null,null,null,null,null,null,null,null,0,0,0,0]
[null,null,null,null,null,null,null,null,0,0,0,0]
[null,null,null,null,null,null,null,null,0,0,0,0]
[null,null,null,null,null,null,null,null,0,0,0,0]
[null,null,null,null,null,null,null,null,0,0,0,0]
[null,null,null,null,null,null,null,null,0,0,0,0]
[null,null,null,null,null,null,null,null,0,0,0,0]
[null,null,null,null,null,null,null,null,0,0,0,0]
[null,null,null,null,null,null,null,null,0,0,0,0]
[null,null,null,null,null,null,null,null,0,0,0,0]
[null,null,null,null,null,null,null,null,0,0,0,0]
[null,null,null,null,null,null,null,null,0,0,0,0]
[null,null,null,null,null,null,null,null,{"$f":"SUM(D549:E549)","v":0},{"$f":"E549","v":0},0,{"$f":"SUM(H549,I549,K549)","v":0}]
[null,null,null,null,null,null,null,null,0,0,0,0]
[null,null,null,null,null,null,null,null,0,0,0,0]
[null,null,null,null,null,null,null,null,0,0,0,0]
[null,null,null,null,null,null,null,null,0,0,0,0]
[null,null,null,null,null,null,null,null,0,0,0,0]
[null,null,null,null,null,null,null,null,0,0,0,0]
[null,null,null,null,null,null,null,null,0,0,0,0]
[null,null,null,null,null,null,null,null,0,0,0,0]
[null,null,null,null,null,null,null,null,0,0,0,0]
[null,null,null,null,null,null,null,null,0,0,0,0]
[null,null,null,null,null,null,null,null,0,0,0,0]
[null,null,null,null,null,null,null,null,0,0,0,0]
[null,null,null,null,null,null,null,null,0,0,0,0]
[null,null,null,null,null,null,null,null,0,0,0,0]
[null,null,null,null,null,null,null,null,0,0,0,0]
[null,null,null,null,null,null,null,null,0,0,0,0]
[null,null,null,null,null,null,null,null,0,0,0,0]
[null,null,null,null,null,null,null,null,0,0,0,0]
[null,null,null,null,null,null,null,null,0,0,0,0]
[null,null,null,null,null,null,null,null,0,0,0,0]
[null,null,null,null,null,null,null,null,0,0,0,0]
[null,null,null,null,null,null,null,null,0,0,0,0]
[null,null,null,null,null,null,null,null,0,0,0,0]
[null,null,null,null,null,null,null,null,0,0,0,0]
[null,null,null,null,null,null,null,null,0,0,0,0]
[null,null,null,null,null,null,null,null,0,0,0,0]
[null,null,null,null,null,null,null,null,0,0,0,0]
[null,null,null,null,null,null,null,null,0,0,0,0]
[null,null,null,null,null,null,null,null,0,0,0,0]
[null,null,null,null,null,null,null,null,0,0,0,0]
[null,null,null,null,null,null,null,null,0,0,{"$f":"SUM(F580:G580)","v":0},0]
[null,null,null,null,null,null,null,null,0,0,0,0]
[null,null,null,null,null,null,null,null,0,0,0,0]
[null,null,null,null,null,null,null,null,0,0,0,0]
[null,null,null,null,null,null,null,null,0,0,0,0]
[null,null,null,null,null,null,null,null,0,0,0,0]
[null,null,null,null,null,null,null,null,0,0,0,0]
[null,null,null,null,null,null,null,null,0,0,0,0]
[null,null,null,null,null,null,null,null,0,0,0,0]
[null,null,null,null,null,null,null,null,0,0,0,0]
[null,null,null,null,null,null,null,null,0,0,0,0]
[null,null,null,null,null,null,null,null,0,0,0,0]
[null,null,null,null,null,null,null,null,0,0,0,0]
[null,null,null,null,null,null,null,null,0,0,0,0]
[null,null,null,null,null,null,null,null,0,0,0,0]
[null,null,null,null,null,null,null,null,0,0,0,0]
[null,null,null,null,null,null,null,null,0,0,0,0]
[null,null,null,null,null,null,null,null,0,0,0,0]
[null,null,null,null,null,null,null,null,0,0,0,0]
[null,null,null,null,null,null,null,null,0,0,0,0]
[null,null,null,null,null,null,null,null,0,0,0,0]
[null,null,null,null,null,null,null,null,0,0,0,0]
[null,null,null,null,null,null,null,null,0,0,0,0]
[null,null,null,null,null,null,null,null,0,0,0,0]
[null,null,null,null,null,null,null,null,0,0,0,0]
[null,null,null,null,null,null,null,null,0,0,0,0]
[null,null,null,null,null,null,null,null,0,0,0,0]
[null,null,null,null,null,null,null,null,0,0,0,0]
[null,null,null,null,null,null,null,null,0,0,0,0]
[null,null,null,null,null,null,null,null,0,0,0,0]
[null,null,null,null,null,null,null,null,0,0,0,0]
[null,null,null,null,null,null,null,null,0,0,0,0]
[null,null,null,null,null,null,null,null,0,0,0,0]
[null,null,null,null,null,null,null,null,{"$f":"SUM(D613:E613)","v":0},{"$f":"E613","v":0},0,{"$f":"SUM(H613,I613,K613)","v":0}]
[null,null,null,null,null,null,null,null,0,0,0,0]
[null,null,null,null,null,null,null,null,0,0,0,0]
[null,null,null,null,null,null,null,null,0,0,0,0]
[null,null,null,null,null,null,null,null,0,0,0,0]
[null,null,null,null,null,null,null,null,0,0,0,0]
[null,null,null,null,null,null,null,null,0,0,0,0]
["110","Cerisier tardif",null,null,null,null,null,null,{"$f":"SUM(D620:E620)","v":0},null,{"$f":"SUM(F620:G620)","v":0},{"$f":"SUM(H620:K620)","v":0}]
["210","Tilleul d’Amérique",null,null,null,null,null,null,0,null,0,0]
["041","Pin blanc",null,null,null,null,null,null,0,null,0,0]
["042","Pin rouge",null,null,null,null,null,null,0,null,0,0]
["050","Pruche de l’Est",null,null,null,null,null,null,0,null,0,0]
["080","Thuya occidental",null,null,null,null,null,null,0,null,0,0]
[null,null,null,null,null,null,null,null,0,null,0,0]
[null,null,null,null,null,null,null,null,0,null,0,0]
[null,null,null,null,null,null,null,null,0,null,0,0]
[null,null,null,null,null,null,null,null,0,null,0,0]
["010","Épinette (autre que Norvège)",null,null,null,null,null,null,{"$f":"SUM(D630:E630)","v":0},{"$f":"E630","v":0},{"$f":"SUM(F630:G630)","v":0},{"$f":"SUM(H630,I630,K630)","v":0}]
["014","Épinette de Norvège",null,null,null,null,null,null,{"$f":"SUM(D631:E631)","v":0},{"$f":"E631","v":0},0,{"$f":"SUM(H631,I631,K631)","v":0}]
["030","Mélèze laricin",null,null,null,null,null,null,0,0,0,0]
["043","Pin gris et sylvestre",null,null,null,null,null,null,0,0,0,0]
["060","Sapin baumier",null,null,null,null,null,null,0,0,0,0]
["190","Peuplier (autre que Baumier)",null,null,null,null,null,null,0,0,0,0]
["191","Peuplier baumier",null,null,null,null,null,null,0,0,0,0]
["105","Bouleau blanc ",null,null,null,null,null,null,0,0,0,0]
["104","Bouleau jaune",null,null,null,null,null,null,0,0,0,0]
["132","Érable à sucre",null,null,null,null,null,null,0,0,0,0]
["133","Érable rouge",null,null,null,null,null,null,0,0,0,0]
["135","Érables - Autres ",null,null,null,null,null,null,0,0,0,0]
["120","Chêne ",null,null,null,null,null,null,0,0,0,0]
["141","Frêne d’Amérique (blanc)",null,null,null,null,null,null,0,0,0,0]
["142","Frêne noir",null,null,null,null,null,null,0,0,0,0]
["150","Hêtre",null,null,null,null,null,null,0,0,0,0]
["160","Noyer",null,null,null,null,null,null,0,0,0,0]
["165","Caryer",null,null,null,null,null,null,0,0,0,0]
["170","Orme",null,null,null,null,null,null,0,0,0,0]
["180","Ostryer de Virginie",null,null,null,null,null,null,0,0,0,0]
["110","Cerisier tardif",null,null,null,null,null,null,0,0,0,0]
["210","Tilleul d’Amérique",null,null,null,null,null,null,0,0,0,0]
["041","Pin blanc",null,null,null,null,null,null,0,0,0,0]
["042","Pin rouge",null,null,null,null,null,null,0,0,0,0]
["050","Pruche de l’Est",null,null,null,null,null,null,0,0,0,0]
["080","Thuya occidental",null,null,null,null,null,null,0,0,0,0]
[null,null,null,null,null,null,null,null,0,0,0,0]
[null,null,null,null,null,null,null,null,0,0,0,0]
[null,null,null,null,null,null,null,null,0,0,0,0]
[null,null,null,null,null,null,null,null,0,0,0,0]
[null,null,null,null,null,null,null,null,0,0,0,0]
[null,null,null,null,null,null,null,null,0,0,0,0]
[null,null,null,null,null,null,null,null,0,0,{"$f":"SUM(F662:G662)","v":0},0]
[null,null,null,null,null,null,null,null,0,0,0,0]
[null,null,null,null,null,null,null,null,0,0,0,0]
[null,null,null,null,null,null,null,null,0,0,0,0]
[null,null,null,null,null,null,null,null,0,0,0,0]
[null,null,null,null,null,null,null,null,0,0,0,0]
[null,null,null,null,null,null,null,null,0,0,0,0]
[null,null,null,null,null,null,null,null,0,0,0,0]
[null,null,null,null,null,null,null,null,0,0,0,0]
[null,null,null,null,null,null,null,null,0,0,0,0]
[null,null,null,null,null,null,null,null,0,0,0,0]
[null,null,null,null,null,null,null,null,0,0,0,0]
[null,null,null,null,null,null,null,null,0,0,0,0]
[null,null,null,null,null,null,null,null,0,0,0,0]
[null,null,null,null,null,null,null,null,0,0,0,0]
[null,null,null,null,null,null,null,null,0,0,0,0]
[null,null,null,null,null,null,null,null,0,0,0,0]
[null,null,null,null,null,null,null,null,0,0,0,0]
[null,null,null,null,null,null,null,null,0,0,0,0]
[null,null,null,null,null,null,null,null,0,0,0,0]
[null,null,null,null,null,null,null,null,0,0,0,0]
[null,null,null,null,null,null,null,null,0,0,0,0]
[null,null,null,null,null,null,null,null,0,0,0,0]
[null,null,null,null,null,null,null,null,0,0,0,0]
[null,null,null,null,null,null,null,null,0,0,0,0]
[null,null,null,null,null,null,null,null,0,0,0,0]
[null,null,null,null,null,null,null,null,0,0,0,0]
[null,null,null,null,null,null,null,null,0,0,0,0]
[null,null,null,null,null,null,null,null,0,0,0,0]
[null,null,null,null,null,null,null,null,0,0,0,0]
[null,null,null,null,null,null,null,null,0,0,0,0]
[null,null,null,null,null,null,null,null,0,0,0,0]
[null,null,null,null,null,null,null,null,0,0,0,0]
[null,null,null,null,null,null,null,null,{"$f":"SUM(D695:E695)","v":0},{"$f":"E695","v":0},0,{"$f":"SUM(H695,I695,K695)","v":0}]
[null,null,null,null,null,null,null,null,0,0,0,0]
[null,null,null,null,null,null,null,null,0,0,0,0]
[null,null,null,null,null,null,null,null,0,0,0,0]
[null,null,null,null,null,null,null,null,0,0,0,0]
[null,null,null,null,null,null,null,null,0,0,0,0]
[null,null,null,null,null,null,null,null,0,0,0,0]
[null,null,null,null,null,null,null,null,0,0,0,0]
[null,null,null,null,null,null,null,null,0,0,0,0]
[null,null,null,null,null,null,null,null,0,0,0,0]
[null,null,null,null,null,null,null,null,0,0,0,0]
[null,null,null,null,null,null,null,null,0,0,0,0]
[null,null,null,null,null,null,null,null,0,0,0,0]
[null,null,null,null,null,null,null,null,0,0,0,0]
[null,null,null,null,null,null,null,null,0,0,0,0]
[null,null,null,null,null,null,null,null,0,0,0,0]
[null,null,null,null,null,null,null,null,0,0,0,0]
[null,null,null,null,null,null,null,null,0,0,0,0]
[null,null,null,null,null,null,null,null,0,0,0,0]
[null,null,null,null,null,null,null,null,0,0,0,0]
[null,null,null,null,null,null,null,null,0,0,0,0]
[null,null,null,null,null,null,null,null,0,0,0,0]
[null,null,null,null,null,null,null,null,0,0,0,0]
[null,null,null,null,null,null,null,null,0,0,0,0]
[null,null,null,null,null,null,null,null,0,0,0,0]
[null,null,null,null,null,null,null,null,0,0,0,0]
[null,null,null,null,null,null,null,null,0,0,0,0]
[null,null,null,null,null,null,null,null,0,0,0,0]
[null,null,null,null,null,null,null,null,0,0,0,0]
[null,null,null,null,null,null,null,null,0,0,0,0]
[null,null,null,null,null,null,null,null,0,0,0,0]
[null,null,null,null,null,null,null,null,0,0,{"$f":"SUM(F726:G726)","v":0},0]
[null,null,null,null,null,null,null,null,0,0,0,0]
[null,null,null,null,null,null,null,null,0,0,0,0]
[null,null,null,null,null,null,null,null,0,0,0,0]
[null,null,null,null,null,null,null,null,0,0,0,0]
[null,null,null,null,null,null,null,null,0,0,0,0]
[null,null,null,null,null,null,null,null,0,0,0,0]
[null,null,null,null,null,null,null,null,0,0,0,0]
[null,null,null,null,null,null,null,null,0,0,0,0]
[null,null,null,null,null,null,null,null,0,0,0,0]
[null,null,null,null,null,null,null,null,0,0,0,0]
[null,null,null,null,null,null,null,null,0,0,0,0]
[null,null,null,null,null,null,null,null,0,0,0,0]
[null,null,null,null,null,null,null,null,0,0,0,0]
[null,null,null,null,null,null,null,null,0,0,0,0]
[null,null,null,null,null,null,null,null,0,0,0,0]
[null,null,null,null,null,null,null,null,0,0,0,0]
[null,null,null,null,null,null,null,null,0,0,0,0]
[null,null,null,null,null,null,null,null,0,0,0,0]
[null,null,null,null,null,null,null,null,0,0,0,0]
[null,null,null,null,null,null,null,null,0,0,0,0]
[null,null,null,null,null,null,null,null,0,0,0,0]
[null,null,null,null,null,null,null,null,0,0,0,0]
[null,null,null,null,null,null,null,null,0,0,0,0]
[null,null,null,null,null,null,null,null,0,0,0,0]
[null,null,null,null,null,null,null,null,0,0,0,0]
[null,null,null,null,null,null,null,null,0,0,0,0]
[null,null,null,null,null,null,null,null,0,0,0,0]
[null,null,null,null,null,null,null,null,0,0,0,0]
[null,null,null,null,null,null,null,null,0,0,0,0]
[null,null,null,null,null,null,null,null,0,0,0,0]
[null,null,null,null,null,null,null,null,0,0,0,0]
[null,null,null,null,null,null,null,null,0,0,0,0]
[null,null,null,null,null,null,null,null,{"$f":"SUM(D759:E759)","v":0},{"$f":"E759","v":0},0,{"$f":"SUM(H759,I759,K759)","v":0}]
[null,null,null,null,null,null,null,null,0,0,0,0]
[null,null,null,null,null,null,null,null,0,0,0,0]
[null,null,null,null,null,null,null,null,0,0,0,0]
[null,null,null,null,null,null,null,null,0,0,0,0]
[null,null,null,null,null,null,null,null,0,0,0,0]
[null,null,null,null,null,null,null,null,0,0,0,0]
[null,null,null,null,null,null,null,null,0,0,0,0]
[null,null,null,null,null,null,null,null,0,0,0,0]
[null,null,null,null,null,null,null,null,0,0,0,0]
[null,null,null,null,null,null,null,null,0,0,0,0]
[null,null,null,null,null,null,null,null,0,0,0,0]
[null,null,null,null,null,null,null,null,0,0,0,0]
[null,null,null,null,null,null,null,null,0,0,0,0]
[null,null,null,null,null,null,null,null,0,0,0,0]
[null,null,null,null,null,null,null,null,0,0,0,0]
[null,null,null,null,null,null,null,null,0,0,0,0]
[null,null,null,null,null,null,null,null,0,0,0,0]
[null,null,null,null,null,null,null,null,0,0,0,0]
[null,null,null,null,null,null,null,null,0,0,0,0]
[null,null,null,null,null,null,null,null,0,0,0,0]
[null,null,null,null,null,null,null,null,0,0,0,0]
[null,null,null,null,null,null,null,null,0,0,0,0]
[null,null,null,null,null,null,null,null,0,0,0,0]
[null,null,null,null,null,null,null,null,0,0,0,0]
[null,null,null,null,null,null,null,null,0,0,0,0]
[null,null,null,null,null,null,null,null,0,0,0,0]
[null,null,null,null,null,null,null,null,0,0,0,0]
[null,null,null,null,null,null,null,null,0,0,0,0]
[null,null,null,null,null,null,null,null,0,0,0,0]
[null,null,null,null,null,null,null,null,0,0,0,0]
[null,null,null,null,null,null,null,null,0,0,{"$f":"SUM(F790:G790)","v":0},0]
[null,null,null,null,null,null,null,null,0,0,0,0]
[null,null,null,null,null,null,null,null,0,0,0,0]
[null,null,null,null,null,null,null,null,0,0,0,0]
[null,null,null,null,null,null,null,null,0,0,0,0]
[null,null,null,null,null,null,null,null,0,0,0,0]
[null,null,null,null,null,null,null,null,0,0,0,0]
[null,null,null,null,null,null,null,null,0,0,0,0]
[null,null,null,null,null,null,null,null,0,0,0,0]
[null,null,null,null,null,null,null,null,0,0,0,0]
[null,null,null,null,null,null,null,null,0,0,0,0]
[null,null,null,null,null,null,null,null,0,0,0,0]
[null,null,null,null,null,null,null,null,0,0,0,0]
[null,null,null,null,null,null,null,null,0,0,0,0]
[null,null,null,null,null,null,null,null,0,0,0,0]
[null,null,null,null,null,null,null,null,0,0,0,0]
[null,null,null,null,null,null,null,null,0,0,0,0]
[null,null,null,null,null,null,null,null,0,0,0,0]
[null,null,null,null,null,null,null,null,0,0,0,0]
[null,null,null,null,null,null,null,null,0,0,0,0]
[null,null,null,null,null,null,null,null,0,0,0,0]
[null,null,null,null,null,null,null,null,0,0,0,0]
[null,null,null,null,null,null,null,null,0,0,0,0]
[null,null,null,null,null,null,null,null,0,0,0,0]
[null,null,null,null,null,null,null,null,0,0,0,0]
[null,null,null,null,null,null,null,null,0,0,0,0]
[null,null,null,null,null,null,null,null,0,0,0,0]
[null,null,null,null,null,null,null,null,0,0,0,0]
[null,null,null,null,null,null,null,null,0,0,0,0]
[null,null,null,null,null,null,null,null,0,0,0,0]
[null,null,null,null,null,null,null,null,0,0,0,0]
[null,null,null,null,null,null,null,null,0,0,0,0]
[null,null,null,null,null,null,null,null,0,0,0,0]
[null,null,null,null,null,null,null,null,{"$f":"SUM(D823:E823)","v":0},{"$f":"E823","v":0},0,{"$f":"SUM(H823,I823,K823)","v":0}]
[null,null,null,null,null,null,null,null,0,0,0,0]
[null,null,null,null,null,null,null,null,0,0,0,0]
[null,null,null,null,null,null,null,null,0,0,0,0]
[null,null,null,null,null,null,null,null,0,0,0,0]
[null,null,null,null,null,null,null,null,0,0,0,0]
[null,null,null,null,null,null,null,null,0,0,0,0]
[null,null,null,null,null,null,null,null,{"$f":"SUM(D830:E830)","v":0},null,{"$f":"SUM(F830:G830)","v":0},{"$f":"SUM(H830:K830)","v":0}]
[null,null,null,null,null,null,null,null,0,null,0,0]
[null,null,null,null,null,null,null,null,0,null,0,0]
[null,null,null,null,null,null,null,null,0,null,0,0]
[null,null,null,null,null,null,null,null,0,null,0,0]
[null,null,null,null,null,null,null,null,0,null,0,0]
[null,null,null,null,null,null,null,null,0,null,0,0]
[null,null,null,null,null,null,null,null,0,null,0,0]
[null,null,null,null,null,null,null,null,0,null,0,0]
[null,null,null,null,null,null,null,null,0,null,0,0]
["010","Épinette (autre que Norvège)",null,null,null,null,null,null,{"$f":"SUM(D840:E840)","v":0},{"$f":"E840","v":0},{"$f":"SUM(F840:G840)","v":0},{"$f":"SUM(H840,I840,K840)","v":0}]
["014","Épinette de Norvège",null,null,null,null,null,null,{"$f":"SUM(D841:E841)","v":0},{"$f":"E841","v":0},0,{"$f":"SUM(H841,I841,K841)","v":0}]
["030","Mélèze laricin",null,null,null,null,null,null,0,0,0,0]
["043","Pin gris et sylvestre",null,null,null,null,null,null,0,0,0,0]
["060","Sapin baumier",null,null,null,null,null,null,0,0,0,0]
["190","Peuplier (autre que Baumier)",null,null,null,null,null,null,0,0,0,0]
["191","Peuplier baumier",null,null,null,null,null,null,0,0,0,0]
["105","Bouleau blanc ",null,null,null,null,null,null,0,0,0,0]
["104","Bouleau jaune",null,null,null,null,null,null,0,0,0,0]
["132","Érable à sucre",null,null,null,null,null,null,0,0,0,0]
["133","Érable rouge",null,null,null,null,null,null,0,0,0,0]
["135","Érables - Autres ",null,null,null,null,null,null,0,0,0,0]
["120","Chêne ",null,null,null,null,null,null,0,0,0,0]
["141","Frêne d’Amérique (blanc)",null,null,null,null,null,null,0,0,0,0]
["142","Frêne noir",null,null,null,null,null,null,0,0,0,0]
["150","Hêtre",null,null,null,null,null,null,0,0,0,0]
["160","Noyer",null,null,null,null,null,null,0,0,0,0]
["165","Caryer",null,null,null,null,null,null,0,0,0,0]
["170","Orme",null,null,null,null,null,null,0,0,0,0]
["180","Ostryer de Virginie",null,null,null,null,null,null,0,0,0,0]
["110","Cerisier tardif",null,null,null,null,null,null,0,0,0,0]
["210","Tilleul d’Amérique",null,null,null,null,null,null,0,0,0,0]
["041","Pin blanc",null,null,null,null,null,null,0,0,0,0]
["042","Pin rouge",null,null,null,null,null,null,0,0,0,0]
["050","Pruche de l’Est",null,null,null,null,null,null,0,0,0,0]
["080","Thuya occidental",null,null,null,null,null,null,0,0,0,0]
[null,null,null,null,null,null,null,null,0,0,0,0]
[null,null,null,null,null,null,null,null,0,0,0,0]
[null,null,null,null,null,null,null,null,0,0,0,0]
[null,null,null,null,null,null,null,null,0,0,0,0]
[null,null,null,null,null,null,null,null,0,0,0,0]
[null,null,null,null,null,null,null,null,0,0,0,0]
[null,null,null,null,null,null,null,null,0,0,{"$f":"SUM(F872:G872)","v":0},0]
[null,null,null,null,null,null,null,null,0,0,0,0]
[null,null,null,null,null,null,null,null,0,0,0,0]
[null,null,null,null,null,null,null,null,0,0,0,0]
[null,null,null,null,null,null,null,null,0,0,0,0]
[null,null,null,null,null,null,null,null,0,0,0,0]
[null,null,null,null,null,null,null,null,0,0,0,0]
[null,null,null,null,null,null,null,null,0,0,0,0]
[null,null,null,null,null,null,null,null,0,0,0,0]
[null,null,null,null,null,null,null,null,0,0,0,0]
[null,null,null,null,null,null,null,null,0,0,0,0]
[null,null,null,null,null,null,null,null,0,0,0,0]
[null,null,null,null,null,null,null,null,0,0,0,0]
[null,null,null,null,null,null,null,null,0,0,0,0]
[null,null,null,null,null,null,null,null,0,0,0,0]
[null,null,null,null,null,null,null,null,0,0,0,0]
[null,null,null,null,null,null,null,null,0,0,0,0]
[null,null,null,null,null,null,null,null,0,0,0,0]
[null,null,null,null,null,null,null,null,0,0,0,0]
[null,null,null,null,null,null,null,null,0,0,0,0]
[null,null,null,null,null,null,null,null,0,0,0,0]
[null,null,null,null,null,null,null,null,0,0,0,0]
[null,null,null,null,null,null,null,null,0,0,0,0]
[null,null,null,null,null,null,null,null,0,0,0,0]
[null,null,null,null,null,null,null,null,0,0,0,0]
[null,null,null,null,null,null,null,null,0,0,0,0]
[null,null,null,null,null,null,null,null,0,0,0,0]
[null,null,null,null,null,null,null,null,0,0,0,0]
[null,null,null,null,null,null,null,null,0,0,0,0]
[null,null,null,null,null,null,null,null,0,0,0,0]
[null,null,null,null,null,null,null,null,0,0,0,0]
[null,null,null,null,null,null,null,null,0,0,0,0]
[null,null,null,null,null,null,null,null,0,0,0,0]
[null,null,null,null,null,null,null,null,{"$f":"SUM(D905:E905)","v":0},{"$f":"E905","v":0},0,{"$f":"SUM(H905,I905,K905)","v":0}]
[null,null,null,null,null,null,null,null,0,0,0,0]
[null,null,null,null,null,null,null,null,0,0,0,0]
[null,null,null,null,null,null,null,null,0,0,0,0]
[null,null,null,null,null,null,null,null,0,0,0,0]
[null,null,null,null,null,null,null,null,0,0,0,0]
[null,null,null,null,null,null,null,null,0,0,0,0]
[null,null,null,null,null,null,null,null,0,0,0,0]
[null,null,null,null,null,null,null,null,0,0,0,0]
[null,null,null,null,null,null,null,null,0,0,0,0]
[null,null,null,null,null,null,null,null,0,0,0,0]
[null,null,null,null,null,null,null,null,0,0,0,0]
[null,null,null,null,null,null,null,null,0,0,0,0]
[null,null,null,null,null,null,null,null,0,0,0,0]
[null,null,null,null,null,null,null,null,0,0,0,0]
[null,null,null,null,null,null,null,null,0,0,0,0]
[null,null,null,null,null,null,null,null,0,0,0,0]
[null,null,null,null,null,null,null,null,0,0,0,0]
[null,null,null,null,null,null,null,null,0,0,0,0]
[null,null,null,null,null,null,null,null,0,0,0,0]
[null,null,null,null,null,null,null,null,0,0,0,0]
[null,null,null,null,null,null,null,null,0,0,0,0]
[null,null,null,null,null,null,null,null,0,0,0,0]
[null,null,null,null,null,null,null,null,0,0,0,0]
[null,null,null,null,null,null,null,null,0,0,0,0]
[null,null,null,null,null,null,null,null,0,0,0,0]
[null,null,null,null,null,null,null,null,0,0,0,0]
[null,null,null,null,null,null,null,null,0,0,0,0]
[null,null,null,null,null,null,null,null,0,0,0,0]
[null,null,null,null,null,null,null,null,0,0,0,0]
[null,null,null,null,null,null,null,null,0,0,0,0]
[null,null,null,null,null,null,null,null,0,0,{"$f":"SUM(F936:G936)","v":0},0]
[null,null,null,null,null,null,null,null,0,0,0,0]
[null,null,null,null,null,null,null,null,0,0,0,0]
[null,null,null,null,null,null,null,null,0,0,0,0]
[null,null,null,null,null,null,null,null,0,0,0,0]
[null,null,null,null,null,null,null,null,0,0,0,0]
[null,null,null,null,null,null,null,null,0,0,0,0]
[null,null,null,null,null,null,null,null,0,0,0,0]
[null,null,null,null,null,null,null,null,0,0,0,0]
[null,null,null,null,null,null,null,null,0,0,0,0]
[null,null,null,null,null,null,null,null,0,0,0,0]
[null,null,null,null,null,null,null,null,0,0,0,0]
[null,null,null,null,null,null,null,null,0,0,0,0]
[null,null,null,null,null,null,null,null,0,0,0,0]
[null,null,null,null,null,null,null,null,0,0,0,0]
[null,null,null,null,null,null,null,null,0,0,0,0]
[null,null,null,null,null,null,null,null,0,0,0,0]
[null,null,null,null,null,null,null,null,0,0,0,0]
[null,null,null,null,null,null,null,null,0,0,0,0]
[null,null,null,null,null,null,null,null,0,0,0,0]
[null,null,null,null,null,null,null,null,0,0,0,0]
[null,null,null,null,null,null,null,null,0,0,0,0]
[null,null,null,null,null,null,null,null,0,0,0,0]
[null,null,null,null,null,null,null,null,0,0,0,0]
[null,null,null,null,null,null,null,null,0,0,0,0]
[null,null,null,null,null,null,null,null,0,0,0,0]
[null,null,null,null,null,null,null,null,0,0,0,0]
[null,null,null,null,null,null,null,null,0,0,0,0]
[null,null,null,null,null,null,null,null,0,0,0,0]
[null,null,null,null,null,null,null,null,0,0,0,0]
[null,null,null,null,null,null,null,null,0,0,0,0]
[null,null,null,null,null,null,null,null,0,0,0,0]
[null,null,null,null,null,null,null,null,0,0,0,0]
[null,null,null,null,null,null,null,null,{"$f":"SUM(D969:E969)","v":0},{"$f":"E969","v":0},0,{"$f":"SUM(H969,I969,K969)","v":0}]
[null,null,null,null,null,null,null,null,0,0,0,0]
[null,null,null,null,null,null,null,null,0,0,0,0]
[null,null,null,null,null,null,null,null,0,0,0,0]
[null,null,null,null,null,null,null,null,0,0,0,0]
[null,null,null,null,null,null,null,null,0,0,0,0]
[null,null,null,null,null,null,null,null,0,0,0,0]
[null,null,null,null,null,null,null,null,0,0,0,0]
[null,null,null,null,null,null,null,null,0,0,0,0]
[null,null,null,null,null,null,null,null,0,0,0,0]
[null,null,null,null,null,null,null,null,0,0,0,0]
[null,null,null,null,null,null,null,null,0,0,0,0]
[null,null,null,null,null,null,null,null,0,0,0,0]
[null,null,null,null,null,null,null,null,0,0,0,0]
[null,null,null,null,null,null,null,null,0,0,0,0]
[null,null,null,null,null,null,null,null,0,0,0,0]
[null,null,null,null,null,null,null,null,0,0,0,0]
[null,null,null,null,null,null,null,null,0,0,0,0]
[null,null,null,null,null,null,null,null,0,0,0,0]
[null,null,null,null,null,null,null,null,0,0,0,0]
[null,null,null,null,null,null,null,null,0,0,0,0]
[null,null,null,null,null,null,null,null,0,0,0,0]
[null,null,null,null,null,null,null,null,0,0,0,0]
[null,null,null,null,null,null,null,null,0,0,0,0]
[null,null,null,null,null,null,null,null,0,0,0,0]
[null,null,null,null,null,null,null,null,0,0,0,0]
[null,null,null,null,null,null,null,null,0,0,0,0]
[null,null,null,null,null,null,null,null,0,0,0,0]
[null,null,null,null,null,null,null,null,0,0,0,0]
[null,null,null,null,null,null,null,null,0,0,0,0]
[null,null,null,null,null,null,null,null,0,0,0,0]
[null,null,null,null,null,null,null,null,0,0,{"$f":"SUM(F1000:G1000)","v":0},0]
[null,null,null,null,null,null,null,null,0,0,0,0]
[null,null,null,null,null,null,null,null,0,0,0,0]
[null,null,null,null,null,null,null,null,0,0,0,0]
[null,null,null,null,null,null,null,null,0,0,0,0]
[null,null,null,null,null,null,null,null,0,0,0,0]
[null,null,null,null,null,null,null,null,0,0,0,0]
[null,null,null,null,null,null,null,null,0,0,0,0]
[null,null,null,null,null,null,null,null,0,0,0,0]
[null,null,null,null,null,null,null,null,0,0,0,0]
[null,null,null,null,null,null,null,null,0,0,0,0]
[null,null,null,null,null,null,null,null,0,0,0,0]
[null,null,null,null,null,null,null,null,0,0,0,0]
[null,null,null,null,null,null,null,null,0,0,0,0]
[null,null,null,null,null,null,null,null,0,0,0,0]
[null,null,null,null,null,null,null,null,0,0,0,0]
[null,null,null,null,null,null,null,null,0,0,0,0]
[null,null,null,null,null,null,null,null,0,0,0,0]
[null,null,null,null,null,null,null,null,0,0,0,0]
[null,null,null,null,null,null,null,null,0,0,0,0]
[null,null,null,null,null,null,null,null,0,0,0,0]
[null,null,null,null,null,null,null,null,0,0,0,0]
[null,null,null,null,null,null,null,null,0,0,0,0]
[null,null,null,null,null,null,null,null,0,0,0,0]
[null,null,null,null,null,null,null,null,0,0,0,0]
[null,null,null,null,null,null,null,null,0,0,0,0]
[null,null,null,null,null,null,null,null,0,0,0,0]
[null,null,null,null,null,null,null,null,0,0,0,0]
[null,null,null,null,null,null,null,null,0,0,0,0]
[null,null,null,null,null,null,null,null,0,0,0,0]
[null,null,null,null,null,null,null,null,0,0,0,0]
[null,null,null,null,null,null,null,null,0,0,0,0]
[null,null,null,null,null,null,null,null,0,0,0,0]
[null,null,null,null,null,null,null,null,{"$f":"SUM(D1033:E1033)","v":0},{"$f":"E1033","v":0},0,{"$f":"SUM(H1033,I1033,K1033)","v":0}]
[null,null,null,null,null,null,null,null,0,0,0,0]
[null,null,null,null,null,null,null,null,0,0,0,0]
[null,null,null,null,null,null,null,null,0,0,0,0]
[null,null,null,null,null,null,null,null,0,0,0,0]
[null,null,null,null,null,null,null,null,0,0,0,0]
[null,null,null,null,null,null,null,null,0,0,0,0]
[]
[]
[]
[]
[]
[]
[]
[]
[]
[]
["010","Épinette (autre que Norvège)",null,null,null,null,null,null,{"$f":"SUM(D1050:E1050)","v":0},{"$f":"E1050","v":0},{"$f":"SUM(F1050:G1050)","v":0},{"$f":"SUM(H1050,I1050,K1050)","v":0}]
["014","Épinette de Norvège",null,null,null,null,null,null,{"$f":"SUM(D1051:E1051)","v":0},{"$f":"E1051","v":0},0,{"$f":"SUM(H1051,I1051,K1051)","v":0}]
["030","Mélèze laricin",null,null,null,null,null,null,0,0,0,0]
["043","Pin gris et sylvestre",null,null,null,null,null,null,0,0,0,0]
["060","Sapin baumier",null,null,null,null,null,null,0,0,0,0]
["190","Peuplier (autre que Baumier)",null,null,null,null,null,null,0,0,0,0]
["191","Peuplier baumier",null,null,null,null,null,null,0,0,0,0]
["105","Bouleau blanc ",null,null,null,null,null,null,0,0,0,0]
["104","Bouleau jaune",null,null,null,null,null,null,0,0,0,0]
["132","Érable à sucre",null,null,null,null,null,null,0,0,0,0]
["133","Érable rouge",null,null,null,null,null,null,0,0,0,0]
["135","Érables - Autres ",null,null,null,null,null,null,0,0,0,0]
["120","Chêne ",null,null,null,null,null,null,0,0,0,0]
["141","Frêne d’Amérique (blanc)",null,null,null,null,null,null,0,0,0,0]
["142","Frêne noir",null,null,null,null,null,null,0,0,0,0]
["150","Hêtre",null,null,null,null,null,null,0,0,0,0]
["160","Noyer",null,null,null,null,null,null,0,0,0,0]
["165","Caryer",null,null,null,null,null,null,0,0,0,0]
["170","Orme",null,null,null,null,null,null,0,0,0,0]
["180","Ostryer de Virginie",null,null,null,null,null,null,0,0,0,0]
["110","Cerisier tardif",null,null,null,null,null,null,0,0,0,0]
["210","Tilleul d’Amérique",null,null,null,null,null,null,0,0,0,0]
["041","Pin blanc",null,null,null,null,null,null,0,0,0,0]
["042","Pin rouge",null,null,null,null,null,null,0,0,0,0]
["050","Pruche de l’Est",null,null,null,null,null,null,0,0,0,0]
["080","Thuya occidental",null,null,null,null,null,null,0,0,0,0]
[null,null,null,null,null,null,null,null,0,0,0,0]
[null,null,null,null,null,null,null,null,0,0,0,0]
[null,null,null,null,null,null,null,null,0,0,0,0]
[null,null,null,null,null,null,null,null,0,0,0,0]
[null,null,null,null,null,null,null,null,0,0,0,0]
[null,null,null,null,null,null,null,null,0,0,0,0]
[null,null,null,null,null,null,null,null,0,0,{"$f":"SUM(F1082:G1082)","v":0},0]
[null,null,null,null,null,null,null,null,0,0,0,0]
[null,null,null,null,null,null,null,null,0,0,0,0]
[null,null,null,null,null,null,null,null,0,0,0,0]
[null,null,null,null,null,null,null,null,0,0,0,0]
[null,null,null,null,null,null,null,null,0,0,0,0]
[null,null,null,null,null,null,null,null,0,0,0,0]
[null,null,null,null,null,null,null,null,0,0,0,0]
[null,null,null,null,null,null,null,null,0,0,0,0]
[null,null,null,null,null,null,null,null,0,0,0,0]
[null,null,null,null,null,null,null,null,0,0,0,0]
[null,null,null,null,null,null,null,null,0,0,0,0]
[null,null,null,null,null,null,null,null,0,0,0,0]
[null,null,null,null,null,null,null,null,0,0,0,0]
[null,null,null,null,null,null,null,null,0,0,0,0]
[null,null,null,null,null,null,null,null,0,0,0,0]
[null,null,null,null,null,null,null,null,0,0,0,0]
[null,null,null,null,null,null,null,null,0,0,0,0]
[null,null,null,null,null,null,null,null,0,0,0,0]
[null,null,null,null,null,null,null,null,0,0,0,0]
[null,null,null,null,null,null,null,null,0,0,0,0]
[null,null,null,null,null,null,null,null,0,0,0,0]
[null,null,null,null,null,null,null,null,0,0,0,0]
[null,null,null,null,null,null,null,null,0,0,0,0]
[null,null,null,null,null,null,null,null,0,0,0,0]
[null,null,null,null,null,null,null,null,0,0,0,0]
[null,null,null,null,null,null,null,null,0,0,0,0]
[null,null,null,null,null,null,null,null,0,0,0,0]
[null,null,null,null,null,null,null,null,0,0,0,0]
[null,null,null,null,null,null,null,null,0,0,0,0]
[null,null,null,null,null,null,null,null,0,0,0,0]
[null,null,null,null,null,null,null,null,0,0,0,0]
[null,null,null,null,null,null,null,null,0,0,0,0]
[null,null,null,null,null,null,null,null,{"$f":"SUM(D1115:E1115)","v":0},{"$f":"E1115","v":0},0,{"$f":"SUM(H1115,I1115,K1115)","v":0}]
[null,null,null,null,null,null,null,null,0,0,0,0]
[null,null,null,null,null,null,null,null,0,0,0,0]
[null,null,null,null,null,null,null,null,0,0,0,0]
[null,null,null,null,null,null,null,null,0,0,0,0]
[null,null,null,null,null,null,null,null,0,0,0,0]
[null,null,null,null,null,null,null,null,0,0,0,0]
[null,null,null,null,null,null,null,null,0,0,0,0]
[null,null,null,null,null,null,null,null,0,0,0,0]
[null,null,null,null,null,null,null,null,0,0,0,0]
[null,null,null,null,null,null,null,null,0,0,0,0]
[null,null,null,null,null,null,null,null,0,0,0,0]
[null,null,null,null,null,null,null,null,0,0,0,0]
[null,null,null,null,null,null,null,null,0,0,0,0]
[null,null,null,null,null,null,null,null,0,0,0,0]
[null,null,null,null,null,null,null,null,0,0,0,0]
[null,null,null,null,null,null,null,null,0,0,0,0]
[null,null,null,null,null,null,null,null,0,0,0,0]
[null,null,null,null,null,null,null,null,0,0,0,0]
[null,null,null,null,null,null,null,null,0,0,0,0]
[null,null,null,null,null,null,null,null,0,0,0,0]
[null,null,null,null,null,null,null,null,0,0,0,0]
[null,null,null,null,null,null,null,null,0,0,0,0]
[null,null,null,null,null,null,null,null,0,0,0,0]
[null,null,null,null,null,null,null,null,0,0,0,0]
[null,null,null,null,null,null,null,null,0,0,0,0]
[null,null,null,null,null,null,null,null,0,0,0,0]
[null,null,null,null,null,null,null,null,0,0,0,0]
[null,null,null,null,null,null,null,null,0,0,0,0]
[null,null,null,null,null,null,null,null,0,0,0,0]
[null,null,null,null,null,null,null,null,0,0,0,0]
[null,null,null,null,null,null,null,null,0,0,{"$f":"SUM(F1146:G1146)","v":0},0]
[null,null,null,null,null,null,null,null,0,0,0,0]
[null,null,null,null,null,null,null,null,0,0,0,0]
[null,null,null,null,null,null,null,null,0,0,0,0]
[null,null,null,null,null,null,null,null,0,0,0,0]
[null,null,null,null,null,null,null,null,0,0,0,0]
[null,null,null,null,null,null,null,null,0,0,0,0]
[null,null,null,null,null,null,null,null,0,0,0,0]
[null,null,null,null,null,null,null,null,0,0,0,0]
[null,null,null,null,null,null,null,null,0,0,0,0]
[null,null,null,null,null,null,null,null,0,0,0,0]
[null,null,null,null,null,null,null,null,0,0,0,0]
[null,null,null,null,null,null,null,null,0,0,0,0]
[null,null,null,null,null,null,null,null,0,0,0,0]
[null,null,null,null,null,null,null,null,0,0,0,0]
[null,null,null,null,null,null,null,null,0,0,0,0]
[null,null,null,null,null,null,null,null,0,0,0,0]
[null,null,null,null,null,null,null,null,0,0,0,0]
[null,null,null,null,null,null,null,null,0,0,0,0]
[null,null,null,null,null,null,null,null,0,0,0,0]
[null,null,null,null,null,null,null,null,0,0,0,0]
[null,null,null,null,null,null,null,null,0,0,0,0]
[null,null,null,null,null,null,null,null,0,0,0,0]
[null,null,null,null,null,null,null,null,0,0,0,0]
[null,null,null,null,null,null,null,null,0,0,0,0]
[null,null,null,null,null,null,null,null,0,0,0,0]
[null,null,null,null,null,null,null,null,0,0,0,0]
[null,null,null,null,null,null,null,null,0,0,0,0]
[null,null,null,null,null,null,null,null,0,0,0,0]
[null,null,null,null,null,null,null,null,0,0,0,0]
[null,null,null,null,null,null,null,null,0,0,0,0]
[null,null,null,null,null,null,null,null,0,0,0,0]
[null,null,null,null,null,null,null,null,0,0,0,0]
[null,null,null,null,null,null,null,null,{"$f":"SUM(D1179:E1179)","v":0},{"$f":"E1179","v":0},0,{"$f":"SUM(H1179,I1179,K1179)","v":0}]
[null,null,null,null,null,null,null,null,0,0,0,0]
[null,null,null,null,null,null,null,null,0,0,0,0]
[null,null,null,null,null,null,null,null,0,0,0,0]
[null,null,null,null,null,null,null,null,0,0,0,0]
[null,null,null,null,null,null,null,null,0,0,0,0]
[null,null,null,null,null,null,null,null,0,0,0,0]
[null,null,null,null,null,null,null,null,0,0,0,0]
[null,null,null,null,null,null,null,null,0,0,0,0]
[null,null,null,null,null,null,null,null,0,0,0,0]
[null,null,null,null,null,null,null,null,0,0,0,0]
[null,null,null,null,null,null,null,null,0,0,0,0]
[null,null,null,null,null,null,null,null,0,0,0,0]
[null,null,null,null,null,null,null,null,0,0,0,0]
[null,null,null,null,null,null,null,null,0,0,0,0]
[null,null,null,null,null,null,null,null,0,0,0,0]
[null,null,null,null,null,null,null,null,0,0,0,0]
[null,null,null,null,null,null,null,null,0,0,0,0]
[null,null,null,null,null,null,null,null,0,0,0,0]
[null,null,null,null,null,null,null,null,0,0,0,0]
[null,null,null,null,null,null,null,null,0,0,0,0]
[null,null,null,null,null,null,null,null,0,0,0,0]
[null,null,null,null,null,null,null,null,0,0,0,0]
[null,null,null,null,null,null,null,null,0,0,0,0]
[null,null,null,null,null,null,null,null,0,0,0,0]
[null,null,null,null,null,null,null,null,0,0,0,0]
[null,null,null,null,null,null,null,null,0,0,0,0]
[null,null,null,null,null,null,null,null,0,0,0,0]
[null,null,null,null,null,null,null,null,0,0,0,0]
[null,null,null,null,null,null,null,null,0,0,0,0]
[null,null,null,null,null,null,null,null,0,0,0,0]
[null,null,null,null,null,null,null,null,0,0,{"$f":"SUM(F1210:G1210)","v":0},0]
[null,null,null,null,null,null,null,null,0,0,0,0]
[null,null,null,null,null,null,null,null,0,0,0,0]
[null,null,null,null,null,null,null,null,0,0,0,0]
[null,null,null,null,null,null,null,null,0,0,0,0]
[null,null,null,null,null,null,null,null,0,0,0,0]
[null,null,null,null,null,null,null,null,0,0,0,0]
[null,null,null,null,null,null,null,null,0,0,0,0]
[null,null,null,null,null,null,null,null,0,0,0,0]
[null,null,null,null,null,null,null,null,0,0,0,0]
[null,null,null,null,null,null,null,null,0,0,0,0]
[null,null,null,null,null,null,null,null,0,0,0,0]
[null,null,null,null,null,null,null,null,0,0,0,0]
[null,null,null,null,null,null,null,null,0,0,0,0]
[null,null,null,null,null,null,null,null,0,0,0,0]
[null,null,null,null,null,null,null,null,0,0,0,0]
[null,null,null,null,null,null,null,null,0,0,0,0]
[null,null,null,null,null,null,null,null,0,0,0,0]
[null,null,null,null,null,null,null,null,0,0,0,0]
[null,null,null,null,null,null,null,null,0,0,0,0]
[null,null,null,null,null,null,null,null,0,0,0,0]
[null,null,null,null,null,null,null,null,0,0,0,0]
[null,null,null,null,null,null,null,null,0,0,0,0]
[null,null,null,null,null,null,null,null,0,0,0,0]
[null,null,null,null,null,null,null,null,0,0,0,0]
[null,null,null,null,null,null,null,null,0,0,0,0]
[null,null,null,null,null,null,null,null,0,0,0,0]
[null,null,null,null,null,null,null,null,0,0,0,0]
[null,null,null,null,null,null,null,null,0,0,0,0]
[null,null,null,null,null,null,null,null,0,0,0,0]
[null,null,null,null,null,null,null,null,0,0,0,0]
[null,null,null,null,null,null,null,null,0,0,0,0]
[null,null,null,null,null,null,null,null,0,0,0,0]
[null,null,null,null,null,null,null,null,{"$f":"SUM(D1243:E1243)","v":0},{"$f":"E1243","v":0},0,{"$f":"SUM(H1243,I1243,K1243)","v":0}]
[null,null,null,null,null,null,null,null,0,0,0,0]
[null,null,null,null,null,null,null,null,0,0,0,0]
[null,null,null,null,null,null,null,null,0,0,0,0]
[null,null,null,null,null,null,null,null,0,0,0,0]
[null,null,null,null,null,null,null,null,0,0,0,0]
[null,null,null,null,null,null,null,null,0,0,0,0]
[null,null,null,null,null,null,null,null,{"$f":"SUM(D1250:E1250)","v":0},null,{"$f":"SUM(F1250:G1250)","v":0},{"$f":"SUM(H1250:K1250)","v":0}]
[null,null,null,null,null,null,null,null,0,null,0,0]
[null,null,null,null,null,null,null,null,0,null,0,0]
[null,null,null,null,null,null,null,null,0,null,0,0]
[null,null,null,null,null,null,null,null,0,null,0,0]
[null,null,null,null,null,null,null,null,0,null,0,0]
[null,null,null,null,null,null,null,null,0,null,0,0]
[null,null,null,null,null,null,null,null,0,null,0,0]
[null,null,null,null,null,null,null,null,0,null,0,0]
[null,null,null,null,null,null,null,null,0,null,0,0]
["010","Épinette (autre que Norvège)",null,null,null,null,null,null,{"$f":"SUM(D1260:E1260)","v":0},{"$f":"E1260","v":0},{"$f":"SUM(F1260:G1260)","v":0},{"$f":"SUM(H1260,I1260,K1260)","v":0}]
["014","Épinette de Norvège",null,null,null,null,null,null,{"$f":"SUM(D1261:E1261)","v":0},{"$f":"E1261","v":0},0,{"$f":"SUM(H1261,I1261,K1261)","v":0}]
["030","Mélèze laricin",null,null,null,null,null,null,0,0,0,0]
["043","Pin gris et sylvestre",null,null,null,null,null,null,0,0,0,0]
["060","Sapin baumier",null,null,null,null,null,null,0,0,0,0]
["190","Peuplier (autre que Baumier)",null,null,null,null,null,null,0,0,0,0]
["191","Peuplier baumier",null,null,null,null,null,null,0,0,0,0]
["105","Bouleau blanc ",null,null,null,null,null,null,0,0,0,0]
["104","Bouleau jaune",null,null,null,null,null,null,0,0,0,0]
["132","Érable à sucre",null,null,null,null,null,null,0,0,0,0]
["133","Érable rouge",null,null,null,null,null,null,0,0,0,0]
["135","Érables - Autres ",null,null,null,null,null,null,0,0,0,0]
["120","Chêne ",null,null,null,null,null,null,0,0,0,0]
["141","Frêne d’Amérique (blanc)",null,null,null,null,null,null,0,0,0,0]
["142","Frêne noir",null,null,null,null,null,null,0,0,0,0]
["150","Hêtre",null,null,null,null,null,null,0,0,0,0]
["160","Noyer",null,null,null,null,null,null,0,0,0,0]
["165","Caryer",null,null,null,null,null,null,0,0,0,0]
["170","Orme",null,null,null,null,null,null,0,0,0,0]
["180","Ostryer de Virginie",null,null,null,null,null,null,0,0,0,0]
["110","Cerisier tardif",null,null,null,null,null,null,0,0,0,0]
["210","Tilleul d’Amérique",null,null,null,null,null,null,0,0,0,0]
["041","Pin blanc",null,null,null,null,null,null,0,0,0,0]
["042","Pin rouge",null,null,null,null,null,null,0,0,0,0]
["050","Pruche de l’Est",null,null,null,null,null,null,0,0,0,0]
["080","Thuya occidental",null,null,null,null,null,null,0,0,0,0]
[null,null,null,null,null,null,null,null,0,0,0,0]
[null,null,null,null,null,null,null,null,0,0,0,0]
[null,null,null,null,null,null,null,null,0,0,0,0]
[null,null,null,null,null,null,null,null,0,0,0,0]
[null,null,null,null,null,null,null,null,0,0,0,0]
[null,null,null,null,null,null,null,null,0,0,0,0]
[null,null,null,null,null,null,null,null,0,0,{"$f":"SUM(F1292:G1292)","v":0},0]
[null,null,null,null,null,null,null,null,0,0,0,0]
[null,null,null,null,null,null,null,null,0,0,0,0]
[null,null,null,null,null,null,null,null,0,0,0,0]
[null,null,null,null,null,null,null,null,0,0,0,0]
[null,null,null,null,null,null,null,null,0,0,0,0]
[null,null,null,null,null,null,null,null,0,0,0,0]
[null,null,null,null,null,null,null,null,0,0,0,0]
[null,null,null,null,null,null,null,null,0,0,0,0]
[null,null,null,null,null,null,null,null,0,0,0,0]
[null,null,null,null,null,null,null,null,0,0,0,0]
[null,null,null,null,null,null,null,null,0,0,0,0]
[null,null,null,null,null,null,null,null,0,0,0,0]
[null,null,null,null,null,null,null,null,0,0,0,0]
[null,null,null,null,null,null,null,null,0,0,0,0]
[null,null,null,null,null,null,null,null,0,0,0,0]
[null,null,null,null,null,null,null,null,0,0,0,0]
[null,null,null,null,null,null,null,null,0,0,0,0]
[null,null,null,null,null,null,null,null,0,0,0,0]
[null,null,null,null,null,null,null,null,0,0,0,0]
[null,null,null,null,null,null,null,null,0,0,0,0]
[null,null,null,null,null,null,null,null,0,0,0,0]
[null,null,null,null,null,null,null,null,0,0,0,0]
[null,null,null,null,null,null,null,null,0,0,0,0]
[null,null,null,null,null,null,null,null,0,0,0,0]
[null,null,null,null,null,null,null,null,0,0,0,0]
[null,null,null,null,null,null,null,null,0,0,0,0]
[null,null,null,null,null,null,null,null,0,0,0,0]
[null,null,null,null,null,null,null,null,0,0,0,0]
[null,null,null,null,null,null,null,null,0,0,0,0]
[null,null,null,null,null,null,null,null,0,0,0,0]
[null,null,null,null,null,null,null,null,0,0,0,0]
[null,null,null,null,null,null,null,null,0,0,0,0]
[null,null,null,null,null,null,null,null,{"$f":"SUM(D1325:E1325)","v":0},{"$f":"E1325","v":0},0,{"$f":"SUM(H1325,I1325,K1325)","v":0}]
[null,null,null,null,null,null,null,null,0,0,0,0]
[null,null,null,null,null,null,null,null,0,0,0,0]
[null,null,null,null,null,null,null,null,0,0,0,0]
[null,null,null,null,null,null,null,null,0,0,0,0]
[null,null,null,null,null,null,null,null,0,0,0,0]
[null,null,null,null,null,null,null,null,0,0,0,0]
[null,null,null,null,null,null,null,null,0,0,0,0]
[null,null,null,null,null,null,null,null,0,0,0,0]
[null,null,null,null,null,null,null,null,0,0,0,0]
[null,null,null,null,null,null,null,null,0,0,0,0]
[null,null,null,null,null,null,null,null,0,0,0,0]
[null,null,null,null,null,null,null,null,0,0,0,0]
[null,null,null,null,null,null,null,null,0,0,0,0]
[null,null,null,null,null,null,null,null,0,0,0,0]
[null,null,null,null,null,null,null,null,0,0,0,0]
[null,null,null,null,null,null,null,null,0,0,0,0]
[null,null,null,null,null,null,null,null,0,0,0,0]
[null,null,null,null,null,null,null,null,0,0,0,0]
[null,null,null,null,null,null,null,null,0,0,0,0]
[null,null,null,null,null,null,null,null,0,0,0,0]
[null,null,null,null,null,null,null,null,0,0,0,0]
[null,null,null,null,null,null,null,null,0,0,0,0]
[null,null,null,null,null,null,null,null,0,0,0,0]
[null,null,null,null,null,null,null,null,0,0,0,0]
[null,null,null,null,null,null,null,null,0,0,0,0]
[null,null,null,null,null,null,null,null,0,0,0,0]
[null,null,null,null,null,null,null,null,0,0,0,0]
[null,null,null,null,null,null,null,null,0,0,0,0]
[null,null,null,null,null,null,null,null,0,0,0,0]
[null,null,null,null,null,null,null,null,0,0,0,0]
[null,null,null,null,null,null,null,null,0,0,{"$f":"SUM(F1356:G1356)","v":0},0]
[null,null,null,null,null,null,null,null,0,0,0,0]
[null,null,null,null,null,null,null,null,0,0,0,0]
[null,null,null,null,null,null,null,null,0,0,0,0]
[null,null,null,null,null,null,null,null,0,0,0,0]
[null,null,null,null,null,null,null,null,0,0,0,0]
[null,null,null,null,null,null,null,null,0,0,0,0]
[null,null,null,null,null,null,null,null,0,0,0,0]
[null,null,null,null,null,null,null,null,0,0,0,0]
[null,null,null,null,null,null,null,null,0,0,0,0]
[null,null,null,null,null,null,null,null,0,0,0,0]
[null,null,null,null,null,null,null,null,0,0,0,0]
[null,null,null,null,null,null,null,null,0,0,0,0]
[null,null,null,null,null,null,null,null,0,0,0,0]
[null,null,null,null,null,null,null,null,0,0,0,0]
[null,null,null,null,null,null,null,null,0,0,0,0]
[null,null,null,null,null,null,null,null,0,0,0,0]
[null,null,null,null,null,null,null,null,0,0,0,0]
[null,null,null,null,null,null,null,null,0,0,0,0]
[null,null,null,null,null,null,null,null,0,0,0,0]
[null,null,null,null,null,null,null,null,0,0,0,0]
[null,null,null,null,null,null,null,null,0,0,0,0]
[null,null,null,null,null,null,null,null,0,0,0,0]
[null,null,null,null,null,null,null,null,0,0,0,0]
[null,null,null,null,null,null,null,null,0,0,0,0]
[null,null,null,null,null,null,null,null,0,0,0,0]
[null,null,null,null,null,null,null,null,0,0,0,0]
[null,null,null,null,null,null,null,null,0,0,0,0]
[null,null,null,null,null,null,null,null,0,0,0,0]
[null,null,null,null,null,null,null,null,0,0,0,0]
[null,null,null,null,null,null,null,null,0,0,0,0]
[null,null,null,null,null,null,null,null,0,0,0,0]
[null,null,null,null,null,null,null,null,0,0,0,0]
[null,null,null,null,null,null,null,null,{"$f":"SUM(D1389:E1389)","v":0},{"$f":"E1389","v":0},0,{"$f":"SUM(H1389,I1389,K1389)","v":0}]
[null,null,null,null,null,null,null,null,0,0,0,0]
[null,null,null,null,null,null,null,null,0,0,0,0]
[null,null,null,null,null,null,null,null,0,0,0,0]
[null,null,null,null,null,null,null,null,0,0,0,0]
[null,null,null,null,null,null,null,null,0,0,0,0]
[null,null,null,null,null,null,null,null,0,0,0,0]
[null,null,null,null,null,null,null,null,0,0,0,0]
[null,null,null,null,null,null,null,null,0,0,0,0]
[null,null,null,null,null,null,null,null,0,0,0,0]
[null,null,null,null,null,null,null,null,0,0,0,0]
[null,null,null,null,null,null,null,null,0,0,0,0]
[null,null,null,null,null,null,null,null,0,0,0,0]
[null,null,null,null,null,null,null,null,0,0,0,0]
[null,null,null,null,null,null,null,null,0,0,0,0]
[null,null,null,null,null,null,null,null,0,0,0,0]
[null,null,null,null,null,null,null,null,0,0,0,0]
[null,null,null,null,null,null,null,null,0,0,0,0]
[null,null,null,null,null,null,null,null,0,0,0,0]
[null,null,null,null,null,null,null,null,0,0,0,0]
[null,null,null,null,null,null,null,null,0,0,0,0]
[null,null,null,null,null,null,null,null,0,0,0,0]
[null,null,null,null,null,null,null,null,0,0,0,0]
[null,null,null,null,null,null,null,null,0,0,0,0]
[null,null,null,null,null,null,null,null,0,0,0,0]
[null,null,null,null,null,null,null,null,0,0,0,0]
[null,null,null,null,null,null,null,null,0,0,0,0]
[null,null,null,null,null,null,null,null,0,0,0,0]
[null,null,null,null,null,null,null,null,0,0,0,0]
[null,null,null,null,null,null,null,null,0,0,0,0]
[null,null,null,null,null,null,null,null,0,0,0,0]
[null,null,null,null,null,null,null,null,0,0,{"$f":"SUM(F1420:G1420)","v":0},0]
[null,null,null,null,null,null,null,null,0,0,0,0]
[null,null,null,null,null,null,null,null,0,0,0,0]
[null,null,null,null,null,null,null,null,0,0,0,0]
[null,null,null,null,null,null,null,null,0,0,0,0]
[null,null,null,null,null,null,null,null,0,0,0,0]
[null,null,null,null,null,null,null,null,0,0,0,0]
[null,null,null,null,null,null,null,null,0,0,0,0]
[null,null,null,null,null,null,null,null,0,0,0,0]
[null,null,null,null,null,null,null,null,0,0,0,0]
[null,null,null,null,null,null,null,null,0,0,0,0]
[null,null,null,null,null,null,null,null,0,0,0,0]
[null,null,null,null,null,null,null,null,0,0,0,0]
[null,null,null,null,null,null,null,null,0,0,0,0]
[null,null,null,null,null,null,null,null,0,0,0,0]
[null,null,null,null,null,null,null,null,0,0,0,0]
[null,null,null,null,null,null,null,null,0,0,0,0]
[null,null,null,null,null,null,null,null,0,0,0,0]
[null,null,null,null,null,null,null,null,0,0,0,0]
[null,null,null,null,null,null,null,null,0,0,0,0]
[null,null,null,null,null,null,null,null,0,0,0,0]
[null,null,null,null,null,null,null,null,0,0,0,0]
[null,null,null,null,null,null,null,null,0,0,0,0]
[null,null,null,null,null,null,null,null,0,0,0,0]
[null,null,null,null,null,null,null,null,0,0,0,0]
[null,null,null,null,null,null,null,null,0,0,0,0]
[null,null,null,null,null,null,null,null,0,0,0,0]
[null,null,null,null,null,null,null,null,0,0,0,0]
[null,null,null,null,null,null,null,null,0,0,0,0]
[null,null,null,null,null,null,null,null,0,0,0,0]
[null,null,null,null,null,null,null,null,0,0,0,0]
[null,null,null,null,null,null,null,null,0,0,0,0]
[null,null,null,null,null,null,null,null,0,0,0,0]
[null,null,null,null,null,null,null,null,{"$f":"SUM(D1453:E1453)","v":0},{"$f":"E1453","v":0},0,{"$f":"SUM(H1453,I1453,K1453)","v":0}]
[null,null,null,null,null,null,null,null,0,0,0,0]
[null,null,null,null,null,null,null,null,0,0,0,0]
[null,null,null,null,null,null,null,null,0,0,0,0]
[null,null,null,null,null,null,null,null,0,0,0,0]
[null,null,null,null,null,null,null,null,0,0,0,0]
[null,null,null,null,null,null,null,null,0,0,0,0]
[null,null,null,null,null,null,null,null,{"$f":"SUM(D1460:E1460)","v":0},null,{"$f":"SUM(F1460:G1460)","v":0},{"$f":"SUM(H1460:K1460)","v":0}]
[null,null,null,null,null,null,null,null,0,null,0,0]
[null,null,null,null,null,null,null,null,0,null,0,0]
[null,null,null,null,null,null,null,null,0,null,0,0]
[null,null,null,null,null,null,null,null,0,null,0,0]
[null,null,null,null,null,null,null,null,0,null,0,0]
[null,null,null,null,null,null,null,null,0,null,0,0]
[null,null,null,null,null,null,null,null,0,null,0,0]
[null,null,null,null,null,null,null,null,0,null,0,0]
[null,null,null,null,null,null,null,null,0,null,0,0]
["010","Épinette (autre que Norvège)",null,null,null,null,null,null,{"$f":"SUM(D1470:E1470)","v":0},{"$f":"E1470","v":0},{"$f":"SUM(F1470:G1470)","v":0},{"$f":"SUM(H1470,I1470,K1470)","v":0}]
["014","Épinette de Norvège",null,null,null,null,null,null,{"$f":"SUM(D1471:E1471)","v":0},{"$f":"E1471","v":0},0,{"$f":"SUM(H1471,I1471,K1471)","v":0}]
["030","Mélèze laricin",null,null,null,null,null,null,0,0,0,0]
["043","Pin gris et sylvestre",null,null,null,null,null,null,0,0,0,0]
["060","Sapin baumier",null,null,null,null,null,null,0,0,0,0]
["190","Peuplier (autre que Baumier)",null,null,null,null,null,null,0,0,0,0]
["191","Peuplier baumier",null,null,null,null,null,null,0,0,0,0]
["105","Bouleau blanc ",null,null,null,null,null,null,0,0,0,0]
["104","Bouleau jaune",null,null,null,null,null,null,0,0,0,0]
["132","Érable à sucre",null,null,null,null,null,null,0,0,0,0]
["133","Érable rouge",null,null,null,null,null,null,0,0,0,0]
["135","Érables - Autres ",null,null,null,null,null,null,0,0,0,0]
["120","Chêne ",null,null,null,null,null,null,0,0,0,0]
["141","Frêne d’Amérique (blanc)",null,null,null,null,null,null,0,0,0,0]
["142","Frêne noir",null,null,null,null,null,null,0,0,0,0]
["150","Hêtre",null,null,null,null,null,null,0,0,0,0]
["160","Noyer",null,null,null,null,null,null,0,0,0,0]
["165","Caryer",null,null,null,null,null,null,0,0,0,0]
["170","Orme",null,null,null,null,null,null,0,0,0,0]
["180","Ostryer de Virginie",null,null,null,null,null,null,0,0,0,0]
["110","Cerisier tardif",null,null,null,null,null,null,0,0,0,0]
["210","Tilleul d’Amérique",null,null,null,null,null,null,0,0,0,0]
["041","Pin blanc",null,null,null,null,null,null,0,0,0,0]
["042","Pin rouge",null,null,null,null,null,null,0,0,0,0]
["050","Pruche de l’Est",null,null,null,null,null,null,0,0,0,0]
["080","Thuya occidental",null,null,null,null,null,null,0,0,0,0]
[null,null,null,null,null,null,null,null,0,0,0,0]
[null,null,null,null,null,null,null,null,0,0,0,0]
[null,null,null,null,null,null,null,null,0,0,0,0]
[null,null,null,null,null,null,null,null,0,0,0,0]
[null,null,null,null,null,null,null,null,0,0,0,0]
[null,null,null,null,null,null,null,null,0,0,0,0]
[null,null,null,null,null,null,null,null,0,0,{"$f":"SUM(F1502:G1502)","v":0},0]
[null,null,null,null,null,null,null,null,0,0,0,0]
[null,null,null,null,null,null,null,null,0,0,0,0]
[null,null,null,null,null,null,null,null,0,0,0,0]
[null,null,null,null,null,null,null,null,0,0,0,0]
[null,null,null,null,null,null,null,null,0,0,0,0]
[null,null,null,null,null,null,null,null,0,0,0,0]
[null,null,null,null,null,null,null,null,0,0,0,0]
[null,null,null,null,null,null,null,null,0,0,0,0]
[null,null,null,null,null,null,null,null,0,0,0,0]
[null,null,null,null,null,null,null,null,0,0,0,0]
[null,null,null,null,null,null,null,null,0,0,0,0]
[null,null,null,null,null,null,null,null,0,0,0,0]
[null,null,null,null,null,null,null,null,0,0,0,0]
[null,null,null,null,null,null,null,null,0,0,0,0]
[null,null,null,null,null,null,null,null,0,0,0,0]
[null,null,null,null,null,null,null,null,0,0,0,0]
[null,null,null,null,null,null,null,null,0,0,0,0]
[null,null,null,null,null,null,null,null,0,0,0,0]
[null,null,null,null,null,null,null,null,0,0,0,0]
[null,null,null,null,null,null,null,null,0,0,0,0]
[null,null,null,null,null,null,null,null,0,0,0,0]
[null,null,null,null,null,null,null,null,0,0,0,0]
[null,null,null,null,null,null,null,null,0,0,0,0]
[null,null,null,null,null,null,null,null,0,0,0,0]
[null,null,null,null,null,null,null,null,0,0,0,0]
[null,null,null,null,null,null,null,null,0,0,0,0]
[null,null,null,null,null,null,null,null,0,0,0,0]
[null,null,null,null,null,null,null,null,0,0,0,0]
[null,null,null,null,null,null,null,null,0,0,0,0]
[null,null,null,null,null,null,null,null,0,0,0,0]
[null,null,null,null,null,null,null,null,0,0,0,0]
[null,null,null,null,null,null,null,null,0,0,0,0]
[null,null,null,null,null,null,null,null,{"$f":"SUM(D1535:E1535)","v":0},{"$f":"E1535","v":0},0,{"$f":"SUM(H1535,I1535,K1535)","v":0}]
[null,null,null,null,null,null,null,null,0,0,0,0]
[null,null,null,null,null,null,null,null,0,0,0,0]
[null,null,null,null,null,null,null,null,0,0,0,0]
[null,null,null,null,null,null,null,null,0,0,0,0]
[null,null,null,null,null,null,null,null,0,0,0,0]
[null,null,null,null,null,null,null,null,0,0,0,0]
[null,null,null,null,null,null,null,null,0,0,0,0]
[null,null,null,null,null,null,null,null,0,0,0,0]
[null,null,null,null,null,null,null,null,0,0,0,0]
[null,null,null,null,null,null,null,null,0,0,0,0]
[null,null,null,null,null,null,null,null,0,0,0,0]
[null,null,null,null,null,null,null,null,0,0,0,0]
[null,null,null,null,null,null,null,null,0,0,0,0]
[null,null,null,null,null,null,null,null,0,0,0,0]
[null,null,null,null,null,null,null,null,0,0,0,0]
[null,null,null,null,null,null,null,null,0,0,0,0]
[null,null,null,null,null,null,null,null,0,0,0,0]
[null,null,null,null,null,null,null,null,0,0,0,0]
[null,null,null,null,null,null,null,null,0,0,0,0]
[null,null,null,null,null,null,null,null,0,0,0,0]
[null,null,null,null,null,null,null,null,0,0,0,0]
[null,null,null,null,null,null,null,null,0,0,0,0]
[null,null,null,null,null,null,null,null,0,0,0,0]
[null,null,null,null,null,null,null,null,0,0,0,0]
[null,null,null,null,null,null,null,null,0,0,0,0]
[null,null,null,null,null,null,null,null,0,0,0,0]
[null,null,null,null,null,null,null,null,0,0,0,0]
[null,null,null,null,null,null,null,null,0,0,0,0]
[null,null,null,null,null,null,null,null,0,0,0,0]
[null,null,null,null,null,null,null,null,0,0,0,0]
[null,null,null,null,null,null,null,null,0,0,{"$f":"SUM(F1566:G1566)","v":0},0]
[null,null,null,null,null,null,null,null,0,0,0,0]
[null,null,null,null,null,null,null,null,0,0,0,0]
[null,null,null,null,null,null,null,null,0,0,0,0]
[null,null,null,null,null,null,null,null,0,0,0,0]
[null,null,null,null,null,null,null,null,0,0,0,0]
[null,null,null,null,null,null,null,null,0,0,0,0]
[null,null,null,null,null,null,null,null,0,0,0,0]
[null,null,null,null,null,null,null,null,0,0,0,0]
[null,null,null,null,null,null,null,null,0,0,0,0]
[null,null,null,null,null,null,null,null,0,0,0,0]
[null,null,null,null,null,null,null,null,0,0,0,0]
[null,null,null,null,null,null,null,null,0,0,0,0]
[null,null,null,null,null,null,null,null,0,0,0,0]
[null,null,null,null,null,null,null,null,0,0,0,0]
[null,null,null,null,null,null,null,null,0,0,0,0]
[null,null,null,null,null,null,null,null,0,0,0,0]
[null,null,null,null,null,null,null,null,0,0,0,0]
[null,null,null,null,null,null,null,null,0,0,0,0]
[null,null,null,null,null,null,null,null,0,0,0,0]
[null,null,null,null,null,null,null,null,0,0,0,0]
[null,null,null,null,null,null,null,null,0,0,0,0]
[null,null,null,null,null,null,null,null,0,0,0,0]
[null,null,null,null,null,null,null,null,0,0,0,0]
[null,null,null,null,null,null,null,null,0,0,0,0]
[null,null,null,null,null,null,null,null,0,0,0,0]
[null,null,null,null,null,null,null,null,0,0,0,0]
[null,null,null,null,null,null,null,null,0,0,0,0]
[null,null,null,null,null,null,null,null,0,0,0,0]
[null,null,null,null,null,null,null,null,0,0,0,0]
[null,null,null,null,null,null,null,null,0,0,0,0]
[null,null,null,null,null,null,null,null,0,0,0,0]
[null,null,null,null,null,null,null,null,0,0,0,0]
[null,null,null,null,null,null,null,null,{"$f":"SUM(D1599:E1599)","v":0},{"$f":"E1599","v":0},0,{"$f":"SUM(H1599,I1599,K1599)","v":0}]
[null,null,null,null,null,null,null,null,0,0,0,0]
[null,null,null,null,null,null,null,null,0,0,0,0]
[null,null,null,null,null,null,null,null,0,0,0,0]
[null,null,null,null,null,null,null,null,0,0,0,0]
[null,null,null,null,null,null,null,null,0,0,0,0]
[null,null,null,null,null,null,null,null,0,0,0,0]
[null,null,null,null,null,null,null,null,0,0,0,0]
[null,null,null,null,null,null,null,null,0,0,0,0]
[null,null,null,null,null,null,null,null,0,0,0,0]
[null,null,null,null,null,null,null,null,0,0,0,0]
[null,null,null,null,null,null,null,null,0,0,0,0]
[null,null,null,null,null,null,null,null,0,0,0,0]
[null,null,null,null,null,null,null,null,0,0,0,0]
[null,null,null,null,null,null,null,null,0,0,0,0]
[null,null,null,null,null,null,null,null,0,0,0,0]
[null,null,null,null,null,null,null,null,0,0,0,0]
[null,null,null,null,null,null,null,null,0,0,0,0]
[null,null,null,null,null,null,null,null,0,0,0,0]
[null,null,null,null,null,null,null,null,0,0,0,0]
[null,null,null,null,null,null,null,null,0,0,0,0]
[null,null,null,null,null,null,null,null,0,0,0,0]
[null,null,null,null,null,null,null,null,0,0,0,0]
[null,null,null,null,null,null,null,null,0,0,0,0]
[null,null,null,null,null,null,null,null,0,0,0,0]
[null,null,null,null,null,null,null,null,0,0,0,0]
[null,null,null,null,null,null,null,null,0,0,0,0]
[null,null,null,null,null,null,null,null,0,0,0,0]
[null,null,null,null,null,null,null,null,0,0,0,0]
[null,null,null,null,null,null,null,null,0,0,0,0]
[null,null,null,null,null,null,null,null,0,0,0,0]
[null,null,null,null,null,null,null,null,0,0,{"$f":"SUM(F1630:G1630)","v":0},0]
[null,null,null,null,null,null,null,null,0,0,0,0]
[null,null,null,null,null,null,null,null,0,0,0,0]
[null,null,null,null,null,null,null,null,0,0,0,0]
[null,null,null,null,null,null,null,null,0,0,0,0]
[null,null,null,null,null,null,null,null,0,0,0,0]
[null,null,null,null,null,null,null,null,0,0,0,0]
[null,null,null,null,null,null,null,null,0,0,0,0]
[null,null,null,null,null,null,null,null,0,0,0,0]
[null,null,null,null,null,null,null,null,0,0,0,0]
[null,null,null,null,null,null,null,null,0,0,0,0]
[null,null,null,null,null,null,null,null,0,0,0,0]
[null,null,null,null,null,null,null,null,0,0,0,0]
[null,null,null,null,null,null,null,null,0,0,0,0]
[null,null,null,null,null,null,null,null,0,0,0,0]
[null,null,null,null,null,null,null,null,0,0,0,0]
[null,null,null,null,null,null,null,null,0,0,0,0]
[null,null,null,null,null,null,null,null,0,0,0,0]
[null,null,null,null,null,null,null,null,0,0,0,0]
[null,null,null,null,null,null,null,null,0,0,0,0]
[null,null,null,null,null,null,null,null,0,0,0,0]
[null,null,null,null,null,null,null,null,0,0,0,0]
[null,null,null,null,null,null,null,null,0,0,0,0]
[null,null,null,null,null,null,null,null,0,0,0,0]
[null,null,null,null,null,null,null,null,0,0,0,0]
[null,null,null,null,null,null,null,null,0,0,0,0]
[null,null,null,null,null,null,null,null,0,0,0,0]
[null,null,null,null,null,null,null,null,0,0,0,0]
[null,null,null,null,null,null,null,null,0,0,0,0]
[null,null,null,null,null,null,null,null,0,0,0,0]
[null,null,null,null,null,null,null,null,0,0,0,0]
[null,null,null,null,null,null,null,null,0,0,0,0]
[null,null,null,null,null,null,null,null,0,0,0,0]
[null,null,null,null,null,null,null,null,{"$f":"SUM(D1663:E1663)","v":0},{"$f":"E1663","v":0},0,{"$f":"SUM(H1663,I1663,K1663)","v":0}]
[null,null,null,null,null,null,null,null,0,0,0,0]
[null,null,null,null,null,null,null,null,0,0,0,0]
[null,null,null,null,null,null,null,null,0,0,0,0]
[null,null,null,null,null,null,null,null,0,0,0,0]
[null,null,null,null,null,null,null,null,0,0,0,0]
[null,null,null,null,null,null,null,null,0,0,0,0]
[]
[]
[]
[]
[]
[]
[]
[]
[]
[]
["010","Épinette (autre que Norvège)",null,null,null,null,null,null,{"$f":"SUM(D1680:E1680)","v":0},{"$f":"E1680","v":0},{"$f":"SUM(F1680:G1680)","v":0},{"$f":"SUM(H1680,I1680,K1680)","v":0}]
["014","Épinette de Norvège",null,null,null,null,null,null,{"$f":"SUM(D1681:E1681)","v":0},{"$f":"E1681","v":0},0,{"$f":"SUM(H1681,I1681,K1681)","v":0}]
["030","Mélèze laricin",null,null,null,null,null,null,0,0,0,0]
["043","Pin gris et sylvestre",null,null,null,null,null,null,0,0,0,0]
["060","Sapin baumier",null,null,null,null,null,null,0,0,0,0]
["190","Peuplier (autre que Baumier)",null,null,null,null,null,null,0,0,0,0]
["191","Peuplier baumier",null,null,null,null,null,null,0,0,0,0]
["105","Bouleau blanc ",null,null,null,null,null,null,0,0,0,0]
["104","Bouleau jaune",null,null,null,null,null,null,0,0,0,0]
["132","Érable à sucre",null,null,null,null,null,null,0,0,0,0]
["133","Érable rouge",null,null,null,null,null,null,0,0,0,0]
["135","Érables - Autres ",null,null,null,null,null,null,0,0,0,0]
["120","Chêne ",null,null,null,null,null,null,0,0,0,0]
["141","Frêne d’Amérique (blanc)",null,null,null,null,null,null,0,0,0,0]
["142","Frêne noir",null,null,null,null,null,null,0,0,0,0]
["150","Hêtre",null,null,null,null,null,null,0,0,0,0]
["160","Noyer",null,null,null,null,null,null,0,0,0,0]
["165","Caryer",null,null,null,null,null,null,0,0,0,0]
["170","Orme",null,null,null,null,null,null,0,0,0,0]
["180","Ostryer de Virginie",null,null,null,null,null,null,0,0,0,0]
["110","Cerisier tardif",null,null,null,null,null,null,0,0,0,0]
["210","Tilleul d’Amérique",null,null,null,null,null,null,0,0,0,0]
["041","Pin blanc",null,null,null,null,null,null,0,0,0,0]
["042","Pin rouge",null,null,null,null,null,null,0,0,0,0]
["050","Pruche de l’Est",null,null,null,null,null,null,0,0,0,0]
["080","Thuya occidental",null,null,null,null,null,null,0,0,0,0]
[null,null,null,null,null,null,null,null,0,0,0,0]
[null,null,null,null,null,null,null,null,0,0,0,0]
[null,null,null,null,null,null,null,null,0,0,0,0]
[null,null,null,null,null,null,null,null,0,0,0,0]
[null,null,null,null,null,null,null,null,0,0,0,0]
[null,null,null,null,null,null,null,null,0,0,0,0]
[null,null,null,null,null,null,null,null,0,0,{"$f":"SUM(F1712:G1712)","v":0},0]
[null,null,null,null,null,null,null,null,0,0,0,0]
[null,null,null,null,null,null,null,null,0,0,0,0]
[null,null,null,null,null,null,null,null,0,0,0,0]
[null,null,null,null,null,null,null,null,0,0,0,0]
[null,null,null,null,null,null,null,null,0,0,0,0]
[null,null,null,null,null,null,null,null,0,0,0,0]
[null,null,null,null,null,null,null,null,0,0,0,0]
[null,null,null,null,null,null,null,null,0,0,0,0]
[null,null,null,null,null,null,null,null,0,0,0,0]
[null,null,null,null,null,null,null,null,0,0,0,0]
[null,null,null,null,null,null,null,null,0,0,0,0]
[null,null,null,null,null,null,null,null,0,0,0,0]
[null,null,null,null,null,null,null,null,0,0,0,0]
[null,null,null,null,null,null,null,null,0,0,0,0]
[null,null,null,null,null,null,null,null,0,0,0,0]
[null,null,null,null,null,null,null,null,0,0,0,0]
[null,null,null,null,null,null,null,null,0,0,0,0]
[null,null,null,null,null,null,null,null,0,0,0,0]
[null,null,null,null,null,null,null,null,0,0,0,0]
[null,null,null,null,null,null,null,null,0,0,0,0]
[null,null,null,null,null,null,null,null,0,0,0,0]
[null,null,null,null,null,null,null,null,0,0,0,0]
[null,null,null,null,null,null,null,null,0,0,0,0]
[null,null,null,null,null,null,null,null,0,0,0,0]
[null,null,null,null,null,null,null,null,0,0,0,0]
[null,null,null,null,null,null,null,null,0,0,0,0]
[null,null,null,null,null,null,null,null,0,0,0,0]
[null,null,null,null,null,null,null,null,0,0,0,0]
[null,null,null,null,null,null,null,null,0,0,0,0]
[null,null,null,null,null,null,null,null,0,0,0,0]
[null,null,null,null,null,null,null,null,0,0,0,0]
[null,null,null,null,null,null,null,null,0,0,0,0]
[null,null,null,null,null,null,null,null,{"$f":"SUM(D1745:E1745)","v":0},{"$f":"E1745","v":0},0,{"$f":"SUM(H1745,I1745,K1745)","v":0}]
[null,null,null,null,null,null,null,null,0,0,0,0]
[null,null,null,null,null,null,null,null,0,0,0,0]
[null,null,null,null,null,null,null,null,0,0,0,0]
[null,null,null,null,null,null,null,null,0,0,0,0]
[null,null,null,null,null,null,null,null,0,0,0,0]
[null,null,null,null,null,null,null,null,0,0,0,0]
[null,null,null,null,null,null,null,null,0,0,0,0]
[null,null,null,null,null,null,null,null,0,0,0,0]
[null,null,null,null,null,null,null,null,0,0,0,0]
[null,null,null,null,null,null,null,null,0,0,0,0]
[null,null,null,null,null,null,null,null,0,0,0,0]
[null,null,null,null,null,null,null,null,0,0,0,0]
[null,null,null,null,null,null,null,null,0,0,0,0]
[null,null,null,null,null,null,null,null,0,0,0,0]
[null,null,null,null,null,null,null,null,0,0,0,0]
[null,null,null,null,null,null,null,null,0,0,0,0]
[null,null,null,null,null,null,null,null,0,0,0,0]
[null,null,null,null,null,null,null,null,0,0,0,0]
[null,null,null,null,null,null,null,null,0,0,0,0]
[null,null,null,null,null,null,null,null,0,0,0,0]
[null,null,null,null,null,null,null,null,0,0,0,0]
[null,null,null,null,null,null,null,null,0,0,0,0]
[null,null,null,null,null,null,null,null,0,0,0,0]
[null,null,null,null,null,null,null,null,0,0,0,0]
[null,null,null,null,null,null,null,null,0,0,0,0]
[null,null,null,null,null,null,null,null,0,0,0,0]
[null,null,null,null,null,null,null,null,0,0,0,0]
[null,null,null,null,null,null,null,null,0,0,0,0]
[null,null,null,null,null,null,null,null,0,0,0,0]
[null,null,null,null,null,null,null,null,0,0,0,0]
[null,null,null,null,null,null,null,null,0,0,{"$f":"SUM(F1776:G1776)","v":0},0]
[null,null,null,null,null,null,null,null,0,0,0,0]
[null,null,null,null,null,null,null,null,0,0,0,0]
[null,null,null,null,null,null,null,null,0,0,0,0]
[null,null,null,null,null,null,null,null,0,0,0,0]
[null,null,null,null,null,null,null,null,0,0,0,0]
[null,null,null,null,null,null,null,null,0,0,0,0]
[null,null,null,null,null,null,null,null,0,0,0,0]
[null,null,null,null,null,null,null,null,0,0,0,0]
[null,null,null,null,null,null,null,null,0,0,0,0]
[null,null,null,null,null,null,null,null,0,0,0,0]
[null,null,null,null,null,null,null,null,0,0,0,0]
[null,null,null,null,null,null,null,null,0,0,0,0]
[null,null,null,null,null,null,null,null,0,0,0,0]
[null,null,null,null,null,null,null,null,0,0,0,0]
[null,null,null,null,null,null,null,null,0,0,0,0]
[null,null,null,null,null,null,null,null,0,0,0,0]
[null,null,null,null,null,null,null,null,0,0,0,0]
[null,null,null,null,null,null,null,null,0,0,0,0]
[null,null,null,null,null,null,null,null,0,0,0,0]
[null,null,null,null,null,null,null,null,0,0,0,0]
[null,null,null,null,null,null,null,null,0,0,0,0]
[null,null,null,null,null,null,null,null,0,0,0,0]
[null,null,null,null,null,null,null,null,0,0,0,0]
[null,null,null,null,null,null,null,null,0,0,0,0]
[null,null,null,null,null,null,null,null,0,0,0,0]
[null,null,null,null,null,null,null,null,0,0,0,0]
[null,null,null,null,null,null,null,null,0,0,0,0]
[null,null,null,null,null,null,null,null,0,0,0,0]
[null,null,null,null,null,null,null,null,0,0,0,0]
[null,null,null,null,null,null,null,null,0,0,0,0]
[null,null,null,null,null,null,null,null,0,0,0,0]
[null,null,null,null,null,null,null,null,0,0,0,0]
[null,null,null,null,null,null,null,null,{"$f":"SUM(D1809:E1809)","v":0},{"$f":"E1809","v":0},0,{"$f":"SUM(H1809,I1809,K1809)","v":0}]
[null,null,null,null,null,null,null,null,0,0,0,0]
[null,null,null,null,null,null,null,null,0,0,0,0]
[null,null,null,null,null,null,null,null,0,0,0,0]
[null,null,null,null,null,null,null,null,0,0,0,0]
[null,null,null,null,null,null,null,null,0,0,0,0]
[null,null,null,null,null,null,null,null,0,0,0,0]
[null,null,null,null,null,null,null,null,0,0,0,0]
[null,null,null,null,null,null,null,null,0,0,0,0]
[null,null,null,null,null,null,null,null,0,0,0,0]
[null,null,null,null,null,null,null,null,0,0,0,0]
[null,null,null,null,null,null,null,null,0,0,0,0]
[null,null,null,null,null,null,null,null,0,0,0,0]
[null,null,null,null,null,null,null,null,0,0,0,0]
[null,null,null,null,null,null,null,null,0,0,0,0]
[null,null,null,null,null,null,null,null,0,0,0,0]
[null,null,null,null,null,null,null,null,0,0,0,0]
[null,null,null,null,null,null,null,null,0,0,0,0]
[null,null,null,null,null,null,null,null,0,0,0,0]
[null,null,null,null,null,null,null,null,0,0,0,0]
[null,null,null,null,null,null,null,null,0,0,0,0]
[null,null,null,null,null,null,null,null,0,0,0,0]
[null,null,null,null,null,null,null,null,0,0,0,0]
[null,null,null,null,null,null,null,null,0,0,0,0]
[null,null,null,null,null,null,null,null,0,0,0,0]
[null,null,null,null,null,null,null,null,0,0,0,0]
[null,null,null,null,null,null,null,null,0,0,0,0]
[null,null,null,null,null,null,null,null,0,0,0,0]
[null,null,null,null,null,null,null,null,0,0,0,0]
[null,null,null,null,null,null,null,null,0,0,0,0]
[null,null,null,null,null,null,null,null,0,0,0,0]
[null,null,null,null,null,null,null,null,0,0,{"$f":"SUM(F1840:G1840)","v":0},0]
[null,null,null,null,null,null,null,null,0,0,0,0]
[null,null,null,null,null,null,null,null,0,0,0,0]
[null,null,null,null,null,null,null,null,0,0,0,0]
[null,null,null,null,null,null,null,null,0,0,0,0]
[null,null,null,null,null,null,null,null,0,0,0,0]
[null,null,null,null,null,null,null,null,0,0,0,0]
[null,null,null,null,null,null,null,null,0,0,0,0]
[null,null,null,null,null,null,null,null,0,0,0,0]
[null,null,null,null,null,null,null,null,0,0,0,0]
[null,null,null,null,null,null,null,null,0,0,0,0]
[null,null,null,null,null,null,null,null,0,0,0,0]
[null,null,null,null,null,null,null,null,0,0,0,0]
[null,null,null,null,null,null,null,null,0,0,0,0]
[null,null,null,null,null,null,null,null,0,0,0,0]
[null,null,null,null,null,null,null,null,0,0,0,0]
[null,null,null,null,null,null,null,null,0,0,0,0]
[null,null,null,null,null,null,null,null,0,0,0,0]
[null,null,null,null,null,null,null,null,0,0,0,0]
[null,null,null,null,null,null,null,null,0,0,0,0]
[null,null,null,null,null,null,null,null,0,0,0,0]
[null,null,null,null,null,null,null,null,0,0,0,0]
[null,null,null,null,null,null,null,null,0,0,0,0]
[null,null,null,null,null,null,null,null,0,0,0,0]
[null,null,null,null,null,null,null,null,0,0,0,0]
[null,null,null,null,null,null,null,null,0,0,0,0]
[null,null,null,null,null,null,null,null,0,0,0,0]
[null,null,null,null,null,null,null,null,0,0,0,0]
[null,null,null,null,null,null,null,null,0,0,0,0]
[null,null,null,null,null,null,null,null,0,0,0,0]
[null,null,null,null,null,null,null,null,0,0,0,0]
[null,null,null,null,null,null,null,null,0,0,0,0]
[null,null,null,null,null,null,null,null,0,0,0,0]
[null,null,null,null,null,null,null,null,{"$f":"SUM(D1873:E1873)","v":0},{"$f":"E1873","v":0},0,{"$f":"SUM(H1873,I1873,K1873)","v":0}]
[null,null,null,null,null,null,null,null,0,0,0,0]
[null,null,null,null,null,null,null,null,0,0,0,0]
[null,null,null,null,null,null,null,null,0,0,0,0]
[null,null,null,null,null,null,null,null,0,0,0,0]
[null,null,null,null,null,null,null,null,0,0,0,0]
[null,null,null,null,null,null,null,null,0,0,0,0]
[]
[]
[]
[]
[]
[]
[]
[]
[]
[]
["010","Épinette (autre que Norvège)",null,null,null,null,null,null,{"$f":"SUM(D1890:E1890)","v":0},{"$f":"E1890","v":0},{"$f":"SUM(F1890:G1890)","v":0},{"$f":"SUM(H1890,I1890,K1890)","v":0}]
["014","Épinette de Norvège",null,null,null,null,null,null,{"$f":"SUM(D1891:E1891)","v":0},{"$f":"E1891","v":0},0,{"$f":"SUM(H1891,I1891,K1891)","v":0}]
["030","Mélèze laricin",null,null,null,null,null,null,0,0,0,0]
["043","Pin gris et sylvestre",null,null,null,null,null,null,0,0,0,0]
["060","Sapin baumier",null,null,null,null,null,null,0,0,0,0]
["190","Peuplier (autre que Baumier)",null,null,null,null,null,null,0,0,0,0]
["191","Peuplier baumier",null,null,null,null,null,null,0,0,0,0]
["105","Bouleau blanc ",null,null,null,null,null,null,0,0,0,0]
["104","Bouleau jaune",null,null,null,null,null,null,0,0,0,0]
["132","Érable à sucre",null,null,null,null,null,null,0,0,0,0]
["133","Érable rouge",null,null,null,null,null,null,0,0,0,0]
["135","Érables - Autres ",null,null,null,null,null,null,0,0,0,0]
["120","Chêne ",null,null,null,null,null,null,0,0,0,0]
["141","Frêne d’Amérique (blanc)",null,null,null,null,null,null,0,0,0,0]
["142","Frêne noir",null,null,null,null,null,null,0,0,0,0]
["150","Hêtre",null,null,null,null,null,null,0,0,0,0]
["160","Noyer",null,null,null,null,null,null,0,0,0,0]
["165","Caryer",null,null,null,null,null,null,0,0,0,0]
["170","Orme",null,null,null,null,null,null,0,0,0,0]
["180","Ostryer de Virginie",null,null,null,null,null,null,0,0,0,0]
["110","Cerisier tardif",null,null,null,null,null,null,0,0,0,0]
["210","Tilleul d’Amérique",null,null,null,null,null,null,0,0,0,0]
["041","Pin blanc",null,null,null,null,null,null,0,0,0,0]
["042","Pin rouge",null,null,null,null,null,null,0,0,0,0]
["050","Pruche de l’Est",null,null,null,null,null,null,0,0,0,0]
["080","Thuya occidental",null,null,null,null,null,null,0,0,0,0]
[null,null,null,null,null,null,null,null,0,0,0,0]
[null,null,null,null,null,null,null,null,0,0,0,0]
[null,null,null,null,null,null,null,null,0,0,0,0]
[null,null,null,null,null,null,null,null,0,0,0,0]
[null,null,null,null,null,null,null,null,0,0,0,0]
[null,null,null,null,null,null,null,null,0,0,0,0]
[null,null,null,null,null,null,null,null,0,0,{"$f":"SUM(F1922:G1922)","v":0},0]
[null,null,null,null,null,null,null,null,0,0,0,0]
[null,null,null,null,null,null,null,null,0,0,0,0]
[null,null,null,null,null,null,null,null,0,0,0,0]
[null,null,null,null,null,null,null,null,0,0,0,0]
[null,null,null,null,null,null,null,null,0,0,0,0]
[null,null,null,null,null,null,null,null,0,0,0,0]
[null,null,null,null,null,null,null,null,0,0,0,0]
[null,null,null,null,null,null,null,null,0,0,0,0]
[null,null,null,null,null,null,null,null,0,0,0,0]
[null,null,null,null,null,null,null,null,0,0,0,0]
[null,null,null,null,null,null,null,null,0,0,0,0]
[null,null,null,null,null,null,null,null,0,0,0,0]
[null,null,null,null,null,null,null,null,0,0,0,0]
[null,null,null,null,null,null,null,null,0,0,0,0]
[null,null,null,null,null,null,null,null,0,0,0,0]
[null,null,null,null,null,null,null,null,0,0,0,0]
[null,null,null,null,null,null,null,null,0,0,0,0]
[null,null,null,null,null,null,null,null,0,0,0,0]
[null,null,null,null,null,null,null,null,0,0,0,0]
[null,null,null,null,null,null,null,null,0,0,0,0]
[null,null,null,null,null,null,null,null,0,0,0,0]
[null,null,null,null,null,null,null,null,0,0,0,0]
[null,null,null,null,null,null,null,null,0,0,0,0]
[null,null,null,null,null,null,null,null,0,0,0,0]
[null,null,null,null,null,null,null,null,0,0,0,0]
[null,null,null,null,null,null,null,null,0,0,0,0]
[null,null,null,null,null,null,null,null,0,0,0,0]
[null,null,null,null,null,null,null,null,0,0,0,0]
[null,null,null,null,null,null,null,null,0,0,0,0]
[null,null,null,null,null,null,null,null,0,0,0,0]
[null,null,null,null,null,null,null,null,0,0,0,0]
[null,null,null,null,null,null,null,null,0,0,0,0]
[null,null,null,null,null,null,null,null,{"$f":"SUM(D1955:E1955)","v":0},{"$f":"E1955","v":0},0,{"$f":"SUM(H1955,I1955,K1955)","v":0}]
[null,null,null,null,null,null,null,null,0,0,0,0]
[null,null,null,null,null,null,null,null,0,0,0,0]
[null,null,null,null,null,null,null,null,0,0,0,0]
[null,null,null,null,null,null,null,null,0,0,0,0]
[null,null,null,null,null,null,null,null,0,0,0,0]
[null,null,null,null,null,null,null,null,0,0,0,0]
[null,null,null,null,null,null,null,null,0,0,0,0]
[null,null,null,null,null,null,null,null,0,0,0,0]
[null,null,null,null,null,null,null,null,0,0,0,0]
[null,null,null,null,null,null,null,null,0,0,0,0]
[null,null,null,null,null,null,null,null,0,0,0,0]
[null,null,null,null,null,null,null,null,0,0,0,0]
[null,null,null,null,null,null,null,null,0,0,0,0]
[null,null,null,null,null,null,null,null,0,0,0,0]
[null,null,null,null,null,null,null,null,0,0,0,0]
[null,null,null,null,null,null,null,null,0,0,0,0]
[null,null,null,null,null,null,null,null,0,0,0,0]
[null,null,null,null,null,null,null,null,0,0,0,0]
[null,null,null,null,null,null,null,null,0,0,0,0]
[null,null,null,null,null,null,null,null,0,0,0,0]
[null,null,null,null,null,null,null,null,0,0,0,0]
[null,null,null,null,null,null,null,null,0,0,0,0]
[null,null,null,null,null,null,null,null,0,0,0,0]
[null,null,null,null,null,null,null,null,0,0,0,0]
[null,null,null,null,null,null,null,null,0,0,0,0]
[null,null,null,null,null,null,null,null,0,0,0,0]
[null,null,null,null,null,null,null,null,0,0,0,0]
[null,null,null,null,null,null,null,null,0,0,0,0]
[null,null,null,null,null,null,null,null,0,0,0,0]
[null,null,null,null,null,null,null,null,0,0,0,0]
[null,null,null,null,null,null,null,null,0,0,{"$f":"SUM(F1986:G1986)","v":0},0]
[null,null,null,null,null,null,null,null,0,0,0,0]
[null,null,null,null,null,null,null,null,0,0,0,0]
[null,null,null,null,null,null,null,null,0,0,0,0]
[null,null,null,null,null,null,null,null,0,0,0,0]
[null,null,null,null,null,null,null,null,0,0,0,0]
[null,null,null,null,null,null,null,null,0,0,0,0]
[null,null,null,null,null,null,null,null,0,0,0,0]
[null,null,null,null,null,null,null,null,0,0,0,0]
[null,null,null,null,null,null,null,null,0,0,0,0]
[null,null,null,null,null,null,null,null,0,0,0,0]
[null,null,null,null,null,null,null,null,0,0,0,0]
[null,null,null,null,null,null,null,null,0,0,0,0]
[null,null,null,null,null,null,null,null,0,0,0,0]
[null,null,null,null,null,null,null,null,0,0,0,0]
[null,null,null,null,null,null,null,null,0,0,0,0]
[null,null,null,null,null,null,null,null,0,0,0,0]
[null,null,null,null,null,null,null,null,0,0,0,0]
[null,null,null,null,null,null,null,null,0,0,0,0]
[null,null,null,null,null,null,null,null,0,0,0,0]
[null,null,null,null,null,null,null,null,0,0,0,0]
[null,null,null,null,null,null,null,null,0,0,0,0]
[null,null,null,null,null,null,null,null,0,0,0,0]
[null,null,null,null,null,null,null,null,0,0,0,0]
[null,null,null,null,null,null,null,null,0,0,0,0]
[null,null,null,null,null,null,null,null,0,0,0,0]
[null,null,null,null,null,null,null,null,0,0,0,0]
[null,null,null,null,null,null,null,null,0,0,0,0]
[null,null,null,null,null,null,null,null,0,0,0,0]
[null,null,null,null,null,null,null,null,0,0,0,0]
[null,null,null,null,null,null,null,null,0,0,0,0]
[null,null,null,null,null,null,null,null,0,0,0,0]
[null,null,null,null,null,null,null,null,0,0,0,0]
[null,null,null,null,null,null,null,null,{"$f":"SUM(D2019:E2019)","v":0},{"$f":"E2019","v":0},0,{"$f":"SUM(H2019,I2019,K2019)","v":0}]
[null,null,null,null,null,null,null,null,0,0,0,0]
[null,null,null,null,null,null,null,null,0,0,0,0]
[null,null,null,null,null,null,null,null,0,0,0,0]
[null,null,null,null,null,null,null,null,0,0,0,0]
[null,null,null,null,null,null,null,null,0,0,0,0]
[null,null,null,null,null,null,null,null,0,0,0,0]
[null,null,null,null,null,null,null,null,0,0,0,0]
[null,null,null,null,null,null,null,null,0,0,0,0]
[null,null,null,null,null,null,null,null,0,0,0,0]
[null,null,null,null,null,null,null,null,0,0,0,0]
[null,null,null,null,null,null,null,null,0,0,0,0]
[null,null,null,null,null,null,null,null,0,0,0,0]
[null,null,null,null,null,null,null,null,0,0,0,0]
[null,null,null,null,null,null,null,null,0,0,0,0]
[null,null,null,null,null,null,null,null,0,0,0,0]
[null,null,null,null,null,null,null,null,0,0,0,0]
[null,null,null,null,null,null,null,null,0,0,0,0]
[null,null,null,null,null,null,null,null,0,0,0,0]
[null,null,null,null,null,null,null,null,0,0,0,0]
[null,null,null,null,null,null,null,null,0,0,0,0]
[null,null,null,null,null,null,null,null,0,0,0,0]
[null,null,null,null,null,null,null,null,0,0,0,0]
[null,null,null,null,null,null,null,null,0,0,0,0]
[null,null,null,null,null,null,null,null,0,0,0,0]
[null,null,null,null,null,null,null,null,0,0,0,0]
[null,null,null,null,null,null,null,null,0,0,0,0]
[null,null,null,null,null,null,null,null,0,0,0,0]
[null,null,null,null,null,null,null,null,0,0,0,0]
[null,null,null,null,null,null,null,null,0,0,0,0]
[null,null,null,null,null,null,null,null,0,0,0,0]
[null,null,null,null,null,null,null,null,0,0,{"$f":"SUM(F2050:G2050)","v":0},0]
[null,null,null,null,null,null,null,null,0,0,0,0]
[null,null,null,null,null,null,null,null,0,0,0,0]
[null,null,null,null,null,null,null,null,0,0,0,0]
[null,null,null,null,null,null,null,null,0,0,0,0]
[null,null,null,null,null,null,null,null,0,0,0,0]
[null,null,null,null,null,null,null,null,0,0,0,0]
[null,null,null,null,null,null,null,null,0,0,0,0]
[null,null,null,null,null,null,null,null,0,0,0,0]
[null,null,null,null,null,null,null,null,0,0,0,0]
[null,null,null,null,null,null,null,null,0,0,0,0]
[null,null,null,null,null,null,null,null,0,0,0,0]
[null,null,null,null,null,null,null,null,0,0,0,0]
[null,null,null,null,null,null,null,null,0,0,0,0]
[null,null,null,null,null,null,null,null,0,0,0,0]
[null,null,null,null,null,null,null,null,0,0,0,0]
[null,null,null,null,null,null,null,null,0,0,0,0]
[null,null,null,null,null,null,null,null,0,0,0,0]
[null,null,null,null,null,null,null,null,0,0,0,0]
[null,null,null,null,null,null,null,null,0,0,0,0]
[null,null,null,null,null,null,null,null,0,0,0,0]
[null,null,null,null,null,null,null,null,0,0,0,0]
[null,null,null,null,null,null,null,null,0,0,0,0]
[null,null,null,null,null,null,null,null,0,0,0,0]
[null,null,null,null,null,null,null,null,0,0,0,0]
[null,null,null,null,null,null,null,null,0,0,0,0]
[null,null,null,null,null,null,null,null,0,0,0,0]
[null,null,null,null,null,null,null,null,0,0,0,0]
[null,null,null,null,null,null,null,null,0,0,0,0]
[null,null,null,null,null,null,null,null,0,0,0,0]
[null,null,null,null,null,null,null,null,0,0,0,0]
[null,null,null,null,null,null,null,null,0,0,0,0]
[null,null,null,null,null,null,null,null,0,0,0,0]
[null,null,null,null,null,null,null,null,{"$f":"SUM(D2083:E2083)","v":0},{"$f":"E2083","v":0},0,{"$f":"SUM(H2083,I2083,K2083)","v":0}]
[null,null,null,null,null,null,null,null,0,0,0,0]
[null,null,null,null,null,null,null,null,0,0,0,0]
[null,null,null,null,null,null,null,null,0,0,0,0]
[null,null,null,null,null,null,null,null,0,0,0,0]
[null,null,null,null,null,null,null,null,0,0,0,0]
[null,null,null,null,null,null,null,null,0,0,0,0]
[]
[]
[]
[]
[]
[]
[]
[]
[]
[]
["010","Épinette (autre que Norvège)",null,null,null,null,null,null,{"$f":"SUM(D2100:E2100)","v":0},{"$f":"E2100","v":0},{"$f":"SUM(F2100:G2100)","v":0},{"$f":"SUM(H2100,I2100,K2100)","v":0}]
["014","Épinette de Norvège",null,null,null,null,null,null,{"$f":"SUM(D2101:E2101)","v":0},{"$f":"E2101","v":0},0,{"$f":"SUM(H2101,I2101,K2101)","v":0}]
["030","Mélèze laricin",null,null,null,null,null,null,0,0,0,0]
["043","Pin gris et sylvestre",null,null,null,null,null,null,0,0,0,0]
["060","Sapin baumier",null,null,null,null,null,null,0,0,0,0]
["190","Peuplier (autre que Baumier)",null,null,null,null,null,null,0,0,0,0]
["191","Peuplier baumier",null,null,null,null,null,null,0,0,0,0]
["105","Bouleau blanc ",null,null,null,null,null,null,0,0,0,0]
["104","Bouleau jaune",null,null,null,null,null,null,0,0,0,0]
["132","Érable à sucre",null,null,null,null,null,null,0,0,0,0]
["133","Érable rouge",null,null,null,null,null,null,0,0,0,0]
["135","Érables - Autres ",null,null,null,null,null,null,0,0,0,0]
["120","Chêne ",null,null,null,null,null,null,0,0,0,0]
["141","Frêne d’Amérique (blanc)",null,null,null,null,null,null,0,0,0,0]
["142","Frêne noir",null,null,null,null,null,null,0,0,0,0]
["150","Hêtre",null,null,null,null,null,null,0,0,0,0]
["160","Noyer",null,null,null,null,null,null,0,0,0,0]
["165","Caryer",null,null,null,null,null,null,0,0,0,0]
["170","Orme",null,null,null,null,null,null,0,0,0,0]
["180","Ostryer de Virginie",null,null,null,null,null,null,0,0,0,0]
["110","Cerisier tardif",null,null,null,null,null,null,0,0,0,0]
["210","Tilleul d’Amérique",null,null,null,null,null,null,0,0,0,0]
["041","Pin blanc",null,null,null,null,null,null,0,0,0,0]
["042","Pin rouge",null,null,null,null,null,null,0,0,0,0]
["050","Pruche de l’Est",null,null,null,null,null,null,0,0,0,0]
["080","Thuya occidental",null,null,null,null,null,null,0,0,0,0]
[null,null,null,null,null,null,null,null,0,0,0,0]
[null,null,null,null,null,null,null,null,0,0,0,0]
[null,null,null,null,null,null,null,null,0,0,0,0]
[null,null,null,null,null,null,null,null,0,0,0,0]
[null,null,null,null,null,null,null,null,0,0,0,0]
[null,null,null,null,null,null,null,null,0,0,0,0]
[null,null,null,null,null,null,null,null,0,0,0,0]
[null,null,null,null,null,null,null,null,0,0,0,0]
[null,null,null,null,null,null,null,null,0,0,0,0]
[null,null,null,null,null,null,null,null,0,0,0,0]
[null,null,null,null,null,null,null,null,0,0,0,0]
[null,null,null,null,null,null,null,null,0,0,0,0]
[null,null,null,null,null,null,null,null,0,0,0,0]
[null,null,null,null,null,null,null,null,0,0,0,0]
[null,null,null,null,null,null,null,null,0,0,0,0]
[null,null,null,null,null,null,null,null,0,0,0,0]
[null,null,null,null,null,null,null,null,0,0,0,0]
[null,null,null,null,null,null,null,null,0,0,0,0]
[null,null,null,null,null,null,null,null,0,0,0,0]
[null,null,null,null,null,null,null,null,0,0,0,0]
[null,null,null,null,null,null,null,null,0,0,0,0]
[null,null,null,null,null,null,null,null,0,0,0,0]
[null,null,null,null,null,null,null,null,0,0,0,0]
[null,null,null,null,null,null,null,null,0,0,0,0]
[null,null,null,null,null,null,null,null,0,0,0,0]
[null,null,null,null,null,null,null,null,0,0,0,0]
[null,null,null,null,null,null,null,null,0,0,0,0]
[null,null,null,null,null,null,null,null,0,0,0,0]
[null,null,null,null,null,null,null,null,0,0,0,0]
[null,null,null,null,null,null,null,null,0,0,0,0]
[null,null,null,null,null,null,null,null,0,0,0,0]
[null,null,null,null,null,null,null,null,0,0,0,0]
[null,null,null,null,null,null,null,null,0,0,0,0]
[null,null,null,null,null,null,null,null,0,0,0,0]
[null,null,null,null,null,null,null,null,0,0,0,0]
[null,null,null,null,null,null,null,null,0,0,0,0]
[null,null,null,null,null,null,null,null,0,0,0,0]
[null,null,null,null,null,null,null,null,0,0,0,0]
[null,null,null,null,null,null,null,null,0,0,{"$f":"SUM(F2164:G2164)","v":0},0]
[null,null,null,null,null,null,null,null,{"$f":"SUM(D2165:E2165)","v":0},{"$f":"E2165","v":0},0,{"$f":"SUM(H2165,I2165,K2165)","v":0}]
[null,null,null,null,null,null,null,null,0,0,0,0]
[null,null,null,null,null,null,null,null,0,0,0,0]
[null,null,null,null,null,null,null,null,0,0,0,0]
[null,null,null,null,null,null,null,null,0,0,0,0]
[null,null,null,null,null,null,null,null,0,0,0,0]
[null,null,null,null,null,null,null,null,0,0,0,0]
[null,null,null,null,null,null,null,null,0,0,0,0]
[null,null,null,null,null,null,null,null,0,0,0,0]
[null,null,null,null,null,null,null,null,0,0,0,0]
[null,null,null,null,null,null,null,null,0,0,0,0]
[null,null,null,null,null,null,null,null,0,0,0,0]
[null,null,null,null,null,null,null,null,0,0,0,0]
[null,null,null,null,null,null,null,null,0,0,0,0]
[null,null,null,null,null,null,null,null,0,0,0,0]
[null,null,null,null,null,null,null,null,0,0,0,0]
[null,null,null,null,null,null,null,null,0,0,0,0]
[null,null,null,null,null,null,null,null,0,0,0,0]
[null,null,null,null,null,null,null,null,0,0,0,0]
[null,null,null,null,null,null,null,null,0,0,0,0]
[null,null,null,null,null,null,null,null,0,0,0,0]
[null,null,null,null,null,null,null,null,0,0,0,0]
[null,null,null,null,null,null,null,null,0,0,0,0]
[null,null,null,null,null,null,null,null,0,0,0,0]
[null,null,null,null,null,null,null,null,0,0,0,0]
[null,null,null,null,null,null,null,null,0,0,0,0]
[null,null,null,null,null,null,null,null,0,0,0,0]
[null,null,null,null,null,null,null,null,0,0,0,0]
[null,null,null,null,null,null,null,null,0,0,0,0]
[null,null,null,null,null,null,null,null,0,0,0,0]
[null,null,null,null,null,null,null,null,0,0,0,0]
[null,null,null,null,null,null,null,null,0,0,0,0]
[null,null,null,null,null,null,null,null,0,0,0,0]
[null,null,null,null,null,null,null,null,0,0,0,0]
[null,null,null,null,null,null,null,null,0,0,0,0]
[null,null,null,null,null,null,null,null,0,0,0,0]
[null,null,null,null,null,null,null,null,0,0,0,0]
[null,null,null,null,null,null,null,null,0,0,0,0]
[null,null,null,null,null,null,null,null,0,0,0,0]
[null,null,null,null,null,null,null,null,0,0,0,0]
[null,null,null,null,null,null,null,null,0,0,0,0]
[null,null,null,null,null,null,null,null,0,0,0,0]
[null,null,null,null,null,null,null,null,0,0,0,0]
[null,null,null,null,null,null,null,null,0,0,0,0]
[null,null,null,null,null,null,null,null,0,0,0,0]
[null,null,null,null,null,null,null,null,0,0,0,0]
[null,null,null,null,null,null,null,null,0,0,0,0]
[null,null,null,null,null,null,null,null,0,0,0,0]
[null,null,null,null,null,null,null,null,0,0,0,0]
[null,null,null,null,null,null,null,null,0,0,0,0]
[null,null,null,null,null,null,null,null,0,0,0,0]
[null,null,null,null,null,null,null,null,0,0,0,0]
[null,null,null,null,null,null,null,null,0,0,0,0]
[null,null,null,null,null,null,null,null,0,0,0,0]
[null,null,null,null,null,null,null,null,0,0,0,0]
[null,null,null,null,null,null,null,null,0,0,0,0]
[null,null,null,null,null,null,null,null,0,0,0,0]
[null,null,null,null,null,null,null,null,0,0,0,0]
[null,null,null,null,null,null,null,null,0,0,0,0]
[null,null,null,null,null,null,null,null,0,0,0,0]
[null,null,null,null,null,null,null,null,0,0,0,0]
[null,null,null,null,null,null,null,null,0,0,0,0]
[null,null,null,null,null,null,null,null,0,0,0,0]
[null,null,null,null,null,null,null,null,0,0,{"$f":"SUM(F2228:G2228)","v":0},0]
[null,null,null,null,null,null,null,null,{"$f":"SUM(D2229:E2229)","v":0},{"$f":"E2229","v":0},0,{"$f":"SUM(H2229,I2229,K2229)","v":0}]
[null,null,null,null,null,null,null,null,0,0,0,0]
[null,null,null,null,null,null,null,null,0,0,0,0]
[null,null,null,null,null,null,null,null,0,0,0,0]
[null,null,null,null,null,null,null,null,0,0,0,0]
[null,null,null,null,null,null,null,null,0,0,0,0]
[null,null,null,null,null,null,null,null,0,0,0,0]
[null,null,null,null,null,null,null,null,0,0,0,0]
[null,null,null,null,null,null,null,null,0,0,0,0]
[null,null,null,null,null,null,null,null,0,0,0,0]
[null,null,null,null,null,null,null,null,0,0,0,0]
[null,null,null,null,null,null,null,null,0,0,0,0]
[null,null,null,null,null,null,null,null,0,0,0,0]
[null,null,null,null,null,null,null,null,0,0,0,0]
[null,null,null,null,null,null,null,null,0,0,0,0]
[null,null,null,null,null,null,null,null,0,0,0,0]
[null,null,null,null,null,null,null,null,0,0,0,0]
[null,null,null,null,null,null,null,null,0,0,0,0]
[null,null,null,null,null,null,null,null,0,0,0,0]
[null,null,null,null,null,null,null,null,0,0,0,0]
[null,null,null,null,null,null,null,null,0,0,0,0]
[null,null,null,null,null,null,null,null,0,0,0,0]
[null,null,null,null,null,null,null,null,0,0,0,0]
[null,null,null,null,null,null,null,null,0,0,0,0]
[null,null,null,null,null,null,null,null,0,0,0,0]
[null,null,null,null,null,null,null,null,0,0,0,0]
[null,null,null,null,null,null,null,null,0,0,0,0]
[null,null,null,null,null,null,null,null,0,0,0,0]
[null,null,null,null,null,null,null,null,0,0,0,0]
[null,null,null,null,null,null,null,null,0,0,0,0]
[null,null,null,null,null,null,null,null,0,0,0,0]
[null,null,null,null,null,null,null,null,0,0,0,0]
[null,null,null,null,null,null,null,null,0,0,0,0]
[null,null,null,null,null,null,null,null,0,0,0,0]
[null,null,null,null,null,null,null,null,0,0,0,0]
[null,null,null,null,null,null,null,null,0,0,0,0]
[null,null,null,null,null,null,null,null,0,0,0,0]
[null,null,null,null,null,null,null,null,0,0,0,0]
[null,null,null,null,null,null,null,null,0,0,0,0]
[null,null,null,null,null,null,null,null,0,0,0,0]
[null,null,null,null,null,null,null,null,0,0,0,0]
[null,null,null,null,null,null,null,null,0,0,0,0]
[null,null,null,null,null,null,null,null,0,0,0,0]
[null,null,null,null,null,null,null,null,0,0,0,0]
[null,null,null,null,null,null,null,null,0,0,0,0]
[null,null,null,null,null,null,null,null,0,0,0,0]
[null,null,null,null,null,null,null,null,0,0,0,0]
[null,null,null,null,null,null,null,null,0,0,0,0]
[null,null,null,null,null,null,null,null,0,0,0,0]
[null,null,null,null,null,null,null,null,0,0,0,0]
[null,null,null,null,null,null,null,null,0,0,0,0]
[null,null,null,null,null,null,null,null,0,0,0,0]
[null,null,null,null,null,null,null,null,0,0,0,0]
[null,null,null,null,null,null,null,null,0,0,0,0]
[null,null,null,null,null,null,null,null,0,0,0,0]
[null,null,null,null,null,null,null,null,0,0,0,0]
[null,null,null,null,null,null,null,null,0,0,0,0]
[null,null,null,null,null,null,null,null,0,0,0,0]
[null,null,null,null,null,null,null,null,0,0,0,0]
[null,null,null,null,null,null,null,null,0,0,0,0]
[null,null,null,null,null,null,null,null,0,0,0,0]
[null,null,null,null,null,null,null,null,0,0,0,0]
[null,null,null,null,null,null,null,null,0,0,0,0]
[null,null,null,null,null,null,null,null,0,0,{"$f":"SUM(F2292:G2292)","v":0},0]
[null,null,null,null,null,null,null,null,{"$f":"SUM(D2293:E2293)","v":0},{"$f":"E2293","v":0},0,{"$f":"SUM(H2293,I2293,K2293)","v":0}]
[null,null,null,null,null,null,null,null,0,0,0,0]
[null,null,null,null,null,null,null,null,0,0,0,0]
[null,null,null,null,null,null,null,null,0,0,0,0]
[null,null,null,null,null,null,null,null,0,0,0,0]
[null,null,null,null,null,null,null,null,0,0,0,0]
[null,null,null,null,null,null,null,null,0,0,0,0]
[]
[]
[]
[]
[]
[]
[]
[]
[]
[]
["010","Épinette (autre que Norvège)",null,null,null,null,null,null,{"$f":"SUM(D2310:E2310)","v":0},{"$f":"E2310","v":0},{"$f":"SUM(F2310:G2310)","v":0},{"$f":"SUM(H2310,I2310,K2310)","v":0}]
["014","Épinette de Norvège",null,null,null,null,null,null,{"$f":"SUM(D2311:E2311)","v":0},{"$f":"E2311","v":0},0,{"$f":"SUM(H2311,I2311,K2311)","v":0}]
["030","Mélèze laricin",null,null,null,null,null,null,0,0,0,0]
["043","Pin gris et sylvestre",null,null,null,null,null,null,0,0,0,0]
["060","Sapin baumier",null,null,null,null,null,null,0,0,0,0]
["190","Peuplier (autre que Baumier)",null,null,null,null,null,null,0,0,0,0]
["191","Peuplier baumier",null,null,null,null,null,null,0,0,0,0]
["105","Bouleau blanc ",null,null,null,null,null,null,0,0,0,0]
["104","Bouleau jaune",null,null,null,null,null,null,0,0,0,0]
["132","Érable à sucre",null,null,null,null,null,null,0,0,0,0]
["133","Érable rouge",null,null,null,null,null,null,0,0,0,0]
["135","Érables - Autres ",null,null,null,null,null,null,0,0,0,0]
["120","Chêne ",null,null,null,null,null,null,0,0,0,0]
["141","Frêne d’Amérique (blanc)",null,null,null,null,null,null,0,0,0,0]
["142","Frêne noir",null,null,null,null,null,null,0,0,0,0]
["150","Hêtre",null,null,null,null,null,null,0,0,0,0]
["160","Noyer",null,null,null,null,null,null,0,0,0,0]
["165","Caryer",null,null,null,null,null,null,0,0,0,0]
["170","Orme",null,null,null,null,null,null,0,0,0,0]
["180","Ostryer de Virginie",null,null,null,null,null,null,0,0,0,0]
["110","Cerisier tardif",null,null,null,null,null,null,0,0,0,0]
["210","Tilleul d’Amérique",null,null,null,null,null,null,0,0,0,0]
["041","Pin blanc",null,null,null,null,null,null,0,0,0,0]
["042","Pin rouge",null,null,null,null,null,null,0,0,0,0]
["050","Pruche de l’Est",null,null,null,null,null,null,0,0,0,0]
["080","Thuya occidental",null,null,null,null,null,null,0,0,0,0]
[null,null,null,null,null,null,null,null,0,0,0,0]
[null,null,null,null,null,null,null,null,0,0,0,0]
[null,null,null,null,null,null,null,null,0,0,0,0]
[null,null,null,null,null,null,null,null,0,0,0,0]
[null,null,null,null,null,null,null,null,0,0,0,0]
[null,null,null,null,null,null,null,null,0,0,0,0]
[null,null,null,null,null,null,null,null,0,0,0,0]
[null,null,null,null,null,null,null,null,0,0,0,0]
[null,null,null,null,null,null,null,null,0,0,0,0]
[null,null,null,null,null,null,null,null,0,0,0,0]
[null,null,null,null,null,null,null,null,0,0,0,0]
[null,null,null,null,null,null,null,null,0,0,0,0]
[null,null,null,null,null,null,null,null,0,0,0,0]
[null,null,null,null,null,null,null,null,0,0,0,0]
[null,null,null,null,null,null,null,null,0,0,0,0]
[null,null,null,null,null,null,null,null,0,0,0,0]
[null,null,null,null,null,null,null,null,0,0,0,0]
[null,null,null,null,null,null,null,null,0,0,0,0]
[null,null,null,null,null,null,null,null,0,0,0,0]
[null,null,null,null,null,null,null,null,0,0,0,0]
[null,null,null,null,null,null,null,null,0,0,0,0]
[null,null,null,null,null,null,null,null,0,0,0,0]
[null,null,null,null,null,null,null,null,0,0,0,0]
[null,null,null,null,null,null,null,null,0,0,0,0]
[null,null,null,null,null,null,null,null,0,0,0,0]
[null,null,null,null,null,null,null,null,0,0,0,0]
[null,null,null,null,null,null,null,null,0,0,0,0]
[null,null,null,null,null,null,null,null,0,0,0,0]
[null,null,null,null,null,null,null,null,0,0,0,0]
[null,null,null,null,null,null,null,null,0,0,0,0]
[null,null,null,null,null,null,null,null,0,0,0,0]
[null,null,null,null,null,null,null,null,0,0,0,0]
[null,null,null,null,null,null,null,null,0,0,0,0]
[null,null,null,null,null,null,null,null,0,0,0,0]
[null,null,null,null,null,null,null,null,0,0,0,0]
[null,null,null,null,null,null,null,null,0,0,0,0]
[null,null,null,null,null,null,null,null,0,0,0,0]
[null,null,null,null,null,null,null,null,0,0,0,0]
[null,null,null,null,null,null,null,null,0,0,{"$f":"SUM(F2374:G2374)","v":0},0]
[null,null,null,null,null,null,null,null,{"$f":"SUM(D2375:E2375)","v":0},{"$f":"E2375","v":0},0,{"$f":"SUM(H2375,I2375,K2375)","v":0}]
[null,null,null,null,null,null,null,null,0,0,0,0]
[null,null,null,null,null,null,null,null,0,0,0,0]
[null,null,null,null,null,null,null,null,0,0,0,0]
[null,null,null,null,null,null,null,null,0,0,0,0]
[null,null,null,null,null,null,null,null,0,0,0,0]
[null,null,null,null,null,null,null,null,0,0,0,0]
[null,null,null,null,null,null,null,null,0,0,0,0]
[null,null,null,null,null,null,null,null,0,0,0,0]
[null,null,null,null,null,null,null,null,0,0,0,0]
[null,null,null,null,null,null,null,null,0,0,0,0]
[null,null,null,null,null,null,null,null,0,0,0,0]
[null,null,null,null,null,null,null,null,0,0,0,0]
[null,null,null,null,null,null,null,null,0,0,0,0]
[null,null,null,null,null,null,null,null,0,0,0,0]
[null,null,null,null,null,null,null,null,0,0,0,0]
[null,null,null,null,null,null,null,null,0,0,0,0]
[null,null,null,null,null,null,null,null,0,0,0,0]
[null,null,null,null,null,null,null,null,0,0,0,0]
[null,null,null,null,null,null,null,null,0,0,0,0]
[null,null,null,null,null,null,null,null,0,0,0,0]
[null,null,null,null,null,null,null,null,0,0,0,0]
[null,null,null,null,null,null,null,null,0,0,0,0]
[null,null,null,null,null,null,null,null,0,0,0,0]
[null,null,null,null,null,null,null,null,0,0,0,0]
[null,null,null,null,null,null,null,null,0,0,0,0]
[null,null,null,null,null,null,null,null,0,0,0,0]
[null,null,null,null,null,null,null,null,0,0,0,0]
[null,null,null,null,null,null,null,null,0,0,0,0]
[null,null,null,null,null,null,null,null,0,0,0,0]
[null,null,null,null,null,null,null,null,0,0,0,0]
[null,null,null,null,null,null,null,null,0,0,0,0]
[null,null,null,null,null,null,null,null,0,0,0,0]
[null,null,null,null,null,null,null,null,0,0,0,0]
[null,null,null,null,null,null,null,null,0,0,0,0]
[null,null,null,null,null,null,null,null,0,0,0,0]
[null,null,null,null,null,null,null,null,0,0,0,0]
[null,null,null,null,null,null,null,null,0,0,0,0]
[null,null,null,null,null,null,null,null,0,0,0,0]
[null,null,null,null,null,null,null,null,0,0,0,0]
[null,null,null,null,null,null,null,null,0,0,0,0]
[null,null,null,null,null,null,null,null,0,0,0,0]
[null,null,null,null,null,null,null,null,0,0,0,0]
[null,null,null,null,null,null,null,null,0,0,0,0]
[null,null,null,null,null,null,null,null,0,0,0,0]
[null,null,null,null,null,null,null,null,0,0,0,0]
[null,null,null,null,null,null,null,null,0,0,0,0]
[null,null,null,null,null,null,null,null,0,0,0,0]
[null,null,null,null,null,null,null,null,0,0,0,0]
[null,null,null,null,null,null,null,null,0,0,0,0]
[null,null,null,null,null,null,null,null,0,0,0,0]
[null,null,null,null,null,null,null,null,0,0,0,0]
[null,null,null,null,null,null,null,null,0,0,0,0]
[null,null,null,null,null,null,null,null,0,0,0,0]
[null,null,null,null,null,null,null,null,0,0,0,0]
[null,null,null,null,null,null,null,null,0,0,0,0]
[null,null,null,null,null,null,null,null,0,0,0,0]
[null,null,null,null,null,null,null,null,0,0,0,0]
[null,null,null,null,null,null,null,null,0,0,0,0]
[null,null,null,null,null,null,null,null,0,0,0,0]
[null,null,null,null,null,null,null,null,0,0,0,0]
[null,null,null,null,null,null,null,null,0,0,0,0]
[null,null,null,null,null,null,null,null,0,0,0,0]
[null,null,null,null,null,null,null,null,0,0,{"$f":"SUM(F2438:G2438)","v":0},0]
[null,null,null,null,null,null,null,null,{"$f":"SUM(D2439:E2439)","v":0},{"$f":"E2439","v":0},0,{"$f":"SUM(H2439,I2439,K2439)","v":0}]
[null,null,null,null,null,null,null,null,0,0,0,0]
[null,null,null,null,null,null,null,null,0,0,0,0]
[null,null,null,null,null,null,null,null,0,0,0,0]
[null,null,null,null,null,null,null,null,0,0,0,0]
[null,null,null,null,null,null,null,null,0,0,0,0]
[null,null,null,null,null,null,null,null,0,0,0,0]
[null,null,null,null,null,null,null,null,0,0,0,0]
[null,null,null,null,null,null,null,null,0,0,0,0]
[null,null,null,null,null,null,null,null,0,0,0,0]
[null,null,null,null,null,null,null,null,0,0,0,0]
[null,null,null,null,null,null,null,null,0,0,0,0]
[null,null,null,null,null,null,null,null,0,0,0,0]
[null,null,null,null,null,null,null,null,0,0,0,0]
[null,null,null,null,null,null,null,null,0,0,0,0]
[null,null,null,null,null,null,null,null,0,0,0,0]
[null,null,null,null,null,null,null,null,0,0,0,0]
[null,null,null,null,null,null,null,null,0,0,0,0]
[null,null,null,null,null,null,null,null,0,0,0,0]
[null,null,null,null,null,null,null,null,0,0,0,0]
[null,null,null,null,null,null,null,null,0,0,0,0]
[null,null,null,null,null,null,null,null,0,0,0,0]
[null,null,null,null,null,null,null,null,0,0,0,0]
[null,null,null,null,null,null,null,null,0,0,0,0]
[null,null,null,null,null,null,null,null,0,0,0,0]
[null,null,null,null,null,null,null,null,0,0,0,0]
[null,null,null,null,null,null,null,null,0,0,0,0]
[null,null,null,null,null,null,null,null,0,0,0,0]
[null,null,null,null,null,null,null,null,0,0,0,0]
[null,null,null,null,null,null,null,null,0,0,0,0]
[null,null,null,null,null,null,null,null,0,0,0,0]
[null,null,null,null,null,null,null,null,0,0,0,0]
[null,null,null,null,null,null,null,null,0,0,0,0]
[null,null,null,null,null,null,null,null,0,0,0,0]
[null,null,null,null,null,null,null,null,0,0,0,0]
[null,null,null,null,null,null,null,null,0,0,0,0]
[null,null,null,null,null,null,null,null,0,0,0,0]
[null,null,null,null,null,null,null,null,0,0,0,0]
[null,null,null,null,null,null,null,null,0,0,0,0]
[null,null,null,null,null,null,null,null,0,0,0,0]
[null,null,null,null,null,null,null,null,0,0,0,0]
[null,null,null,null,null,null,null,null,0,0,0,0]
[null,null,null,null,null,null,null,null,0,0,0,0]
[null,null,null,null,null,null,null,null,0,0,0,0]
[null,null,null,null,null,null,null,null,0,0,0,0]
[null,null,null,null,null,null,null,null,0,0,0,0]
[null,null,null,null,null,null,null,null,0,0,0,0]
[null,null,null,null,null,null,null,null,0,0,0,0]
[null,null,null,null,null,null,null,null,0,0,0,0]
[null,null,null,null,null,null,null,null,0,0,0,0]
[null,null,null,null,null,null,null,null,0,0,0,0]
[null,null,null,null,null,null,null,null,0,0,0,0]
[null,null,null,null,null,null,null,null,0,0,0,0]
[null,null,null,null,null,null,null,null,0,0,0,0]
[null,null,null,null,null,null,null,null,0,0,0,0]
[null,null,null,null,null,null,null,null,0,0,0,0]
[null,null,null,null,null,null,null,null,0,0,0,0]
[null,null,null,null,null,null,null,null,0,0,0,0]
[null,null,null,null,null,null,null,null,0,0,0,0]
[null,null,null,null,null,null,null,null,0,0,0,0]
[null,null,null,null,null,null,null,null,0,0,0,0]
[null,null,null,null,null,null,null,null,0,0,0,0]
[null,null,null,null,null,null,null,null,0,0,0,0]
[null,null,null,null,null,null,null,null,0,0,{"$f":"SUM(F2502:G2502)","v":0},0]
[null,null,null,null,null,null,null,null,{"$f":"SUM(D2503:E2503)","v":0},{"$f":"E2503","v":0},0,{"$f":"SUM(H2503,I2503,K2503)","v":0}]
[null,null,null,null,null,null,null,null,0,0,0,0]
[null,null,null,null,null,null,null,null,0,0,0,0]
[null,null,null,null,null,null,null,null,0,0,0,0]
[null,null,null,null,null,null,null,null,0,0,0,0]
[null,null,null,null,null,null,null,null,0,0,0,0]
[null,null,null,null,null,null,null,null,0,0,0,0]
[]
[]
[]
[]
[]
[]
[]
[]
[]
[]
["010","Épinette (autre que Norvège)",null,null,null,null,null,null,{"$f":"SUM(D2520:E2520)","v":0},{"$f":"E2520","v":0},{"$f":"SUM(F2520:G2520)","v":0},{"$f":"SUM(H2520,I2520,K2520)","v":0}]
["014","Épinette de Norvège",null,null,null,null,null,null,{"$f":"SUM(D2521:E2521)","v":0},{"$f":"E2521","v":0},0,{"$f":"SUM(H2521,I2521,K2521)","v":0}]
["030","Mélèze laricin",null,null,null,null,null,null,0,0,0,0]
["043","Pin gris et sylvestre",null,null,null,null,null,null,0,0,0,0]
["060","Sapin baumier",null,null,null,null,null,null,0,0,0,0]
["190","Peuplier (autre que Baumier)",null,null,null,null,null,null,0,0,0,0]
["191","Peuplier baumier",null,null,null,null,null,null,0,0,0,0]
["105","Bouleau blanc ",null,null,null,null,null,null,0,0,0,0]
["104","Bouleau jaune",null,null,null,null,null,null,0,0,0,0]
["132","Érable à sucre",null,null,null,null,null,null,0,0,0,0]
["133","Érable rouge",null,null,null,null,null,null,0,0,0,0]
["135","Érables - Autres ",null,null,null,null,null,null,0,0,0,0]
["120","Chêne ",null,null,null,null,null,null,0,0,0,0]
["141","Frêne d’Amérique (blanc)",null,null,null,null,null,null,0,0,0,0]
["142","Frêne noir",null,null,null,null,null,null,0,0,0,0]
["150","Hêtre",null,null,null,null,null,null,0,0,0,0]
["160","Noyer",null,null,null,null,null,null,0,0,0,0]
["165","Caryer",null,null,null,null,null,null,0,0,0,0]
["170","Orme",null,null,null,null,null,null,0,0,0,0]
["180","Ostryer de Virginie",null,null,null,null,null,null,0,0,0,0]
["110","Cerisier tardif",null,null,null,null,null,null,0,0,0,0]
["210","Tilleul d’Amérique",null,null,null,null,null,null,0,0,0,0]
["041","Pin blanc",null,null,null,null,null,null,0,0,0,0]
["042","Pin rouge",null,null,null,null,null,null,0,0,0,0]
["050","Pruche de l’Est",null,null,null,null,null,null,0,0,0,0]
["080","Thuya occidental",null,null,null,null,null,null,0,0,0,0]
[null,null,null,null,null,null,null,null,0,0,0,0]
[null,null,null,null,null,null,null,null,0,0,0,0]
[null,null,null,null,null,null,null,null,0,0,0,0]
[null,null,null,null,null,null,null,null,0,0,0,0]
[null,null,null,null,null,null,null,null,0,0,0,0]
[null,null,null,null,null,null,null,null,0,0,0,0]
[null,null,null,null,null,null,null,null,0,0,0,0]
[null,null,null,null,null,null,null,null,0,0,0,0]
[null,null,null,null,null,null,null,null,0,0,0,0]
[null,null,null,null,null,null,null,null,0,0,0,0]
[null,null,null,null,null,null,null,null,0,0,0,0]
[null,null,null,null,null,null,null,null,0,0,0,0]
[null,null,null,null,null,null,null,null,0,0,0,0]
[null,null,null,null,null,null,null,null,0,0,0,0]
[null,null,null,null,null,null,null,null,0,0,0,0]
[null,null,null,null,null,null,null,null,0,0,0,0]
[null,null,null,null,null,null,null,null,0,0,0,0]
[null,null,null,null,null,null,null,null,0,0,0,0]
[null,null,null,null,null,null,null,null,0,0,0,0]
[null,null,null,null,null,null,null,null,0,0,0,0]
[null,null,null,null,null,null,null,null,0,0,0,0]
[null,null,null,null,null,null,null,null,0,0,0,0]
[null,null,null,null,null,null,null,null,0,0,0,0]
[null,null,null,null,null,null,null,null,0,0,0,0]
[null,null,null,null,null,null,null,null,0,0,0,0]
[null,null,null,null,null,null,null,null,0,0,0,0]
[null,null,null,null,null,null,null,null,0,0,0,0]
[null,null,null,null,null,null,null,null,0,0,0,0]
[null,null,null,null,null,null,null,null,0,0,0,0]
[null,null,null,null,null,null,null,null,0,0,0,0]
[null,null,null,null,null,null,null,null,0,0,0,0]
[null,null,null,null,null,null,null,null,0,0,0,0]
[null,null,null,null,null,null,null,null,0,0,0,0]
[null,null,null,null,null,null,null,null,0,0,0,0]
[null,null,null,null,null,null,null,null,0,0,0,0]
[null,null,null,null,null,null,null,null,0,0,0,0]
[null,null,null,null,null,null,null,null,0,0,0,0]
[null,null,null,null,null,null,null,null,0,0,0,0]
[null,null,null,null,null,null,null,null,0,0,{"$f":"SUM(F2584:G2584)","v":0},0]
[null,null,null,null,null,null,null,null,{"$f":"SUM(D2585:E2585)","v":0},{"$f":"E2585","v":0},0,{"$f":"SUM(H2585,I2585,K2585)","v":0}]
[null,null,null,null,null,null,null,null,0,0,0,0]
[null,null,null,null,null,null,null,null,0,0,0,0]
[null,null,null,null,null,null,null,null,0,0,0,0]
[null,null,null,null,null,null,null,null,0,0,0,0]
[null,null,null,null,null,null,null,null,0,0,0,0]
[null,null,null,null,null,null,null,null,0,0,0,0]
[null,null,null,null,null,null,null,null,0,0,0,0]
[null,null,null,null,null,null,null,null,0,0,0,0]
[null,null,null,null,null,null,null,null,0,0,0,0]
[null,null,null,null,null,null,null,null,0,0,0,0]
[null,null,null,null,null,null,null,null,0,0,0,0]
[null,null,null,null,null,null,null,null,0,0,0,0]
[null,null,null,null,null,null,null,null,0,0,0,0]
[null,null,null,null,null,null,null,null,0,0,0,0]
[null,null,null,null,null,null,null,null,0,0,0,0]
[null,null,null,null,null,null,null,null,0,0,0,0]
[null,null,null,null,null,null,null,null,0,0,0,0]
[null,null,null,null,null,null,null,null,0,0,0,0]
[null,null,null,null,null,null,null,null,0,0,0,0]
[null,null,null,null,null,null,null,null,0,0,0,0]
[null,null,null,null,null,null,null,null,0,0,0,0]
[null,null,null,null,null,null,null,null,0,0,0,0]
[null,null,null,null,null,null,null,null,0,0,0,0]
[null,null,null,null,null,null,null,null,0,0,0,0]
[null,null,null,null,null,null,null,null,0,0,0,0]
[null,null,null,null,null,null,null,null,0,0,0,0]
[null,null,null,null,null,null,null,null,0,0,0,0]
[null,null,null,null,null,null,null,null,0,0,0,0]
[null,null,null,null,null,null,null,null,0,0,0,0]
[null,null,null,null,null,null,null,null,0,0,0,0]
[null,null,null,null,null,null,null,null,0,0,0,0]
[null,null,null,null,null,null,null,null,0,0,0,0]
[null,null,null,null,null,null,null,null,0,0,0,0]
[null,null,null,null,null,null,null,null,0,0,0,0]
[null,null,null,null,null,null,null,null,0,0,0,0]
[null,null,null,null,null,null,null,null,0,0,0,0]
[null,null,null,null,null,null,null,null,0,0,0,0]
[null,null,null,null,null,null,null,null,0,0,0,0]
[null,null,null,null,null,null,null,null,0,0,0,0]
[null,null,null,null,null,null,null,null,0,0,0,0]
[null,null,null,null,null,null,null,null,0,0,0,0]
[null,null,null,null,null,null,null,null,0,0,0,0]
[null,null,null,null,null,null,null,null,0,0,0,0]
[null,null,null,null,null,null,null,null,0,0,0,0]
[null,null,null,null,null,null,null,null,0,0,0,0]
[null,null,null,null,null,null,null,null,0,0,0,0]
[null,null,null,null,null,null,null,null,0,0,0,0]
[null,null,null,null,null,null,null,null,0,0,0,0]
[null,null,null,null,null,null,null,null,0,0,0,0]
[null,null,null,null,null,null,null,null,0,0,0,0]
[null,null,null,null,null,null,null,null,0,0,0,0]
[null,null,null,null,null,null,null,null,0,0,0,0]
[null,null,null,null,null,null,null,null,0,0,0,0]
[null,null,null,null,null,null,null,null,0,0,0,0]
[null,null,null,null,null,null,null,null,0,0,0,0]
[null,null,null,null,null,null,null,null,0,0,0,0]
[null,null,null,null,null,null,null,null,0,0,0,0]
[null,null,null,null,null,null,null,null,0,0,0,0]
[null,null,null,null,null,null,null,null,0,0,0,0]
[null,null,null,null,null,null,null,null,0,0,0,0]
[null,null,null,null,null,null,null,null,0,0,0,0]
[null,null,null,null,null,null,null,null,0,0,0,0]
[null,null,null,null,null,null,null,null,0,0,{"$f":"SUM(F2648:G2648)","v":0},0]
[null,null,null,null,null,null,null,null,{"$f":"SUM(D2649:E2649)","v":0},{"$f":"E2649","v":0},0,{"$f":"SUM(H2649,I2649,K2649)","v":0}]
[null,null,null,null,null,null,null,null,0,0,0,0]
[null,null,null,null,null,null,null,null,0,0,0,0]
[null,null,null,null,null,null,null,null,0,0,0,0]
[null,null,null,null,null,null,null,null,0,0,0,0]
[null,null,null,null,null,null,null,null,0,0,0,0]
[null,null,null,null,null,null,null,null,0,0,0,0]
[null,null,null,null,null,null,null,null,0,0,0,0]
[null,null,null,null,null,null,null,null,0,0,0,0]
[null,null,null,null,null,null,null,null,0,0,0,0]
[null,null,null,null,null,null,null,null,0,0,0,0]
[null,null,null,null,null,null,null,null,0,0,0,0]
[null,null,null,null,null,null,null,null,0,0,0,0]
[null,null,null,null,null,null,null,null,0,0,0,0]
[null,null,null,null,null,null,null,null,0,0,0,0]
[null,null,null,null,null,null,null,null,0,0,0,0]
[null,null,null,null,null,null,null,null,0,0,0,0]
[null,null,null,null,null,null,null,null,0,0,0,0]
[null,null,null,null,null,null,null,null,0,0,0,0]
[null,null,null,null,null,null,null,null,0,0,0,0]
[null,null,null,null,null,null,null,null,0,0,0,0]
[null,null,null,null,null,null,null,null,0,0,0,0]
[null,null,null,null,null,null,null,null,0,0,0,0]
[null,null,null,null,null,null,null,null,0,0,0,0]
[null,null,null,null,null,null,null,null,0,0,0,0]
[null,null,null,null,null,null,null,null,0,0,0,0]
[null,null,null,null,null,null,null,null,0,0,0,0]
[null,null,null,null,null,null,null,null,0,0,0,0]
[null,null,null,null,null,null,null,null,0,0,0,0]
[null,null,null,null,null,null,null,null,0,0,0,0]
[null,null,null,null,null,null,null,null,0,0,0,0]
[null,null,null,null,null,null,null,null,0,0,0,0]
[null,null,null,null,null,null,null,null,0,0,0,0]
[null,null,null,null,null,null,null,null,0,0,0,0]
[null,null,null,null,null,null,null,null,0,0,0,0]
[null,null,null,null,null,null,null,null,0,0,0,0]
[null,null,null,null,null,null,null,null,0,0,0,0]
[null,null,null,null,null,null,null,null,0,0,0,0]
[null,null,null,null,null,null,null,null,0,0,0,0]
[null,null,null,null,null,null,null,null,0,0,0,0]
[null,null,null,null,null,null,null,null,0,0,0,0]
[null,null,null,null,null,null,null,null,0,0,0,0]
[null,null,null,null,null,null,null,null,0,0,0,0]
[null,null,null,null,null,null,null,null,0,0,0,0]
[null,null,null,null,null,null,null,null,0,0,0,0]
[null,null,null,null,null,null,null,null,0,0,0,0]
[null,null,null,null,null,null,null,null,0,0,0,0]
[null,null,null,null,null,null,null,null,0,0,0,0]
[null,null,null,null,null,null,null,null,0,0,0,0]
[null,null,null,null,null,null,null,null,0,0,0,0]
[null,null,null,null,null,null,null,null,0,0,0,0]
[null,null,null,null,null,null,null,null,0,0,0,0]
[null,null,null,null,null,null,null,null,0,0,0,0]
[null,null,null,null,null,null,null,null,0,0,0,0]
[null,null,null,null,null,null,null,null,0,0,0,0]
[null,null,null,null,null,null,null,null,0,0,0,0]
[null,null,null,null,null,null,null,null,0,0,0,0]
[null,null,null,null,null,null,null,null,0,0,0,0]
[null,null,null,null,null,null,null,null,0,0,0,0]
[null,null,null,null,null,null,null,null,0,0,0,0]
[null,null,null,null,null,null,null,null,0,0,0,0]
[null,null,null,null,null,null,null,null,0,0,0,0]
[null,null,null,null,null,null,null,null,0,0,0,0]
[null,null,null,null,null,null,null,null,0,0,{"$f":"SUM(F2712:G2712)","v":0},0]
[null,null,null,null,null,null,null,null,{"$f":"SUM(D2713:E2713)","v":0},{"$f":"E2713","v":0},0,{"$f":"SUM(H2713,I2713,K2713)","v":0}]
[null,null,null,null,null,null,null,null,0,0,0,0]
[null,null,null,null,null,null,null,null,0,0,0,0]
[null,null,null,null,null,null,null,null,0,0,0,0]
[null,null,null,null,null,null,null,null,0,0,0,0]
[null,null,null,null,null,null,null,null,0,0,0,0]
[null,null,null,null,null,null,null,null,0,0,0,0]
[]
[]
[]
[]
[]
[]
[]
[]
[]
[]
["010","Épinette (autre que Norvège)",null,null,null,null,null,null,{"$f":"SUM(D2730:E2730)","v":0},{"$f":"E2730","v":0},{"$f":"SUM(F2730:G2730)","v":0},{"$f":"SUM(H2730,I2730,K2730)","v":0}]
["014","Épinette de Norvège",null,null,null,null,null,null,{"$f":"SUM(D2731:E2731)","v":0},{"$f":"E2731","v":0},0,{"$f":"SUM(H2731,I2731,K2731)","v":0}]
["030","Mélèze laricin",null,null,null,null,null,null,0,0,0,0]
["043","Pin gris et sylvestre",null,null,null,null,null,null,0,0,0,0]
["060","Sapin baumier",null,null,null,null,null,null,0,0,0,0]
["190","Peuplier (autre que Baumier)",null,null,null,null,null,null,0,0,0,0]
["191","Peuplier baumier",null,null,null,null,null,null,0,0,0,0]
["105","Bouleau blanc ",null,null,null,null,null,null,0,0,0,0]
["104","Bouleau jaune",null,null,null,null,null,null,0,0,0,0]
["132","Érable à sucre",null,null,null,null,null,null,0,0,0,0]
["133","Érable rouge",null,null,null,null,null,null,0,0,0,0]
["135","Érables - Autres ",null,null,null,null,null,null,0,0,0,0]
["120","Chêne ",null,null,null,null,null,null,0,0,0,0]
["141","Frêne d’Amérique (blanc)",null,null,null,null,null,null,0,0,0,0]
["142","Frêne noir",null,null,null,null,null,null,0,0,0,0]
["150","Hêtre",null,null,null,null,null,null,0,0,0,0]
["160","Noyer",null,null,null,null,null,null,0,0,0,0]
["165","Caryer",null,null,null,null,null,null,0,0,0,0]
["170","Orme",null,null,null,null,null,null,0,0,0,0]
["180","Ostryer de Virginie",null,null,null,null,null,null,0,0,0,0]
["110","Cerisier tardif",null,null,null,null,null,null,0,0,0,0]
["210","Tilleul d’Amérique",null,null,null,null,null,null,0,0,0,0]
["041","Pin blanc",null,null,null,null,null,null,0,0,0,0]
["042","Pin rouge",null,null,null,null,null,null,0,0,0,0]
["050","Pruche de l’Est",null,null,null,null,null,null,0,0,0,0]
["080","Thuya occidental",null,null,null,null,null,null,0,0,0,0]
[null,null,null,null,null,null,null,null,0,0,0,0]
[null,null,null,null,null,null,null,null,0,0,0,0]
[null,null,null,null,null,null,null,null,0,0,0,0]
[null,null,null,null,null,null,null,null,0,0,0,0]
[null,null,null,null,null,null,null,null,0,0,0,0]
[null,null,null,null,null,null,null,null,0,0,0,0]
[null,null,null,null,null,null,null,null,0,0,0,0]
[null,null,null,null,null,null,null,null,0,0,0,0]
[null,null,null,null,null,null,null,null,0,0,0,0]
[null,null,null,null,null,null,null,null,0,0,0,0]
[null,null,null,null,null,null,null,null,0,0,0,0]
[null,null,null,null,null,null,null,null,0,0,0,0]
[null,null,null,null,null,null,null,null,0,0,0,0]
[null,null,null,null,null,null,null,null,0,0,0,0]
[null,null,null,null,null,null,null,null,0,0,0,0]
[null,null,null,null,null,null,null,null,0,0,0,0]
[null,null,null,null,null,null,null,null,0,0,0,0]
[null,null,null,null,null,null,null,null,0,0,0,0]
[null,null,null,null,null,null,null,null,0,0,0,0]
[null,null,null,null,null,null,null,null,0,0,0,0]
[null,null,null,null,null,null,null,null,0,0,0,0]
[null,null,null,null,null,null,null,null,0,0,0,0]
[null,null,null,null,null,null,null,null,0,0,0,0]
[null,null,null,null,null,null,null,null,0,0,0,0]
[null,null,null,null,null,null,null,null,0,0,0,0]
[null,null,null,null,null,null,null,null,0,0,0,0]
[null,null,null,null,null,null,null,null,0,0,0,0]
[null,null,null,null,null,null,null,null,0,0,0,0]
[null,null,null,null,null,null,null,null,0,0,0,0]
[null,null,null,null,null,null,null,null,0,0,0,0]
[null,null,null,null,null,null,null,null,0,0,0,0]
[null,null,null,null,null,null,null,null,0,0,0,0]
[null,null,null,null,null,null,null,null,0,0,0,0]
[null,null,null,null,null,null,null,null,0,0,0,0]
[null,null,null,null,null,null,null,null,0,0,0,0]
[null,null,null,null,null,null,null,null,0,0,0,0]
[null,null,null,null,null,null,null,null,0,0,0,0]
[null,null,null,null,null,null,null,null,0,0,0,0]
[null,null,null,null,null,null,null,null,0,0,{"$f":"SUM(F2794:G2794)","v":0},0]
[null,null,null,null,null,null,null,null,{"$f":"SUM(D2795:E2795)","v":0},{"$f":"E2795","v":0},0,{"$f":"SUM(H2795,I2795,K2795)","v":0}]
[null,null,null,null,null,null,null,null,0,0,0,0]
[null,null,null,null,null,null,null,null,0,0,0,0]
[null,null,null,null,null,null,null,null,0,0,0,0]
[null,null,null,null,null,null,null,null,0,0,0,0]
[null,null,null,null,null,null,null,null,0,0,0,0]
[null,null,null,null,null,null,null,null,0,0,0,0]
[null,null,null,null,null,null,null,null,0,0,0,0]
[null,null,null,null,null,null,null,null,0,0,0,0]
[null,null,null,null,null,null,null,null,0,0,0,0]
[null,null,null,null,null,null,null,null,0,0,0,0]
[null,null,null,null,null,null,null,null,0,0,0,0]
[null,null,null,null,null,null,null,null,0,0,0,0]
[null,null,null,null,null,null,null,null,0,0,0,0]
[null,null,null,null,null,null,null,null,0,0,0,0]
[null,null,null,null,null,null,null,null,0,0,0,0]
[null,null,null,null,null,null,null,null,0,0,0,0]
[null,null,null,null,null,null,null,null,0,0,0,0]
[null,null,null,null,null,null,null,null,0,0,0,0]
[null,null,null,null,null,null,null,null,0,0,0,0]
[null,null,null,null,null,null,null,null,0,0,0,0]
[null,null,null,null,null,null,null,null,0,0,0,0]
[null,null,null,null,null,null,null,null,0,0,0,0]
[null,null,null,null,null,null,null,null,0,0,0,0]
[null,null,null,null,null,null,null,null,0,0,0,0]
[null,null,null,null,null,null,null,null,0,0,0,0]
[null,null,null,null,null,null,null,null,0,0,0,0]
[null,null,null,null,null,null,null,null,0,0,0,0]
[null,null,null,null,null,null,null,null,0,0,0,0]
[null,null,null,null,null,null,null,null,0,0,0,0]
[null,null,null,null,null,null,null,null,0,0,0,0]
[null,null,null,null,null,null,null,null,0,0,0,0]
[null,null,null,null,null,null,null,null,0,0,0,0]
[null,null,null,null,null,null,null,null,0,0,0,0]
[null,null,null,null,null,null,null,null,0,0,0,0]
[null,null,null,null,null,null,null,null,0,0,0,0]
[null,null,null,null,null,null,null,null,0,0,0,0]
[null,null,null,null,null,null,null,null,0,0,0,0]
[null,null,null,null,null,null,null,null,0,0,0,0]
[null,null,null,null,null,null,null,null,0,0,0,0]
[null,null,null,null,null,null,null,null,0,0,0,0]
[null,null,null,null,null,null,null,null,0,0,0,0]
[null,null,null,null,null,null,null,null,0,0,0,0]
[null,null,null,null,null,null,null,null,0,0,0,0]
[null,null,null,null,null,null,null,null,0,0,0,0]
[null,null,null,null,null,null,null,null,0,0,0,0]
[null,null,null,null,null,null,null,null,0,0,0,0]
[null,null,null,null,null,null,null,null,0,0,0,0]
[null,null,null,null,null,null,null,null,0,0,0,0]
[null,null,null,null,null,null,null,null,0,0,0,0]
[null,null,null,null,null,null,null,null,0,0,0,0]
[null,null,null,null,null,null,null,null,0,0,0,0]
[null,null,null,null,null,null,null,null,0,0,0,0]
[null,null,null,null,null,null,null,null,0,0,0,0]
[null,null,null,null,null,null,null,null,0,0,0,0]
[null,null,null,null,null,null,null,null,0,0,0,0]
[null,null,null,null,null,null,null,null,0,0,0,0]
[null,null,null,null,null,null,null,null,0,0,0,0]
[null,null,null,null,null,null,null,null,0,0,0,0]
[null,null,null,null,null,null,null,null,0,0,0,0]
[null,null,null,null,null,null,null,null,0,0,0,0]
[null,null,null,null,null,null,null,null,0,0,0,0]
[null,null,null,null,null,null,null,null,0,0,0,0]
[null,null,null,null,null,null,null,null,0,0,{"$f":"SUM(F2858:G2858)","v":0},0]
[null,null,null,null,null,null,null,null,{"$f":"SUM(D2859:E2859)","v":0},{"$f":"E2859","v":0},0,{"$f":"SUM(H2859,I2859,K2859)","v":0}]
[null,null,null,null,null,null,null,null,0,0,0,0]
[null,null,null,null,null,null,null,null,0,0,0,0]
[null,null,null,null,null,null,null,null,0,0,0,0]
[null,null,null,null,null,null,null,null,0,0,0,0]
[null,null,null,null,null,null,null,null,0,0,0,0]
[null,null,null,null,null,null,null,null,0,0,0,0]
[null,null,null,null,null,null,null,null,0,0,0,0]
[null,null,null,null,null,null,null,null,0,0,0,0]
[null,null,null,null,null,null,null,null,0,0,0,0]
[null,null,null,null,null,null,null,null,0,0,0,0]
[null,null,null,null,null,null,null,null,0,0,0,0]
[null,null,null,null,null,null,null,null,0,0,0,0]
[null,null,null,null,null,null,null,null,0,0,0,0]
[null,null,null,null,null,null,null,null,0,0,0,0]
[null,null,null,null,null,null,null,null,0,0,0,0]
[null,null,null,null,null,null,null,null,0,0,0,0]
[null,null,null,null,null,null,null,null,0,0,0,0]
[null,null,null,null,null,null,null,null,0,0,0,0]
[null,null,null,null,null,null,null,null,0,0,0,0]
[null,null,null,null,null,null,null,null,0,0,0,0]
[null,null,null,null,null,null,null,null,0,0,0,0]
[null,null,null,null,null,null,null,null,0,0,0,0]
[null,null,null,null,null,null,null,null,0,0,0,0]
[null,null,null,null,null,null,null,null,0,0,0,0]
[null,null,null,null,null,null,null,null,0,0,0,0]
[null,null,null,null,null,null,null,null,0,0,0,0]
[null,null,null,null,null,null,null,null,0,0,0,0]
[null,null,null,null,null,null,null,null,0,0,0,0]
[null,null,null,null,null,null,null,null,0,0,0,0]
[null,null,null,null,null,null,null,null,0,0,0,0]
[null,null,null,null,null,null,null,null,0,0,0,0]
[null,null,null,null,null,null,null,null,0,0,0,0]
[null,null,null,null,null,null,null,null,0,0,0,0]
[null,null,null,null,null,null,null,null,0,0,0,0]
[null,null,null,null,null,null,null,null,0,0,0,0]
[null,null,null,null,null,null,null,null,0,0,0,0]
[null,null,null,null,null,null,null,null,0,0,0,0]
[null,null,null,null,null,null,null,null,0,0,0,0]
[null,null,null,null,null,null,null,null,0,0,0,0]
[null,null,null,null,null,null,null,null,0,0,0,0]
[null,null,null,null,null,null,null,null,0,0,0,0]
[null,null,null,null,null,null,null,null,0,0,0,0]
[null,null,null,null,null,null,null,null,0,0,0,0]
[null,null,null,null,null,null,null,null,0,0,0,0]
[null,null,null,null,null,null,null,null,0,0,0,0]
[null,null,null,null,null,null,null,null,0,0,0,0]
[null,null,null,null,null,null,null,null,0,0,0,0]
[null,null,null,null,null,null,null,null,0,0,0,0]
[null,null,null,null,null,null,null,null,0,0,0,0]
[null,null,null,null,null,null,null,null,0,0,0,0]
[null,null,null,null,null,null,null,null,0,0,0,0]
[null,null,null,null,null,null,null,null,0,0,0,0]
[null,null,null,null,null,null,null,null,0,0,0,0]
[null,null,null,null,null,null,null,null,0,0,0,0]
[null,null,null,null,null,null,null,null,0,0,0,0]
[null,null,null,null,null,null,null,null,0,0,0,0]
[null,null,null,null,null,null,null,null,0,0,0,0]
[null,null,null,null,null,null,null,null,0,0,0,0]
[null,null,null,null,null,null,null,null,0,0,0,0]
[null,null,null,null,null,null,null,null,0,0,0,0]
[null,null,null,null,null,null,null,null,0,0,0,0]
[null,null,null,null,null,null,null,null,0,0,0,0]
[null,null,null,null,null,null,null,null,0,0,{"$f":"SUM(F2922:G2922)","v":0},0]
[null,null,null,null,null,null,null,null,{"$f":"SUM(D2923:E2923)","v":0},{"$f":"E2923","v":0},0,{"$f":"SUM(H2923,I2923,K2923)","v":0}]
[null,null,null,null,null,null,null,null,0,0,0,0]
[null,null,null,null,null,null,null,null,0,0,0,0]
[null,null,null,null,null,null,null,null,0,0,0,0]
[null,null,null,null,null,null,null,null,0,0,0,0]
[null,null,null,null,null,null,null,null,0,0,0,0]
[null,null,null,null,null,null,null,null,0,0,0,0]
[]
[]
[]
[]
[]
[]
[]
[]
[]
[]
["010","Épinette (autre que Norvège)",null,null,null,null,null,null,{"$f":"SUM(D2940:E2940)","v":0},{"$f":"E2940","v":0},{"$f":"SUM(F2940:G2940)","v":0},{"$f":"SUM(H2940,I2940,K2940)","v":0}]
["014","Épinette de Norvège",null,null,null,null,null,null,{"$f":"SUM(D2941:E2941)","v":0},{"$f":"E2941","v":0},0,{"$f":"SUM(H2941,I2941,K2941)","v":0}]
["030","Mélèze laricin",null,null,null,null,null,null,0,0,0,0]
["043","Pin gris et sylvestre",null,null,null,null,null,null,0,0,0,0]
["060","Sapin baumier",null,null,null,null,null,null,0,0,0,0]
["190","Peuplier (autre que Baumier)",null,null,null,null,null,null,0,0,0,0]
["191","Peuplier baumier",null,null,null,null,null,null,0,0,0,0]
["105","Bouleau blanc ",null,null,null,null,null,null,0,0,0,0]
["104","Bouleau jaune",null,null,null,null,null,null,0,0,0,0]
["132","Érable à sucre",null,null,null,null,null,null,0,0,0,0]
["133","Érable rouge",null,null,null,null,null,null,0,0,0,0]
["135","Érables - Autres ",null,null,null,null,null,null,0,0,0,0]
["120","Chêne ",null,null,null,null,null,null,0,0,0,0]
["141","Frêne d’Amérique (blanc)",null,null,null,null,null,null,0,0,0,0]
["142","Frêne noir",null,null,null,null,null,null,0,0,0,0]
["150","Hêtre",null,null,null,null,null,null,0,0,0,0]
["160","Noyer",null,null,null,null,null,null,0,0,0,0]
["165","Caryer",null,null,null,null,null,null,0,0,0,0]
["170","Orme",null,null,null,null,null,null,0,0,0,0]
["180","Ostryer de Virginie",null,null,null,null,null,null,0,0,0,0]
["110","Cerisier tardif",null,null,null,null,null,null,0,0,0,0]
["210","Tilleul d’Amérique",null,null,null,null,null,null,0,0,0,0]
["041","Pin blanc",null,null,null,null,null,null,0,0,0,0]
["042","Pin rouge",null,null,null,null,null,null,0,0,0,0]
["050","Pruche de l’Est",null,null,null,null,null,null,0,0,0,0]
["080","Thuya occidental",null,null,null,null,null,null,0,0,0,0]
[null,null,null,null,null,null,null,null,0,0,0,0]
[null,null,null,null,null,null,null,null,0,0,0,0]
[null,null,null,null,null,null,null,null,0,0,0,0]
[null,null,null,null,null,null,null,null,0,0,0,0]
[null,null,null,null,null,null,null,null,0,0,0,0]
[null,null,null,null,null,null,null,null,0,0,0,0]
[null,null,null,null,null,null,null,null,0,0,0,0]
[null,null,null,null,null,null,null,null,0,0,0,0]
[null,null,null,null,null,null,null,null,0,0,0,0]
[null,null,null,null,null,null,null,null,0,0,0,0]
[null,null,null,null,null,null,null,null,0,0,0,0]
[null,null,null,null,null,null,null,null,0,0,0,0]
[null,null,null,null,null,null,null,null,0,0,0,0]
[null,null,null,null,null,null,null,null,0,0,0,0]
[null,null,null,null,null,null,null,null,0,0,0,0]
[null,null,null,null,null,null,null,null,0,0,0,0]
[null,null,null,null,null,null,null,null,0,0,0,0]
[null,null,null,null,null,null,null,null,0,0,0,0]
[null,null,null,null,null,null,null,null,0,0,0,0]
[null,null,null,null,null,null,null,null,0,0,0,0]
[null,null,null,null,null,null,null,null,0,0,0,0]
[null,null,null,null,null,null,null,null,0,0,0,0]
[null,null,null,null,null,null,null,null,0,0,0,0]
[null,null,null,null,null,null,null,null,0,0,0,0]
[null,null,null,null,null,null,null,null,0,0,0,0]
[null,null,null,null,null,null,null,null,0,0,0,0]
[null,null,null,null,null,null,null,null,0,0,0,0]
[null,null,null,null,null,null,null,null,0,0,0,0]
[null,null,null,null,null,null,null,null,0,0,0,0]
[null,null,null,null,null,null,null,null,0,0,0,0]
[null,null,null,null,null,null,null,null,0,0,0,0]
[null,null,null,null,null,null,null,null,0,0,0,0]
[null,null,null,null,null,null,null,null,0,0,0,0]
[null,null,null,null,null,null,null,null,0,0,0,0]
[null,null,null,null,null,null,null,null,0,0,0,0]
[null,null,null,null,null,null,null,null,0,0,0,0]
[null,null,null,null,null,null,null,null,0,0,0,0]
[null,null,null,null,null,null,null,null,0,0,0,0]
[null,null,null,null,null,null,null,null,0,0,{"$f":"SUM(F3004:G3004)","v":0},0]
[null,null,null,null,null,null,null,null,{"$f":"SUM(D3005:E3005)","v":0},{"$f":"E3005","v":0},0,{"$f":"SUM(H3005,I3005,K3005)","v":0}]
[null,null,null,null,null,null,null,null,0,0,0,0]
[null,null,null,null,null,null,null,null,0,0,0,0]
[null,null,null,null,null,null,null,null,0,0,0,0]
[null,null,null,null,null,null,null,null,0,0,0,0]
[null,null,null,null,null,null,null,null,0,0,0,0]
[null,null,null,null,null,null,null,null,0,0,0,0]
[null,null,null,null,null,null,null,null,0,0,0,0]
[null,null,null,null,null,null,null,null,0,0,0,0]
[null,null,null,null,null,null,null,null,0,0,0,0]
[null,null,null,null,null,null,null,null,0,0,0,0]
[null,null,null,null,null,null,null,null,0,0,0,0]
[null,null,null,null,null,null,null,null,0,0,0,0]
[null,null,null,null,null,null,null,null,0,0,0,0]
[null,null,null,null,null,null,null,null,0,0,0,0]
[null,null,null,null,null,null,null,null,0,0,0,0]
[null,null,null,null,null,null,null,null,0,0,0,0]
[null,null,null,null,null,null,null,null,0,0,0,0]
[null,null,null,null,null,null,null,null,0,0,0,0]
[null,null,null,null,null,null,null,null,0,0,0,0]
[null,null,null,null,null,null,null,null,0,0,0,0]
[null,null,null,null,null,null,null,null,0,0,0,0]
[null,null,null,null,null,null,null,null,0,0,0,0]
[null,null,null,null,null,null,null,null,0,0,0,0]
[null,null,null,null,null,null,null,null,0,0,0,0]
[null,null,null,null,null,null,null,null,0,0,0,0]
[null,null,null,null,null,null,null,null,0,0,0,0]
[null,null,null,null,null,null,null,null,0,0,0,0]
[null,null,null,null,null,null,null,null,0,0,0,0]
[null,null,null,null,null,null,null,null,0,0,0,0]
[null,null,null,null,null,null,null,null,0,0,0,0]
[null,null,null,null,null,null,null,null,0,0,0,0]
[null,null,null,null,null,null,null,null,0,0,0,0]
[null,null,null,null,null,null,null,null,0,0,0,0]
[null,null,null,null,null,null,null,null,0,0,0,0]
[null,null,null,null,null,null,null,null,0,0,0,0]
[null,null,null,null,null,null,null,null,0,0,0,0]
[null,null,null,null,null,null,null,null,0,0,0,0]
[null,null,null,null,null,null,null,null,0,0,0,0]
[null,null,null,null,null,null,null,null,0,0,0,0]
[null,null,null,null,null,null,null,null,0,0,0,0]
[null,null,null,null,null,null,null,null,0,0,0,0]
[null,null,null,null,null,null,null,null,0,0,0,0]
[null,null,null,null,null,null,null,null,0,0,0,0]
[null,null,null,null,null,null,null,null,0,0,0,0]
[null,null,null,null,null,null,null,null,0,0,0,0]
[null,null,null,null,null,null,null,null,0,0,0,0]
[null,null,null,null,null,null,null,null,0,0,0,0]
[null,null,null,null,null,null,null,null,0,0,0,0]
[null,null,null,null,null,null,null,null,0,0,0,0]
[null,null,null,null,null,null,null,null,0,0,0,0]
[null,null,null,null,null,null,null,null,0,0,0,0]
[null,null,null,null,null,null,null,null,0,0,0,0]
[null,null,null,null,null,null,null,null,0,0,0,0]
[null,null,null,null,null,null,null,null,0,0,0,0]
[null,null,null,null,null,null,null,null,0,0,0,0]
[null,null,null,null,null,null,null,null,0,0,0,0]
[null,null,null,null,null,null,null,null,0,0,0,0]
[null,null,null,null,null,null,null,null,0,0,0,0]
[null,null,null,null,null,null,null,null,0,0,0,0]
[null,null,null,null,null,null,null,null,0,0,0,0]
[null,null,null,null,null,null,null,null,0,0,0,0]
[null,null,null,null,null,null,null,null,0,0,0,0]
[null,null,null,null,null,null,null,null,0,0,{"$f":"SUM(F3068:G3068)","v":0},0]
[null,null,null,null,null,null,null,null,{"$f":"SUM(D3069:E3069)","v":0},{"$f":"E3069","v":0},0,{"$f":"SUM(H3069,I3069,K3069)","v":0}]
[null,null,null,null,null,null,null,null,0,0,0,0]
[null,null,null,null,null,null,null,null,0,0,0,0]
[null,null,null,null,null,null,null,null,0,0,0,0]
[null,null,null,null,null,null,null,null,0,0,0,0]
[null,null,null,null,null,null,null,null,0,0,0,0]
[null,null,null,null,null,null,null,null,0,0,0,0]
[null,null,null,null,null,null,null,null,0,0,0,0]
[null,null,null,null,null,null,null,null,0,0,0,0]
[null,null,null,null,null,null,null,null,0,0,0,0]
[null,null,null,null,null,null,null,null,0,0,0,0]
[null,null,null,null,null,null,null,null,0,0,0,0]
[null,null,null,null,null,null,null,null,0,0,0,0]
[null,null,null,null,null,null,null,null,0,0,0,0]
[null,null,null,null,null,null,null,null,0,0,0,0]
[null,null,null,null,null,null,null,null,0,0,0,0]
[null,null,null,null,null,null,null,null,0,0,0,0]
[null,null,null,null,null,null,null,null,0,0,0,0]
[null,null,null,null,null,null,null,null,0,0,0,0]
[null,null,null,null,null,null,null,null,0,0,0,0]
[null,null,null,null,null,null,null,null,0,0,0,0]
[null,null,null,null,null,null,null,null,0,0,0,0]
[null,null,null,null,null,null,null,null,0,0,0,0]
[null,null,null,null,null,null,null,null,0,0,0,0]
[null,null,null,null,null,null,null,null,0,0,0,0]
[null,null,null,null,null,null,null,null,0,0,0,0]
[null,null,null,null,null,null,null,null,0,0,0,0]
[null,null,null,null,null,null,null,null,0,0,0,0]
[null,null,null,null,null,null,null,null,0,0,0,0]
[null,null,null,null,null,null,null,null,0,0,0,0]
[null,null,null,null,null,null,null,null,0,0,0,0]
[null,null,null,null,null,null,null,null,0,0,0,0]
[null,null,null,null,null,null,null,null,0,0,0,0]
[null,null,null,null,null,null,null,null,0,0,0,0]
[null,null,null,null,null,null,null,null,0,0,0,0]
[null,null,null,null,null,null,null,null,0,0,0,0]
[null,null,null,null,null,null,null,null,0,0,0,0]
[null,null,null,null,null,null,null,null,0,0,0,0]
[null,null,null,null,null,null,null,null,0,0,0,0]
[null,null,null,null,null,null,null,null,0,0,0,0]
[null,null,null,null,null,null,null,null,0,0,0,0]
[null,null,null,null,null,null,null,null,0,0,0,0]
[null,null,null,null,null,null,null,null,0,0,0,0]
[null,null,null,null,null,null,null,null,0,0,0,0]
[null,null,null,null,null,null,null,null,0,0,0,0]
[null,null,null,null,null,null,null,null,0,0,0,0]
[null,null,null,null,null,null,null,null,0,0,0,0]
[null,null,null,null,null,null,null,null,0,0,0,0]
[null,null,null,null,null,null,null,null,0,0,0,0]
[null,null,null,null,null,null,null,null,0,0,0,0]
[null,null,null,null,null,null,null,null,0,0,0,0]
[null,null,null,null,null,null,null,null,0,0,0,0]
[null,null,null,null,null,null,null,null,0,0,0,0]
[null,null,null,null,null,null,null,null,0,0,0,0]
[null,null,null,null,null,null,null,null,0,0,0,0]
[null,null,null,null,null,null,null,null,0,0,0,0]
[null,null,null,null,null,null,null,null,0,0,0,0]
[null,null,null,null,null,null,null,null,0,0,0,0]
[null,null,null,null,null,null,null,null,0,0,0,0]
[null,null,null,null,null,null,null,null,0,0,0,0]
[null,null,null,null,null,null,null,null,0,0,0,0]
[null,null,null,null,null,null,null,null,0,0,0,0]
[null,null,null,null,null,null,null,null,0,0,0,0]
[null,null,null,null,null,null,null,null,0,0,{"$f":"SUM(F3132:G3132)","v":0},0]
[null,null,null,null,null,null,null,null,{"$f":"SUM(D3133:E3133)","v":0},{"$f":"E3133","v":0},0,{"$f":"SUM(H3133,I3133,K3133)","v":0}]
[null,null,null,null,null,null,null,null,0,0,0,0]
[null,null,null,null,null,null,null,null,0,0,0,0]
[null,null,null,null,null,null,null,null,0,0,0,0]
[null,null,null,null,null,null,null,null,0,0,0,0]
[null,null,null,null,null,null,null,null,0,0,0,0]
[null,null,null,null,null,null,null,null,0,0,0,0]
[]
[]
[]
[]
[]
[]
[]
[]
[]
[]
["010","Épinette (autre que Norvège)",null,null,null,null,null,null,{"$f":"SUM(D3150:E3150)","v":0},{"$f":"SUM(E3150,M3150)","v":0},{"$f":"SUM(F3150:G3150)","v":0},{"$f":"SUM(H3150,I3150,K3150)","v":0}]
["014","Épinette de Norvège",null,null,null,null,null,null,{"$f":"SUM(D3151:E3151)","v":0},{"$f":"SUM(E3151,M3151)","v":0},0,{"$f":"SUM(H3151,I3151,K3151)","v":0}]
["030","Mélèze laricin",null,null,null,null,null,null,0,0,0,0]
["043","Pin gris et sylvestre",null,null,null,null,null,null,0,0,0,0]
["060","Sapin baumier",null,null,null,null,null,null,0,0,0,0]
["190","Peuplier (autre que Baumier)",null,null,null,null,null,null,0,0,0,0]
["191","Peuplier baumier",null,null,null,null,null,null,0,0,0,0]
["105","Bouleau blanc ",null,null,null,null,null,null,0,0,0,0]
["104","Bouleau jaune",null,null,null,null,null,null,0,0,0,0]
["132","Érable à sucre",null,null,null,null,null,null,0,0,0,0]
["133","Érable rouge",null,null,null,null,null,null,0,0,0,0]
["135","Érables - Autres ",null,null,null,null,null,null,0,0,0,0]
["120","Chêne ",null,null,null,null,null,null,0,0,0,0]
["141","Frêne d’Amérique (blanc)",null,null,null,null,null,null,0,0,0,0]
["142","Frêne noir",null,null,null,null,null,null,0,0,0,0]
["150","Hêtre",null,null,null,null,null,null,0,0,0,0]
["160","Noyer",null,null,null,null,null,null,0,0,0,0]
["165","Caryer",null,null,null,null,null,null,0,0,0,0]
["170","Orme",null,null,null,null,null,null,0,0,0,0]
["180","Ostryer de Virginie",null,null,null,null,null,null,0,0,0,0]
["110","Cerisier tardif",null,null,null,null,null,null,0,0,0,0]
["210","Tilleul d’Amérique",null,null,null,null,null,null,0,0,0,0]
["041","Pin blanc",null,null,null,null,null,null,0,0,0,0]
["042","Pin rouge",null,null,null,null,null,null,0,0,0,0]
["050","Pruche de l’Est",null,null,null,null,null,null,0,0,0,0]
["080","Thuya occidental",null,null,null,null,null,null,0,0,0,0]
[null,null,null,null,null,null,null,null,0,0,0,0]
[null,null,null,null,null,null,null,null,0,0,0,0]
[null,null,null,null,null,null,null,null,0,0,0,0]
[null,null,null,null,null,null,null,null,0,0,0,0]
[null,null,null,null,null,null,null,null,0,0,0,0]
[null,null,null,null,null,null,null,null,0,0,0,0]
[null,null,null,null,null,null,null,null,0,0,{"$f":"SUM(F3182:G3182)","v":0},0]
[null,null,null,null,null,null,null,null,0,0,0,0]
[null,null,null,null,null,null,null,null,0,0,0,0]
[null,null,null,null,null,null,null,null,0,0,0,0]
[null,null,null,null,null,null,null,null,0,0,0,0]
[null,null,null,null,null,null,null,null,0,0,0,0]
[null,null,null,null,null,null,null,null,0,0,0,0]
[null,null,null,null,null,null,null,null,0,0,0,0]
[null,null,null,null,null,null,null,null,0,0,0,0]
[null,null,null,null,null,null,null,null,0,0,0,0]
[null,null,null,null,null,null,null,null,0,0,0,0]
[null,null,null,null,null,null,null,null,0,0,0,0]
[null,null,null,null,null,null,null,null,0,0,0,0]
[null,null,null,null,null,null,null,null,0,0,0,0]
[null,null,null,null,null,null,null,null,0,0,0,0]
[null,null,null,null,null,null,null,null,0,0,0,0]
[null,null,null,null,null,null,null,null,0,0,0,0]
[null,null,null,null,null,null,null,null,0,0,0,0]
[null,null,null,null,null,null,null,null,0,0,0,0]
[null,null,null,null,null,null,null,null,0,0,0,0]
[null,null,null,null,null,null,null,null,0,0,0,0]
[null,null,null,null,null,null,null,null,0,0,0,0]
[null,null,null,null,null,null,null,null,0,0,0,0]
[null,null,null,null,null,null,null,null,0,0,0,0]
[null,null,null,null,null,null,null,null,0,0,0,0]
[null,null,null,null,null,null,null,null,0,0,0,0]
[null,null,null,null,null,null,null,null,0,0,0,0]
[null,null,null,null,null,null,null,null,0,0,0,0]
[null,null,null,null,null,null,null,null,0,0,0,0]
[null,null,null,null,null,null,null,null,0,0,0,0]
[null,null,null,null,null,null,null,null,0,0,0,0]
[null,null,null,null,null,null,null,null,0,0,0,0]
[null,null,null,null,null,null,null,null,0,0,0,0]
[null,null,null,null,null,null,null,null,{"$f":"SUM(D3215:E3215)","v":0},{"$f":"SUM(E3215,M3215)","v":0},0,{"$f":"SUM(H3215,I3215,K3215)","v":0}]
[null,null,null,null,null,null,null,null,0,0,0,0]
[null,null,null,null,null,null,null,null,0,0,0,0]
[null,null,null,null,null,null,null,null,0,0,0,0]
[null,null,null,null,null,null,null,null,0,0,0,0]
[null,null,null,null,null,null,null,null,0,0,0,0]
[null,null,null,null,null,null,null,null,0,0,0,0]
[null,null,null,null,null,null,null,null,0,0,0,0]
[null,null,null,null,null,null,null,null,0,0,0,0]
[null,null,null,null,null,null,null,null,0,0,0,0]
[null,null,null,null,null,null,null,null,0,0,0,0]
[null,null,null,null,null,null,null,null,0,0,0,0]
[null,null,null,null,null,null,null,null,0,0,0,0]
[null,null,null,null,null,null,null,null,0,0,0,0]
[null,null,null,null,null,null,null,null,0,0,0,0]
[null,null,null,null,null,null,null,null,0,0,0,0]
[null,null,null,null,null,null,null,null,0,0,0,0]
[null,null,null,null,null,null,null,null,0,0,0,0]
[null,null,null,null,null,null,null,null,0,0,0,0]
[null,null,null,null,null,null,null,null,0,0,0,0]
[null,null,null,null,null,null,null,null,0,0,0,0]
[null,null,null,null,null,null,null,null,0,0,0,0]
[null,null,null,null,null,null,null,null,0,0,0,0]
[null,null,null,null,null,null,null,null,0,0,0,0]
[null,null,null,null,null,null,null,null,0,0,0,0]
[null,null,null,null,null,null,null,null,0,0,0,0]
[null,null,null,null,null,null,null,null,0,0,0,0]
[null,null,null,null,null,null,null,null,0,0,0,0]
[null,null,null,null,null,null,null,null,0,0,0,0]
[null,null,null,null,null,null,null,null,0,0,0,0]
[null,null,null,null,null,null,null,null,0,0,0,0]
[null,null,null,null,null,null,null,null,0,0,{"$f":"SUM(F3246:G3246)","v":0},0]
[null,null,null,null,null,null,null,null,0,0,0,0]
[null,null,null,null,null,null,null,null,0,0,0,0]
[null,null,null,null,null,null,null,null,0,0,0,0]
[null,null,null,null,null,null,null,null,0,0,0,0]
[null,null,null,null,null,null,null,null,0,0,0,0]
[null,null,null,null,null,null,null,null,0,0,0,0]
[null,null,null,null,null,null,null,null,0,0,0,0]
[null,null,null,null,null,null,null,null,0,0,0,0]
[null,null,null,null,null,null,null,null,0,0,0,0]
[null,null,null,null,null,null,null,null,0,0,0,0]
[null,null,null,null,null,null,null,null,0,0,0,0]
[null,null,null,null,null,null,null,null,0,0,0,0]
[null,null,null,null,null,null,null,null,0,0,0,0]
[null,null,null,null,null,null,null,null,0,0,0,0]
[null,null,null,null,null,null,null,null,0,0,0,0]
[null,null,null,null,null,null,null,null,0,0,0,0]
[null,null,null,null,null,null,null,null,0,0,0,0]
[null,null,null,null,null,null,null,null,0,0,0,0]
[null,null,null,null,null,null,null,null,0,0,0,0]
[null,null,null,null,null,null,null,null,0,0,0,0]
[null,null,null,null,null,null,null,null,0,0,0,0]
[null,null,null,null,null,null,null,null,0,0,0,0]
[null,null,null,null,null,null,null,null,0,0,0,0]
[null,null,null,null,null,null,null,null,0,0,0,0]
[null,null,null,null,null,null,null,null,0,0,0,0]
[null,null,null,null,null,null,null,null,0,0,0,0]
[null,null,null,null,null,null,null,null,0,0,0,0]
[null,null,null,null,null,null,null,null,0,0,0,0]
[null,null,null,null,null,null,null,null,0,0,0,0]
[null,null,null,null,null,null,null,null,0,0,0,0]
[null,null,null,null,null,null,null,null,0,0,0,0]
[null,null,null,null,null,null,null,null,0,0,0,0]
[null,null,null,null,null,null,null,null,{"$f":"SUM(D3279:E3279)","v":0},{"$f":"SUM(E3279,M3279)","v":0},0,{"$f":"SUM(H3279,I3279,K3279)","v":0}]
[null,null,null,null,null,null,null,null,0,0,0,0]
[null,null,null,null,null,null,null,null,0,0,0,0]
[null,null,null,null,null,null,null,null,0,0,0,0]
[null,null,null,null,null,null,null,null,0,0,0,0]
[null,null,null,null,null,null,null,null,0,0,0,0]
[null,null,null,null,null,null,null,null,0,0,0,0]
[null,null,null,null,null,null,null,null,0,0,0,0]
[null,null,null,null,null,null,null,null,0,0,0,0]
[null,null,null,null,null,null,null,null,0,0,0,0]
[null,null,null,null,null,null,null,null,0,0,0,0]
[null,null,null,null,null,null,null,null,0,0,0,0]
[null,null,null,null,null,null,null,null,0,0,0,0]
[null,null,null,null,null,null,null,null,0,0,0,0]
[null,null,null,null,null,null,null,null,0,0,0,0]
[null,null,null,null,null,null,null,null,0,0,0,0]
[null,null,null,null,null,null,null,null,0,0,0,0]
[null,null,null,null,null,null,null,null,0,0,0,0]
[null,null,null,null,null,null,null,null,0,0,0,0]
[null,null,null,null,null,null,null,null,0,0,0,0]
[null,null,null,null,null,null,null,null,0,0,0,0]
[null,null,null,null,null,null,null,null,0,0,0,0]
[null,null,null,null,null,null,null,null,0,0,0,0]
[null,null,null,null,null,null,null,null,0,0,0,0]
[null,null,null,null,null,null,null,null,0,0,0,0]
[null,null,null,null,null,null,null,null,0,0,0,0]
[null,null,null,null,null,null,null,null,0,0,0,0]
[null,null,null,null,null,null,null,null,0,0,0,0]
[null,null,null,null,null,null,null,null,0,0,0,0]
[null,null,null,null,null,null,null,null,0,0,0,0]
[null,null,null,null,null,null,null,null,0,0,0,0]
[null,null,null,null,null,null,null,null,0,0,{"$f":"SUM(F3310:G3310)","v":0},0]
[null,null,null,null,null,null,null,null,0,0,0,0]
[null,null,null,null,null,null,null,null,0,0,0,0]
[null,null,null,null,null,null,null,null,0,0,0,0]
[null,null,null,null,null,null,null,null,0,0,0,0]
[null,null,null,null,null,null,null,null,0,0,0,0]
[null,null,null,null,null,null,null,null,0,0,0,0]
[null,null,null,null,null,null,null,null,0,0,0,0]
[null,null,null,null,null,null,null,null,0,0,0,0]
[null,null,null,null,null,null,null,null,0,0,0,0]
[null,null,null,null,null,null,null,null,0,0,0,0]
[null,null,null,null,null,null,null,null,0,0,0,0]
[null,null,null,null,null,null,null,null,0,0,0,0]
[null,null,null,null,null,null,null,null,0,0,0,0]
[null,null,null,null,null,null,null,null,0,0,0,0]
[null,null,null,null,null,null,null,null,0,0,0,0]
[null,null,null,null,null,null,null,null,0,0,0,0]
[null,null,null,null,null,null,null,null,0,0,0,0]
[null,null,null,null,null,null,null,null,0,0,0,0]
[null,null,null,null,null,null,null,null,0,0,0,0]
[null,null,null,null,null,null,null,null,0,0,0,0]
[null,null,null,null,null,null,null,null,0,0,0,0]
[null,null,null,null,null,null,null,null,0,0,0,0]
[null,null,null,null,null,null,null,null,0,0,0,0]
[null,null,null,null,null,null,null,null,0,0,0,0]
[null,null,null,null,null,null,null,null,0,0,0,0]
[null,null,null,null,null,null,null,null,0,0,0,0]
[null,null,null,null,null,null,null,null,0,0,0,0]
[null,null,null,null,null,null,null,null,0,0,0,0]
[null,null,null,null,null,null,null,null,0,0,0,0]
[null,null,null,null,null,null,null,null,0,0,0,0]
[null,null,null,null,null,null,null,null,0,0,0,0]
[null,null,null,null,null,null,null,null,0,0,0,0]
[null,null,null,null,null,null,null,null,{"$f":"SUM(D3343:E3343)","v":0},{"$f":"SUM(E3343,M3343)","v":0},0,{"$f":"SUM(H3343,I3343,K3343)","v":0}]
[null,null,null,null,null,null,null,null,0,0,0,0]
[null,null,null,null,null,null,null,null,0,0,0,0]
[null,null,null,null,null,null,null,null,0,0,0,0]
[null,null,null,null,null,null,null,null,0,0,0,0]
[null,null,null,null,null,null,null,null,0,0,0,0]
[null,null,null,null,null,null,null,null,0,{"$f":"SUM(E3349,M3349)","v":0},0,0]

{"sheet":"BGAD1","index":4,"n_rows":209,"n_cols":12,"rows_kept":209,"cut":false,"hidden":false,"merged":[[0,0,0,11],[7,7,7,11],[7,5,7,6],[2,0,2,1],[4,0,4,1],[3,0,3,1],[7,3,7,4],[2,2,2,3],[3,2,3,3],[4,2,4,3],[6,3,6,11]]}
["Déclaration profesionelle de la MLNU"]
[]
["Année de récolte :",null,"2021-2022"]
["Unité d'aménagement :",null,{"$f":"Sommaire!$C$4","v":0}]
["No. Du BGAd :"]
[]
[null,null,null,"Répartition des volumes"]
[null,null,null,"MLNU-RG",null,"MLNU-ND Qualité «U»",null,"MLNU Déclarée"]
["Code Essence","Nom essence","No. Client","Superficies traitées «V»","Superficies non traitées non justifiées «W»","Ententes\nOM MLNU","Entente allègement copeaux","MLNU-ND\nQualité \"X\"","MLNU-RG","MLNU-ND\nQualité \"W\"","MLNU-ND\nQualité \"U\"","Total du Client"]
["010","Épinette (autre que Norvège)",null,null,null,null,null,null,{"$f":"SUM(D10:E10)","v":0},{"$f":"E10","v":0},{"$f":"SUM(F10:G10)","v":0},{"$f":"SUM(H10,I10,K10)","v":0}]
["014","Épinette de Norvège",null,null,null,null,null,null,{"$f":"SUM(D11:E11)","v":0},{"$f":"E11","v":0},0,{"$f":"SUM(H11,I11,K11)","v":0}]
["030","Mélèze laricin",null,null,null,null,null,null,0,0,0,0]
["043","Pin gris et sylvestre",null,null,null,null,null,null,0,0,0,0]
["060","Sapin baumier",null,null,null,null,null,null,0,0,0,0]
["190","Peuplier (autre que Baumier)",null,null,null,null,null,null,0,0,0,0]
["191","Peuplier baumier",null,null,null,null,null,null,0,0,0,0]
["105","Bouleau blanc ",null,null,null,null,null,null,0,0,0,0]
["104","Bouleau jaune",null,null,null,null,null,null,0,0,0,0]
["132","Érable à sucre",null,null,null,null,null,null,0,0,0,0]
["133","Érable rouge",null,null,null,null,null,null,0,0,0,0]
["135","Érables - Autres ",null,null,null,null,null,null,0,0,0,0]
["120","Chêne ",null,null,null,null,null,null,0,0,0,0]
["141","Frêne d’Amérique (blanc)",null,null,null,null,null,null,0,0,0,0]
["142","Frêne noir",null,null,null,null,null,null,0,0,0,0]
["150","Hêtre",null,null,null,null,null,null,0,0,0,0]
["160","Noyer",null,null,null,null,null,null,0,0,0,0]
["165","Caryer",null,null,null,null,null,null,0,0,0,0]
["170","Orme",null,null,null,null,null,null,0,0,0,0]
["180","Ostryer de Virginie",null,null,null,null,null,null,0,0,0,0]
["110","Cerisier tardif",null,null,null,null,null,null,0,0,0,0]
["210","Tilleul d’Amérique",null,null,null,null,null,null,0,0,0,0]
["041","Pin blanc",null,null,null,null,null,null,0,0,0,0]
["042","Pin rouge",null,null,null,null,null,null,0,0,0,0]
["050","Pruche de l’Est",null,null,null,null,null,null,0,0,0,0]
["080","Thuya occidental",null,null,null,null,null,null,0,0,0,0]
[null,null,null,null,null,null,null,null,0,0,0,0]
[null,null,null,null,null,null,null,null,0,0,0,0]
[null,null,null,null,null,null,null,null,0,0,0,0]
[null,null,null,null,null,null,null,null,0,0,0,0]
[null,null,null,null,null,null,null,null,0,0,0,0]
[null,null,null,null,null,null,null,null,0,0,0,0]
[null,null,null,null,null,null,null,null,0,0,{"$f":"SUM(F42:G42)","v":0},0]
[null,null,null,null,null,null,null,null,0,0,0,0]
[null,null,null,null,null,null,null,null,0,0,0,0]
[null,null,null,null,null,null,null,null,0,0,0,0]
[null,null,null,null,null,null,null,null,0,0,0,0]
[null,null,null,null,null,null,null,null,0,0,0,0]
[null,null,null,null,null,null,null,null,0,0,0,0]
[null,null,null,null,null,null,null,null,0,0,0,0]
[null,null,null,null,null,null,null,null,0,0,0,0]
[null,null,null,null,null,null,null,null,0,0,0,0]
[null,null,null,null,null,null,null,null,0,0,0,0]
[null,null,null,null,null,null,null,null,0,0,0,0]
[null,null,null,null,null,null,null,null,0,0,0,0]
[null,null,null,null,null,null,null,null,0,0,0,0]
[null,null,null,null,null,null,null,null,0,0,0,0]
[null,null,null,null,null,null,null,null,0,0,0,0]
[null,null,null,null,null,null,null,null,0,0,0,0]
[null,null,null,null,null,null,null,null,0,0,0,0]
[null,null,null,null,null,null,null,null,0,0,0,0]
[null,null,null,null,null,null,null,null,0,0,0,0]
[null,null,null,null,null,null,null,null,0,0,0,0]
[null,null,null,null,null,null,null,null,0,0,0,0]
[null,null,null,null,null,null,null,null,0,0,0,0]
[null,null,null,null,null,null,null,null,0,0,0,0]
[null,null,null,null,null,null,null,null,0,0,0,0]
[null,null,null,null,null,null,null,null,0,0,0,0]
[null,null,null,null,null,null,null,null,0,0,0,0]
[null,null,null,null,null,null,null,null,0,0,0,0]
[null,null,null,null,null,null,null,null,0,0,0,0]
[null,null,null,null,null,null,null,null,0,0,0,0]
[null,null,null,null,null,null,null,null,0,0,0,0]
[null,null,null,null,null,null,null,null,0,0,0,0]
[null,null,null,null,null,null,null,null,0,0,{"$f":"SUM(F74:G74)","v":0},0]
[null,null,null,null,null,null,null,null,{"$f":"SUM(D75:E75)","v":0},{"$f":"E75","v":0},0,{"$f":"SUM(H75,I75,K75)","v":0}]
[null,null,null,null,null,null,null,null,0,0,0,0]
[null,null,null,null,null,null,null,null,0,0,0,0]
[null,null,null,null,null,null,null,null,0,0,0,0]
[null,null,null,null,null,null,null,null,0,0,0,0]
[null,null,null,null,null,null,null,null,0,0,0,0]
[null,null,null,null,null,null,null,null,0,0,0,0]
[null,null,null,null,null,null,null,null,0,0,0,0]
[null,null,null,null,null,null,null,null,0,0,0,0]
[null,null,null,null,null,null,null,null,0,0,0,0]
[null,null,null,null,null,null,null,null,0,0,0,0]
[null,null,null,null,null,null,null,null,0,0,0,0]
[null,null,null,null,null,null,null,null,0,0,0,0]
[null,null,null,null,null,null,null,null,0,0,0,0]
[null,null,null,null,null,null,null,null,0,0,0,0]
[null,null,null,null,null,null,null,null,0,0,0,0]
[null,null,null,null,null,null,null,null,0,0,0,0]
[null,null,null,null,null,null,null,null,0,0,0,0]
[null,null,null,null,null,null,null,null,0,0,0,0]
[null,null,null,null,null,null,null,null,0,0,0,0]
[null,null,null,null,null,null,null,null,0,0,0,0]
[null,null,null,null,null,null,null,null,0,0,0,0]
[null,null,null,null,null,null,null,null,0,0,0,0]
[null,null,null,null,null,null,null,null,0,0,0,0]
[null,null,null,null,null,null,null,null,0,0,0,0]
[null,null,null,null,null,null,null,null,0,0,0,0]
[null,null,null,null,null,null,null,null,0,0,0,0]
[null,null,null,null,null,null,null,null,0,0,0,0]
[null,null,null,null,null,null,null,null,0,0,0,0]
[null,null,null,null,null,null,null,null,0,0,0,0]
[null,null,null,null,null,null,null,null,0,0,0,0]
[null,null,null,null,null,null,null,null,0,0,{"$f":"SUM(F106:G106)","v":0},0]
[null,null,null,null,null,null,null,null,0,0,0,0]
[null,null,null,null,null,null,null,null,0,0,0,0]
[null,null,null,null,null,null,null,null,0,0,0,0]
[null,null,null,null,null,null,null,null,0,0,0,0]
[null,null,null,null,null,null,null,null,0,0,0,0]
[null,null,null,null,null,null,null,null,0,0,0,0]
[null,null,null,null,null,null,null,null,0,0,0,0]
[null,null,null,null,null,null,null,null,0,0,0,0]
[null,null,null,null,null,null,null,null,0,0,0,0]
[null,null,null,null,null,null,null,null,0,0,0,0]
[null,null,null,null,null,null,null,null,0,0,0,0]
[null,null,null,null,null,null,null,null,0,0,0,0]
[null,null,null,null,null,null,null,null,0,0,0,0]
[null,null,null,null,null,null,null,null,0,0,0,0]
[null,null,null,null,null,null,null,null,0,0,0,0]
[null,null,null,null,null,null,null,null,0,0,0,0]
[null,null,null,null,null,null,null,null,0,0,0,0]
[null,null,null,null,null,null,null,null,0,0,0,0]
[null,null,null,null,null,null,null,null,0,0,0,0]
[null,null,null,null,null,null,null,null,0,0,0,0]
[null,null,null,null,null,null,null,null,0,0,0,0]
[null,null,null,null,null,null,null,null,0,0,0,0]
[null,null,null,null,null,null,null,null,0,0,0,0]
[null,null,null,null,null,null,null,null,0,0,0,0]
[null,null,null,null,null,null,null,null,0,0,0,0]
[null,null,null,null,null,null,null,null,0,0,0,0]
[null,null,null,null,null,null,null,null,0,0,0,0]
[null,null,null,null,null,null,null,null,0,0,0,0]
[null,null,null,null,null,null,null,null,0,0,0,0]
[null,null,null,null,null,null,null,null,0,0,0,0]
[null,null,null,null,null,null,null,null,0,0,0,0]
[null,null,null,null,null,null,null,null,0,0,0,0]
[null,null,null,null,null,null,null,null,{"$f":"SUM(D139:E139)","v":0},{"$f":"E139","v":0},0,{"$f":"SUM(H139,I139,K139)","v":0}]
[null,null,null,null,null,null,null,null,0,0,{"$f":"SUM(F140:G140)","v":0},0]
[null,null,null,null,null,null,null,null,0,0,0,0]
[null,null,null,null,null,null,null,null,0,0,0,0]
[null,null,null,null,null,null,null,null,0,0,0,0]
[null,null,null,null,null,null,null,null,0,0,0,0]
[null,null,null,null,null,null,null,null,0,0,0,0]
[null,null,null,null,null,null,null,null,0,0,0,0]
[null,null,null,null,null,null,null,null,0,0,0,0]
[null,null,null,null,null,null,null,null,0,0,0,0]
[null,null,null,null,null,null,null,null,0,0,0,0]
[null,null,null,null,null,null,null,null,0,0,0,0]
[null,null,null,null,null,null,null,null,0,0,0,0]
[null,null,null,null,null,null,null,null,0,0,0,0]
[null,null,null,null,null,null,null,null,0,0,0,0]
[null,null,null,null,null,null,null,null,0,0,0,0]
[null,null,null,null,null,null,null,null,0,0,0,0]
[null,null,null,null,null,null,null,null,0,0,0,0]
[null,null,null,null,null,null,null,null,0,0,0,0]
[null,null,null,null,null,null,null,null,0,0,0,0]
[null,null,null,null,null,null,null,null,0,0,0,0]
[null,null,null,null,null,null,null,null,0,0,0,0]
[null,null,null,null,null,null,null,null,0,0,0,0]
[null,null,null,null,null,null,null,null,0,0,0,0]
[null,null,null,null,null,null,null,null,0,0,0,0]
[null,null,null,null,null,null,null,null,0,0,0,0]
[null,null,null,null,null,null,null,null,0,0,0,0]
[null,null,null,null,null,null,null,null,0,0,0,0]
[null,null,null,null,null,null,null,null,0,0,0,0]
[null,null,null,null,null,null,null,null,0,0,0,0]
[null,null,null,null,null,null,null,null,0,0,0,0]
[null,null,null,null,null,null,null,null,0,0,0,0]
[null,null,null,null,null,null,null,null,0,0,0,0]
[null,null,null,null,null,null,null,null,0,0,0,0]
[null,null,null,null,null,null,null,null,0,0,0,0]
[null,null,null,null,null,null,null,null,0,0,0,0]
[null,null,null,null,null,null,null,null,0,0,0,0]
[null,null,null,null,null,null,null,null,0,0,0,0]
[null,null,null,null,null,null,null,null,0,0,0,0]
[null,null,null,null,null,null,null,null,0,0,0,0]
[null,null,null,null,null,null,null,null,0,0,0,0]
[null,null,null,null,null,null,null,null,0,0,0,0]
[null,null,null,null,null,null,null,null,0,0,0,0]
[null,null,null,null,null,null,null,null,0,0,0,0]
[null,null,null,null,null,null,null,null,0,0,0,0]
[null,null,null,null,null,null,null,null,0,0,0,0]
[null,null,null,null,null,null,null,null,0,0,0,0]
[null,null,null,null,null,null,null,null,0,0,0,0]
[null,null,null,null,null,null,null,null,0,0,0,0]
[null,null,null,null,null,null,null,null,0,0,0,0]
[null,null,null,null,null,null,null,null,0,0,0,0]
[null,null,null,null,null,null,null,null,{"$f":"SUM(D190:E190)","v":0},{"$f":"E190","v":0},{"$f":"SUM(F190:G190)","v":0},0]
[null,null,null,null,null,null,null,null,0,0,0,0]
[null,null,null,null,null,null,null,null,0,0,0,0]
[null,null,null,null,null,null,null,null,0,0,0,0]
[null,null,null,null,null,null,null,null,0,0,0,0]
[null,null,null,null,null,null,null,null,0,0,0,0]
[null,null,null,null,null,null,null,null,0,0,0,0]
[null,null,null,null,null,null,null,null,0,0,0,0]
[null,null,null,null,null,null,null,null,0,0,0,0]
[null,null,null,null,null,null,null,null,0,0,0,0]
[null,null,null,null,null,null,null,null,0,0,0,0]
[null,null,null,null,null,null,null,null,0,0,{"$f":"SUM(F201:G201)","v":0},0]
[null,null,null,null,null,null,null,null,0,0,0,0]
[null,null,null,null,null,null,null,null,{"$f":"SUM(D203:E203)","v":0},{"$f":"E203","v":0},0,{"$f":"SUM(H203,I203,K203)","v":0}]
[null,null,null,null,null,null,null,null,0,0,0,0]
[null,null,null,null,null,null,null,null,0,0,0,0]
[null,null,null,null,null,null,null,null,0,0,0,0]
[null,null,null,null,null,null,null,null,0,0,0,0]
[null,null,null,null,null,null,null,null,0,0,0,0]
[null,null,null,null,null,null,null,null,0,0,0,0]

{"sheet":"BGAD2","index":5,"n_rows":209,"n_cols":12,"rows_kept":209,"cut":false,"hidden":false,"merged":[[0,0,0,11],[7,3,7,4],[2,2,2,3],[3,2,3,3],[4,2,4,3],[7,7,7,11],[7,5,7,6],[2,0,2,1],[3,0,3,1],[4,0,4,1],[6,3,6,11]]}
["Déclaration profesionelle de la MLNU"]
[]
["Année de récolte :",null,"2021-2022"]
["Unité d'aménagement :",null,{"$f":"Sommaire!$C$4","v":0}]
["No. Du BGAd :"]
[]
[null,null,null,"Répartition des volumes"]
[null,null,null,"MLNU-RG",null,"MLNU-ND Qualité «U»",null,"MLNU Déclarée"]
["Code Essence","Nom essence","No. Client","Superficies traitées «V»","Superficies non traitées non justifiées «W»","Ententes\nOM MLNU","Entente allègement copeaux","MLNU-ND\nQualité \"X\"","MLNU-RG","MLNU-ND\nQualité \"W\"","MLNU-ND\nQualité \"U\"","Total du Client"]
["010","Épinette (autre que Norvège)",null,null,null,null,null,null,{"$f":"SUM(D10:E10)","v":0},{"$f":"E10","v":0},{"$f":"SUM(F10:G10)","v":0},{"$f":"SUM(H10,I10,K10)","v":0}]
["014","Épinette de Norvège",null,null,null,null,null,null,{"$f":"SUM(D11:E11)","v":0},{"$f":"E11","v":0},0,{"$f":"SUM(H11,I11,K11)","v":0}]
["030","Mélèze laricin",null,null,null,null,null,null,0,0,0,0]
["043","Pin gris et sylvestre",null,null,null,null,null,null,0,0,0,0]
["060","Sapin baumier",null,null,null,null,null,null,0,0,0,0]
["190","Peuplier (autre que Baumier)",null,null,null,null,null,null,0,0,0,0]
["191","Peuplier baumier",null,null,null,null,null,null,0,0,0,0]
["105","Bouleau blanc ",null,null,null,null,null,null,0,0,0,0]
["104","Bouleau jaune",null,null,null,null,null,null,0,0,0,0]
["132","Érable à sucre",null,null,null,null,null,null,0,0,0,0]
["133","Érable rouge",null,null,null,null,null,null,0,0,0,0]
["135","Érables - Autres ",null,null,null,null,null,null,0,0,0,0]
["120","Chêne ",null,null,null,null,null,null,0,0,0,0]
["141","Frêne d’Amérique (blanc)",null,null,null,null,null,null,0,0,0,0]
["142","Frêne noir",null,null,null,null,null,null,0,0,0,0]
["150","Hêtre",null,null,null,null,null,null,0,0,0,0]
["160","Noyer",null,null,null,null,null,null,0,0,0,0]
["165","Caryer",null,null,null,null,null,null,0,0,0,0]
["170","Orme",null,null,null,null,null,null,0,0,0,0]
["180","Ostryer de Virginie",null,null,null,null,null,null,0,0,0,0]
["110","Cerisier tardif",null,null,null,null,null,null,0,0,0,0]
["210","Tilleul d’Amérique",null,null,null,null,null,null,0,0,0,0]
["041","Pin blanc",null,null,null,null,null,null,0,0,0,0]
["042","Pin rouge",null,null,null,null,null,null,0,0,0,0]
["050","Pruche de l’Est",null,null,null,null,null,null,0,0,0,0]
["080","Thuya occidental",null,null,null,null,null,null,0,0,0,0]
[null,null,null,null,null,null,null,null,0,0,0,0]
[null,null,null,null,null,null,null,null,0,0,0,0]
[null,null,null,null,null,null,null,null,0,0,0,0]
[null,null,null,null,null,null,null,null,0,0,0,0]
[null,null,null,null,null,null,null,null,0,0,0,0]
[null,null,null,null,null,null,null,null,0,0,0,0]
[null,null,null,null,null,null,null,null,0,0,{"$f":"SUM(F42:G42)","v":0},0]
[null,null,null,null,null,null,null,null,0,0,0,0]
[null,null,null,null,null,null,null,null,0,0,0,0]
[null,null,null,null,null,null,null,null,0,0,0,0]
[null,null,null,null,null,null,null,null,0,0,0,0]
[null,null,null,null,null,null,null,null,0,0,0,0]
[null,null,null,null,null,null,null,null,0,0,0,0]
[null,null,null,null,null,null,null,null,0,0,0,0]
[null,null,null,null,null,null,null,null,0,0,0,0]
[null,null,null,null,null,null,null,null,0,0,0,0]
[null,null,null,null,null,null,null,null,0,0,0,0]
[null,null,null,null,null,null,null,null,0,0,0,0]
[null,null,null,null,null,null,null,null,0,0,0,0]
[null,null,null,null,null,null,null,null,0,0,0,0]
[null,null,null,null,null,null,null,null,0,0,0,0]
[null,null,null,null,null,null,null,null,0,0,0,0]
[null,null,null,null,null,null,null,null,0,0,0,0]
[null,null,null,null,null,null,null,null,0,0,0,0]
[null,null,null,null,null,null,null,null,0,0,0,0]
[null,null,null,null,null,null,null,null,0,0,0,0]
[null,null,null,null,null,null,null,null,0,0,0,0]
[null,null,null,null,null,null,null,null,0,0,0,0]
[null,null,null,null,null,null,null,null,0,0,0,0]
[null,null,null,null,null,null,null,null,0,0,0,0]
[null,null,null,null,null,null,null,null,0,0,0,0]
[null,null,null,null,null,null,null,null,0,0,0,0]
[null,null,null,null,null,null,null,null,0,0,0,0]
[null,null,null,null,null,null,null,null,0,0,0,0]
[null,null,null,null,null,null,null,null,0,0,0,0]
[null,null,null,null,null,null,null,null,0,0,0,0]
[null,null,null,null,null,null,null,null,0,0,0,0]
[null,null,null,null,null,null,null,null,0,0,0,0]
[null,null,null,null,null,null,null,null,0,0,{"$f":"SUM(F74:G74)","v":0},0]
[null,null,null,null,null,null,null,null,{"$f":"SUM(D75:E75)","v":0},{"$f":"E75","v":0},0,{"$f":"SUM(H75,I75,K75)","v":0}]
[null,null,null,null,null,null,null,null,0,0,0,0]
[null,null,null,null,null,null,null,null,0,0,0,0]
[null,null,null,null,null,null,null,null,0,0,0,0]
[null,null,null,null,null,null,null,null,0,0,0,0]
[null,null,null,null,null,null,null,null,0,0,0,0]
[null,null,null,null,null,null,null,null,0,0,0,0]
[null,null,null,null,null,null,null,null,0,0,0,0]
[null,null,null,null,null,null,null,null,0,0,0,0]
[null,null,null,null,null,null,null,null,0,0,0,0]
[null,null,null,null,null,null,null,null,0,0,0,0]
[null,null,null,null,null,null,null,null,0,0,0,0]
[null,null,null,null,null,null,null,null,0,0,0,0]
[null,null,null,null,null,null,null,null,0,0,0,0]
[null,null,null,null,null,null,null,null,0,0,0,0]
[null,null,null,null,null,null,null,null,0,0,0,0]
[null,null,null,null,null,null,null,null,0,0,0,0]
[null,null,null,null,null,null,null,null,0,0,0,0]
[null,null,null,null,null,null,null,null,0,0,0,0]
[null,null,null,null,null,null,null,null,0,0,0,0]
[null,null,null,null,null,null,null,null,0,0,0,0]
[null,null,null,null,null,null,null,null,0,0,0,0]
[null,null,null,null,null,null,null,null,0,0,0,0]
[null,null,null,null,null,null,null,null,0,0,0,0]
[null,null,null,null,null,null,null,null,0,0,0,0]
[null,null,null,null,null,null,null,null,0,0,0,0]
[null,null,null,null,null,null,null,null,0,0,0,0]
[null,null,null,null,null,null,null,null,0,0,0,0]
[null,null,null,null,null,null,null,null,0,0,0,0]
[null,null,null,null,null,null,null,null,0,0,0,0]
[null,null,null,null,null,null,null,null,0,0,0,0]
[null,null,null,null,null,null,null,null,0,0,{"$f":"SUM(F106:G106)","v":0},0]
[null,null,null,null,null,null,null,null,0,0,0,0]
[null,null,null,null,null,null,null,null,0,0,0,0]
[null,null,null,null,null,null,null,null,0,0,0,0]
[null,null,null,null,null,null,null,null,0,0,0,0]
[null,null,null,null,null,null,null,null,0,0,0,0]
[null,null,null,null,null,null,null,null,0,0,0,0]
[null,null,null,null,null,null,null,null,0,0,0,0]
[null,null,null,null,null,null,null,null,0,0,0,0]
[null,null,null,null,null,null,null,null,0,0,0,0]
[null,null,null,null,null,null,null,null,0,0,0,0]
[null,null,null,null,null,null,null,null,0,0,0,0]
[null,null,null,null,null,null,null,null,0,0,0,0]
[null,null,null,null,null,null,null,null,0,0,0,0]
[null,null,null,null,null,null,null,null,0,0,0,0]
[null,null,null,null,null,null,null,null,0,0,0,0]
[null,null,null,null,null,null,null,null,0,0,0,0]
[null,null,null,null,null,null,null,null,0,0,0,0]
[null,null,null,null,null,null,null,null,0,0,0,0]
[null,null,null,null,null,null,null,null,0,0,0,0]
[null,null,null,null,null,null,null,null,0,0,0,0]
[null,null,null,null,null,null,null,null,0,0,0,0]
[null,null,null,null,null,null,null,null,0,0,0,0]
[null,null,null,null,null,null,null,null,0,0,0,0]
[null,null,null,null,null,null,null,null,0,0,0,0]
[null,null,null,null,null,null,null,null,0,0,0,0]
[null,null,null,null,null,null,null,null,0,0,0,0]
[null,null,null,null,null,null,null,null,0,0,0,0]
[null,null,null,null,null,null,null,null,0,0,0,0]
[null,null,null,null,null,null,null,null,0,0,0,0]
[null,null,null,null,null,null,null,null,0,0,0,0]
[null,null,null,null,null,null,null,null,0,0,0,0]
[null,null,null,null,null,null,null,null,0,0,0,0]
[null,null,null,null,null,null,null,null,{"$f":"SUM(D139:E139)","v":0},{"$f":"E139","v":0},0,{"$f":"SUM(H139,I139,K139)","v":0}]
[null,null,null,null,null,null,null,null,0,0,{"$f":"SUM(F140:G140)","v":0},0]
[null,null,null,null,null,null,null,null,0,0,0,0]
[null,null,null,null,null,null,null,null,0,0,0,0]
[null,null,null,null,null,null,null,null,0,0,0,0]
[null,null,null,null,null,null,null,null,0,0,0,0]
[null,null,null,null,null,null,null,null,0,0,0,0]
[null,null,null,null,null,null,null,null,0,0,0,0]
[null,null,null,null,null,null,null,null,0,0,0,0]
[null,null,null,null,null,null,null,null,0,0,0,0]
[null,null,null,null,null,null,null,null,0,0,0,0]
[null,null,null,null,null,null,null,null,0,0,0,0]
[null,null,null,null,null,null,null,null,0,0,0,0]
[null,null,null,null,null,null,null,null,0,0,0,0]
[null,null,null,null,null,null,null,null,0,0,0,0]
[null,null,null,null,null,null,null,null,0,0,0,0]
[null,null,null,null,null,null,null,null,0,0,0,0]
[null,null,null,null,null,null,null,null,0,0,0,0]
[null,null,null,null,null,null,null,null,0,0,0,0]
[null,null,null,null,null,null,null,null,0,0,0,0]
[null,null,null,null,null,null,null,null,0,0,0,0]
[null,null,null,null,null,null,null,null,0,0,0,0]
[null,null,null,null,null,null,null,null,0,0,0,0]
[null,null,null,null,null,null,null,null,0,0,0,0]
[null,null,null,null,null,null,null,null,0,0,0,0]
[null,null,null,null,null,null,null,null,0,0,0,0]
[null,null,null,null,null,null,null,null,0,0,0,0]
[null,null,null,null,null,null,null,null,0,0,0,0]
[null,null,null,null,null,null,null,null,0,0,0,0]
[null,null,null,null,null,null,null,null,0,0,0,0]
[null,null,null,null,null,null,null,null,0,0,0,0]
[null,null,null,null,null,null,null,null,0,0,0,0]
[null,null,null,null,null,null,null,null,0,0,0,0]
[null,null,null,null,null,null,null,null,0,0,0,0]
[null,null,null,null,null,null,null,null,0,0,0,0]
[null,null,null,null,null,null,null,null,0,0,0,0]
[null,null,null,null,null,null,null,null,0,0,0,0]
[null,null,null,null,null,null,null,null,0,0,0,0]
[null,null,null,null,null,null,null,null,0,0,0,0]
[null,null,null,null,null,null,null,null,0,0,0,0]
[null,null,null,null,null,null,null,null,0,0,0,0]
[null,null,null,null,null,null,null,null,0,0,0,0]
[null,null,null,null,null,null,null,null,0,0,0,0]
[null,null,null,null,null,null,null,null,0,0,0,0]
[null,null,null,null,null,null,null,null,0,0,0,0]
[null,null,null,null,null,null,null,null,0,0,0,0]
[null,null,null,null,null,null,null,null,0,0,0,0]
[null,null,null,null,null,null,null,null,0,0,0,0]
[null,null,null,null,null,null,null,null,0,0,0,0]
[null,null,null,null,null,null,null,null,0,0,0,0]
[null,null,null,null,null,null,null,null,0,0,0,0]
[null,null,null,null,null,null,null,null,0,0,0,0]
[null,null,null,null,null,null,null,null,0,0,0,0]
[null,null,null,null,null,null,null,null,0,0,0,0]
[null,null,null,null,null,null,null,null,0,0,0,0]
[null,null,null,null,null,null,null,null,0,0,0,0]
[null,null,null,null,null,null,null,null,0,0,0,0]
[null,null,null,null,null,null,null,null,0,0,0,0]
[null,null,null,null,null,null,null,null,0,0,0,0]
[null,null,null,null,null,null,null,null,0,0,0,0]
[null,null,null,null,null,null,null,null,0,0,0,0]
[null,null,null,null,null,null,null,null,0,0,0,0]
[null,null,null,null,null,null,null,null,0,0,0,0]
[null,null,null,null,null,null,null,null,0,0,0,0]
[null,null,null,null,null,null,null,null,{"$f":"SUM(D203:E203)","v":0},{"$f":"E203","v":0},0,{"$f":"SUM(H203,I203,K203)","v":0}]
[null,null,null,null,null,null,null,null,0,0,{"$f":"SUM(F204:G204)","v":0},0]
[null,null,null,null,null,null,null,null,0,0,0,0]
[null,null,null,null,null,null,null,null,0,0,0,0]
[null,null,null,null,null,null,null,null,0,0,0,0]
[null,null,null,null,null,null,null,null,0,0,0,0]
[null,null,null,null,null,null,null,null,0,0,0,0]

{"sheet":"BGAD3","index":6,"n_rows":209,"n_cols":12,"rows_kept":209,"cut":false,"hidden":false,"merged":[[0,0,0,11],[7,3,7,4],[2,2,2,3],[3,2,3,3],[4,2,4,3],[7,7,7,11],[7,5,7,6],[2,0,2,1],[3,0,3,1],[4,0,4,1],[6,3,6,11]]}
["Déclaration profesionelle de la MLNU"]
[]
["Année de récolte :",null,"2021-2022"]
["Unité d'aménagement :",null,{"$f":"Sommaire!$C$4","v":0}]
["No. Du BGAd :"]
[]
[null,null,null,"Répartition des volumes"]
[null,null,null,"MLNU-RG",null,"MLNU-ND Qualité «U»",null,"MLNU Déclarée"]
["Code Essence","Nom essence","No. Client","Superficies traitées «V»","Superficies non traitées non justifiées «W»","Ententes\nOM MLNU","Entente allègement copeaux","MLNU-ND\nQualité \"X\"","MLNU-RG","MLNU-ND\nQualité \"W\"","MLNU-ND\nQualité \"U\"","Total du Client"]
["010","Épinette (autre que Norvège)",null,null,null,null,null,null,{"$f":"SUM(D10:E10)","v":0},{"$f":"E10","v":0},{"$f":"SUM(F10:G10)","v":0},{"$f":"SUM(H10,I10,K10)","v":0}]
["014","Épinette de Norvège",null,null,null,null,null,null,{"$f":"SUM(D11:E11)","v":0},{"$f":"E11","v":0},0,{"$f":"SUM(H11,I11,K11)","v":0}]
["030","Mélèze laricin",null,null,null,null,null,null,0,0,0,0]
["043","Pin gris et sylvestre",null,null,null,null,null,null,0,0,0,0]
["060","Sapin baumier",null,null,null,null,null,null,0,0,0,0]
["190","Peuplier (autre que Baumier)",null,null,null,null,null,null,0,0,0,0]
["191","Peuplier baumier",null,null,null,null,null,null,0,0,0,0]
["105","Bouleau blanc ",null,null,null,null,null,null,0,0,0,0]
["104","Bouleau jaune",null,null,null,null,null,null,0,0,0,0]
["132","Érable à sucre",null,null,null,null,null,null,0,0,0,0]
["133","Érable rouge",null,null,null,null,null,null,0,0,0,0]
["135","Érables - Autres ",null,null,null,null,null,null,0,0,0,0]
["120","Chêne ",null,null,null,null,null,null,0,0,0,0]
["141","Frêne d’Amérique (blanc)",null,null,null,null,null,null,0,0,0,0]
["142","Frêne noir",null,null,null,null,null,null,0,0,0,0]
["150","Hêtre",null,null,null,null,null,null,0,0,0,0]
["160","Noyer",null,null,null,null,null,null,0,0,0,0]
["165","Caryer",null,null,null,null,null,null,0,0,0,0]
["170","Orme",null,null,null,null,null,null,0,0,0,0]
["180","Ostryer de Virginie",null,null,null,null,null,null,0,0,0,0]
["110","Cerisier tardif",null,null,null,null,null,null,0,0,0,0]
["210","Tilleul d’Amérique",null,null,null,null,null,null,0,0,0,0]
["041","Pin blanc",null,null,null,null,null,null,0,0,0,0]
["042","Pin rouge",null,null,null,null,null,null,0,0,0,0]
["050","Pruche de l’Est",null,null,null,null,null,null,0,0,0,0]
["080","Thuya occidental",null,null,null,null,null,null,0,0,0,0]
[null,null,null,null,null,null,null,null,0,0,0,0]
[null,null,null,null,null,null,null,null,0,0,0,0]
[null,null,null,null,null,null,null,null,0,0,0,0]
[null,null,null,null,null,null,null,null,0,0,0,0]
[null,null,null,null,null,null,null,null,0,0,0,0]
[null,null,null,null,null,null,null,null,0,0,0,0]
[null,null,null,null,null,null,null,null,0,0,{"$f":"SUM(F42:G42)","v":0},0]
[null,null,null,null,null,null,null,null,0,0,0,0]
[null,null,null,null,null,null,null,null,0,0,0,0]
[null,null,null,null,null,null,null,null,0,0,0,0]
[null,null,null,null,null,null,null,null,0,0,0,0]
[null,null,null,null,null,null,null,null,0,0,0,0]
[null,null,null,null,null,null,null,null,0,0,0,0]
[null,null,null,null,null,null,null,null,0,0,0,0]
[null,null,null,null,null,null,null,null,0,0,0,0]
[null,null,null,null,null,null,null,null,0,0,0,0]
[null,null,null,null,null,null,null,null,0,0,0,0]
[null,null,null,null,null,null,null,null,0,0,0,0]
[null,null,null,null,null,null,null,null,0,0,0,0]
[null,null,null,null,null,null,null,null,0,0,0,0]
[null,null,null,null,null,null,null,null,0,0,0,0]
[null,null,null,null,null,null,null,null,0,0,0,0]
[null,null,null,null,null,null,null,null,0,0,0,0]
[null,null,null,null,null,null,null,null,0,0,0,0]
[null,null,null,null,null,null,null,null,0,0,0,0]
[null,null,null,null,null,null,null,null,0,0,0,0]
[null,null,null,null,null,null,null,null,0,0,0,0]
[null,null,null,null,null,null,null,null,0,0,0,0]
[null,null,null,null,null,null,null,null,0,0,0,0]
[null,null,null,null,null,null,null,null,0,0,0,0]
[null,null,null,null,null,null,null,null,0,0,0,0]
[null,null,null,null,null,null,null,null,0,0,0,0]
[null,null,null,null,null,null,null,null,0,0,0,0]
[null,null,null,null,null,null,null,null,0,0,0,0]
[null,null,null,null,null,null,null,null,0,0,0,0]
[null,null,null,null,null,null,null,null,0,0,0,0]
[null,null,null,null,null,null,null,null,0,0,0,0]
[null,null,null,null,null,null,null,null,0,0,0,0]
[null,null,null,null,null,null,null,null,0,0,{"$f":"SUM(F74:G74)","v":0},0]
[null,null,null,null,null,null,null,null,{"$f":"SUM(D75:E75)","v":0},{"$f":"E75","v":0},0,{"$f":"SUM(H75,I75,K75)","v":0}]
[null,null,null,null,null,null,null,null,0,0,0,0]
[null,null,null,null,null,null,null,null,0,0,0,0]
[null,null,null,null,null,null,null,null,0,0,0,0]
[null,null,null,null,null,null,null,null,0,0,0,0]
[null,null,null,null,null,null,null,null,0,0,0,0]
[null,null,null,null,null,null,null,null,0,0,0,0]
[null,null,null,null,null,null,null,null,0,0,0,0]
[null,null,null,null,null,null,null,null,0,0,0,0]
[null,null,null,null,null,null,null,null,0,0,0,0]
[null,null,null,null,null,null,null,null,0,0,0,0]
[null,null,null,null,null,null,null,null,0,0,0,0]
[null,null,null,null,null,null,null,null,0,0,0,0]
[null,null,null,null,null,null,null,null,0,0,0,0]
[null,null,null,null,null,null,null,null,0,0,0,0]
[null,null,null,null,null,null,null,null,0,0,0,0]
[null,null,null,null,null,null,null,null,0,0,0,0]
[null,null,null,null,null,null,null,null,0,0,0,0]
[null,null,null,null,null,null,null,null,0,0,0,0]
[null,null,null,null,null,null,null,null,0,0,0,0]
[null,null,null,null,null,null,null,null,0,0,0,0]
[null,null,null,null,null,null,null,null,0,0,0,0]
[null,null,null,null,null,null,null,null,0,0,0,0]
[null,null,null,null,null,null,null,null,0,0,0,0]
[null,null,null,null,null,null,null,null,0,0,0,0]
[null,null,null,null,null,null,null,null,0,0,0,0]
[null,null,null,null,null,null,null,null,0,0,0,0]
[null,null,null,null,null,null,null,null,0,0,0,0]
[null,null,null,null,null,null,null,null,0,0,0,0]
[null,null,null,null,null,null,null,null,0,0,0,0]
[null,null,null,null,null,null,null,null,0,0,0,0]
[null,null,null,null,null,null,null,null,0,0,{"$f":"SUM(F106:G106)","v":0},0]
[null,null,null,null,null,null,null,null,0,0,0,0]
[null,null,null,null,null,null,null,null,0,0,0,0]
[null,null,null,null,null,null,null,null,0,0,0,0]
[null,null,null,null,null,null,null,null,0,0,0,0]
[null,null,null,null,null,null,null,null,0,0,0,0]
[null,null,null,null,null,null,null,null,0,0,0,0]
[null,null,null,null,null,null,null,null,0,0,0,0]
[null,null,null,null,null,null,null,null,0,0,0,0]
[null,null,null,null,null,null,null,null,0,0,0,0]
[null,null,null,null,null,null,null,null,0,0,0,0]
[null,null,null,null,null,null,null,null,0,0,0,0]
[null,null,null,null,null,null,null,null,0,0,0,0]
[null,null,null,null,null,null,null,null,0,0,0,0]
[null,null,null,null,null,null,null,null,0,0,0,0]
[null,null,null,null,null,null,null,null,0,0,0,0]
[null,null,null,null,null,null,null,null,0,0,0,0]
[null,null,null,null,null,null,null,null,0,0,0,0]
[null,null,null,null,null,null,null,null,0,0,0,0]
[null,null,null,null,null,null,null,null,0,0,0,0]
[null,null,null,null,null,null,null,null,0,0,0,0]
[null,null,null,null,null,null,null,null,0,0,0,0]
[null,null,null,null,null,null,null,null,0,0,0,0]
[null,null,null,null,null,null,null,null,0,0,0,0]
[null,null,null,null,null,null,null,null,0,0,0,0]
[null,null,null,null,null,null,null,null,0,0,0,0]
[null,null,null,null,null,null,null,null,0,0,0,0]
[null,null,null,null,null,null,null,null,0,0,0,0]
[null,null,null,null,null,null,null,null,0,0,0,0]
[null,null,null,null,null,null,null,null,0,0,0,0]
[null,null,null,null,null,null,null,null,0,0,0,0]
[null,null,null,null,null,null,null,null,0,0,0,0]
[null,null,null,null,null,null,null,null,0,0,0,0]
[null,null,null,null,null,null,null,null,{"$f":"SUM(D139:E139)","v":0},{"$f":"E139","v":0},0,{"$f":"SUM(H139,I139,K139)","v":0}]
[null,null,null,null,null,null,null,null,0,0,{"$f":"SUM(F140:G140)","v":0},0]
[null,null,null,null,null,null,null,null,0,0,0,0]
[null,null,null,null,null,null,null,null,0,0,0,0]
[null,null,null,null,null,null,null,null,0,0,0,0]
[null,null,null,null,null,null,null,null,0,0,0,0]
[null,null,null,null,null,null,null,null,0,0,0,0]
[null,null,null,null,null,null,null,null,0,0,0,0]
[null,null,null,null,null,null,null,null,0,0,0,0]
[null,null,null,null,null,null,null,null,0,0,0,0]
[null,null,null,null,null,null,null,null,0,0,0,0]
[null,null,null,null,null,null,null,null,0,0,0,0]
[null,null,null,null,null,null,null,null,0,0,0,0]
[null,null,null,null,null,null,null,null,0,0,0,0]
[null,null,null,null,null,null,null,null,0,0,0,0]
[null,null,null,null,null,null,null,null,0,0,0,0]
[null,null,null,null,null,null,null,null,0,0,0,0]
[null,null,null,null,null,null,null,null,0,0,0,0]
[null,null,null,null,null,null,null,null,0,0,0,0]
[null,null,null,null,null,null,null,null,0,0,0,0]
[null,null,null,null,null,null,null,null,0,0,0,0]
[null,null,null,null,null,null,null,null,0,0,0,0]
[null,null,null,null,null,null,null,null,0,0,0,0]
[null,null,null,null,null,null,null,null,0,0,0,0]
[null,null,null,null,null,null,null,null,0,0,0,0]
[null,null,null,null,null,null,null,null,0,0,0,0]
[null,null,null,null,null,null,null,null,0,0,0,0]
[null,null,null,null,null,null,null,null,0,0,0,0]
[null,null,null,null,null,null,null,null,0,0,0,0]
[null,null,null,null,null,null,null,null,0,0,0,0]
[null,null,null,null,null,null,null,null,0,0,0,0]
[null,null,null,null,null,null,null,null,0,0,0,0]
[null,null,null,null,null,null,null,null,0,0,0,0]
[null,null,null,null,null,null,null,null,0,0,0,0]
[null,null,null,null,null,null,null,null,0,0,0,0]
[null,null,null,null,null,null,null,null,0,0,0,0]
[null,null,null,null,null,null,null,null,0,0,0,0]
[null,null,null,null,null,null,null,null,0,0,0,0]
[null,null,null,null,null,null,null,null,0,0,0,0]
[null,null,null,null,null,null,null,null,0,0,0,0]
[null,null,null,null,null,null,null,null,0,0,0,0]
[null,null,null,null,null,null,null,null,0,0,0,0]
[null,null,null,null,null,null,null,null,0,0,0,0]
[null,null,null,null,null,null,null,null,0,0,0,0]
[null,null,null,null,null,null,null,null,0,0,0,0]
[null,null,null,null,null,null,null,null,0,0,0,0]
[null,null,null,null,null,null,null,null,0,0,0,0]
[null,null,null,null,null,null,null,null,0,0,0,0]
[null,null,null,null,null,null,null,null,0,0,0,0]
[null,null,null,null,null,null,null,null,0,0,0,0]
[null,null,null,null,null,null,null,null,0,0,0,0]
[null,null,null,null,null,null,null,null,0,0,0,0]
[null,null,null,null,null,null,null,null,0,0,0,0]
[null,null,null,null,null,null,null,null,0,0,0,0]
[null,null,null,null,null,null,null,null,0,0,0,0]
[null,null,null,null,null,null,null,null,0,0,0,0]
[null,null,null,null,null,null,null,null,0,0,0,0]
[null,null,null,null,null,null,null,null,0,0,0,0]
[null,null,null,null,null,null,null,null,0,0,0,0]
[null,null,null,null,null,null,null,null,0,0,0,0]
[null,null,null,null,null,null,null,null,0,0,0,0]
[null,null,null,null,null,null,null,null,0,0,0,0]
[null,null,null,null,null,null,null,null,0,0,0,0]
[null,null,null,null,null,null,null,null,0,0,0,0]
[null,null,null,null,null,null,null,null,{"$f":"SUM(D203:E203)","v":0},{"$f":"E203","v":0},0,{"$f":"SUM(H203,I203,K203)","v":0}]
[null,null,null,null,null,null,null,null,0,0,{"$f":"SUM(F204:G204)","v":0},0]
[null,null,null,null,null,null,null,null,0,0,0,0]
[null,null,null,null,null,null,null,null,0,0,0,0]
[null,null,null,null,null,null,null,null,0,0,0,0]
[null,null,null,null,null,null,null,null,0,0,0,0]
[null,null,null,null,null,null,null,null,0,0,0,0]

{"sheet":"BGAD4","index":7,"n_rows":209,"n_cols":12,"rows_kept":209,"cut":false,"hidden":false,"merged":[[0,0,0,11],[7,3,7,4],[2,2,2,3],[3,2,3,3],[4,2,4,3],[7,7,7,11],[7,5,7,6],[2,0,2,1],[3,0,3,1],[4,0,4,1],[6,3,6,11]]}
["Déclaration profesionelle de la MLNU"]
[]
["Année de récolte :",null,"2021-2022"]
["Unité d'aménagement :",null,{"$f":"Sommaire!$C$4","v":0}]
["No. Du BGAd :"]
[]
[null,null,null,"Répartition des volumes"]
[null,null,null,"MLNU-RG",null,"MLNU-ND Qualité «U»",null,"MLNU Déclarée"]
["Code Essence","Nom essence","No. Client","Superficies traitées «V»","Superficies non traitées non justifiées «W»","Ententes\nOM MLNU","Entente allègement copeaux","MLNU-ND\nQualité \"X\"","MLNU-RG","MLNU-ND\nQualité \"W\"","MLNU-ND\nQualité \"U\"","Total du Client"]
["010","Épinette (autre que Norvège)",null,null,null,null,null,null,{"$f":"SUM(D10:E10)","v":0},{"$f":"E10","v":0},{"$f":"SUM(F10:G10)","v":0},{"$f":"SUM(H10,I10,K10)","v":0}]
["014","Épinette de Norvège",null,null,null,null,null,null,{"$f":"SUM(D11:E11)","v":0},{"$f":"E11","v":0},0,{"$f":"SUM(H11,I11,K11)","v":0}]
["030","Mélèze laricin",null,null,null,null,null,null,0,0,0,0]
["043","Pin gris et sylvestre",null,null,null,null,null,null,0,0,0,0]
["060","Sapin baumier",null,null,null,null,null,null,0,0,0,0]
["190","Peuplier (autre que Baumier)",null,null,null,null,null,null,0,0,0,0]
["191","Peuplier baumier",null,null,null,null,null,null,0,0,0,0]
["105","Bouleau blanc ",null,null,null,null,null,null,0,0,0,0]
["104","Bouleau jaune",null,null,null,null,null,null,0,0,0,0]
["132","Érable à sucre",null,null,null,null,null,null,0,0,0,0]
["133","Érable rouge",null,null,null,null,null,null,0,0,0,0]
["135","Érables - Autres ",null,null,null,null,null,null,0,0,0,0]
["120","Chêne ",null,null,null,null,null,null,0,0,0,0]
["141","Frêne d’Amérique (blanc)",null,null,null,null,null,null,0,0,0,0]
["142","Frêne noir",null,null,null,null,null,null,0,0,0,0]
["150","Hêtre",null,null,null,null,null,null,0,0,0,0]
["160","Noyer",null,null,null,null,null,null,0,0,0,0]
["165","Caryer",null,null,null,null,null,null,0,0,0,0]
["170","Orme",null,null,null,null,null,null,0,0,0,0]
["180","Ostryer de Virginie",null,null,null,null,null,null,0,0,0,0]
["110","Cerisier tardif",null,null,null,null,null,null,0,0,0,0]
["210","Tilleul d’Amérique",null,null,null,null,null,null,0,0,0,0]
["041","Pin blanc",null,null,null,null,null,null,0,0,0,0]
["042","Pin rouge",null,null,null,null,null,null,0,0,0,0]
["050","Pruche de l’Est",null,null,null,null,null,null,0,0,0,0]
["080","Thuya occidental",null,null,null,null,null,null,0,0,0,0]
[null,null,null,null,null,null,null,null,0,0,0,0]
[null,null,null,null,null,null,null,null,0,0,0,0]
[null,null,null,null,null,null,null,null,0,0,0,0]
[null,null,null,null,null,null,null,null,0,0,0,0]
[null,null,null,null,null,null,null,null,0,0,0,0]
[null,null,null,null,null,null,null,null,0,0,0,0]
[null,null,null,null,null,null,null,null,0,0,{"$f":"SUM(F42:G42)","v":0},0]
[null,null,null,null,null,null,null,null,0,0,0,0]
[null,null,null,null,null,null,null,null,0,0,0,0]
[null,null,null,null,null,null,null,null,0,0,0,0]
[null,null,null,null,null,null,null,null,0,0,0,0]
[null,null,null,null,null,null,null,null,0,0,0,0]
[null,null,null,null,null,null,null,null,0,0,0,0]
[null,null,null,null,null,null,null,null,0,0,0,0]
[null,null,null,null,null,null,null,null,0,0,0,0]
[null,null,null,null,null,null,null,null,0,0,0,0]
[null,null,null,null,null,null,null,null,0,0,0,0]
[null,null,null,null,null,null,null,null,0,0,0,0]
[null,null,null,null,null,null,null,null,0,0,0,0]
[null,null,null,null,null,null,null,null,0,0,0,0]
[null,null,null,null,null,null,null,null,0,0,0,0]
[null,null,null,null,null,null,null,null,0,0,0,0]
[null,null,null,null,null,null,null,null,0,0,0,0]
[null,null,null,null,null,null,null,null,0,0,0,0]
[null,null,null,null,null,null,null,null,0,0,0,0]
[null,null,null,null,null,null,null,null,0,0,0,0]
[null,null,null,null,null,null,null,null,0,0,0,0]
[null,null,null,null,null,null,null,null,0,0,0,0]
[null,null,null,null,null,null,null,null,0,0,0,0]
[null,null,null,null,null,null,null,null,0,0,0,0]
[null,null,null,null,null,null,null,null,0,0,0,0]
[null,null,null,null,null,null,null,null,0,0,0,0]
[null,null,null,null,null,null,null,null,0,0,0,0]
[null,null,null,null,null,null,null,null,0,0,0,0]
[null,null,null,null,null,null,null,null,0,0,0,0]
[null,null,null,null,null,null,null,null,0,0,0,0]
[null,null,null,null,null,null,null,null,0,0,0,0]
[null,null,null,null,null,null,null,null,0,0,0,0]
[null,null,null,null,null,null,null,null,0,0,{"$f":"SUM(F74:G74)","v":0},0]
[null,null,null,null,null,null,null,null,{"$f":"SUM(D75:E75)","v":0},{"$f":"E75","v":0},0,{"$f":"SUM(H75,I75,K75)","v":0}]
[null,null,null,null,null,null,null,null,0,0,0,0]
[null,null,null,null,null,null,null,null,0,0,0,0]
[null,null,null,null,null,null,null,null,0,0,0,0]
[null,null,null,null,null,null,null,null,0,0,0,0]
[null,null,null,null,null,null,null,null,0,0,0,0]
[null,null,null,null,null,null,null,null,0,0,0,0]
[null,null,null,null,null,null,null,null,0,0,0,0]
[null,null,null,null,null,null,null,null,0,0,0,0]
[null,null,null,null,null,null,null,null,0,0,0,0]
[null,null,null,null,null,null,null,null,0,0,0,0]
[null,null,null,null,null,null,null,null,0,0,0,0]
[null,null,null,null,null,null,null,null,0,0,0,0]
[null,null,null,null,null,null,null,null,0,0,0,0]
[null,null,null,null,null,null,null,null,0,0,0,0]
[null,null,null,null,null,null,null,null,0,0,0,0]
[null,null,null,null,null,null,null,null,0,0,0,0]
[null,null,null,null,null,null,null,null,0,0,0,0]
[null,null,null,null,null,null,null,null,0,0,0,0]
[null,null,null,null,null,null,null,null,0,0,0,0]
[null,null,null,null,null,null,null,null,0,0,0,0]
[null,null,null,null,null,null,null,null,0,0,0,0]
[null,null,null,null,null,null,null,null,0,0,0,0]
[null,null,null,null,null,null,null,null,0,0,0,0]
[null,null,null,null,null,null,null,null,0,0,0,0]
[null,null,null,null,null,null,null,null,0,0,0,0]
[null,null,null,null,null,null,null,null,0,0,0,0]
[null,null,null,null,null,null,null,null,0,0,0,0]
[null,null,null,null,null,null,null,null,0,0,0,0]
[null,null,null,null,null,null,null,null,0,0,0,0]
[null,null,null,null,null,null,null,null,0,0,0,0]
[null,null,null,null,null,null,null,null,0,0,{"$f":"SUM(F106:G106)","v":0},0]
[null,null,null,null,null,null,null,null,0,0,0,0]
[null,null,null,null,null,null,null,null,0,0,0,0]
[null,null,null,null,null,null,null,null,0,0,0,0]
[null,null,null,null,null,null,null,null,0,0,0,0]
[null,null,null,null,null,null,null,null,0,0,0,0]
[null,null,null,null,null,null,null,null,0,0,0,0]
[null,null,null,null,null,null,null,null,0,0,0,0]
[null,null,null,null,null,null,null,null,0,0,0,0]
[null,null,null,null,null,null,null,null,0,0,0,0]
[null,null,null,null,null,null,null,null,0,0,0,0]
[null,null,null,null,null,null,null,null,0,0,0,0]
[null,null,null,null,null,null,null,null,0,0,0,0]
[null,null,null,null,null,null,null,null,0,0,0,0]
[null,null,null,null,null,null,null,null,0,0,0,0]
[null,null,null,null,null,null,null,null,0,0,0,0]
[null,null,null,null,null,null,null,null,0,0,0,0]
[null,null,null,null,null,null,null,null,0,0,0,0]
[null,null,null,null,null,null,null,null,0,0,0,0]
[null,null,null,null,null,null,null,null,0,0,0,0]
[null,null,null,null,null,null,null,null,0,0,0,0]
[null,null,null,null,null,null,null,null,0,0,0,0]
[null,null,null,null,null,null,null,null,0,0,0,0]
[null,null,null,null,null,null,null,null,0,0,0,0]
[null,null,null,null,null,null,null,null,0,0,0,0]
[null,null,null,null,null,null,null,null,0,0,0,0]
[null,null,null,null,null,null,null,null,0,0,0,0]
[null,null,null,null,null,null,null,null,0,0,0,0]
[null,null,null,null,null,null,null,null,0,0,0,0]
[null,null,null,null,null,null,null,null,0,0,0,0]
[null,null,null,null,null,null,null,null,0,0,0,0]
[null,null,null,null,null,null,null,null,0,0,0,0]
[null,null,null,null,null,null,null,null,0,0,0,0]
[null,null,null,null,null,null,null,null,{"$f":"SUM(D139:E139)","v":0},{"$f":"E139","v":0},0,{"$f":"SUM(H139,I139,K139)","v":0}]
[null,null,null,null,null,null,null,null,0,0,{"$f":"SUM(F140:G140)","v":0},0]
[null,null,null,null,null,null,null,null,0,0,0,0]
[null,null,null,null,null,null,null,null,0,0,0,0]
[null,null,null,null,null,null,null,null,0,0,0,0]
[null,null,null,null,null,null,null,null,0,0,0,0]
[null,null,null,null,null,null,null,null,0,0,0,0]
[null,null,null,null,null,null,null,null,0,0,0,0]
[null,null,null,null,null,null,null,null,0,0,0,0]
[null,null,null,null,null,null,null,null,0,0,0,0]
[null,null,null,null,null,null,null,null,0,0,0,0]
[null,null,null,null,null,null,null,null,0,0,0,0]
[null,null,null,null,null,null,null,null,0,0,0,0]
[null,null,null,null,null,null,null,null,0,0,0,0]
[null,null,null,null,null,null,null,null,0,0,0,0]
[null,null,null,null,null,null,null,null,0,0,0,0]
[null,null,null,null,null,null,null,null,0,0,0,0]
[null,null,null,null,null,null,null,null,0,0,0,0]
[null,null,null,null,null,null,null,null,0,0,0,0]
[null,null,null,null,null,null,null,null,0,0,0,0]
[null,null,null,null,null,null,null,null,0,0,0,0]
[null,null,null,null,null,null,null,null,0,0,0,0]
[null,null,null,null,null,null,null,null,0,0,0,0]
[null,null,null,null,null,null,null,null,0,0,0,0]
[null,null,null,null,null,null,null,null,0,0,0,0]
[null,null,null,null,null,null,null,null,0,0,0,0]
[null,null,null,null,null,null,null,null,0,0,0,0]
[null,null,null,null,null,null,null,null,0,0,0,0]
[null,null,null,null,null,null,null,null,0,0,0,0]
[null,null,null,null,null,null,null,null,0,0,0,0]
[null,null,null,null,null,null,null,null,0,0,0,0]
[null,null,null,null,null,null,null,null,0,0,0,0]
[null,null,null,null,null,null,null,null,0,0,0,0]
[null,null,null,null,null,null,null,null,0,0,0,0]
[null,null,null,null,null,null,null,null,0,0,0,0]
[null,null,null,null,null,null,null,null,0,0,0,0]
[null,null,null,null,null,null,null,null,0,0,0,0]
[null,null,null,null,null,null,null,null,0,0,0,0]
[null,null,null,null,null,null,null,null,0,0,0,0]
[null,null,null,null,null,null,null,null,0,0,0,0]
[null,null,null,null,null,null,null,null,0,0,0,0]
[null,null,null,null,null,null,null,null,0,0,0,0]
[null,null,null,null,null,null,null,null,0,0,0,0]
[null,null,null,null,null,null,null,null,0,0,0,0]
[null,null,null,null,null,null,null,null,0,0,0,0]
[null,null,null,null,null,null,null,null,0,0,0,0]
[null,null,null,null,null,null,null,null,0,0,0,0]
[null,null,null,null,null,null,null,null,0,0,0,0]
[null,null,null,null,null,null,null,null,0,0,0,0]
[null,null,null,null,null,null,null,null,0,0,0,0]
[null,null,null,null,null,null,null,null,0,0,0,0]
[null,null,null,null,null,null,null,null,0,0,0,0]
[null,null,null,null,null,null,null,null,0,0,0,0]
[null,null,null,null,null,null,null,null,0,0,0,0]
[null,null,null,null,null,null,null,null,0,0,0,0]
[null,null,null,null,null,null,null,null,0,0,0,0]
[null,null,null,null,null,null,null,null,0,0,0,0]
[null,null,null,null,null,null,null,null,0,0,0,0]
[null,null,null,null,null,null,null,null,0,0,0,0]
[null,null,null,null,null,null,null,null,0,0,0,0]
[null,null,null,null,null,null,null,null,0,0,0,0]
[null,null,null,null,null,null,null,null,0,0,0,0]
[null,null,null,null,null,null,null,null,0,0,0,0]
[null,null,null,null,null,null,null,null,0,0,0,0]
[null,null,null,null,null,null,null,null,{"$f":"SUM(D203:E203)","v":0},{"$f":"E203","v":0},0,{"$f":"SUM(H203,I203,K203)","v":0}]
[null,null,null,null,null,null,null,null,0,0,{"$f":"SUM(F204:G204)","v":0},0]
[null,null,null,null,null,null,null,null,0,0,0,0]
[null,null,null,null,null,null,null,null,0,0,0,0]
[null,null,null,null,null,null,null,null,0,0,0,0]
[null,null,null,null,null,null,null,null,0,0,0,0]
[null,null,null,null,null,null,null,null,0,0,0,0]

{"sheet":"BGAD5","index":8,"n_rows":209,"n_cols":12,"rows_kept":209,"cut":false,"hidden":false,"merged":[[0,0,0,11],[7,3,7,4],[2,2,2,3],[3,2,3,3],[4,2,4,3],[7,7,7,11],[7,5,7,6],[2,0,2,1],[3,0,3,1],[4,0,4,1],[6,3,6,11]]}
["Déclaration profesionelle de la MLNU"]
[]
["Année de récolte :",null,"2021-2022"]
["Unité d'aménagement :",null,{"$f":"Sommaire!$C$4","v":0}]
["No. Du BGAd :"]
[]
[null,null,null,"Répartition des volumes"]
[null,null,null,"MLNU-RG",null,"MLNU-ND Qualité «U»",null,"MLNU Déclarée"]
["Code Essence","Nom essence","No. Client","Superficies traitées «V»","Superficies non traitées non justifiées «W»","Ententes\nOM MLNU","Entente allègement copeaux","MLNU-ND\nQualité \"X\"","MLNU-RG","MLNU-ND\nQualité \"W\"","MLNU-ND\nQualité \"U\"","Total du Client"]
["010","Épinette (autre que Norvège)",null,null,null,null,null,null,{"$f":"SUM(D10:E10)","v":0},{"$f":"E10","v":0},{"$f":"SUM(F10:G10)","v":0},{"$f":"SUM(H10,I10,K10)","v":0}]
["014","Épinette de Norvège",null,null,null,null,null,null,{"$f":"SUM(D11:E11)","v":0},{"$f":"E11","v":0},0,{"$f":"SUM(H11,I11,K11)","v":0}]
["030","Mélèze laricin",null,null,null,null,null,null,0,0,0,0]
["043","Pin gris et sylvestre",null,null,null,null,null,null,0,0,0,0]
["060","Sapin baumier",null,null,null,null,null,null,0,0,0,0]
["190","Peuplier (autre que Baumier)",null,null,null,null,null,null,0,0,0,0]
["191","Peuplier baumier",null,null,null,null,null,null,0,0,0,0]
["105","Bouleau blanc ",null,null,null,null,null,null,0,0,0,0]
["104","Bouleau jaune",null,null,null,null,null,null,0,0,0,0]
["132","Érable à sucre",null,null,null,null,null,null,0,0,0,0]
["133","Érable rouge",null,null,null,null,null,null,0,0,0,0]
["135","Érables - Autres ",null,null,null,null,null,null,0,0,0,0]
["120","Chêne ",null,null,null,null,null,null,0,0,0,0]
["141","Frêne d’Amérique (blanc)",null,null,null,null,null,null,0,0,0,0]
["142","Frêne noir",null,null,null,null,null,null,0,0,0,0]
["150","Hêtre",null,null,null,null,null,null,0,0,0,0]
["160","Noyer",null,null,null,null,null,null,0,0,0,0]
["165","Caryer",null,null,null,null,null,null,0,0,0,0]
["170","Orme",null,null,null,null,null,null,0,0,0,0]
["180","Ostryer de Virginie",null,null,null,null,null,null,0,0,0,0]
["110","Cerisier tardif",null,null,null,null,null,null,0,0,0,0]
["210","Tilleul d’Amérique",null,null,null,null,null,null,0,0,0,0]
["041","Pin blanc",null,null,null,null,null,null,0,0,0,0]
["042","Pin rouge",null,null,null,null,null,null,0,0,0,0]
["050","Pruche de l’Est",null,null,null,null,null,null,0,0,0,0]
["080","Thuya occidental",null,null,null,null,null,null,0,0,0,0]
[null,null,null,null,null,null,null,null,0,0,0,0]
[null,null,null,null,null,null,null,null,0,0,0,0]
[null,null,null,null,null,null,null,null,0,0,0,0]
[null,null,null,null,null,null,null,null,0,0,0,0]
[null,null,null,null,null,null,null,null,0,0,0,0]
[null,null,null,null,null,null,null,null,0,0,0,0]
[null,null,null,null,null,null,null,null,0,0,{"$f":"SUM(F42:G42)","v":0},0]
[null,null,null,null,null,null,null,null,0,0,0,0]
[null,null,null,null,null,null,null,null,0,0,0,0]
[null,null,null,null,null,null,null,null,0,0,0,0]
[null,null,null,null,null,null,null,null,0,0,0,0]
[null,null,null,null,null,null,null,null,0,0,0,0]
[null,null,null,null,null,null,null,null,0,0,0,0]
[null,null,null,null,null,null,null,null,0,0,0,0]
[null,null,null,null,null,null,null,null,0,0,0,0]
[null,null,null,null,null,null,null,null,0,0,0,0]
[null,null,null,null,null,null,null,null,0,0,0,0]
[null,null,null,null,null,null,null,null,0,0,0,0]
[null,null,null,null,null,null,null,null,0,0,0,0]
[null,null,null,null,null,null,null,null,0,0,0,0]
[null,null,null,null,null,null,null,null,0,0,0,0]
[null,null,null,null,null,null,null,null,0,0,0,0]
[null,null,null,null,null,null,null,null,0,0,0,0]
[null,null,null,null,null,null,null,null,0,0,0,0]
[null,null,null,null,null,null,null,null,0,0,0,0]
[null,null,null,null,null,null,null,null,0,0,0,0]
[null,null,null,null,null,null,null,null,0,0,0,0]
[null,null,null,null,null,null,null,null,0,0,0,0]
[null,null,null,null,null,null,null,null,0,0,0,0]
[null,null,null,null,null,null,null,null,0,0,0,0]
[null,null,null,null,null,null,null,null,0,0,0,0]
[null,null,null,null,null,null,null,null,0,0,0,0]
[null,null,null,null,null,null,null,null,0,0,0,0]
[null,null,null,null,null,null,null,null,0,0,0,0]
[null,null,null,null,null,null,null,null,0,0,0,0]
[null,null,null,null,null,null,null,null,0,0,0,0]
[null,null,null,null,null,null,null,null,0,0,0,0]
[null,null,null,null,null,null,null,null,0,0,0,0]
[null,null,null,null,null,null,null,null,0,0,{"$f":"SUM(F74:G74)","v":0},0]
[null,null,null,null,null,null,null,null,{"$f":"SUM(D75:E75)","v":0},{"$f":"E75","v":0},0,{"$f":"SUM(H75,I75,K75)","v":0}]
[null,null,null,null,null,null,null,null,0,0,0,0]
[null,null,null,null,null,null,null,null,0,0,0,0]
[null,null,null,null,null,null,null,null,0,0,0,0]
[null,null,null,null,null,null,null,null,0,0,0,0]
[null,null,null,null,null,null,null,null,0,0,0,0]
[null,null,null,null,null,null,null,null,0,0,0,0]
[null,null,null,null,null,null,null,null,0,0,0,0]
[null,null,null,null,null,null,null,null,0,0,0,0]
[null,null,null,null,null,null,null,null,0,0,0,0]
[null,null,null,null,null,null,null,null,0,0,0,0]
[null,null,null,null,null,null,null,null,0,0,0,0]
[null,null,null,null,null,null,null,null,0,0,0,0]
[null,null,null,null,null,null,null,null,0,0,0,0]
[null,null,null,null,null,null,null,null,0,0,0,0]
[null,null,null,null,null,null,null,null,0,0,0,0]
[null,null,null,null,null,null,null,null,0,0,0,0]
[null,null,null,null,null,null,null,null,0,0,0,0]
[null,null,null,null,null,null,null,null,0,0,0,0]
[null,null,null,null,null,null,null,null,0,0,0,0]
[null,null,null,null,null,null,null,null,0,0,0,0]
[null,null,null,null,null,null,null,null,0,0,0,0]
[null,null,null,null,null,null,null,null,0,0,0,0]
[null,null,null,null,null,null,null,null,0,0,0,0]
[null,null,null,null,null,null,null,null,0,0,0,0]
[null,null,null,null,null,null,null,null,0,0,0,0]
[null,null,null,null,null,null,null,null,0,0,0,0]
[null,null,null,null,null,null,null,null,0,0,0,0]
[null,null,null,null,null,null,null,null,0,0,0,0]
[null,null,null,null,null,null,null,null,0,0,0,0]
[null,null,null,null,null,null,null,null,0,0,0,0]
[null,null,null,null,null,null,null,null,0,0,{"$f":"SUM(F106:G106)","v":0},0]
[null,null,null,null,null,null,null,null,0,0,0,0]
[null,null,null,null,null,null,null,null,0,0,0,0]
[null,null,null,null,null,null,null,null,0,0,0,0]
[null,null,null,null,null,null,null,null,0,0,0,0]
[null,null,null,null,null,null,null,null,0,0,0,0]
[null,null,null,null,null,null,null,null,0,0,0,0]
[null,null,null,null,null,null,null,null,0,0,0,0]
[null,null,null,null,null,null,null,null,0,0,0,0]
[null,null,null,null,null,null,null,null,0,0,0,0]
[null,null,null,null,null,null,null,null,0,0,0,0]
[null,null,null,null,null,null,null,null,0,0,0,0]
[null,null,null,null,null,null,null,null,0,0,0,0]
[null,null,null,null,null,null,null,null,0,0,0,0]
[null,null,null,null,null,null,null,null,0,0,0,0]
[null,null,null,null,null,null,null,null,0,0,0,0]
[null,null,null,null,null,null,null,null,0,0,0,0]
[null,null,null,null,null,null,null,null,0,0,0,0]
[null,null,null,null,null,null,null,null,0,0,0,0]
[null,null,null,null,null,null,null,null,0,0,0,0]
[null,null,null,null,null,null,null,null,0,0,0,0]
[null,null,null,null,null,null,null,null,0,0,0,0]
[null,null,null,null,null,null,null,null,0,0,0,0]
[null,null,null,null,null,null,null,null,0,0,0,0]
[null,null,null,null,null,null,null,null,0,0,0,0]
[null,null,null,null,null,null,null,null,0,0,0,0]
[null,null,null,null,null,null,null,null,0,0,0,0]
[null,null,null,null,null,null,null,null,0,0,0,0]
[null,null,null,null,null,null,null,null,0,0,0,0]
[null,null,null,null,null,null,null,null,0,0,0,0]
[null,null,null,null,null,null,null,null,0,0,0,0]
[null,null,null,null,null,null,null,null,0,0,0,0]
[null,null,null,null,null,null,null,null,0,0,0,0]
[null,null,null,null,null,null,null,null,{"$f":"SUM(D139:E139)","v":0},{"$f":"E139","v":0},0,{"$f":"SUM(H139,I139,K139)","v":0}]
[null,null,null,null,null,null,null,null,0,0,{"$f":"SUM(F140:G140)","v":0},0]
[null,null,null,null,null,null,null,null,0,0,0,0]
[null,null,null,null,null,null,null,null,0,0,0,0]
[null,null,null,null,null,null,null,null,0,0,0,0]
[null,null,null,null,null,null,null,null,0,0,0,0]
[null,null,null,null,null,null,null,null,0,0,0,0]
[null,null,null,null,null,null,null,null,0,0,0,0]
[null,null,null,null,null,null,null,null,0,0,0,0]
[null,null,null,null,null,null,null,null,0,0,0,0]
[null,null,null,null,null,null,null,null,0,0,0,0]
[null,null,null,null,null,null,null,null,0,0,0,0]
[null,null,null,null,null,null,null,null,0,0,0,0]
[null,null,null,null,null,null,null,null,0,0,0,0]
[null,null,null,null,null,null,null,null,0,0,0,0]
[null,null,null,null,null,null,null,null,0,0,0,0]
[null,null,null,null,null,null,null,null,0,0,0,0]
[null,null,null,null,null,null,null,null,0,0,0,0]
[null,null,null,null,null,null,null,null,0,0,0,0]
[null,null,null,null,null,null,null,null,0,0,0,0]
[null,null,null,null,null,null,null,null,0,0,0,0]
[null,null,null,null,null,null,null,null,0,0,0,0]
[null,null,null,null,null,null,null,null,0,0,0,0]
[null,null,null,null,null,null,null,null,0,0,0,0]
[null,null,null,null,null,null,null,null,0,0,0,0]
[null,null,null,null,null,null,null,null,0,0,0,0]
[null,null,null,null,null,null,null,null,0,0,0,0]
[null,null,null,null,null,null,null,null,0,0,0,0]
[null,null,null,null,null,null,null,null,0,0,0,0]
[null,null,null,null,null,null,null,null,0,0,0,0]
[null,null,null,null,null,null,null,null,0,0,0,0]
[null,null,null,null,null,null,null,null,0,0,0,0]
[null,null,null,null,null,null,null,null,0,0,0,0]
[null,null,null,null,null,null,null,null,0,0,0,0]
[null,null,null,null,null,null,null,null,0,0,0,0]
[null,null,null,null,null,null,null,null,0,0,0,0]
[null,null,null,null,null,null,null,null,0,0,0,0]
[null,null,null,null,null,null,null,null,0,0,0,0]
[null,null,null,null,null,null,null,null,0,0,0,0]
[null,null,null,null,null,null,null,null,0,0,0,0]
[null,null,null,null,null,null,null,null,0,0,0,0]
[null,null,null,null,null,null,null,null,0,0,0,0]
[null,null,null,null,null,null,null,null,0,0,0,0]
[null,null,null,null,null,null,null,null,0,0,0,0]
[null,null,null,null,null,null,null,null,0,0,0,0]
[null,null,null,null,null,null,null,null,0,0,0,0]
[null,null,null,null,null,null,null,null,0,0,0,0]
[null,null,null,null,null,null,null,null,0,0,0,0]
[null,null,null,null,null,null,null,null,0,0,0,0]
[null,null,null,null,null,null,null,null,0,0,0,0]
[null,null,null,null,null,null,null,null,0,0,0,0]
[null,null,null,null,null,null,null,null,0,0,0,0]
[null,null,null,null,null,null,null,null,0,0,0,0]
[null,null,null,null,null,null,null,null,0,0,0,0]
[null,null,null,null,null,null,null,null,0,0,0,0]
[null,null,null,null,null,null,null,null,0,0,0,0]
[null,null,null,null,null,null,null,null,0,0,0,0]
[null,null,null,null,null,null,null,null,0,0,0,0]
[null,null,null,null,null,null,null,null,0,0,0,0]
[null,null,null,null,null,null,null,null,0,0,0,0]
[null,null,null,null,null,null,null,null,0,0,0,0]
[null,null,null,null,null,null,null,null,0,0,0,0]
[null,null,null,null,null,null,null,null,0,0,0,0]
[null,null,null,null,null,null,null,null,0,0,0,0]
[null,null,null,null,null,null,null,null,{"$f":"SUM(D203:E203)","v":0},{"$f":"E203","v":0},0,{"$f":"SUM(H203,I203,K203)","v":0}]
[null,null,null,null,null,null,null,null,0,0,{"$f":"SUM(F204:G204)","v":0},0]
[null,null,null,null,null,null,null,null,0,0,0,0]
[null,null,null,null,null,null,null,null,0,0,0,0]
[null,null,null,null,null,null,null,null,0,0,0,0]
[null,null,null,null,null,null,null,null,0,0,0,0]
[null,null,null,null,null,null,null,null,0,0,0,0]

{"sheet":"BGAD6","index":9,"n_rows":209,"n_cols":12,"rows_kept":209,"cut":false,"hidden":false,"merged":[[0,0,0,11],[7,3,7,4],[2,2,2,3],[3,2,3,3],[4,2,4,3],[7,7,7,11],[7,5,7,6],[2,0,2,1],[3,0,3,1],[4,0,4,1],[6,3,6,11]]}
["Déclaration profesionelle de la MLNU"]
[]
["Année de récolte :",null,"2021-2022"]
["Unité d'aménagement :",null,{"$f":"Sommaire!$C$4","v":0}]
["No. Du BGAd :"]
[]
[null,null,null,"Répartition des volumes"]
[null,null,null,"MLNU-RG",null,"MLNU-ND Qualité «U»",null,"MLNU Déclarée"]
["Code Essence","Nom essence","No. Client","Superficies traitées «V»","Superficies non traitées non justifiées «W»","Ententes\nOM MLNU","Entente allègement copeaux","MLNU-ND\nQualité \"X\"","MLNU-RG","MLNU-ND\nQualité \"W\"","MLNU-ND\nQualité \"U\"","Total du Client"]
["010","Épinette (autre que Norvège)",null,null,null,null,null,null,{"$f":"SUM(D10:E10)","v":0},{"$f":"E10","v":0},{"$f":"SUM(F10:G10)","v":0},{"$f":"SUM(H10,I10,K10)","v":0}]
["014","Épinette de Norvège",null,null,null,null,null,null,{"$f":"SUM(D11:E11)","v":0},{"$f":"E11","v":0},0,{"$f":"SUM(H11,I11,K11)","v":0}]
["030","Mélèze laricin",null,null,null,null,null,null,0,0,0,0]
["043","Pin gris et sylvestre",null,null,null,null,null,null,0,0,0,0]
["060","Sapin baumier",null,null,null,null,null,null,0,0,0,0]
["190","Peuplier (autre que Baumier)",null,null,null,null,null,null,0,0,0,0]
["191","Peuplier baumier",null,null,null,null,null,null,0,0,0,0]
["105","Bouleau blanc ",null,null,null,null,null,null,0,0,0,0]
["104","Bouleau jaune",null,null,null,null,null,null,0,0,0,0]
["132","Érable à sucre",null,null,null,null,null,null,0,0,0,0]
["133","Érable rouge",null,null,null,null,null,null,0,0,0,0]
["135","Érables - Autres ",null,null,null,null,null,null,0,0,0,0]
["120","Chêne ",null,null,null,null,null,null,0,0,0,0]
["141","Frêne d’Amérique (blanc)",null,null,null,null,null,null,0,0,0,0]
["142","Frêne noir",null,null,null,null,null,null,0,0,0,0]
["150","Hêtre",null,null,null,null,null,null,0,0,0,0]
["160","Noyer",null,null,null,null,null,null,0,0,0,0]
["165","Caryer",null,null,null,null,null,null,0,0,0,0]
["170","Orme",null,null,null,null,null,null,0,0,0,0]
["180","Ostryer de Virginie",null,null,null,null,null,null,0,0,0,0]
["110","Cerisier tardif",null,null,null,null,null,null,0,0,0,0]
["210","Tilleul d’Amérique",null,null,null,null,null,null,0,0,0,0]
["041","Pin blanc",null,null,null,null,null,null,0,0,0,0]
["042","Pin rouge",null,null,null,null,null,null,0,0,0,0]
["050","Pruche de l’Est",null,null,null,null,null,null,0,0,0,0]
["080","Thuya occidental",null,null,null,null,null,null,0,0,0,0]
[null,null,null,null,null,null,null,null,0,0,0,0]
[null,null,null,null,null,null,null,null,0,0,0,0]
[null,null,null,null,null,null,null,null,0,0,0,0]
[null,null,null,null,null,null,null,null,0,0,0,0]
[null,null,null,null,null,null,null,null,0,0,0,0]
[null,null,null,null,null,null,null,null,0,0,0,0]
[null,null,null,null,null,null,null,null,0,0,{"$f":"SUM(F42:G42)","v":0},0]
[null,null,null,null,null,null,null,null,0,0,0,0]
[null,null,null,null,null,null,null,null,0,0,0,0]
[null,null,null,null,null,null,null,null,0,0,0,0]
[null,null,null,null,null,null,null,null,0,0,0,0]
[null,null,null,null,null,null,null,null,0,0,0,0]
[null,null,null,null,null,null,null,null,0,0,0,0]
[null,null,null,null,null,null,null,null,0,0,0,0]
[null,null,null,null,null,null,null,null,0,0,0,0]
[null,null,null,null,null,null,null,null,0,0,0,0]
[null,null,null,null,null,null,null,null,0,0,0,0]
[null,null,null,null,null,null,null,null,0,0,0,0]
[null,null,null,null,null,null,null,null,0,0,0,0]
[null,null,null,null,null,null,null,null,0,0,0,0]
[null,null,null,null,null,null,null,null,0,0,0,0]
[null,null,null,null,null,null,null,null,0,0,0,0]
[null,null,null,null,null,null,null,null,0,0,0,0]
[null,null,null,null,null,null,null,null,0,0,0,0]
[null,null,null,null,null,null,null,null,0,0,0,0]
[null,null,null,null,null,null,null,null,0,0,0,0]
[null,null,null,null,null,null,null,null,0,0,0,0]
[null,null,null,null,null,null,null,null,0,0,0,0]
[null,null,null,null,null,null,null,null,0,0,0,0]
[null,null,null,null,null,null,null,null,0,0,0,0]
[null,null,null,null,null,null,null,null,0,0,0,0]
[null,null,null,null,null,null,null,null,0,0,0,0]
[null,null,null,null,null,null,null,null,0,0,0,0]
[null,null,null,null,null,null,null,null,0,0,0,0]
[null,null,null,null,null,null,null,null,0,0,0,0]
[null,null,null,null,null,null,null,null,0,0,0,0]
[null,null,null,null,null,null,null,null,0,0,0,0]
[null,null,null,null,null,null,null,null,0,0,0,0]
[null,null,null,null,null,null,null,null,0,0,{"$f":"SUM(F74:G74)","v":0},0]
[null,null,null,null,null,null,null,null,{"$f":"SUM(D75:E75)","v":0},{"$f":"E75","v":0},0,{"$f":"SUM(H75,I75,K75)","v":0}]
[null,null,null,null,null,null,null,null,0,0,0,0]
[null,null,null,null,null,null,null,null,0,0,0,0]
[null,null,null,null,null,null,null,null,0,0,0,0]
[null,null,null,null,null,null,null,null,0,0,0,0]
[null,null,null,null,null,null,null,null,0,0,0,0]
[null,null,null,null,null,null,null,null,0,0,0,0]
[null,null,null,null,null,null,null,null,0,0,0,0]
[null,null,null,null,null,null,null,null,0,0,0,0]
[null,null,null,null,null,null,null,null,0,0,0,0]
[null,null,null,null,null,null,null,null,0,0,0,0]
[null,null,null,null,null,null,null,null,0,0,0,0]
[null,null,null,null,null,null,null,null,0,0,0,0]
[null,null,null,null,null,null,null,null,0,0,0,0]
[null,null,null,null,null,null,null,null,0,0,0,0]
[null,null,null,null,null,null,null,null,0,0,0,0]
[null,null,null,null,null,null,null,null,0,0,0,0]
[null,null,null,null,null,null,null,null,0,0,0,0]
[null,null,null,null,null,null,null,null,0,0,0,0]
[null,null,null,null,null,null,null,null,0,0,0,0]
[null,null,null,null,null,null,null,null,0,0,0,0]
[null,null,null,null,null,null,null,null,0,0,0,0]
[null,null,null,null,null,null,null,null,0,0,0,0]
[null,null,null,null,null,null,null,null,0,0,0,0]
[null,null,null,null,null,null,null,null,0,0,0,0]
[null,null,null,null,null,null,null,null,0,0,0,0]
[null,null,null,null,null,null,null,null,0,0,0,0]
[null,null,null,null,null,null,null,null,0,0,0,0]
[null,null,null,null,null,null,null,null,0,0,0,0]
[null,null,null,null,null,null,null,null,0,0,0,0]
[null,null,null,null,null,null,null,null,0,0,0,0]
[null,null,null,null,null,null,null,null,0,0,{"$f":"SUM(F106:G106)","v":0},0]
[null,null,null,null,null,null,null,null,0,0,0,0]
[null,null,null,null,null,null,null,null,0,0,0,0]
[null,null,null,null,null,null,null,null,0,0,0,0]
[null,null,null,null,null,null,null,null,0,0,0,0]
[null,null,null,null,null,null,null,null,0,0,0,0]
[null,null,null,null,null,null,null,null,0,0,0,0]
[null,null,null,null,null,null,null,null,0,0,0,0]
[null,null,null,null,null,null,null,null,0,0,0,0]
[null,null,null,null,null,null,null,null,0,0,0,0]
[null,null,null,null,null,null,null,null,0,0,0,0]
[null,null,null,null,null,null,null,null,0,0,0,0]
[null,null,null,null,null,null,null,null,0,0,0,0]
[null,null,null,null,null,null,null,null,0,0,0,0]
[null,null,null,null,null,null,null,null,0,0,0,0]
[null,null,null,null,null,null,null,null,0,0,0,0]
[null,null,null,null,null,null,null,null,0,0,0,0]
[null,null,null,null,null,null,null,null,0,0,0,0]
[null,null,null,null,null,null,null,null,0,0,0,0]
[null,null,null,null,null,null,null,null,0,0,0,0]
[null,null,null,null,null,null,null,null,0,0,0,0]
[null,null,null,null,null,null,null,null,0,0,0,0]
[null,null,null,null,null,null,null,null,0,0,0,0]
[null,null,null,null,null,null,null,null,0,0,0,0]
[null,null,null,null,null,null,null,null,0,0,0,0]
[null,null,null,null,null,null,null,null,0,0,0,0]
[null,null,null,null,null,null,null,null,0,0,0,0]
[null,null,null,null,null,null,null,null,0,0,0,0]
[null,null,null,null,null,null,null,null,0,0,0,0]
[null,null,null,null,null,null,null,null,0,0,0,0]
[null,null,null,null,null,null,null,null,0,0,0,0]
[null,null,null,null,null,null,null,null,0,0,0,0]
[null,null,null,null,null,null,null,null,0,0,0,0]
[null,null,null,null,null,null,null,null,{"$f":"SUM(D139:E139)","v":0},{"$f":"E139","v":0},0,{"$f":"SUM(H139,I139,K139)","v":0}]
[null,null,null,null,null,null,null,null,0,0,{"$f":"SUM(F140:G140)","v":0},0]
[null,null,null,null,null,null,null,null,0,0,0,0]
[null,null,null,null,null,null,null,null,0,0,0,0]
[null,null,null,null,null,null,null,null,0,0,0,0]
[null,null,null,null,null,null,null,null,0,0,0,0]
[null,null,null,null,null,null,null,null,0,0,0,0]
[null,null,null,null,null,null,null,null,0,0,0,0]
[null,null,null,null,null,null,null,null,0,0,0,0]
[null,null,null,null,null,null,null,null,0,0,0,0]
[null,null,null,null,null,null,null,null,0,0,0,0]
[null,null,null,null,null,null,null,null,0,0,0,0]
[null,null,null,null,null,null,null,null,0,0,0,0]
[null,null,null,null,null,null,null,null,0,0,0,0]
[null,null,null,null,null,null,null,null,0,0,0,0]
[null,null,null,null,null,null,null,null,0,0,0,0]
[null,null,null,null,null,null,null,null,0,0,0,0]
[null,null,null,null,null,null,null,null,0,0,0,0]
[null,null,null,null,null,null,null,null,0,0,0,0]
[null,null,null,null,null,null,null,null,0,0,0,0]
[null,null,null,null,null,null,null,null,0,0,0,0]
[null,null,null,null,null,null,null,null,0,0,0,0]
[null,null,null,null,null,null,null,null,0,0,0,0]
[null,null,null,null,null,null,null,null,0,0,0,0]
[null,null,null,null,null,null,null,null,0,0,0,0]
[null,null,null,null,null,null,null,null,0,0,0,0]
[null,null,null,null,null,null,null,null,0,0,0,0]
[null,null,null,null,null,null,null,null,0,0,0,0]
[null,null,null,null,null,null,null,null,0,0,0,0]
[null,null,null,null,null,null,null,null,0,0,0,0]
[null,null,null,null,null,null,null,null,0,0,0,0]
[null,null,null,null,null,null,null,null,0,0,0,0]
[null,null,null,null,null,null,null,null,0,0,0,0]
[null,null,null,null,null,null,null,null,0,0,0,0]
[null,null,null,null,null,null,null,null,0,0,0,0]
[null,null,null,null,null,null,null,null,0,0,0,0]
[null,null,null,null,null,null,null,null,0,0,0,0]
[null,null,null,null,null,null,null,null,0,0,0,0]
[null,null,null,null,null,null,null,null,0,0,0,0]
[null,null,null,null,null,null,null,null,0,0,0,0]
[null,null,null,null,null,null,null,null,0,0,0,0]
[null,null,null,null,null,null,null,null,0,0,0,0]
[null,null,null,null,null,null,null,null,0,0,0,0]
[null,null,null,null,null,null,null,null,0,0,0,0]
[null,null,null,null,null,null,null,null,0,0,0,0]
[null,null,null,null,null,null,null,null,0,0,0,0]
[null,null,null,null,null,null,null,null,0,0,0,0]
[null,null,null,null,null,null,null,null,0,0,0,0]
[null,null,null,null,null,null,null,null,0,0,0,0]
[null,null,null,null,null,null,null,null,0,0,0,0]
[null,null,null,null,null,null,null,null,0,0,0,0]
[null,null,null,null,null,null,null,null,0,0,0,0]
[null,null,null,null,null,null,null,null,0,0,0,0]
[null,null,null,null,null,null,null,null,0,0,0,0]
[null,null,null,null,null,null,null,null,0,0,0,0]
[null,null,null,null,null,null,null,null,0,0,0,0]
[null,null,null,null,null,null,null,null,0,0,0,0]
[null,null,null,null,null,null,null,null,0,0,0,0]
[null,null,null,null,null,null,null,null,0,0,0,0]
[null,null,null,null,null,null,null,null,0,0,0,0]
[null,null,null,null,null,null,null,null,0,0,0,0]
[null,null,null,null,null,null,null,null,0,0,0,0]
[null,null,null,null,null,null,null,null,0,0,0,0]
[null,null,null,null,null,null,null,null,0,0,0,0]
[null,null,null,null,null,null,null,null,{"$f":"SUM(D203:E203)","v":0},{"$f":"E203","v":0},0,{"$f":"SUM(H203,I203,K203)","v":0}]
[null,null,null,null,null,null,null,null,0,0,{"$f":"SUM(F204:G204)","v":0},0]
[null,null,null,null,null,null,null,null,0,0,0,0]
[null,null,null,null,null,null,null,null,0,0,0,0]
[null,null,null,null,null,null,null,null,0,0,0,0]
[null,null,null,null,null,null,null,null,0,0,0,0]
[null,null,null,null,null,null,null,null,0,0,0,0]

{"sheet":"BGAD7","index":10,"n_rows":209,"n_cols":12,"rows_kept":209,"cut":false,"hidden":false,"merged":[[0,0,0,11],[7,3,7,4],[2,2,2,3],[3,2,3,3],[4,2,4,3],[7,7,7,11],[7,5,7,6],[2,0,2,1],[3,0,3,1],[4,0,4,1],[6,3,6,11]]}
["Déclaration profesionelle de la MLNU"]
[]
["Année de récolte :",null,"2021-2022"]
["Unité d'aménagement :",null,{"$f":"Sommaire!$C$4","v":0}]
["No. Du BGAd :"]
[]
[null,null,null,"Répartition des volumes"]
[null,null,null,"MLNU-RG",null,"MLNU-ND Qualité «U»",null,"MLNU Déclarée"]
["Code Essence","Nom essence","No. Client","Superficies traitées «V»","Superficies non traitées non justifiées «W»","Ententes\nOM MLNU","Entente allègement copeaux","MLNU-ND\nQualité \"X\"","MLNU-RG","MLNU-ND\nQualité \"W\"","MLNU-ND\nQualité \"U\"","Total du Client"]
["010","Épinette (autre que Norvège)",null,null,null,null,null,null,{"$f":"SUM(D10:E10)","v":0},{"$f":"E10","v":0},{"$f":"SUM(F10:G10)","v":0},{"$f":"SUM(H10,I10,K10)","v":0}]
["014","Épinette de Norvège",null,null,null,null,null,null,{"$f":"SUM(D11:E11)","v":0},{"$f":"E11","v":0},0,{"$f":"SUM(H11,I11,K11)","v":0}]
["030","Mélèze laricin",null,null,null,null,null,null,0,0,0,0]
["043","Pin gris et sylvestre",null,null,null,null,null,null,0,0,0,0]
["060","Sapin baumier",null,null,null,null,null,null,0,0,0,0]
["190","Peuplier (autre que Baumier)",null,null,null,null,null,null,0,0,0,0]
["191","Peuplier baumier",null,null,null,null,null,null,0,0,0,0]
["105","Bouleau blanc ",null,null,null,null,null,null,0,0,0,0]
["104","Bouleau jaune",null,null,null,null,null,null,0,0,0,0]
["132","Érable à sucre",null,null,null,null,null,null,0,0,0,0]
["133","Érable rouge",null,null,null,null,null,null,0,0,0,0]
["135","Érables - Autres ",null,null,null,null,null,null,0,0,0,0]
["120","Chêne ",null,null,null,null,null,null,0,0,0,0]
["141","Frêne d’Amérique (blanc)",null,null,null,null,null,null,0,0,0,0]
["142","Frêne noir",null,null,null,null,null,null,0,0,0,0]
["150","Hêtre",null,null,null,null,null,null,0,0,0,0]
["160","Noyer",null,null,null,null,null,null,0,0,0,0]
["165","Caryer",null,null,null,null,null,null,0,0,0,0]
["170","Orme",null,null,null,null,null,null,0,0,0,0]
["180","Ostryer de Virginie",null,null,null,null,null,null,0,0,0,0]
["110","Cerisier tardif",null,null,null,null,null,null,0,0,0,0]
["210","Tilleul d’Amérique",null,null,null,null,null,null,0,0,0,0]
["041","Pin blanc",null,null,null,null,null,null,0,0,0,0]
["042","Pin rouge",null,null,null,null,null,null,0,0,0,0]
["050","Pruche de l’Est",null,null,null,null,null,null,0,0,0,0]
["080","Thuya occidental",null,null,null,null,null,null,0,0,0,0]
[null,null,null,null,null,null,null,null,0,0,0,0]
[null,null,null,null,null,null,null,null,0,0,0,0]
[null,null,null,null,null,null,null,null,0,0,0,0]
[null,null,null,null,null,null,null,null,0,0,0,0]
[null,null,null,null,null,null,null,null,0,0,0,0]
[null,null,null,null,null,null,null,null,0,0,0,0]
[null,null,null,null,null,null,null,null,0,0,{"$f":"SUM(F42:G42)","v":0},0]
[null,null,null,null,null,null,null,null,0,0,0,0]
[null,null,null,null,null,null,null,null,0,0,0,0]
[null,null,null,null,null,null,null,null,0,0,0,0]
[null,null,null,null,null,null,null,null,0,0,0,0]
[null,null,null,null,null,null,null,null,0,0,0,0]
[null,null,null,null,null,null,null,null,0,0,0,0]
[null,null,null,null,null,null,null,null,0,0,0,0]
[null,null,null,null,null,null,null,null,0,0,0,0]
[null,null,null,null,null,null,null,null,0,0,0,0]
[null,null,null,null,null,null,null,null,0,0,0,0]
[null,null,null,null,null,null,null,null,0,0,0,0]
[null,null,null,null,null,null,null,null,0,0,0,0]
[null,null,null,null,null,null,null,null,0,0,0,0]
[null,null,null,null,null,null,null,null,0,0,0,0]
[null,null,null,null,null,null,null,null,0,0,0,0]
[null,null,null,null,null,null,null,null,0,0,0,0]
[null,null,null,null,null,null,null,null,0,0,0,0]
[null,null,null,null,null,null,null,null,0,0,0,0]
[null,null,null,null,null,null,null,null,0,0,0,0]
[null,null,null,null,null,null,null,null,0,0,0,0]
[null,null,null,null,null,null,null,null,0,0,0,0]
[null,null,null,null,null,null,null,null,0,0,0,0]
[null,null,null,null,null,null,null,null,0,0,0,0]
[null,null,null,null,null,null,null,null,0,0,0,0]
[null,null,null,null,null,null,null,null,0,0,0,0]
[null,null,null,null,null,null,null,null,0,0,0,0]
[null,null,null,null,null,null,null,null,0,0,0,0]
[null,null,null,null,null,null,null,null,0,0,0,0]
[null,null,null,null,null,null,null,null,0,0,0,0]
[null,null,null,null,null,null,null,null,0,0,0,0]
[null,null,null,null,null,null,null,null,0,0,0,0]
[null,null,null,null,null,null,null,null,0,0,{"$f":"SUM(F74:G74)","v":0},0]
[null,null,null,null,null,null,null,null,{"$f":"SUM(D75:E75)","v":0},{"$f":"E75","v":0},0,{"$f":"SUM(H75,I75,K75)","v":0}]
[null,null,null,null,null,null,null,null,0,0,0,0]
[null,null,null,null,null,null,null,null,0,0,0,0]
[null,null,null,null,null,null,null,null,0,0,0,0]
[null,null,null,null,null,null,null,null,0,0,0,0]
[null,null,null,null,null,null,null,null,0,0,0,0]
[null,null,null,null,null,null,null,null,0,0,0,0]
[null,null,null,null,null,null,null,null,0,0,0,0]
[null,null,null,null,null,null,null,null,0,0,0,0]
[null,null,null,null,null,null,null,null,0,0,0,0]
[null,null,null,null,null,null,null,null,0,0,0,0]
[null,null,null,null,null,null,null,null,0,0,0,0]
[null,null,null,null,null,null,null,null,0,0,0,0]
[null,null,null,null,null,null,null,null,0,0,0,0]
[null,null,null,null,null,null,null,null,0,0,0,0]
[null,null,null,null,null,null,null,null,0,0,0,0]
[null,null,null,null,null,null,null,null,0,0,0,0]
[null,null,null,null,null,null,null,null,0,0,0,0]
[null,null,null,null,null,null,null,null,0,0,0,0]
[null,null,null,null,null,null,null,null,0,0,0,0]
[null,null,null,null,null,null,null,null,0,0,0,0]
[null,null,null,null,null,null,null,null,0,0,0,0]
[null,null,null,null,null,null,null,null,0,0,0,0]
[null,null,null,null,null,null,null,null,0,0,0,0]
[null,null,null,null,null,null,null,null,0,0,0,0]
[null,null,null,null,null,null,null,null,0,0,0,0]
[null,null,null,null,null,null,null,null,0,0,0,0]
[null,null,null,null,null,null,null,null,0,0,0,0]
[null,null,null,null,null,null,null,null,0,0,0,0]
[null,null,null,null,null,null,null,null,0,0,0,0]
[null,null,null,null,null,null,null,null,0,0,0,0]
[null,null,null,null,null,null,null,null,0,0,{"$f":"SUM(F106:G106)","v":0},0]
[null,null,null,null,null,null,null,null,0,0,0,0]
[null,null,null,null,null,null,null,null,0,0,0,0]
[null,null,null,null,null,null,null,null,0,0,0,0]
[null,null,null,null,null,null,null,null,0,0,0,0]
[null,null,null,null,null,null,null,null,0,0,0,0]
[null,null,null,null,null,null,null,null,0,0,0,0]
[null,null,null,null,null,null,null,null,0,0,0,0]
[null,null,null,null,null,null,null,null,0,0,0,0]
[null,null,null,null,null,null,null,null,0,0,0,0]
[null,null,null,null,null,null,null,null,0,0,0,0]
[null,null,null,null,null,null,null,null,0,0,0,0]
[null,null,null,null,null,null,null,null,0,0,0,0]
[null,null,null,null,null,null,null,null,0,0,0,0]
[null,null,null,null,null,null,null,null,0,0,0,0]
[null,null,null,null,null,null,null,null,0,0,0,0]
[null,null,null,null,null,null,null,null,0,0,0,0]
[null,null,null,null,null,null,null,null,0,0,0,0]
[null,null,null,null,null,null,null,null,0,0,0,0]
[null,null,null,null,null,null,null,null,0,0,0,0]
[null,null,null,null,null,null,null,null,0,0,0,0]
[null,null,null,null,null,null,null,null,0,0,0,0]
[null,null,null,null,null,null,null,null,0,0,0,0]
[null,null,null,null,null,null,null,null,0,0,0,0]
[null,null,null,null,null,null,null,null,0,0,0,0]
[null,null,null,null,null,null,null,null,0,0,0,0]
[null,null,null,null,null,null,null,null,0,0,0,0]
[null,null,null,null,null,null,null,null,0,0,0,0]
[null,null,null,null,null,null,null,null,0,0,0,0]
[null,null,null,null,null,null,null,null,0,0,0,0]
[null,null,null,null,null,null,null,null,0,0,0,0]
[null,null,null,null,null,null,null,null,0,0,0,0]
[null,null,null,null,null,null,null,null,0,0,0,0]
[null,null,null,null,null,null,null,null,{"$f":"SUM(D139:E139)","v":0},{"$f":"E139","v":0},0,{"$f":"SUM(H139,I139,K139)","v":0}]
[null,null,null,null,null,null,null,null,0,0,{"$f":"SUM(F140:G140)","v":0},0]
[null,null,null,null,null,null,null,null,0,0,0,0]
[null,null,null,null,null,null,null,null,0,0,0,0]
[null,null,null,null,null,null,null,null,0,0,0,0]
[null,null,null,null,null,null,null,null,0,0,0,0]
[null,null,null,null,null,null,null,null,0,0,0,0]
[null,null,null,null,null,null,null,null,0,0,0,0]
[null,null,null,null,null,null,null,null,0,0,0,0]
[null,null,null,null,null,null,null,null,0,0,0,0]
[null,null,null,null,null,null,null,null,0,0,0,0]
[null,null,null,null,null,null,null,null,0,0,0,0]
[null,null,null,null,null,null,null,null,0,0,0,0]
[null,null,null,null,null,null,null,null,0,0,0,0]
[null,null,null,null,null,null,null,null,0,0,0,0]
[null,null,null,null,null,null,null,null,0,0,0,0]
[null,null,null,null,null,null,null,null,0,0,0,0]
[null,null,null,null,null,null,null,null,0,0,0,0]
[null,null,null,null,null,null,null,null,0,0,0,0]
[null,null,null,null,null,null,null,null,0,0,0,0]
[null,null,null,null,null,null,null,null,0,0,0,0]
[null,null,null,null,null,null,null,null,0,0,0,0]
[null,null,null,null,null,null,null,null,0,0,0,0]
[null,null,null,null,null,null,null,null,0,0,0,0]
[null,null,null,null,null,null,null,null,0,0,0,0]
[null,null,null,null,null,null,null,null,0,0,0,0]
[null,null,null,null,null,null,null,null,0,0,0,0]
[null,null,null,null,null,null,null,null,0,0,0,0]
[null,null,null,null,null,null,null,null,0,0,0,0]
[null,null,null,null,null,null,null,null,0,0,0,0]
[null,null,null,null,null,null,null,null,0,0,0,0]
[null,null,null,null,null,null,null,null,0,0,0,0]
[null,null,null,null,null,null,null,null,0,0,0,0]
[null,null,null,null,null,null,null,null,0,0,0,0]
[null,null,null,null,null,null,null,null,0,0,0,0]
[null,null,null,null,null,null,null,null,0,0,0,0]
[null,null,null,null,null,null,null,null,0,0,0,0]
[null,null,null,null,null,null,null,null,0,0,0,0]
[null,null,null,null,null,null,null,null,0,0,0,0]
[null,null,null,null,null,null,null,null,0,0,0,0]
[null,null,null,null,null,null,null,null,0,0,0,0]
[null,null,null,null,null,null,null,null,0,0,0,0]
[null,null,null,null,null,null,null,null,0,0,0,0]
[null,null,null,null,null,null,null,null,0,0,0,0]
[null,null,null,null,null,null,null,null,0,0,0,0]
[null,null,null,null,null,null,null,null,0,0,0,0]
[null,null,null,null,null,null,null,null,0,0,0,0]
[null,null,null,null,null,null,null,null,0,0,0,0]
[null,null,null,null,null,null,null,null,0,0,0,0]
[null,null,null,null,null,null,null,null,0,0,0,0]
[null,null,null,null,null,null,null,null,0,0,0,0]
[null,null,null,null,null,null,null,null,0,0,0,0]
[null,null,null,null,null,null,null,null,0,0,0,0]
[null,null,null,null,null,null,null,null,0,0,0,0]
[null,null,null,null,null,null,null,null,0,0,0,0]
[null,null,null,null,null,null,null,null,0,0,0,0]
[null,null,null,null,null,null,null,null,0,0,0,0]
[null,null,null,null,null,null,null,null,0,0,0,0]
[null,null,null,null,null,null,null,null,0,0,0,0]
[null,null,null,null,null,null,null,null,0,0,0,0]
[null,null,null,null,null,null,null,null,0,0,0,0]
[null,null,null,null,null,null,null,null,0,0,0,0]
[null,null,null,null,null,null,null,null,0,0,0,0]
[null,null,null,null,null,null,null,null,0,0,0,0]
[null,null,null,null,null,null,null,null,{"$f":"SUM(D203:E203)","v":0},{"$f":"E203","v":0},0,{"$f":"SUM(H203,I203,K203)","v":0}]
[null,null,null,null,null,null,null,null,0,0,{"$f":"SUM(F204:G204)","v":0},0]
[null,null,null,null,null,null,null,null,0,0,0,0]
[null,null,null,null,null,null,null,null,0,0,0,0]
[null,null,null,null,null,null,null,null,0,0,0,0]
[null,null,null,null,null,null,null,null,0,0,0,0]
[null,null,null,null,null,null,null,null,0,0,0,0]

{"sheet":"BGAD9","index":11,"n_rows":209,"n_cols":12,"rows_kept":209,"cut":false,"hidden":false,"merged":[[0,0,0,11],[7,3,7,4],[2,2,2,3],[3,2,3,3],[4,2,4,3],[7,7,7,11],[7,5,7,6],[2,0,2,1],[3,0,3,1],[4,0,4,1],[6,3,6,11]]}
["Déclaration profesionelle de la MLNU"]
[]
["Année de récolte :",null,"2021-2022"]
["Unité d'aménagement :",null,{"$f":"Sommaire!$C$4","v":0}]
["No. Du BGAd :"]
[]
[null,null,null,"Répartition des volumes"]
[null,null,null,"MLNU-RG",null,"MLNU-ND Qualité «U»",null,"MLNU Déclarée"]
["Code Essence","Nom essence","No. Client","Superficies traitées «V»","Superficies non traitées non justifiées «W»","Ententes\nOM MLNU","Entente allègement copeaux","MLNU-ND\nQualité \"X\"","MLNU-RG","MLNU-ND\nQualité \"W\"","MLNU-ND\nQualité \"U\"","Total du Client"]
["010","Épinette (autre que Norvège)",null,null,null,null,null,null,{"$f":"SUM(D10:E10)","v":0},{"$f":"E10","v":0},{"$f":"SUM(F10:G10)","v":0},{"$f":"SUM(H10,I10,K10)","v":0}]
["014","Épinette de Norvège",null,null,null,null,null,null,{"$f":"SUM(D11:E11)","v":0},{"$f":"E11","v":0},0,{"$f":"SUM(H11,I11,K11)","v":0}]
["030","Mélèze laricin",null,null,null,null,null,null,0,0,0,0]
["043","Pin gris et sylvestre",null,null,null,null,null,null,0,0,0,0]
["060","Sapin baumier",null,null,null,null,null,null,0,0,0,0]
["190","Peuplier (autre que Baumier)",null,null,null,null,null,null,0,0,0,0]
["191","Peuplier baumier",null,null,null,null,null,null,0,0,0,0]
["105","Bouleau blanc ",null,null,null,null,null,null,0,0,0,0]
["104","Bouleau jaune",null,null,null,null,null,null,0,0,0,0]
["132","Érable à sucre",null,null,null,null,null,null,0,0,0,0]
["133","Érable rouge",null,null,null,null,null,null,0,0,0,0]
["135","Érables - Autres ",null,null,null,null,null,null,0,0,0,0]
["120","Chêne ",null,null,null,null,null,null,0,0,0,0]
["141","Frêne d’Amérique (blanc)",null,null,null,null,null,null,0,0,0,0]
["142","Frêne noir",null,null,null,null,null,null,0,0,0,0]
["150","Hêtre",null,null,null,null,null,null,0,0,0,0]
["160","Noyer",null,null,null,null,null,null,0,0,0,0]
["165","Caryer",null,null,null,null,null,null,0,0,0,0]
["170","Orme",null,null,null,null,null,null,0,0,0,0]
["180","Ostryer de Virginie",null,null,null,null,null,null,0,0,0,0]
["110","Cerisier tardif",null,null,null,null,null,null,0,0,0,0]
["210","Tilleul d’Amérique",null,null,null,null,null,null,0,0,0,0]
["041","Pin blanc",null,null,null,null,null,null,0,0,0,0]
["042","Pin rouge",null,null,null,null,null,null,0,0,0,0]
["050","Pruche de l’Est",null,null,null,null,null,null,0,0,0,0]
["080","Thuya occidental",null,null,null,null,null,null,0,0,0,0]
[null,null,null,null,null,null,null,null,0,0,0,0]
[null,null,null,null,null,null,null,null,0,0,0,0]
[null,null,null,null,null,null,null,null,0,0,0,0]
[null,null,null,null,null,null,null,null,0,0,0,0]
[null,null,null,null,null,null,null,null,0,0,0,0]
[null,null,null,null,null,null,null,null,0,0,0,0]
[null,null,null,null,null,null,null,null,0,0,{"$f":"SUM(F42:G42)","v":0},0]
[null,null,null,null,null,null,null,null,0,0,0,0]
[null,null,null,null,null,null,null,null,0,0,0,0]
[null,null,null,null,null,null,null,null,0,0,0,0]
[null,null,null,null,null,null,null,null,0,0,0,0]
[null,null,null,null,null,null,null,null,0,0,0,0]
[null,null,null,null,null,null,null,null,0,0,0,0]
[null,null,null,null,null,null,null,null,0,0,0,0]
[null,null,null,null,null,null,null,null,0,0,0,0]
[null,null,null,null,null,null,null,null,0,0,0,0]
[null,null,null,null,null,null,null,null,0,0,0,0]
[null,null,null,null,null,null,null,null,0,0,0,0]
[null,null,null,null,null,null,null,null,0,0,0,0]
[null,null,null,null,null,null,null,null,0,0,0,0]
[null,null,null,null,null,null,null,null,0,0,0,0]
[null,null,null,null,null,null,null,null,0,0,0,0]
[null,null,null,null,null,null,null,null,0,0,0,0]
[null,null,null,null,null,null,null,null,0,0,0,0]
[null,null,null,null,null,null,null,null,0,0,0,0]
[null,null,null,null,null,null,null,null,0,0,0,0]
[null,null,null,null,null,null,null,null,0,0,0,0]
[null,null,null,null,null,null,null,null,0,0,0,0]
[null,null,null,null,null,null,null,null,0,0,0,0]
[null,null,null,null,null,null,null,null,0,0,0,0]
[null,null,null,null,null,null,null,null,0,0,0,0]
[null,null,null,null,null,null,null,null,0,0,0,0]
[null,null,null,null,null,null,null,null,0,0,0,0]
[null,null,null,null,null,null,null,null,0,0,0,0]
[null,null,null,null,null,null,null,null,0,0,0,0]
[null,null,null,null,null,null,null,null,0,0,0,0]
[null,null,null,null,null,null,null,null,0,0,0,0]
[null,null,null,null,null,null,null,null,0,0,0,0]
[null,null,null,null,null,null,null,null,0,0,{"$f":"SUM(F74:G74)","v":0},0]
[null,null,null,null,null,null,null,null,{"$f":"SUM(D75:E75)","v":0},{"$f":"E75","v":0},0,{"$f":"SUM(H75,I75,K75)","v":0}]
[null,null,null,null,null,null,null,null,0,0,0,0]
[null,null,null,null,null,null,null,null,0,0,0,0]
[null,null,null,null,null,null,null,null,0,0,0,0]
[null,null,null,null,null,null,null,null,0,0,0,0]
[null,null,null,null,null,null,null,null,0,0,0,0]
[null,null,null,null,null,null,null,null,0,0,0,0]
[null,null,null,null,null,null,null,null,0,0,0,0]
[null,null,null,null,null,null,null,null,0,0,0,0]
[null,null,null,null,null,null,null,null,0,0,0,0]
[null,null,null,null,null,null,null,null,0,0,0,0]
[null,null,null,null,null,null,null,null,0,0,0,0]
[null,null,null,null,null,null,null,null,0,0,0,0]
[null,null,null,null,null,null,null,null,0,0,0,0]
[null,null,null,null,null,null,null,null,0,0,0,0]
[null,null,null,null,null,null,null,null,0,0,0,0]
[null,null,null,null,null,null,null,null,0,0,0,0]
[null,null,null,null,null,null,null,null,0,0,0,0]
[null,null,null,null,null,null,null,null,0,0,0,0]
[null,null,null,null,null,null,null,null,0,0,0,0]
[null,null,null,null,null,null,null,null,0,0,0,0]
[null,null,null,null,null,null,null,null,0,0,0,0]
[null,null,null,null,null,null,null,null,0,0,0,0]
[null,null,null,null,null,null,null,null,0,0,0,0]
[null,null,null,null,null,null,null,null,0,0,0,0]
[null,null,null,null,null,null,null,null,0,0,0,0]
[null,null,null,null,null,null,null,null,0,0,0,0]
[null,null,null,null,null,null,null,null,0,0,0,0]
[null,null,null,null,null,null,null,null,0,0,0,0]
[null,null,null,null,null,null,null,null,0,0,0,0]
[null,null,null,null,null,null,null,null,0,0,0,0]
[null,null,null,null,null,null,null,null,0,0,{"$f":"SUM(F106:G106)","v":0},0]
[null,null,null,null,null,null,null,null,0,0,0,0]
[null,null,null,null,null,null,null,null,0,0,0,0]
[null,null,null,null,null,null,null,null,0,0,0,0]
[null,null,null,null,null,null,null,null,0,0,0,0]
[null,null,null,null,null,null,null,null,0,0,0,0]
[null,null,null,null,null,null,null,null,0,0,0,0]
[null,null,null,null,null,null,null,null,0,0,0,0]
[null,null,null,null,null,null,null,null,0,0,0,0]
[null,null,null,null,null,null,null,null,0,0,0,0]
[null,null,null,null,null,null,null,null,0,0,0,0]
[null,null,null,null,null,null,null,null,0,0,0,0]
[null,null,null,null,null,null,null,null,0,0,0,0]
[null,null,null,null,null,null,null,null,0,0,0,0]
[null,null,null,null,null,null,null,null,0,0,0,0]
[null,null,null,null,null,null,null,null,0,0,0,0]
[null,null,null,null,null,null,null,null,0,0,0,0]
[null,null,null,null,null,null,null,null,0,0,0,0]
[null,null,null,null,null,null,null,null,0,0,0,0]
[null,null,null,null,null,null,null,null,0,0,0,0]
[null,null,null,null,null,null,null,null,0,0,0,0]
[null,null,null,null,null,null,null,null,0,0,0,0]
[null,null,null,null,null,null,null,null,0,0,0,0]
[null,null,null,null,null,null,null,null,0,0,0,0]
[null,null,null,null,null,null,null,null,0,0,0,0]
[null,null,null,null,null,null,null,null,0,0,0,0]
[null,null,null,null,null,null,null,null,0,0,0,0]
[null,null,null,null,null,null,null,null,0,0,0,0]
[null,null,null,null,null,null,null,null,0,0,0,0]
[null,null,null,null,null,null,null,null,0,0,0,0]
[null,null,null,null,null,null,null,null,0,0,0,0]
[null,null,null,null,null,null,null,null,0,0,0,0]
[null,null,null,null,null,null,null,null,0,0,0,0]
[null,null,null,null,null,null,null,null,{"$f":"SUM(D139:E139)","v":0},{"$f":"E139","v":0},0,{"$f":"SUM(H139,I139,K139)","v":0}]
[null,null,null,null,null,null,null,null,0,0,{"$f":"SUM(F140:G140)","v":0},0]
[null,null,null,null,null,null,null,null,0,0,0,0]
[null,null,null,null,null,null,null,null,0,0,0,0]
[null,null,null,null,null,null,null,null,0,0,0,0]
[null,null,null,null,null,null,null,null,0,0,0,0]
[null,null,null,null,null,null,null,null,0,0,0,0]
[null,null,null,null,null,null,null,null,0,0,0,0]
[null,null,null,null,null,null,null,null,0,0,0,0]
[null,null,null,null,null,null,null,null,0,0,0,0]
[null,null,null,null,null,null,null,null,0,0,0,0]
[null,null,null,null,null,null,null,null,0,0,0,0]
[null,null,null,null,null,null,null,null,0,0,0,0]
[null,null,null,null,null,null,null,null,0,0,0,0]
[null,null,null,null,null,null,null,null,0,0,0,0]
[null,null,null,null,null,null,null,null,0,0,0,0]
[null,null,null,null,null,null,null,null,0,0,0,0]
[null,null,null,null,null,null,null,null,0,0,0,0]
[null,null,null,null,null,null,null,null,0,0,0,0]
[null,null,null,null,null,null,null,null,0,0,0,0]
[null,null,null,null,null,null,null,null,0,0,0,0]
[null,null,null,null,null,null,null,null,0,0,0,0]
[null,null,null,null,null,null,null,null,0,0,0,0]
[null,null,null,null,null,null,null,null,0,0,0,0]
[null,null,null,null,null,null,null,null,0,0,0,0]
[null,null,null,null,null,null,null,null,0,0,0,0]
[null,null,null,null,null,null,null,null,0,0,0,0]
[null,null,null,null,null,null,null,null,0,0,0,0]
[null,null,null,null,null,null,null,null,0,0,0,0]
[null,null,null,null,null,null,null,null,0,0,0,0]
[null,null,null,null,null,null,null,null,0,0,0,0]
[null,null,null,null,null,null,null,null,0,0,0,0]
[null,null,null,null,null,null,null,null,0,0,0,0]
[null,null,null,null,null,null,null,null,0,0,0,0]
[null,null,null,null,null,null,null,null,0,0,0,0]
[null,null,null,null,null,null,null,null,0,0,0,0]
[null,null,null,null,null,null,null,null,0,0,0,0]
[null,null,null,null,null,null,null,null,0,0,0,0]
[null,null,null,null,null,null,null,null,0,0,0,0]
[null,null,null,null,null,null,null,null,0,0,0,0]
[null,null,null,null,null,null,null,null,0,0,0,0]
[null,null,null,null,null,null,null,null,0,0,0,0]
[null,null,null,null,null,null,null,null,0,0,0,0]
[null,null,null,null,null,null,null,null,0,0,0,0]
[null,null,null,null,null,null,null,null,0,0,0,0]
[null,null,null,null,null,null,null,null,0,0,0,0]
[null,null,null,null,null,null,null,null,0,0,0,0]
[null,null,null,null,null,null,null,null,0,0,0,0]
[null,null,null,null,null,null,null,null,0,0,0,0]
[null,null,null,null,null,null,null,null,0,0,0,0]
[null,null,null,null,null,null,null,null,0,0,0,0]
[null,null,null,null,null,null,null,null,0,0,0,0]
[null,null,null,null,null,null,null,null,0,0,0,0]
[null,null,null,null,null,null,null,null,0,0,0,0]
[null,null,null,null,null,null,null,null,0,0,0,0]
[null,null,null,null,null,null,null,null,0,0,0,0]
[null,null,null,null,null,null,null,null,0,0,0,0]
[null,null,null,null,null,null,null,null,0,0,0,0]
[null,null,null,null,null,null,null,null,0,0,0,0]
[null,null,null,null,null,null,null,null,0,0,0,0]
[null,null,null,null,null,null,null,null,0,0,0,0]
[null,null,null,null,null,null,null,null,0,0,0,0]
[null,null,null,null,null,null,null,null,0,0,0,0]
[null,null,null,null,null,null,null,null,0,0,0,0]
[null,null,null,null,null,null,null,null,{"$f":"SUM(D203:E203)","v":0},{"$f":"E203","v":0},0,{"$f":"SUM(H203,I203,K203)","v":0}]
[null,null,null,null,null,null,null,null,0,0,{"$f":"SUM(F204:G204)","v":0},0]
[null,null,null,null,null,null,null,null,0,0,0,0]
[null,null,null,null,null,null,null,null,0,0,0,0]
[null,null,null,null,null,null,null,null,0,0,0,0]
[null,null,null,null,null,null,null,null,0,0,0,0]
[null,null,null,null,null,null,null,null,0,0,0,0]

{"sheet":"BGAD8","index":12,"n_rows":209,"n_cols":12,"rows_kept":209,"cut":false,"hidden":false,"merged":[[0,0,0,11],[7,3,7,4],[2,2,2,3],[3,2,3,3],[4,2,4,3],[7,7,7,11],[7,5,7,6],[2,0,2,1],[3,0,3,1],[4,0,4,1],[6,3,6,11]]}
["Déclaration profesionelle de la MLNU"]
[]
["Année de récolte :",null,"2021-2022"]
["Unité d'aménagement :",null,{"$f":"Sommaire!$C$4","v":0}]
["No. Du BGAd :"]
[]
[null,null,null,"Répartition des volumes"]
[null,null,null,"MLNU-RG",null,"MLNU-ND Qualité «U»",null,"MLNU Déclarée"]
["Code Essence","Nom essence","No. Client","Superficies traitées «V»","Superficies non traitées non justifiées «W»","Ententes\nOM MLNU","Entente allègement copeaux","MLNU-ND\nQualité \"X\"","MLNU-RG","MLNU-ND\nQualité \"W\"","MLNU-ND\nQualité \"U\"","Total du Client"]
["010","Épinette (autre que Norvège)",null,null,null,null,null,null,{"$f":"SUM(D10:E10)","v":0},{"$f":"E10","v":0},{"$f":"SUM(F10:G10)","v":0},{"$f":"SUM(H10,I10,K10)","v":0}]
["014","Épinette de Norvège",null,null,null,null,null,null,{"$f":"SUM(D11:E11)","v":0},{"$f":"E11","v":0},0,{"$f":"SUM(H11,I11,K11)","v":0}]
["030","Mélèze laricin",null,null,null,null,null,null,0,0,0,0]
["043","Pin gris et sylvestre",null,null,null,null,null,null,0,0,0,0]
["060","Sapin baumier",null,null,null,null,null,null,0,0,0,0]
["190","Peuplier (autre que Baumier)",null,null,null,null,null,null,0,0,0,0]
["191","Peuplier baumier",null,null,null,null,null,null,0,0,0,0]
["105","Bouleau blanc ",null,null,null,null,null,null,0,0,0,0]
["104","Bouleau jaune",null,null,null,null,null,null,0,0,0,0]
["132","Érable à sucre",null,null,null,null,null,null,0,0,0,0]
["133","Érable rouge",null,null,null,null,null,null,0,0,0,0]
["135","Érables - Autres ",null,null,null,null,null,null,0,0,0,0]
["120","Chêne ",null,null,null,null,null,null,0,0,0,0]
["141","Frêne d’Amérique (blanc)",null,null,null,null,null,null,0,0,0,0]
["142","Frêne noir",null,null,null,null,null,null,0,0,0,0]
["150","Hêtre",null,null,null,null,null,null,0,0,0,0]
["160","Noyer",null,null,null,null,null,null,0,0,0,0]
["165","Caryer",null,null,null,null,null,null,0,0,0,0]
["170","Orme",null,null,null,null,null,null,0,0,0,0]
["180","Ostryer de Virginie",null,null,null,null,null,null,0,0,0,0]
["110","Cerisier tardif",null,null,null,null,null,null,0,0,0,0]
["210","Tilleul d’Amérique",null,null,null,null,null,null,0,0,0,0]
["041","Pin blanc",null,null,null,null,null,null,0,0,0,0]
["042","Pin rouge",null,null,null,null,null,null,0,0,0,0]
["050","Pruche de l’Est",null,null,null,null,null,null,0,0,0,0]
["080","Thuya occidental",null,null,null,null,null,null,0,0,0,0]
[null,null,null,null,null,null,null,null,0,0,0,0]
[null,null,null,null,null,null,null,null,0,0,0,0]
[null,null,null,null,null,null,null,null,0,0,0,0]
[null,null,null,null,null,null,null,null,0,0,0,0]
[null,null,null,null,null,null,null,null,0,0,0,0]
[null,null,null,null,null,null,null,null,0,0,0,0]
[null,null,null,null,null,null,null,null,0,0,{"$f":"SUM(F42:G42)","v":0},0]
[null,null,null,null,null,null,null,null,0,0,0,0]
[null,null,null,null,null,null,null,null,0,0,0,0]
[null,null,null,null,null,null,null,null,0,0,0,0]
[null,null,null,null,null,null,null,null,0,0,0,0]
[null,null,null,null,null,null,null,null,0,0,0,0]
[null,null,null,null,null,null,null,null,0,0,0,0]
[null,null,null,null,null,null,null,null,0,0,0,0]
[null,null,null,null,null,null,null,null,0,0,0,0]
[null,null,null,null,null,null,null,null,0,0,0,0]
[null,null,null,null,null,null,null,null,0,0,0,0]
[null,null,null,null,null,null,null,null,0,0,0,0]
[null,null,null,null,null,null,null,null,0,0,0,0]
[null,null,null,null,null,null,null,null,0,0,0,0]
[null,null,null,null,null,null,null,null,0,0,0,0]
[null,null,null,null,null,null,null,null,0,0,0,0]
[null,null,null,null,null,null,null,null,0,0,0,0]
[null,null,null,null,null,null,null,null,0,0,0,0]
[null,null,null,null,null,null,null,null,0,0,0,0]
[null,null,null,null,null,null,null,null,0,0,0,0]
[null,null,null,null,null,null,null,null,0,0,0,0]
[null,null,null,null,null,null,null,null,0,0,0,0]
[null,null,null,null,null,null,null,null,0,0,0,0]
[null,null,null,null,null,null,null,null,0,0,0,0]
[null,null,null,null,null,null,null,null,0,0,0,0]
[null,null,null,null,null,null,null,null,0,0,0,0]
[null,null,null,null,null,null,null,null,0,0,0,0]
[null,null,null,null,null,null,null,null,0,0,0,0]
[null,null,null,null,null,null,null,null,0,0,0,0]
[null,null,null,null,null,null,null,null,0,0,0,0]
[null,null,null,null,null,null,null,null,0,0,0,0]
[null,null,null,null,null,null,null,null,0,0,0,0]
[null,null,null,null,null,null,null,null,0,0,{"$f":"SUM(F74:G74)","v":0},0]
[null,null,null,null,null,null,null,null,{"$f":"SUM(D75:E75)","v":0},{"$f":"E75","v":0},0,{"$f":"SUM(H75,I75,K75)","v":0}]
[null,null,null,null,null,null,null,null,0,0,0,0]
[null,null,null,null,null,null,null,null,0,0,0,0]
[null,null,null,null,null,null,null,null,0,0,0,0]
[null,null,null,null,null,null,null,null,0,0,0,0]
[null,null,null,null,null,null,null,null,0,0,0,0]
[null,null,null,null,null,null,null,null,0,0,0,0]
[null,null,null,null,null,null,null,null,0,0,0,0]
[null,null,null,null,null,null,null,null,0,0,0,0]
[null,null,null,null,null,null,null,null,0,0,0,0]
[null,null,null,null,null,null,null,null,0,0,0,0]
[null,null,null,null,null,null,null,null,0,0,0,0]
[null,null,null,null,null,null,null,null,0,0,0,0]
[null,null,null,null,null,null,null,null,0,0,0,0]
[null,null,null,null,null,null,null,null,0,0,0,0]
[null,null,null,null,null,null,null,null,0,0,0,0]
[null,null,null,null,null,null,null,null,0,0,0,0]
[null,null,null,null,null,null,null,null,0,0,0,0]
[null,null,null,null,null,null,null,null,0,0,0,0]
[null,null,null,null,null,null,null,null,0,0,0,0]
[null,null,null,null,null,null,null,null,0,0,0,0]
[null,null,null,null,null,null,null,null,0,0,0,0]
[null,null,null,null,null,null,null,null,0,0,0,0]
[null,null,null,null,null,null,null,null,0,0,0,0]
[null,null,null,null,null,null,null,null,0,0,0,0]
[null,null,null,null,null,null,null,null,0,0,0,0]
[null,null,null,null,null,null,null,null,0,0,0,0]
[null,null,null,null,null,null,null,null,0,0,0,0]
[null,null,null,null,null,null,null,null,0,0,0,0]
[null,null,null,null,null,null,null,null,0,0,0,0]
[null,null,null,null,null,null,null,null,0,0,0,0]
[null,null,null,null,null,null,null,null,0,0,{"$f":"SUM(F106:G106)","v":0},0]
[null,null,null,null,null,null,null,null,0,0,0,0]
[null,null,null,null,null,null,null,null,0,0,0,0]
[null,null,null,null,null,null,null,null,0,0,0,0]
[null,null,null,null,null,null,null,null,0,0,0,0]
[null,null,null,null,null,null,null,null,0,0,0,0]
[null,null,null,null,null,null,null,null,0,0,0,0]
[null,null,null,null,null,null,null,null,0,0,0,0]
[null,null,null,null,null,null,null,null,0,0,0,0]
[null,null,null,null,null,null,null,null,0,0,0,0]
[null,null,null,null,null,null,null,null,0,0,0,0]
[null,null,null,null,null,null,null,null,0,0,0,0]
[null,null,null,null,null,null,null,null,0,0,0,0]
[null,null,null,null,null,null,null,null,0,0,0,0]
[null,null,null,null,null,null,null,null,0,0,0,0]
[null,null,null,null,null,null,null,null,0,0,0,0]
[null,null,null,null,null,null,null,null,0,0,0,0]
[null,null,null,null,null,null,null,null,0,0,0,0]
[null,null,null,null,null,null,null,null,0,0,0,0]
[null,null,null,null,null,null,null,null,0,0,0,0]
[null,null,null,null,null,null,null,null,0,0,0,0]
[null,null,null,null,null,null,null,null,0,0,0,0]
[null,null,null,null,null,null,null,null,0,0,0,0]
[null,null,null,null,null,null,null,null,0,0,0,0]
[null,null,null,null,null,null,null,null,0,0,0,0]
[null,null,null,null,null,null,null,null,0,0,0,0]
[null,null,null,null,null,null,null,null,0,0,0,0]
[null,null,null,null,null,null,null,null,0,0,0,0]
[null,null,null,null,null,null,null,null,0,0,0,0]
[null,null,null,null,null,null,null,null,0,0,0,0]
[null,null,null,null,null,null,null,null,0,0,0,0]
[null,null,null,null,null,null,null,null,0,0,0,0]
[null,null,null,null,null,null,null,null,0,0,0,0]
[null,null,null,null,null,null,null,null,{"$f":"SUM(D139:E139)","v":0},{"$f":"E139","v":0},0,{"$f":"SUM(H139,I139,K139)","v":0}]
[null,null,null,null,null,null,null,null,0,0,{"$f":"SUM(F140:G140)","v":0},0]
[null,null,null,null,null,null,null,null,0,0,0,0]
[null,null,null,null,null,null,null,null,0,0,0,0]
[null,null,null,null,null,null,null,null,0,0,0,0]
[null,null,null,null,null,null,null,null,0,0,0,0]
[null,null,null,null,null,null,null,null,0,0,0,0]
[null,null,null,null,null,null,null,null,0,0,0,0]
[null,null,null,null,null,null,null,null,0,0,0,0]
[null,null,null,null,null,null,null,null,0,0,0,0]
[null,null,null,null,null,null,null,null,0,0,0,0]
[null,null,null,null,null,null,null,null,0,0,0,0]
[null,null,null,null,null,null,null,null,0,0,0,0]
[null,null,null,null,null,null,null,null,0,0,0,0]
[null,null,null,null,null,null,null,null,0,0,0,0]
[null,null,null,null,null,null,null,null,0,0,0,0]
[null,null,null,null,null,null,null,null,0,0,0,0]
[null,null,null,null,null,null,null,null,0,0,0,0]
[null,null,null,null,null,null,null,null,0,0,0,0]
[null,null,null,null,null,null,null,null,0,0,0,0]
[null,null,null,null,null,null,null,null,0,0,0,0]
[null,null,null,null,null,null,null,null,0,0,0,0]
[null,null,null,null,null,null,null,null,0,0,0,0]
[null,null,null,null,null,null,null,null,0,0,0,0]
[null,null,null,null,null,null,null,null,0,0,0,0]
[null,null,null,null,null,null,null,null,0,0,0,0]
[null,null,null,null,null,null,null,null,0,0,0,0]
[null,null,null,null,null,null,null,null,0,0,0,0]
[null,null,null,null,null,null,null,null,0,0,0,0]
[null,null,null,null,null,null,null,null,0,0,0,0]
[null,null,null,null,null,null,null,null,0,0,0,0]
[null,null,null,null,null,null,null,null,0,0,0,0]
[null,null,null,null,null,null,null,null,0,0,0,0]
[null,null,null,null,null,null,null,null,0,0,0,0]
[null,null,null,null,null,null,null,null,0,0,0,0]
[null,null,null,null,null,null,null,null,0,0,0,0]
[null,null,null,null,null,null,null,null,0,0,0,0]
[null,null,null,null,null,null,null,null,0,0,0,0]
[null,null,null,null,null,null,null,null,0,0,0,0]
[null,null,null,null,null,null,null,null,0,0,0,0]
[null,null,null,null,null,null,null,null,0,0,0,0]
[null,null,null,null,null,null,null,null,0,0,0,0]
[null,null,null,null,null,null,null,null,0,0,0,0]
[null,null,null,null,null,null,null,null,0,0,0,0]
[null,null,null,null,null,null,null,null,0,0,0,0]
[null,null,null,null,null,null,null,null,0,0,0,0]
[null,null,null,null,null,null,null,null,0,0,0,0]
[null,null,null,null,null,null,null,null,0,0,0,0]
[null,null,null,null,null,null,null,null,0,0,0,0]
[null,null,null,null,null,null,null,null,0,0,0,0]
[null,null,null,null,null,null,null,null,0,0,0,0]
[null,null,null,null,null,null,null,null,0,0,0,0]
[null,null,null,null,null,null,null,null,0,0,0,0]
[null,null,null,null,null,null,null,null,0,0,0,0]
[null,null,null,null,null,null,null,null,0,0,0,0]
[null,null,null,null,null,null,null,null,0,0,0,0]
[null,null,null,null,null,null,null,null,0,0,0,0]
[null,null,null,null,null,null,null,null,0,0,0,0]
[null,null,null,null,null,null,null,null,0,0,0,0]
[null,null,null,null,null,null,null,null,0,0,0,0]
[null,null,null,null,null,null,null,null,0,0,0,0]
[null,null,null,null,null,null,null,null,0,0,0,0]
[null,null,null,null,null,null,null,null,0,0,0,0]
[null,null,null,null,null,null,null,null,0,0,0,0]
[null,null,null,null,null,null,null,null,{"$f":"SUM(D203:E203)","v":0},{"$f":"E203","v":0},0,{"$f":"SUM(H203,I203,K203)","v":0}]
[null,null,null,null,null,null,null,null,0,0,{"$f":"SUM(F204:G204)","v":0},0]
[null,null,null,null,null,null,null,null,0,0,0,0]
[null,null,null,null,null,null,null,null,0,0,0,0]
[null,null,null,null,null,null,null,null,0,0,0,0]
[null,null,null,null,null,null,null,null,0,0,0,0]
[null,null,null,null,null,null,null,null,0,0,0,0]

{"sheet":"BGAD10","index":13,"n_rows":209,"n_cols":12,"rows_kept":209,"cut":false,"hidden":false,"merged":[[0,0,0,11],[7,3,7,4],[2,2,2,3],[3,2,3,3],[4,2,4,3],[7,7,7,11],[7,5,7,6],[2,0,2,1],[3,0,3,1],[4,0,4,1],[6,3,6,11]]}
["Déclaration profesionelle de la MLNU"]
[]
["Année de récolte :",null,"2021-2022"]
["Unité d'aménagement :",null,{"$f":"Sommaire!$C$4","v":0}]
["No. Du BGAd :"]
[]
[null,null,null,"Répartition des volumes"]
[null,null,null,"MLNU-RG",null,"MLNU-ND Qualité «U»",null,"MLNU Déclarée"]
["Code Essence","Nom essence","No. Client","Superficies traitées «V»","Superficies non traitées non justifiées «W»","Ententes\nOM MLNU","Entente allègement copeaux","MLNU-ND\nQualité \"X\"","MLNU-RG","MLNU-ND\nQualité \"W\"","MLNU-ND\nQualité \"U\"","Total du Client"]
["010","Épinette (autre que Norvège)",null,null,null,null,null,null,{"$f":"SUM(D10:E10)","v":0},{"$f":"E10","v":0},{"$f":"SUM(F10:G10)","v":0},{"$f":"SUM(H10,I10,K10)","v":0}]
["014","Épinette de Norvège",null,null,null,null,null,null,{"$f":"SUM(D11:E11)","v":0},{"$f":"E11","v":0},0,{"$f":"SUM(H11,I11,K11)","v":0}]
["030","Mélèze laricin",null,null,null,null,null,null,0,0,0,0]
["043","Pin gris et sylvestre",null,null,null,null,null,null,0,0,0,0]
["060","Sapin baumier",null,null,null,null,null,null,0,0,0,0]
["190","Peuplier (autre que Baumier)",null,null,null,null,null,null,0,0,0,0]
["191","Peuplier baumier",null,null,null,null,null,null,0,0,0,0]
["105","Bouleau blanc ",null,null,null,null,null,null,0,0,0,0]
["104","Bouleau jaune",null,null,null,null,null,null,0,0,0,0]
["132","Érable à sucre",null,null,null,null,null,null,0,0,0,0]
["133","Érable rouge",null,null,null,null,null,null,0,0,0,0]
["135","Érables - Autres ",null,null,null,null,null,null,0,0,0,0]
["120","Chêne ",null,null,null,null,null,null,0,0,0,0]
["141","Frêne d’Amérique (blanc)",null,null,null,null,null,null,0,0,0,0]
["142","Frêne noir",null,null,null,null,null,null,0,0,0,0]
["150","Hêtre",null,null,null,null,null,null,0,0,0,0]
["160","Noyer",null,null,null,null,null,null,0,0,0,0]
["165","Caryer",null,null,null,null,null,null,0,0,0,0]
["170","Orme",null,null,null,null,null,null,0,0,0,0]
["180","Ostryer de Virginie",null,null,null,null,null,null,0,0,0,0]
["110","Cerisier tardif",null,null,null,null,null,null,0,0,0,0]
["210","Tilleul d’Amérique",null,null,null,null,null,null,0,0,0,0]
["041","Pin blanc",null,null,null,null,null,null,0,0,0,0]
["042","Pin rouge",null,null,null,null,null,null,0,0,0,0]
["050","Pruche de l’Est",null,null,null,null,null,null,0,0,0,0]
["080","Thuya occidental",null,null,null,null,null,null,0,0,0,0]
[null,null,null,null,null,null,null,null,0,0,0,0]
[null,null,null,null,null,null,null,null,0,0,0,0]
[null,null,null,null,null,null,null,null,0,0,0,0]
[null,null,null,null,null,null,null,null,0,0,0,0]
[null,null,null,null,null,null,null,null,0,0,0,0]
[null,null,null,null,null,null,null,null,0,0,0,0]
[null,null,null,null,null,null,null,null,0,0,{"$f":"SUM(F42:G42)","v":0},0]
[null,null,null,null,null,null,null,null,0,0,0,0]
[null,null,null,null,null,null,null,null,0,0,0,0]
[null,null,null,null,null,null,null,null,0,0,0,0]
[null,null,null,null,null,null,null,null,0,0,0,0]
[null,null,null,null,null,null,null,null,0,0,0,0]
[null,null,null,null,null,null,null,null,0,0,0,0]
[null,null,null,null,null,null,null,null,0,0,0,0]
[null,null,null,null,null,null,null,null,0,0,0,0]
[null,null,null,null,null,null,null,null,0,0,0,0]
[null,null,null,null,null,null,null,null,0,0,0,0]
[null,null,null,null,null,null,null,null,0,0,0,0]
[null,null,null,null,null,null,null,null,0,0,0,0]
[null,null,null,null,null,null,null,null,0,0,0,0]
[null,null,null,null,null,null,null,null,0,0,0,0]
[null,null,null,null,null,null,null,null,0,0,0,0]
[null,null,null,null,null,null,null,null,0,0,0,0]
[null,null,null,null,null,null,null,null,0,0,0,0]
[null,null,null,null,null,null,null,null,0,0,0,0]
[null,null,null,null,null,null,null,null,0,0,0,0]
[null,null,null,null,null,null,null,null,0,0,0,0]
[null,null,null,null,null,null,null,null,0,0,0,0]
[null,null,null,null,null,null,null,null,0,0,0,0]
[null,null,null,null,null,null,null,null,0,0,0,0]
[null,null,null,null,null,null,null,null,0,0,0,0]
[null,null,null,null,null,null,null,null,0,0,0,0]
[null,null,null,null,null,null,null,null,0,0,0,0]
[null,null,null,null,null,null,null,null,0,0,0,0]
[null,null,null,null,null,null,null,null,0,0,0,0]
[null,null,null,null,null,null,null,null,0,0,0,0]
[null,null,null,null,null,null,null,null,0,0,0,0]
[null,null,null,null,null,null,null,null,0,0,0,0]
[null,null,null,null,null,null,null,null,0,0,{"$f":"SUM(F74:G74)","v":0},0]
[null,null,null,null,null,null,null,null,{"$f":"SUM(D75:E75)","v":0},{"$f":"E75","v":0},0,{"$f":"SUM(H75,I75,K75)","v":0}]
[null,null,null,null,null,null,null,null,0,0,0,0]
[null,null,null,null,null,null,null,null,0,0,0,0]
[null,null,null,null,null,null,null,null,0,0,0,0]
[null,null,null,null,null,null,null,null,0,0,0,0]
[null,null,null,null,null,null,null,null,0,0,0,0]
[null,null,null,null,null,null,null,null,0,0,0,0]
[null,null,null,null,null,null,null,null,0,0,0,0]
[null,null,null,null,null,null,null,null,0,0,0,0]
[null,null,null,null,null,null,null,null,0,0,0,0]
[null,null,null,null,null,null,null,null,0,0,0,0]
[null,null,null,null,null,null,null,null,0,0,0,0]
[null,null,null,null,null,null,null,null,0,0,0,0]
[null,null,null,null,null,null,null,null,0,0,0,0]
[null,null,null,null,null,null,null,null,0,0,0,0]
[null,null,null,null,null,null,null,null,0,0,0,0]
[null,null,null,null,null,null,null,null,0,0,0,0]
[null,null,null,null,null,null,null,null,0,0,0,0]
[null,null,null,null,null,null,null,null,0,0,0,0]
[null,null,null,null,null,null,null,null,0,0,0,0]
[null,null,null,null,null,null,null,null,0,0,0,0]
[null,null,null,null,null,null,null,null,0,0,0,0]
[null,null,null,null,null,null,null,null,0,0,0,0]
[null,null,null,null,null,null,null,null,0,0,0,0]
[null,null,null,null,null,null,null,null,0,0,0,0]
[null,null,null,null,null,null,null,null,0,0,0,0]
[null,null,null,null,null,null,null,null,0,0,0,0]
[null,null,null,null,null,null,null,null,0,0,0,0]
[null,null,null,null,null,null,null,null,0,0,0,0]
[null,null,null,null,null,null,null,null,0,0,0,0]
[null,null,null,null,null,null,null,null,0,0,0,0]
[null,null,null,null,null,null,null,null,0,0,{"$f":"SUM(F106:G106)","v":0},0]
[null,null,null,null,null,null,null,null,0,0,0,0]
[null,null,null,null,null,null,null,null,0,0,0,0]
[null,null,null,null,null,null,null,null,0,0,0,0]
[null,null,null,null,null,null,null,null,0,0,0,0]
[null,null,null,null,null,null,null,null,0,0,0,0]
[null,null,null,null,null,null,null,null,0,0,0,0]
[null,null,null,null,null,null,null,null,0,0,0,0]
[null,null,null,null,null,null,null,null,0,0,0,0]
[null,null,null,null,null,null,null,null,0,0,0,0]
[null,null,null,null,null,null,null,null,0,0,0,0]
[null,null,null,null,null,null,null,null,0,0,0,0]
[null,null,null,null,null,null,null,null,0,0,0,0]
[null,null,null,null,null,null,null,null,0,0,0,0]
[null,null,null,null,null,null,null,null,0,0,0,0]
[null,null,null,null,null,null,null,null,0,0,0,0]
[null,null,null,null,null,null,null,null,0,0,0,0]
[null,null,null,null,null,null,null,null,0,0,0,0]
[null,null,null,null,null,null,null,null,0,0,0,0]
[null,null,null,null,null,null,null,null,0,0,0,0]
[null,null,null,null,null,null,null,null,0,0,0,0]
[null,null,null,null,null,null,null,null,0,0,0,0]
[null,null,null,null,null,null,null,null,0,0,0,0]
[null,null,null,null,null,null,null,null,0,0,0,0]
[null,null,null,null,null,null,null,null,0,0,0,0]
[null,null,null,null,null,null,null,null,0,0,0,0]
[null,null,null,null,null,null,null,null,0,0,0,0]
[null,null,null,null,null,null,null,null,0,0,0,0]
[null,null,null,null,null,null,null,null,0,0,0,0]
[null,null,null,null,null,null,null,null,0,0,0,0]
[null,null,null,null,null,null,null,null,0,0,0,0]
[null,null,null,null,null,null,null,null,0,0,0,0]
[null,null,null,null,null,null,null,null,0,0,0,0]
[null,null,null,null,null,null,null,null,{"$f":"SUM(D139:E139)","v":0},{"$f":"E139","v":0},0,{"$f":"SUM(H139,I139,K139)","v":0}]
[null,null,null,null,null,null,null,null,0,0,{"$f":"SUM(F140:G140)","v":0},0]
[null,null,null,null,null,null,null,null,0,0,0,0]
[null,null,null,null,null,null,null,null,0,0,0,0]
[null,null,null,null,null,null,null,null,0,0,0,0]
[null,null,null,null,null,null,null,null,0,0,0,0]
[null,null,null,null,null,null,null,null,0,0,0,0]
[null,null,null,null,null,null,null,null,0,0,0,0]
[null,null,null,null,null,null,null,null,0,0,0,0]
[null,null,null,null,null,null,null,null,0,0,0,0]
[null,null,null,null,null,null,null,null,0,0,0,0]
[null,null,null,null,null,null,null,null,0,0,0,0]
[null,null,null,null,null,null,null,null,0,0,0,0]
[null,null,null,null,null,null,null,null,0,0,0,0]
[null,null,null,null,null,null,null,null,0,0,0,0]
[null,null,null,null,null,null,null,null,0,0,0,0]
[null,null,null,null,null,null,null,null,0,0,0,0]
[null,null,null,null,null,null,null,null,0,0,0,0]
[null,null,null,null,null,null,null,null,0,0,0,0]
[null,null,null,null,null,null,null,null,0,0,0,0]
[null,null,null,null,null,null,null,null,0,0,0,0]
[null,null,null,null,null,null,null,null,0,0,0,0]
[null,null,null,null,null,null,null,null,0,0,0,0]
[null,null,null,null,null,null,null,null,0,0,0,0]
[null,null,null,null,null,null,null,null,0,0,0,0]
[null,null,null,null,null,null,null,null,0,0,0,0]
[null,null,null,null,null,null,null,null,0,0,0,0]
[null,null,null,null,null,null,null,null,0,0,0,0]
[null,null,null,null,null,null,null,null,0,0,0,0]
[null,null,null,null,null,null,null,null,0,0,0,0]
[null,null,null,null,null,null,null,null,0,0,0,0]
[null,null,null,null,null,null,null,null,0,0,0,0]
[null,null,null,null,null,null,null,null,0,0,0,0]
[null,null,null,null,null,null,null,null,0,0,0,0]
[null,null,null,null,null,null,null,null,0,0,0,0]
[null,null,null,null,null,null,null,null,0,0,0,0]
[null,null,null,null,null,null,null,null,0,0,0,0]
[null,null,null,null,null,null,null,null,0,0,0,0]
[null,null,null,null,null,null,null,null,0,0,0,0]
[null,null,null,null,null,null,null,null,0,0,0,0]
[null,null,null,null,null,null,null,null,0,0,0,0]
[null,null,null,null,null,null,null,null,0,0,0,0]
[null,null,null,null,null,null,null,null,0,0,0,0]
[null,null,null,null,null,null,null,null,0,0,0,0]
[null,null,null,null,null,null,null,null,0,0,0,0]
[null,null,null,null,null,null,null,null,0,0,0,0]
[null,null,null,null,null,null,null,null,0,0,0,0]
[null,null,null,null,null,null,null,null,0,0,0,0]
[null,null,null,null,null,null,null,null,0,0,0,0]
[null,null,null,null,null,null,null,null,0,0,0,0]
[null,null,null,null,null,null,null,null,0,0,0,0]
[null,null,null,null,null,null,null,null,0,0,0,0]
[null,null,null,null,null,null,null,null,0,0,0,0]
[null,null,null,null,null,null,null,null,0,0,0,0]
[null,null,null,null,null,null,null,null,0,0,0,0]
[null,null,null,null,null,null,null,null,0,0,0,0]
[null,null,null,null,null,null,null,null,0,0,0,0]
[null,null,null,null,null,null,null,null,0,0,0,0]
[null,null,null,null,null,null,null,null,0,0,0,0]
[null,null,null,null,null,null,null,null,0,0,0,0]
[null,null,null,null,null,null,null,null,0,0,0,0]
[null,null,null,null,null,null,null,null,0,0,0,0]
[null,null,null,null,null,null,null,null,0,0,0,0]
[null,null,null,null,null,null,null,null,0,0,0,0]
[null,null,null,null,null,null,null,null,{"$f":"SUM(D203:E203)","v":0},{"$f":"E203","v":0},0,{"$f":"SUM(H203,I203,K203)","v":0}]
[null,null,null,null,null,null,null,null,0,0,{"$f":"SUM(F204:G204)","v":0},0]
[null,null,null,null,null,null,null,null,0,0,0,0]
[null,null,null,null,null,null,null,null,0,0,0,0]
[null,null,null,null,null,null,null,null,0,0,0,0]
[null,null,null,null,null,null,null,null,0,0,0,0]
[null,null,null,null,null,null,null,null,0,0,0,0]

{"sheet":"BGAD11","index":14,"n_rows":209,"n_cols":12,"rows_kept":209,"cut":false,"hidden":false,"merged":[[6,3,6,11],[7,3,7,4],[7,5,7,6],[7,7,7,11],[0,0,0,11],[2,0,2,1],[2,2,2,3],[3,0,3,1],[3,2,3,3],[4,0,4,1],[4,2,4,3]]}
["Déclaration profesionelle de la MLNU"]
[]
["Année de récolte :",null,"2021-2022"]
["Unité d'aménagement :",null,{"$f":"Sommaire!$C$4","v":0}]
["No. Du BGAd :"]
[]
[null,null,null,"Répartition des volumes"]
[null,null,null,"MLNU-RG",null,"MLNU-ND Qualité «U»",null,"MLNU Déclarée"]
["Code Essence","Nom essence","No. Client","Superficies traitées «V»","Superficies non traitées non justifiées «W»","Ententes\nOM MLNU","Entente allègement copeaux","MLNU-ND\nQualité \"X\"","MLNU-RG","MLNU-ND\nQualité \"W\"","MLNU-ND\nQualité \"U\"","Total du Client"]
["010","Épinette (autre que Norvège)",null,null,null,null,null,null,{"$f":"SUM(D10:E10)","v":0},{"$f":"E10","v":0},{"$f":"SUM(F10:G10)","v":0},{"$f":"SUM(H10,I10,K10)","v":0}]
["014","Épinette de Norvège",null,null,null,null,null,null,{"$f":"SUM(D11:E11)","v":0},{"$f":"E11","v":0},0,{"$f":"SUM(H11,I11,K11)","v":0}]
["030","Mélèze laricin",null,null,null,null,null,null,0,0,0,0]
["043","Pin gris et sylvestre",null,null,null,null,null,null,0,0,0,0]
["060","Sapin baumier",null,null,null,null,null,null,0,0,0,0]
["190","Peuplier (autre que Baumier)",null,null,null,null,null,null,0,0,0,0]
["191","Peuplier baumier",null,null,null,null,null,null,0,0,0,0]
["105","Bouleau blanc ",null,null,null,null,null,null,0,0,0,0]
["104","Bouleau jaune",null,null,null,null,null,null,0,0,0,0]
["132","Érable à sucre",null,null,null,null,null,null,0,0,0,0]
["133","Érable rouge",null,null,null,null,null,null,0,0,0,0]
["135","Érables - Autres ",null,null,null,null,null,null,0,0,0,0]
["120","Chêne ",null,null,null,null,null,null,0,0,0,0]
["141","Frêne d’Amérique (blanc)",null,null,null,null,null,null,0,0,0,0]
["142","Frêne noir",null,null,null,null,null,null,0,0,0,0]
["150","Hêtre",null,null,null,null,null,null,0,0,0,0]
["160","Noyer",null,null,null,null,null,null,0,0,0,0]
["165","Caryer",null,null,null,null,null,null,0,0,0,0]
["170","Orme",null,null,null,null,null,null,0,0,0,0]
["180","Ostryer de Virginie",null,null,null,null,null,null,0,0,0,0]
["110","Cerisier tardif",null,null,null,null,null,null,0,0,0,0]
["210","Tilleul d’Amérique",null,null,null,null,null,null,0,0,0,0]
["041","Pin blanc",null,null,null,null,null,null,0,0,0,0]
["042","Pin rouge",null,null,null,null,null,null,0,0,0,0]
["050","Pruche de l’Est",null,null,null,null,null,null,0,0,0,0]
["080","Thuya occidental",null,null,null,null,null,null,0,0,0,0]
[null,null,null,null,null,null,null,null,0,0,0,0]
[null,null,null,null,null,null,null,null,0,0,0,0]
[null,null,null,null,null,null,null,null,0,0,0,0]
[null,null,null,null,null,null,null,null,0,0,0,0]
[null,null,null,null,null,null,null,null,0,0,0,0]
[null,null,null,null,null,null,null,null,0,0,0,0]
[null,null,null,null,null,null,null,null,0,0,0,0]
[null,null,null,null,null,null,null,null,0,0,0,0]
[null,null,null,null,null,null,null,null,0,0,0,0]
[null,null,null,null,null,null,null,null,0,0,0,0]
[null,null,null,null,null,null,null,null,0,0,0,0]
[null,null,null,null,null,null,null,null,0,0,0,0]
[null,null,null,null,null,null,null,null,0,0,0,0]
[null,null,null,null,null,null,null,null,0,0,0,0]
[null,null,null,null,null,null,null,null,0,0,0,0]
[null,null,null,null,null,null,null,null,0,0,0,0]
[null,null,null,null,null,null,null,null,0,0,0,0]
[null,null,null,null,null,null,null,null,0,0,0,0]
[null,null,null,null,null,null,null,null,0,0,0,0]
[null,null,null,null,null,null,null,null,0,0,0,0]
[null,null,null,null,null,null,null,null,0,0,0,0]
[null,null,null,null,null,null,null,null,0,0,0,0]
[null,null,null,null,null,null,null,null,0,0,0,0]
[null,null,null,null,null,null,null,null,0,0,0,0]
[null,null,null,null,null,null,null,null,0,0,0,0]
[null,null,null,null,null,null,null,null,0,0,0,0]
[null,null,null,null,null,null,null,null,0,0,0,0]
[null,null,null,null,null,null,null,null,0,0,0,0]
[null,null,null,null,null,null,null,null,0,0,0,0]
[null,null,null,null,null,null,null,null,0,0,0,0]
[null,null,null,null,null,null,null,null,0,0,0,0]
[null,null,null,null,null,null,null,null,0,0,0,0]
[null,null,null,null,null,null,null,null,0,0,0,0]
[null,null,null,null,null,null,null,null,0,0,0,0]
[null,null,null,null,null,null,null,null,0,0,0,0]
[null,null,null,null,null,null,null,null,0,0,0,0]
[null,null,null,null,null,null,null,null,0,0,0,0]
[null,null,null,null,null,null,null,null,0,0,0,0]
[null,null,null,null,null,null,null,null,0,0,{"$f":"SUM(F74:G74)","v":0},0]
[null,null,null,null,null,null,null,null,{"$f":"SUM(D75:E75)","v":0},{"$f":"E75","v":0},0,{"$f":"SUM(H75,I75,K75)","v":0}]
[null,null,null,null,null,null,null,null,0,0,0,0]
[null,null,null,null,null,null,null,null,0,0,0,0]
[null,null,null,null,null,null,null,null,0,0,0,0]
[null,null,null,null,null,null,null,null,0,0,0,0]
[null,null,null,null,null,null,null,null,0,0,0,0]
[null,null,null,null,null,null,null,null,0,0,0,0]
[null,null,null,null,null,null,null,null,0,0,0,0]
[null,null,null,null,null,null,null,null,0,0,0,0]
[null,null,null,null,null,null,null,null,0,0,0,0]
[null,null,null,null,null,null,null,null,0,0,0,0]
[null,null,null,null,null,null,null,null,0,0,0,0]
[null,null,null,null,null,null,null,null,0,0,0,0]
[null,null,null,null,null,null,null,null,0,0,0,0]
[null,null,null,null,null,null,null,null,0,0,0,0]
[null,null,null,null,null,null,null,null,0,0,0,0]
[null,null,null,null,null,null,null,null,0,0,0,0]
[null,null,null,null,null,null,null,null,0,0,0,0]
[null,null,null,null,null,null,null,null,0,0,0,0]
[null,null,null,null,null,null,null,null,0,0,0,0]
[null,null,null,null,null,null,null,null,0,0,0,0]
[null,null,null,null,null,null,null,null,0,0,0,0]
[null,null,null,null,null,null,null,null,0,0,0,0]
[null,null,null,null,null,null,null,null,0,0,0,0]
[null,null,null,null,null,null,null,null,0,0,0,0]
[null,null,null,null,null,null,null,null,0,0,0,0]
[null,null,null,null,null,null,null,null,0,0,0,0]
[null,null,null,null,null,null,null,null,0,0,0,0]
[null,null,null,null,null,null,null,null,0,0,0,0]
[null,null,null,null,null,null,null,null,0,0,0,0]
[null,null,null,null,null,null,null,null,0,0,0,0]
[null,null,null,null,null,null,null,null,0,0,0,0]
[null,null,null,null,null,null,null,null,0,0,0,0]
[null,null,null,null,null,null,null,null,0,0,0,0]
[null,null,null,null,null,null,null,null,0,0,0,0]
[null,null,null,null,null,null,null,null,0,0,0,0]
[null,null,null,null,null,null,null,null,0,0,0,0]
[null,null,null,null,null,null,null,null,0,0,0,0]
[null,null,null,null,null,null,null,null,0,0,0,0]
[null,null,null,null,null,null,null,null,0,0,0,0]
[null,null,null,null,null,null,null,null,0,0,0,0]
[null,null,null,null,null,null,null,null,0,0,0,0]
[null,null,null,null,null,null,null,null,0,0,0,0]
[null,null,null,null,null,null,null,null,0,0,0,0]
[null,null,null,null,null,null,null,null,0,0,0,0]
[null,null,null,null,null,null,null,null,0,0,0,0]
[null,null,null,null,null,null,null,null,0,0,0,0]
[null,null,null,null,null,null,null,null,0,0,0,0]
[null,null,null,null,null,null,null,null,0,0,0,0]
[null,null,null,null,null,null,null,null,0,0,0,0]
[null,null,null,null,null,null,null,null,0,0,0,0]
[null,null,null,null,null,null,null,null,0,0,0,0]
[null,null,null,null,null,null,null,null,0,0,0,0]
[null,null,null,null,null,null,null,null,0,0,0,0]
[null,null,null,null,null,null,null,null,0,0,0,0]
[null,null,null,null,null,null,null,null,0,0,0,0]
[null,null,null,null,null,null,null,null,0,0,0,0]
[null,null,null,null,null,null,null,null,0,0,0,0]
[null,null,null,null,null,null,null,null,0,0,0,0]
[null,null,null,null,null,null,null,null,0,0,0,0]
[null,null,null,null,null,null,null,null,0,0,0,0]
[null,null,null,null,null,null,null,null,0,0,0,0]
[null,null,null,null,null,null,null,null,0,0,0,0]
[null,null,null,null,null,null,null,null,0,0,{"$f":"SUM(F138:G138)","v":0},0]
[null,null,null,null,null,null,null,null,{"$f":"SUM(D139:E139)","v":0},{"$f":"E139","v":0},0,{"$f":"SUM(H139,I139,K139)","v":0}]
[null,null,null,null,null,null,null,null,0,0,{"$f":"SUM(F140:G140)","v":0},0]
[null,null,null,null,null,null,null,null,0,0,0,0]
[null,null,null,null,null,null,null,null,0,0,0,0]
[null,null,null,null,null,null,null,null,0,0,0,0]
[null,null,null,null,null,null,null,null,0,0,0,0]
[null,null,null,null,null,null,null,null,0,0,0,0]
[null,null,null,null,null,null,null,null,0,0,0,0]
[null,null,null,null,null,null,null,null,0,0,0,0]
[null,null,null,null,null,null,null,null,0,0,0,0]
[null,null,null,null,null,null,null,null,0,0,0,0]
[null,null,null,null,null,null,null,null,0,0,0,0]
[null,null,null,null,null,null,null,null,0,0,0,0]
[null,null,null,null,null,null,null,null,0,0,0,0]
[null,null,null,null,null,null,null,null,0,0,0,0]
[null,null,null,null,null,null,null,null,0,0,0,0]
[null,null,null,null,null,null,null,null,0,0,0,0]
[null,null,null,null,null,null,null,null,0,0,0,0]
[null,null,null,null,null,null,null,null,0,0,0,0]
[null,null,null,null,null,null,null,null,0,0,0,0]
[null,null,null,null,null,null,null,null,0,0,0,0]
[null,null,null,null,null,null,null,null,0,0,0,0]
[null,null,null,null,null,null,null,null,0,0,0,0]
[null,null,null,null,null,null,null,null,0,0,0,0]
[null,null,null,null,null,null,null,null,0,0,0,0]
[null,null,null,null,null,null,null,null,0,0,0,0]
[null,null,null,null,null,null,null,null,0,0,0,0]
[null,null,null,null,null,null,null,null,0,0,0,0]
[null,null,null,null,null,null,null,null,0,0,0,0]
[null,null,null,null,null,null,null,null,0,0,0,0]
[null,null,null,null,null,null,null,null,0,0,0,0]
[null,null,null,null,null,null,null,null,0,0,0,0]
[null,null,null,null,null,null,null,null,0,0,0,0]
[null,null,null,null,null,null,null,null,0,0,0,0]
[null,null,null,null,null,null,null,null,0,0,0,0]
[null,null,null,null,null,null,null,null,0,0,0,0]
[null,null,null,null,null,null,null,null,0,0,0,0]
[null,null,null,null,null,null,null,null,0,0,0,0]
[null,null,null,null,null,null,null,null,0,0,0,0]
[null,null,null,null,null,null,null,null,0,0,0,0]
[null,null,null,null,null,null,null,null,0,0,0,0]
[null,null,null,null,null,null,null,null,0,0,0,0]
[null,null,null,null,null,null,null,null,0,0,0,0]
[null,null,null,null,null,null,null,null,0,0,0,0]
[null,null,null,null,null,null,null,null,0,0,0,0]
[null,null,null,null,null,null,null,null,0,0,0,0]
[null,null,null,null,null,null,null,null,0,0,0,0]
[null,null,null,null,null,null,null,null,0,0,0,0]
[null,null,null,null,null,null,null,null,0,0,0,0]
[null,null,null,null,null,null,null,null,0,0,0,0]
[null,null,null,null,null,null,null,null,0,0,0,0]
[null,null,null,null,null,null,null,null,0,0,0,0]
[null,null,null,null,null,null,null,null,0,0,0,0]
[null,null,null,null,null,null,null,null,0,0,0,0]
[null,null,null,null,null,null,null,null,0,0,0,0]
[null,null,null,null,null,null,null,null,0,0,0,0]
[null,null,null,null,null,null,null,null,0,0,0,0]
[null,null,null,null,null,null,null,null,0,0,0,0]
[null,null,null,null,null,null,null,null,0,0,0,0]
[null,null,null,null,null,null,null,null,0,0,0,0]
[null,null,null,null,null,null,null,null,0,0,0,0]
[null,null,null,null,null,null,null,null,0,0,0,0]
[null,null,null,null,null,null,null,null,0,0,0,0]
[null,null,null,null,null,null,null,null,0,0,0,0]
[null,null,null,null,null,null,null,null,{"$f":"SUM(D203:E203)","v":0},{"$f":"E203","v":0},0,{"$f":"SUM(H203,I203,K203)","v":0}]
[null,null,null,null,null,null,null,null,0,0,{"$f":"SUM(F204:G204)","v":0},0]
[null,null,null,null,null,null,null,null,0,0,0,0]
[null,null,null,null,null,null,null,null,0,0,0,0]
[null,null,null,null,null,null,null,null,0,0,0,0]
[null,null,null,null,null,null,null,null,0,0,0,0]
[null,null,null,null,null,null,null,null,0,0,0,0]

{"sheet":"BGAD12","index":15,"n_rows":209,"n_cols":12,"rows_kept":209,"cut":false,"hidden":false,"merged":[[6,3,6,11],[7,3,7,4],[7,5,7,6],[7,7,7,11],[0,0,0,11],[2,0,2,1],[2,2,2,3],[3,0,3,1],[3,2,3,3],[4,0,4,1],[4,2,4,3]]}
["Déclaration profesionelle de la MLNU"]
[]
["Année de récolte :",null,"2021-2022"]
["Unité d'aménagement :",null,{"$f":"Sommaire!$C$4","v":0}]
["No. Du BGAd :"]
[]
[null,null,null,"Répartition des volumes"]
[null,null,null,"MLNU-RG",null,"MLNU-ND Qualité «U»",null,"MLNU Déclarée"]
["Code Essence","Nom essence","No. Client","Superficies traitées «V»","Superficies non traitées non justifiées «W»","Ententes\nOM MLNU","Entente allègement copeaux","MLNU-ND\nQualité \"X\"","MLNU-RG","MLNU-ND\nQualité \"W\"","MLNU-ND\nQualité \"U\"","Total du Client"]
["010","Épinette (autre que Norvège)",null,null,null,null,null,null,{"$f":"SUM(D10:E10)","v":0},{"$f":"E10","v":0},{"$f":"SUM(F10:G10)","v":0},{"$f":"SUM(H10,I10,K10)","v":0}]
["014","Épinette de Norvège",null,null,null,null,null,null,{"$f":"SUM(D11:E11)","v":0},{"$f":"E11","v":0},0,{"$f":"SUM(H11,I11,K11)","v":0}]
["030","Mélèze laricin",null,null,null,null,null,null,0,0,0,0]
["043","Pin gris et sylvestre",null,null,null,null,null,null,0,0,0,0]
["060","Sapin baumier",null,null,null,null,null,null,0,0,0,0]
["190","Peuplier (autre que Baumier)",null,null,null,null,null,null,0,0,0,0]
["191","Peuplier baumier",null,null,null,null,null,null,0,0,0,0]
["105","Bouleau blanc ",null,null,null,null,null,null,0,0,0,0]
["104","Bouleau jaune",null,null,null,null,null,null,0,0,0,0]
["132","Érable à sucre",null,null,null,null,null,null,0,0,0,0]
["133","Érable rouge",null,null,null,null,null,null,0,0,0,0]
["135","Érables - Autres ",null,null,null,null,null,null,0,0,0,0]
["120","Chêne ",null,null,null,null,null,null,0,0,0,0]
["141","Frêne d’Amérique (blanc)",null,null,null,null,null,null,0,0,0,0]
["142","Frêne noir",null,null,null,null,null,null,0,0,0,0]
["150","Hêtre",null,null,null,null,null,null,0,0,0,0]
["160","Noyer",null,null,null,null,null,null,0,0,0,0]
["165","Caryer",null,null,null,null,null,null,0,0,0,0]
["170","Orme",null,null,null,null,null,null,0,0,0,0]
["180","Ostryer de Virginie",null,null,null,null,null,null,0,0,0,0]
["110","Cerisier tardif",null,null,null,null,null,null,0,0,0,0]
["210","Tilleul d’Amérique",null,null,null,null,null,null,0,0,0,0]
["041","Pin blanc",null,null,null,null,null,null,0,0,0,0]
["042","Pin rouge",null,null,null,null,null,null,0,0,0,0]
["050","Pruche de l’Est",null,null,null,null,null,null,0,0,0,0]
["080","Thuya occidental",null,null,null,null,null,null,0,0,0,0]
[null,null,null,null,null,null,null,null,0,0,0,0]
[null,null,null,null,null,null,null,null,0,0,0,0]
[null,null,null,null,null,null,null,null,0,0,0,0]
[null,null,null,null,null,null,null,null,0,0,0,0]
[null,null,null,null,null,null,null,null,0,0,0,0]
[null,null,null,null,null,null,null,null,0,0,0,0]
[null,null,null,null,null,null,null,null,0,0,0,0]
[null,null,null,null,null,null,null,null,0,0,0,0]
[null,null,null,null,null,null,null,null,0,0,0,0]
[null,null,null,null,null,null,null,null,0,0,0,0]
[null,null,null,null,null,null,null,null,0,0,0,0]
[null,null,null,null,null,null,null,null,0,0,0,0]
[null,null,null,null,null,null,null,null,0,0,0,0]
[null,null,null,null,null,null,null,null,0,0,0,0]
[null,null,null,null,null,null,null,null,0,0,0,0]
[null,null,null,null,null,null,null,null,0,0,0,0]
[null,null,null,null,null,null,null,null,0,0,0,0]
[null,null,null,null,null,null,null,null,0,0,0,0]
[null,null,null,null,null,null,null,null,0,0,0,0]
[null,null,null,null,null,null,null,null,0,0,0,0]
[null,null,null,null,null,null,null,null,0,0,0,0]
[null,null,null,null,null,null,null,null,0,0,0,0]
[null,null,null,null,null,null,null,null,0,0,0,0]
[null,null,null,null,null,null,null,null,0,0,0,0]
[null,null,null,null,null,null,null,null,0,0,0,0]
[null,null,null,null,null,null,null,null,0,0,0,0]
[null,null,null,null,null,null,null,null,0,0,0,0]
[null,null,null,null,null,null,null,null,0,0,0,0]
[null,null,null,null,null,null,null,null,0,0,0,0]
[null,null,null,null,null,null,null,null,0,0,0,0]
[null,null,null,null,null,null,null,null,0,0,0,0]
[null,null,null,null,null,null,null,null,0,0,0,0]
[null,null,null,null,null,null,null,null,0,0,0,0]
[null,null,null,null,null,null,null,null,0,0,0,0]
[null,null,null,null,null,null,null,null,0,0,0,0]
[null,null,null,null,null,null,null,null,0,0,0,0]
[null,null,null,null,null,null,null,null,0,0,0,0]
[null,null,null,null,null,null,null,null,0,0,0,0]
[null,null,null,null,null,null,null,null,0,0,{"$f":"SUM(F74:G74)","v":0},0]
[null,null,null,null,null,null,null,null,{"$f":"SUM(D75:E75)","v":0},{"$f":"E75","v":0},0,{"$f":"SUM(H75,I75,K75)","v":0}]
[null,null,null,null,null,null,null,null,0,0,0,0]
[null,null,null,null,null,null,null,null,0,0,0,0]
[null,null,null,null,null,null,null,null,0,0,0,0]
[null,null,null,null,null,null,null,null,0,0,0,0]
[null,null,null,null,null,null,null,null,0,0,0,0]
[null,null,null,null,null,null,null,null,0,0,0,0]
[null,null,null,null,null,null,null,null,0,0,0,0]
[null,null,null,null,null,null,null,null,0,0,0,0]
[null,null,null,null,null,null,null,null,0,0,0,0]
[null,null,null,null,null,null,null,null,0,0,0,0]
[null,null,null,null,null,null,null,null,0,0,0,0]
[null,null,null,null,null,null,null,null,0,0,0,0]
[null,null,null,null,null,null,null,null,0,0,0,0]
[null,null,null,null,null,null,null,null,0,0,0,0]
[null,null,null,null,null,null,null,null,0,0,0,0]
[null,null,null,null,null,null,null,null,0,0,0,0]
[null,null,null,null,null,null,null,null,0,0,0,0]
[null,null,null,null,null,null,null,null,0,0,0,0]
[null,null,null,null,null,null,null,null,0,0,0,0]
[null,null,null,null,null,null,null,null,0,0,0,0]
[null,null,null,null,null,null,null,null,0,0,0,0]
[null,null,null,null,null,null,null,null,0,0,0,0]
[null,null,null,null,null,null,null,null,0,0,0,0]
[null,null,null,null,null,null,null,null,0,0,0,0]
[null,null,null,null,null,null,null,null,0,0,0,0]
[null,null,null,null,null,null,null,null,0,0,0,0]
[null,null,null,null,null,null,null,null,0,0,0,0]
[null,null,null,null,null,null,null,null,0,0,0,0]
[null,null,null,null,null,null,null,null,0,0,0,0]
[null,null,null,null,null,null,null,null,0,0,0,0]
[null,null,null,null,null,null,null,null,0,0,0,0]
[null,null,null,null,null,null,null,null,0,0,0,0]
[null,null,null,null,null,null,null,null,0,0,0,0]
[null,null,null,null,null,null,null,null,0,0,0,0]
[null,null,null,null,null,null,null,null,0,0,0,0]
[null,null,null,null,null,null,null,null,0,0,0,0]
[null,null,null,null,null,null,null,null,0,0,0,0]
[null,null,null,null,null,null,null,null,0,0,0,0]
[null,null,null,null,null,null,null,null,0,0,0,0]
[null,null,null,null,null,null,null,null,0,0,0,0]
[null,null,null,null,null,null,null,null,0,0,0,0]
[null,null,null,null,null,null,null,null,0,0,0,0]
[null,null,null,null,null,null,null,null,0,0,0,0]
[null,null,null,null,null,null,null,null,0,0,0,0]
[null,null,null,null,null,null,null,null,0,0,0,0]
[null,null,null,null,null,null,null,null,0,0,0,0]
[null,null,null,null,null,null,null,null,0,0,0,0]
[null,null,null,null,null,null,null,null,0,0,0,0]
[null,null,null,null,null,null,null,null,0,0,0,0]
[null,null,null,null,null,null,null,null,0,0,0,0]
[null,null,null,null,null,null,null,null,0,0,0,0]
[null,null,null,null,null,null,null,null,0,0,0,0]
[null,null,null,null,null,null,null,null,0,0,0,0]
[null,null,null,null,null,null,null,null,0,0,0,0]
[null,null,null,null,null,null,null,null,0,0,0,0]
[null,null,null,null,null,null,null,null,0,0,0,0]
[null,null,null,null,null,null,null,null,0,0,0,0]
[null,null,null,null,null,null,null,null,0,0,0,0]
[null,null,null,null,null,null,null,null,0,0,0,0]
[null,null,null,null,null,null,null,null,0,0,0,0]
[null,null,null,null,null,null,null,null,0,0,0,0]
[null,null,null,null,null,null,null,null,0,0,0,0]
[null,null,null,null,null,null,null,null,0,0,{"$f":"SUM(F138:G138)","v":0},0]
[null,null,null,null,null,null,null,null,{"$f":"SUM(D139:E139)","v":0},{"$f":"E139","v":0},0,{"$f":"SUM(H139,I139,K139)","v":0}]
[null,null,null,null,null,null,null,null,0,0,{"$f":"SUM(F140:G140)","v":0},0]
[null,null,null,null,null,null,null,null,0,0,0,0]
[null,null,null,null,null,null,null,null,0,0,0,0]
[null,null,null,null,null,null,null,null,0,0,0,0]
[null,null,null,null,null,null,null,null,0,0,0,0]
[null,null,null,null,null,null,null,null,0,0,0,0]
[null,null,null,null,null,null,null,null,0,0,0,0]
[null,null,null,null,null,null,null,null,0,0,0,0]
[null,null,null,null,null,null,null,null,0,0,0,0]
[null,null,null,null,null,null,null,null,0,0,0,0]
[null,null,null,null,null,null,null,null,0,0,0,0]
[null,null,null,null,null,null,null,null,0,0,0,0]
[null,null,null,null,null,null,null,null,0,0,0,0]
[null,null,null,null,null,null,null,null,0,0,0,0]
[null,null,null,null,null,null,null,null,0,0,0,0]
[null,null,null,null,null,null,null,null,0,0,0,0]
[null,null,null,null,null,null,null,null,0,0,0,0]
[null,null,null,null,null,null,null,null,0,0,0,0]
[null,null,null,null,null,null,null,null,0,0,0,0]
[null,null,null,null,null,null,null,null,0,0,0,0]
[null,null,null,null,null,null,null,null,0,0,0,0]
[null,null,null,null,null,null,null,null,0,0,0,0]
[null,null,null,null,null,null,null,null,0,0,0,0]
[null,null,null,null,null,null,null,null,0,0,0,0]
[null,null,null,null,null,null,null,null,0,0,0,0]
[null,null,null,null,null,null,null,null,0,0,0,0]
[null,null,null,null,null,null,null,null,0,0,0,0]
[null,null,null,null,null,null,null,null,0,0,0,0]
[null,null,null,null,null,null,null,null,0,0,0,0]
[null,null,null,null,null,null,null,null,0,0,0,0]
[null,null,null,null,null,null,null,null,0,0,0,0]
[null,null,null,null,null,null,null,null,0,0,0,0]
[null,null,null,null,null,null,null,null,0,0,0,0]
[null,null,null,null,null,null,null,null,0,0,0,0]
[null,null,null,null,null,null,null,null,0,0,0,0]
[null,null,null,null,null,null,null,null,0,0,0,0]
[null,null,null,null,null,null,null,null,0,0,0,0]
[null,null,null,null,null,null,null,null,0,0,0,0]
[null,null,null,null,null,null,null,null,0,0,0,0]
[null,null,null,null,null,null,null,null,0,0,0,0]
[null,null,null,null,null,null,null,null,0,0,0,0]
[null,null,null,null,null,null,null,null,0,0,0,0]
[null,null,null,null,null,null,null,null,0,0,0,0]
[null,null,null,null,null,null,null,null,0,0,0,0]
[null,null,null,null,null,null,null,null,0,0,0,0]
[null,null,null,null,null,null,null,null,0,0,0,0]
[null,null,null,null,null,null,null,null,0,0,0,0]
[null,null,null,null,null,null,null,null,0,0,0,0]
[null,null,null,null,null,null,null,null,0,0,0,0]
[null,null,null,null,null,null,null,null,0,0,0,0]
[null,null,null,null,null,null,null,null,0,0,0,0]
[null,null,null,null,null,null,null,null,0,0,0,0]
[null,null,null,null,null,null,null,null,0,0,0,0]
[null,null,null,null,null,null,null,null,0,0,0,0]
[null,null,null,null,null,null,null,null,0,0,0,0]
[null,null,null,null,null,null,null,null,0,0,0,0]
[null,null,null,null,null,null,null,null,0,0,0,0]
[null,null,null,null,null,null,null,null,0,0,0,0]
[null,null,null,null,null,null,null,null,0,0,0,0]
[null,null,null,null,null,null,null,null,0,0,0,0]
[null,null,null,null,null,null,null,null,0,0,0,0]
[null,null,null,null,null,null,null,null,0,0,0,0]
[null,null,null,null,null,null,null,null,0,0,0,0]
[null,null,null,null,null,null,null,null,{"$f":"SUM(D203:E203)","v":0},{"$f":"E203","v":0},0,{"$f":"SUM(H203,I203,K203)","v":0}]
[null,null,null,null,null,null,null,null,0,0,{"$f":"SUM(F204:G204)","v":0},0]
[null,null,null,null,null,null,null,null,0,0,0,0]
[null,null,null,null,null,null,null,null,0,0,0,0]
[null,null,null,null,null,null,null,null,0,0,0,0]
[null,null,null,null,null,null,null,null,0,0,0,0]
[null,null,null,null,null,null,null,null,0,0,0,0]

{"sheet":"BGAD13","index":16,"n_rows":209,"n_cols":12,"rows_kept":209,"cut":false,"hidden":false,"merged":[[6,3,6,11],[7,3,7,4],[7,5,7,6],[7,7,7,11],[0,0,0,11],[2,0,2,1],[2,2,2,3],[3,0,3,1],[3,2,3,3],[4,0,4,1],[4,2,4,3]]}
["Déclaration profesionelle de la MLNU"]
[]
["Année de récolte :",null,"2021-2022"]
["Unité d'aménagement :",null,{"$f":"Sommaire!$C$4","v":0}]
["No. Du BGAd :"]
[]
[null,null,null,"Répartition des volumes"]
[null,null,null,"MLNU-RG",null,"MLNU-ND Qualité «U»",null,"MLNU Déclarée"]
["Code Essence","Nom essence","No. Client","Superficies traitées «V»","Superficies non traitées non justifiées «W»","Ententes\nOM MLNU","Entente allègement copeaux","MLNU-ND\nQualité \"X\"","MLNU-RG","MLNU-ND\nQualité \"W\"","MLNU-ND\nQualité \"U\"","Total du Client"]
["010","Épinette (autre que Norvège)",null,null,null,null,null,null,{"$f":"SUM(D10:E10)","v":0},{"$f":"E10","v":0},{"$f":"SUM(F10:G10)","v":0},{"$f":"SUM(H10,I10,K10)","v":0}]
["014","Épinette de Norvège",null,null,null,null,null,null,{"$f":"SUM(D11:E11)","v":0},{"$f":"E11","v":0},0,{"$f":"SUM(H11,I11,K11)","v":0}]
["030","Mélèze laricin",null,null,null,null,null,null,0,0,0,0]
["043","Pin gris et sylvestre",null,null,null,null,null,null,0,0,0,0]
["060","Sapin baumier",null,null,null,null,null,null,0,0,0,0]
["190","Peuplier (autre que Baumier)",null,null,null,null,null,null,0,0,0,0]
["191","Peuplier baumier",null,null,null,null,null,null,0,0,0,0]
["105","Bouleau blanc ",null,null,null,null,null,null,0,0,0,0]
["104","Bouleau jaune",null,null,null,null,null,null,0,0,0,0]
["132","Érable à sucre",null,null,null,null,null,null,0,0,0,0]
["133","Érable rouge",null,null,null,null,null,null,0,0,0,0]
["135","Érables - Autres ",null,null,null,null,null,null,0,0,0,0]
["120","Chêne ",null,null,null,null,null,null,0,0,0,0]
["141","Frêne d’Amérique (blanc)",null,null,null,null,null,null,0,0,0,0]
["142","Frêne noir",null,null,null,null,null,null,0,0,0,0]
["150","Hêtre",null,null,null,null,null,null,0,0,0,0]
["160","Noyer",null,null,null,null,null,null,0,0,0,0]
["165","Caryer",null,null,null,null,null,null,0,0,0,0]
["170","Orme",null,null,null,null,null,null,0,0,0,0]
["180","Ostryer de Virginie",null,null,null,null,null,null,0,0,0,0]
["110","Cerisier tardif",null,null,null,null,null,null,0,0,0,0]
["210","Tilleul d’Amérique",null,null,null,null,null,null,0,0,0,0]
["041","Pin blanc",null,null,null,null,null,null,0,0,0,0]
["042","Pin rouge",null,null,null,null,null,null,0,0,0,0]
["050","Pruche de l’Est",null,null,null,null,null,null,0,0,0,0]
["080","Thuya occidental",null,null,null,null,null,null,0,0,0,0]
[null,null,null,null,null,null,null,null,0,0,0,0]
[null,null,null,null,null,null,null,null,0,0,0,0]
[null,null,null,null,null,null,null,null,0,0,0,0]
[null,null,null,null,null,null,null,null,0,0,0,0]
[null,null,null,null,null,null,null,null,0,0,0,0]
[null,null,null,null,null,null,null,null,0,0,0,0]
[null,null,null,null,null,null,null,null,0,0,0,0]
[null,null,null,null,null,null,null,null,0,0,0,0]
[null,null,null,null,null,null,null,null,0,0,0,0]
[null,null,null,null,null,null,null,null,0,0,0,0]
[null,null,null,null,null,null,null,null,0,0,0,0]
[null,null,null,null,null,null,null,null,0,0,0,0]
[null,null,null,null,null,null,null,null,0,0,0,0]
[null,null,null,null,null,null,null,null,0,0,0,0]
[null,null,null,null,null,null,null,null,0,0,0,0]
[null,null,null,null,null,null,null,null,0,0,0,0]
[null,null,null,null,null,null,null,null,0,0,0,0]
[null,null,null,null,null,null,null,null,0,0,0,0]
[null,null,null,null,null,null,null,null,0,0,0,0]
[null,null,null,null,null,null,null,null,0,0,0,0]
[null,null,null,null,null,null,null,null,0,0,0,0]
[null,null,null,null,null,null,null,null,0,0,0,0]
[null,null,null,null,null,null,null,null,0,0,0,0]
[null,null,null,null,null,null,null,null,0,0,0,0]
[null,null,null,null,null,null,null,null,0,0,0,0]
[null,null,null,null,null,null,null,null,0,0,0,0]
[null,null,null,null,null,null,null,null,0,0,0,0]
[null,null,null,null,null,null,null,null,0,0,0,0]
[null,null,null,null,null,null,null,null,0,0,0,0]
[null,null,null,null,null,null,null,null,0,0,0,0]
[null,null,null,null,null,null,null,null,0,0,0,0]
[null,null,null,null,null,null,null,null,0,0,0,0]
[null,null,null,null,null,null,null,null,0,0,0,0]
[null,null,null,null,null,null,null,null,0,0,0,0]
[null,null,null,null,null,null,null,null,0,0,0,0]
[null,null,null,null,null,null,null,null,0,0,0,0]
[null,null,null,null,null,null,null,null,0,0,0,0]
[null,null,null,null,null,null,null,null,0,0,0,0]
[null,null,null,null,null,null,null,null,0,0,{"$f":"SUM(F74:G74)","v":0},0]
[null,null,null,null,null,null,null,null,{"$f":"SUM(D75:E75)","v":0},{"$f":"E75","v":0},0,{"$f":"SUM(H75,I75,K75)","v":0}]
[null,null,null,null,null,null,null,null,0,0,0,0]
[null,null,null,null,null,null,null,null,0,0,0,0]
[null,null,null,null,null,null,null,null,0,0,0,0]
[null,null,null,null,null,null,null,null,0,0,0,0]
[null,null,null,null,null,null,null,null,0,0,0,0]
[null,null,null,null,null,null,null,null,0,0,0,0]
[null,null,null,null,null,null,null,null,0,0,0,0]
[null,null,null,null,null,null,null,null,0,0,0,0]
[null,null,null,null,null,null,null,null,0,0,0,0]
[null,null,null,null,null,null,null,null,0,0,0,0]
[null,null,null,null,null,null,null,null,0,0,0,0]
[null,null,null,null,null,null,null,null,0,0,0,0]
[null,null,null,null,null,null,null,null,0,0,0,0]
[null,null,null,null,null,null,null,null,0,0,0,0]
[null,null,null,null,null,null,null,null,0,0,0,0]
[null,null,null,null,null,null,null,null,0,0,0,0]
[null,null,null,null,null,null,null,null,0,0,0,0]
[null,null,null,null,null,null,null,null,0,0,0,0]
[null,null,null,null,null,null,null,null,0,0,0,0]
[null,null,null,null,null,null,null,null,0,0,0,0]
[null,null,null,null,null,null,null,null,0,0,0,0]
[null,null,null,null,null,null,null,null,0,0,0,0]
[null,null,null,null,null,null,null,null,0,0,0,0]
[null,null,null,null,null,null,null,null,0,0,0,0]
[null,null,null,null,null,null,null,null,0,0,0,0]
[null,null,null,null,null,null,null,null,0,0,0,0]
[null,null,null,null,null,null,null,null,0,0,0,0]
[null,null,null,null,null,null,null,null,0,0,0,0]
[null,null,null,null,null,null,null,null,0,0,0,0]
[null,null,null,null,null,null,null,null,0,0,0,0]
[null,null,null,null,null,null,null,null,0,0,0,0]
[null,null,null,null,null,null,null,null,0,0,0,0]
[null,null,null,null,null,null,null,null,0,0,0,0]
[null,null,null,null,null,null,null,null,0,0,0,0]
[null,null,null,null,null,null,null,null,0,0,0,0]
[null,null,null,null,null,null,null,null,0,0,0,0]
[null,null,null,null,null,null,null,null,0,0,0,0]
[null,null,null,null,null,null,null,null,0,0,0,0]
[null,null,null,null,null,null,null,null,0,0,0,0]
[null,null,null,null,null,null,null,null,0,0,0,0]
[null,null,null,null,null,null,null,null,0,0,0,0]
[null,null,null,null,null,null,null,null,0,0,0,0]
[null,null,null,null,null,null,null,null,0,0,0,0]
[null,null,null,null,null,null,null,null,0,0,0,0]
[null,null,null,null,null,null,null,null,0,0,0,0]
[null,null,null,null,null,null,null,null,0,0,0,0]
[null,null,null,null,null,null,null,null,0,0,0,0]
[null,null,null,null,null,null,null,null,0,0,0,0]
[null,null,null,null,null,null,null,null,0,0,0,0]
[null,null,null,null,null,null,null,null,0,0,0,0]
[null,null,null,null,null,null,null,null,0,0,0,0]
[null,null,null,null,null,null,null,null,0,0,0,0]
[null,null,null,null,null,null,null,null,0,0,0,0]
[null,null,null,null,null,null,null,null,0,0,0,0]
[null,null,null,null,null,null,null,null,0,0,0,0]
[null,null,null,null,null,null,null,null,0,0,0,0]
[null,null,null,null,null,null,null,null,0,0,0,0]
[null,null,null,null,null,null,null,null,0,0,0,0]
[null,null,null,null,null,null,null,null,0,0,0,0]
[null,null,null,null,null,null,null,null,0,0,0,0]
[null,null,null,null,null,null,null,null,0,0,0,0]
[null,null,null,null,null,null,null,null,0,0,0,0]
[null,null,null,null,null,null,null,null,0,0,{"$f":"SUM(F138:G138)","v":0},0]
[null,null,null,null,null,null,null,null,{"$f":"SUM(D139:E139)","v":0},{"$f":"E139","v":0},0,{"$f":"SUM(H139,I139,K139)","v":0}]
[null,null,null,null,null,null,null,null,0,0,{"$f":"SUM(F140:G140)","v":0},0]
[null,null,null,null,null,null,null,null,0,0,0,0]
[null,null,null,null,null,null,null,null,0,0,0,0]
[null,null,null,null,null,null,null,null,0,0,0,0]
[null,null,null,null,null,null,null,null,0,0,0,0]
[null,null,null,null,null,null,null,null,0,0,0,0]
[null,null,null,null,null,null,null,null,0,0,0,0]
[null,null,null,null,null,null,null,null,0,0,0,0]
[null,null,null,null,null,null,null,null,0,0,0,0]
[null,null,null,null,null,null,null,null,0,0,0,0]
[null,null,null,null,null,null,null,null,0,0,0,0]
[null,null,null,null,null,null,null,null,0,0,0,0]
[null,null,null,null,null,null,null,null,0,0,0,0]
[null,null,null,null,null,null,null,null,0,0,0,0]
[null,null,null,null,null,null,null,null,0,0,0,0]
[null,null,null,null,null,null,null,null,0,0,0,0]
[null,null,null,null,null,null,null,null,0,0,0,0]
[null,null,null,null,null,null,null,null,0,0,0,0]
[null,null,null,null,null,null,null,null,0,0,0,0]
[null,null,null,null,null,null,null,null,0,0,0,0]
[null,null,null,null,null,null,null,null,0,0,0,0]
[null,null,null,null,null,null,null,null,0,0,0,0]
[null,null,null,null,null,null,null,null,0,0,0,0]
[null,null,null,null,null,null,null,null,0,0,0,0]
[null,null,null,null,null,null,null,null,0,0,0,0]
[null,null,null,null,null,null,null,null,0,0,0,0]
[null,null,null,null,null,null,null,null,0,0,0,0]
[null,null,null,null,null,null,null,null,0,0,0,0]
[null,null,null,null,null,null,null,null,0,0,0,0]
[null,null,null,null,null,null,null,null,0,0,0,0]
[null,null,null,null,null,null,null,null,0,0,0,0]
[null,null,null,null,null,null,null,null,0,0,0,0]
[null,null,null,null,null,null,null,null,0,0,0,0]
[null,null,null,null,null,null,null,null,0,0,0,0]
[null,null,null,null,null,null,null,null,0,0,0,0]
[null,null,null,null,null,null,null,null,0,0,0,0]
[null,null,null,null,null,null,null,null,0,0,0,0]
[null,null,null,null,null,null,null,null,0,0,0,0]
[null,null,null,null,null,null,null,null,0,0,0,0]
[null,null,null,null,null,null,null,null,0,0,0,0]
[null,null,null,null,null,null,null,null,0,0,0,0]
[null,null,null,null,null,null,null,null,0,0,0,0]
[null,null,null,null,null,null,null,null,0,0,0,0]
[null,null,null,null,null,null,null,null,0,0,0,0]
[null,null,null,null,null,null,null,null,0,0,0,0]
[null,null,null,null,null,null,null,null,0,0,0,0]
[null,null,null,null,null,null,null,null,0,0,0,0]
[null,null,null,null,null,null,null,null,0,0,0,0]
[null,null,null,null,null,null,null,null,0,0,0,0]
[null,null,null,null,null,null,null,null,0,0,0,0]
[null,null,null,null,null,null,null,null,0,0,0,0]
[null,null,null,null,null,null,null,null,0,0,0,0]
[null,null,null,null,null,null,null,null,0,0,0,0]
[null,null,null,null,null,null,null,null,0,0,0,0]
[null,null,null,null,null,null,null,null,0,0,0,0]
[null,null,null,null,null,null,null,null,0,0,0,0]
[null,null,null,null,null,null,null,null,0,0,0,0]
[null,null,null,null,null,null,null,null,0,0,0,0]
[null,null,null,null,null,null,null,null,0,0,0,0]
[null,null,null,null,null,null,null,null,0,0,0,0]
[null,null,null,null,null,null,null,null,0,0,0,0]
[null,null,null,null,null,null,null,null,0,0,0,0]
[null,null,null,null,null,null,null,null,0,0,0,0]
[null,null,null,null,null,null,null,null,{"$f":"SUM(D203:E203)","v":0},{"$f":"E203","v":0},0,{"$f":"SUM(H203,I203,K203)","v":0}]
[null,null,null,null,null,null,null,null,0,0,{"$f":"SUM(F204:G204)","v":0},0]
[null,null,null,null,null,null,null,null,0,0,0,0]
[null,null,null,null,null,null,null,null,0,0,0,0]
[null,null,null,null,null,null,null,null,0,0,0,0]
[null,null,null,null,null,null,null,null,0,0,0,0]
[null,null,null,null,null,null,null,null,0,0,0,0]

{"sheet":"BGAD14","index":17,"n_rows":209,"n_cols":12,"rows_kept":209,"cut":false,"hidden":false,"merged":[[6,3,6,11],[7,3,7,4],[7,5,7,6],[7,7,7,11],[0,0,0,11],[2,0,2,1],[2,2,2,3],[3,0,3,1],[3,2,3,3],[4,0,4,1],[4,2,4,3]]}
["Déclaration profesionelle de la MLNU"]
[]
["Année de récolte :",null,"2021-2022"]
["Unité d'aménagement :",null,{"$f":"Sommaire!$C$4","v":0}]
["No. Du BGAd :"]
[]
[null,null,null,"Répartition des volumes"]
[null,null,null,"MLNU-RG",null,"MLNU-ND Qualité «U»",null,"MLNU Déclarée"]
["Code Essence","Nom essence","No. Client","Superficies traitées «V»","Superficies non traitées non justifiées «W»","Ententes\nOM MLNU","Entente allègement copeaux","MLNU-ND\nQualité \"X\"","MLNU-RG","MLNU-ND\nQualité \"W\"","MLNU-ND\nQualité \"U\"","Total du Client"]
["010","Épinette (autre que Norvège)",null,null,null,null,null,null,{"$f":"SUM(D10:E10)","v":0},{"$f":"E10","v":0},{"$f":"SUM(F10:G10)","v":0},{"$f":"SUM(H10,I10,K10)","v":0}]
["014","Épinette de Norvège",null,null,null,null,null,null,{"$f":"SUM(D11:E11)","v":0},{"$f":"E11","v":0},0,{"$f":"SUM(H11,I11,K11)","v":0}]
["030","Mélèze laricin",null,null,null,null,null,null,0,0,0,0]
["043","Pin gris et sylvestre",null,null,null,null,null,null,0,0,0,0]
["060","Sapin baumier",null,null,null,null,null,null,0,0,0,0]
["190","Peuplier (autre que Baumier)",null,null,null,null,null,null,0,0,0,0]
["191","Peuplier baumier",null,null,null,null,null,null,0,0,0,0]
["105","Bouleau blanc ",null,null,null,null,null,null,0,0,0,0]
["104","Bouleau jaune",null,null,null,null,null,null,0,0,0,0]
["132","Érable à sucre",null,null,null,null,null,null,0,0,0,0]
["133","Érable rouge",null,null,null,null,null,null,0,0,0,0]
["135","Érables - Autres ",null,null,null,null,null,null,0,0,0,0]
["120","Chêne ",null,null,null,null,null,null,0,0,0,0]
["141","Frêne d’Amérique (blanc)",null,null,null,null,null,null,0,0,0,0]
["142","Frêne noir",null,null,null,null,null,null,0,0,0,0]
["150","Hêtre",null,null,null,null,null,null,0,0,0,0]
["160","Noyer",null,null,null,null,null,null,0,0,0,0]
["165","Caryer",null,null,null,null,null,null,0,0,0,0]
["170","Orme",null,null,null,null,null,null,0,0,0,0]
["180","Ostryer de Virginie",null,null,null,null,null,null,0,0,0,0]
["110","Cerisier tardif",null,null,null,null,null,null,0,0,0,0]
["210","Tilleul d’Amérique",null,null,null,null,null,null,0,0,0,0]
["041","Pin blanc",null,null,null,null,null,null,0,0,0,0]
["042","Pin rouge",null,null,null,null,null,null,0,0,0,0]
["050","Pruche de l’Est",null,null,null,null,null,null,0,0,0,0]
["080","Thuya occidental",null,null,null,null,null,null,0,0,0,0]
[null,null,null,null,null,null,null,null,0,0,0,0]
[null,null,null,null,null,null,null,null,0,0,0,0]
[null,null,null,null,null,null,null,null,0,0,0,0]
[null,null,null,null,null,null,null,null,0,0,0,0]
[null,null,null,null,null,null,null,null,0,0,0,0]
[null,null,null,null,null,null,null,null,0,0,0,0]
[null,null,null,null,null,null,null,null,0,0,0,0]
[null,null,null,null,null,null,null,null,0,0,0,0]
[null,null,null,null,null,null,null,null,0,0,0,0]
[null,null,null,null,null,null,null,null,0,0,0,0]
[null,null,null,null,null,null,null,null,0,0,0,0]
[null,null,null,null,null,null,null,null,0,0,0,0]
[null,null,null,null,null,null,null,null,0,0,0,0]
[null,null,null,null,null,null,null,null,0,0,0,0]
[null,null,null,null,null,null,null,null,0,0,0,0]
[null,null,null,null,null,null,null,null,0,0,0,0]
[null,null,null,null,null,null,null,null,0,0,0,0]
[null,null,null,null,null,null,null,null,0,0,0,0]
[null,null,null,null,null,null,null,null,0,0,0,0]
[null,null,null,null,null,null,null,null,0,0,0,0]
[null,null,null,null,null,null,null,null,0,0,0,0]
[null,null,null,null,null,null,null,null,0,0,0,0]
[null,null,null,null,null,null,null,null,0,0,0,0]
[null,null,null,null,null,null,null,null,0,0,0,0]
[null,null,null,null,null,null,null,null,0,0,0,0]
[null,null,null,null,null,null,null,null,0,0,0,0]
[null,null,null,null,null,null,null,null,0,0,0,0]
[null,null,null,null,null,null,null,null,0,0,0,0]
[null,null,null,null,null,null,null,null,0,0,0,0]
[null,null,null,null,null,null,null,null,0,0,0,0]
[null,null,null,null,null,null,null,null,0,0,0,0]
[null,null,null,null,null,null,null,null,0,0,0,0]
[null,null,null,null,null,null,null,null,0,0,0,0]
[null,null,null,null,null,null,null,null,0,0,0,0]
[null,null,null,null,null,null,null,null,0,0,0,0]
[null,null,null,null,null,null,null,null,0,0,0,0]
[null,null,null,null,null,null,null,null,0,0,0,0]
[null,null,null,null,null,null,null,null,0,0,0,0]
[null,null,null,null,null,null,null,null,0,0,{"$f":"SUM(F74:G74)","v":0},0]
[null,null,null,null,null,null,null,null,{"$f":"SUM(D75:E75)","v":0},{"$f":"E75","v":0},0,{"$f":"SUM(H75,I75,K75)","v":0}]
[null,null,null,null,null,null,null,null,0,0,0,0]
[null,null,null,null,null,null,null,null,0,0,0,0]
[null,null,null,null,null,null,null,null,0,0,0,0]
[null,null,null,null,null,null,null,null,0,0,0,0]
[null,null,null,null,null,null,null,null,0,0,0,0]
[null,null,null,null,null,null,null,null,0,0,0,0]
[null,null,null,null,null,null,null,null,0,0,0,0]
[null,null,null,null,null,null,null,null,0,0,0,0]
[null,null,null,null,null,null,null,null,0,0,0,0]
[null,null,null,null,null,null,null,null,0,0,0,0]
[null,null,null,null,null,null,null,null,0,0,0,0]
[null,null,null,null,null,null,null,null,0,0,0,0]
[null,null,null,null,null,null,null,null,0,0,0,0]
[null,null,null,null,null,null,null,null,0,0,0,0]
[null,null,null,null,null,null,null,null,0,0,0,0]
[null,null,null,null,null,null,null,null,0,0,0,0]
[null,null,null,null,null,null,null,null,0,0,0,0]
[null,null,null,null,null,null,null,null,0,0,0,0]
[null,null,null,null,null,null,null,null,0,0,0,0]
[null,null,null,null,null,null,null,null,0,0,0,0]
[null,null,null,null,null,null,null,null,0,0,0,0]
[null,null,null,null,null,null,null,null,0,0,0,0]
[null,null,null,null,null,null,null,null,0,0,0,0]
[null,null,null,null,null,null,null,null,0,0,0,0]
[null,null,null,null,null,null,null,null,0,0,0,0]
[null,null,null,null,null,null,null,null,0,0,0,0]
[null,null,null,null,null,null,null,null,0,0,0,0]
[null,null,null,null,null,null,null,null,0,0,0,0]
[null,null,null,null,null,null,null,null,0,0,0,0]
[null,null,null,null,null,null,null,null,0,0,0,0]
[null,null,null,null,null,null,null,null,0,0,0,0]
[null,null,null,null,null,null,null,null,0,0,0,0]
[null,null,null,null,null,null,null,null,0,0,0,0]
[null,null,null,null,null,null,null,null,0,0,0,0]
[null,null,null,null,null,null,null,null,0,0,0,0]
[null,null,null,null,null,null,null,null,0,0,0,0]
[null,null,null,null,null,null,null,null,0,0,0,0]
[null,null,null,null,null,null,null,null,0,0,0,0]
[null,null,null,null,null,null,null,null,0,0,0,0]
[null,null,null,null,null,null,null,null,0,0,0,0]
[null,null,null,null,null,null,null,null,0,0,0,0]
[null,null,null,null,null,null,null,null,0,0,0,0]
[null,null,null,null,null,null,null,null,0,0,0,0]
[null,null,null,null,null,null,null,null,0,0,0,0]
[null,null,null,null,null,null,null,null,0,0,0,0]
[null,null,null,null,null,null,null,null,0,0,0,0]
[null,null,null,null,null,null,null,null,0,0,0,0]
[null,null,null,null,null,null,null,null,0,0,0,0]
[null,null,null,null,null,null,null,null,0,0,0,0]
[null,null,null,null,null,null,null,null,0,0,0,0]
[null,null,null,null,null,null,null,null,0,0,0,0]
[null,null,null,null,null,null,null,null,0,0,0,0]
[null,null,null,null,null,null,null,null,0,0,0,0]
[null,null,null,null,null,null,null,null,0,0,0,0]
[null,null,null,null,null,null,null,null,0,0,0,0]
[null,null,null,null,null,null,null,null,0,0,0,0]
[null,null,null,null,null,null,null,null,0,0,0,0]
[null,null,null,null,null,null,null,null,0,0,0,0]
[null,null,null,null,null,null,null,null,0,0,0,0]
[null,null,null,null,null,null,null,null,0,0,0,0]
[null,null,null,null,null,null,null,null,0,0,0,0]
[null,null,null,null,null,null,null,null,0,0,0,0]
[null,null,null,null,null,null,null,null,0,0,{"$f":"SUM(F138:G138)","v":0},0]
[null,null,null,null,null,null,null,null,{"$f":"SUM(D139:E139)","v":0},{"$f":"E139","v":0},0,{"$f":"SUM(H139,I139,K139)","v":0}]
[null,null,null,null,null,null,null,null,0,0,{"$f":"SUM(F140:G140)","v":0},0]
[null,null,null,null,null,null,null,null,0,0,0,0]
[null,null,null,null,null,null,null,null,0,0,0,0]
[null,null,null,null,null,null,null,null,0,0,0,0]
[null,null,null,null,null,null,null,null,0,0,0,0]
[null,null,null,null,null,null,null,null,0,0,0,0]
[null,null,null,null,null,null,null,null,0,0,0,0]
[null,null,null,null,null,null,null,null,0,0,0,0]
[null,null,null,null,null,null,null,null,0,0,0,0]
[null,null,null,null,null,null,null,null,0,0,0,0]
[null,null,null,null,null,null,null,null,0,0,0,0]
[null,null,null,null,null,null,null,null,0,0,0,0]
[null,null,null,null,null,null,null,null,0,0,0,0]
[null,null,null,null,null,null,null,null,0,0,0,0]
[null,null,null,null,null,null,null,null,0,0,0,0]
[null,null,null,null,null,null,null,null,0,0,0,0]
[null,null,null,null,null,null,null,null,0,0,0,0]
[null,null,null,null,null,null,null,null,0,0,0,0]
[null,null,null,null,null,null,null,null,0,0,0,0]
[null,null,null,null,null,null,null,null,0,0,0,0]
[null,null,null,null,null,null,null,null,0,0,0,0]
[null,null,null,null,null,null,null,null,0,0,0,0]
[null,null,null,null,null,null,null,null,0,0,0,0]
[null,null,null,null,null,null,null,null,0,0,0,0]
[null,null,null,null,null,null,null,null,0,0,0,0]
[null,null,null,null,null,null,null,null,0,0,0,0]
[null,null,null,null,null,null,null,null,0,0,0,0]
[null,null,null,null,null,null,null,null,0,0,0,0]
[null,null,null,null,null,null,null,null,0,0,0,0]
[null,null,null,null,null,null,null,null,0,0,0,0]
[null,null,null,null,null,null,null,null,0,0,0,0]
[null,null,null,null,null,null,null,null,0,0,0,0]
[null,null,null,null,null,null,null,null,0,0,0,0]
[null,null,null,null,null,null,null,null,0,0,0,0]
[null,null,null,null,null,null,null,null,0,0,0,0]
[null,null,null,null,null,null,null,null,0,0,0,0]
[null,null,null,null,null,null,null,null,0,0,0,0]
[null,null,null,null,null,null,null,null,0,0,0,0]
[null,null,null,null,null,null,null,null,0,0,0,0]
[null,null,null,null,null,null,null,null,0,0,0,0]
[null,null,null,null,null,null,null,null,0,0,0,0]
[null,null,null,null,null,null,null,null,0,0,0,0]
[null,null,null,null,null,null,null,null,0,0,0,0]
[null,null,null,null,null,null,null,null,0,0,0,0]
[null,null,null,null,null,null,null,null,0,0,0,0]
[null,null,null,null,null,null,null,null,0,0,0,0]
[null,null,null,null,null,null,null,null,0,0,0,0]
[null,null,null,null,null,null,null,null,0,0,0,0]
[null,null,null,null,null,null,null,null,0,0,0,0]
[null,null,null,null,null,null,null,null,0,0,0,0]
[null,null,null,null,null,null,null,null,0,0,0,0]
[null,null,null,null,null,null,null,null,0,0,0,0]
[null,null,null,null,null,null,null,null,0,0,0,0]
[null,null,null,null,null,null,null,null,0,0,0,0]
[null,null,null,null,null,null,null,null,0,0,0,0]
[null,null,null,null,null,null,null,null,0,0,0,0]
[null,null,null,null,null,null,null,null,0,0,0,0]
[null,null,null,null,null,null,null,null,0,0,0,0]
[null,null,null,null,null,null,null,null,0,0,0,0]
[null,null,null,null,null,null,null,null,0,0,0,0]
[null,null,null,null,null,null,null,null,0,0,0,0]
[null,null,null,null,null,null,null,null,0,0,0,0]
[null,null,null,null,null,null,null,null,0,0,0,0]
[null,null,null,null,null,null,null,null,{"$f":"SUM(D203:E203)","v":0},{"$f":"E203","v":0},0,{"$f":"SUM(H203,I203,K203)","v":0}]
[null,null,null,null,null,null,null,null,0,0,{"$f":"SUM(F204:G204)","v":0},0]
[null,null,null,null,null,null,null,null,0,0,0,0]
[null,null,null,null,null,null,null,null,0,0,0,0]
[null,null,null,null,null,null,null,null,0,0,0,0]
[null,null,null,null,null,null,null,null,0,0,0,0]
[null,null,null,null,null,null,null,null,0,0,0,0]

{"sheet":"BGAD15","index":18,"n_rows":209,"n_cols":12,"rows_kept":209,"cut":false,"hidden":false,"merged":[[6,3,6,11],[7,3,7,4],[7,5,7,6],[7,7,7,11],[0,0,0,11],[2,0,2,1],[2,2,2,3],[3,0,3,1],[3,2,3,3],[4,0,4,1],[4,2,4,3]]}
["Déclaration profesionelle de la MLNU"]
[]
["Année de récolte :",null,"2021-2022"]
["Unité d'aménagement :",null,{"$f":"Sommaire!$C$4","v":0}]
["No. Du BGAd :"]
[]
[null,null,null,"Répartition des volumes"]
[null,null,null,"MLNU-RG",null,"MLNU-ND Qualité «U»",null,"MLNU Déclarée"]
["Code Essence","Nom essence","No. Client","Superficies traitées «V»","Superficies non traitées non justifiées «W»","Ententes\nOM MLNU","Entente allègement copeaux","MLNU-ND\nQualité \"X\"","MLNU-RG","MLNU-ND\nQualité \"W\"","MLNU-ND\nQualité \"U\"","Total du Client"]
["010","Épinette (autre que Norvège)",null,null,null,null,null,null,{"$f":"SUM(D10:E10)","v":0},{"$f":"E10","v":0},{"$f":"SUM(F10:G10)","v":0},{"$f":"SUM(H10,I10,K10)","v":0}]
["014","Épinette de Norvège",null,null,null,null,null,null,{"$f":"SUM(D11:E11)","v":0},{"$f":"E11","v":0},0,{"$f":"SUM(H11,I11,K11)","v":0}]
["030","Mélèze laricin",null,null,null,null,null,null,0,0,0,0]
["043","Pin gris et sylvestre",null,null,null,null,null,null,0,0,0,0]
["060","Sapin baumier",null,null,null,null,null,null,0,0,0,0]
["190","Peuplier (autre que Baumier)",null,null,null,null,null,null,0,0,0,0]
["191","Peuplier baumier",null,null,null,null,null,null,0,0,0,0]
["105","Bouleau blanc ",null,null,null,null,null,null,0,0,0,0]
["104","Bouleau jaune",null,null,null,null,null,null,0,0,0,0]
["132","Érable à sucre",null,null,null,null,null,null,0,0,0,0]
["133","Érable rouge",null,null,null,null,null,null,0,0,0,0]
["135","Érables - Autres ",null,null,null,null,null,null,0,0,0,0]
["120","Chêne ",null,null,null,null,null,null,0,0,0,0]
["141","Frêne d’Amérique (blanc)",null,null,null,null,null,null,0,0,0,0]
["142","Frêne noir",null,null,null,null,null,null,0,0,0,0]
["150","Hêtre",null,null,null,null,null,null,0,0,0,0]
["160","Noyer",null,null,null,null,null,null,0,0,0,0]
["165","Caryer",null,null,null,null,null,null,0,0,0,0]
["170","Orme",null,null,null,null,null,null,0,0,0,0]
["180","Ostryer de Virginie",null,null,null,null,null,null,0,0,0,0]
["110","Cerisier tardif",null,null,null,null,null,null,0,0,0,0]
["210","Tilleul d’Amérique",null,null,null,null,null,null,0,0,0,0]
["041","Pin blanc",null,null,null,null,null,null,0,0,0,0]
["042","Pin rouge",null,null,null,null,null,null,0,0,0,0]
["050","Pruche de l’Est",null,null,null,null,null,null,0,0,0,0]
["080","Thuya occidental",null,null,null,null,null,null,0,0,0,0]
[null,null,null,null,null,null,null,null,0,0,0,0]
[null,null,null,null,null,null,null,null,0,0,0,0]
[null,null,null,null,null,null,null,null,0,0,0,0]
[null,null,null,null,null,null,null,null,0,0,0,0]
[null,null,null,null,null,null,null,null,0,0,0,0]
[null,null,null,null,null,null,null,null,0,0,0,0]
[null,null,null,null,null,null,null,null,0,0,0,0]
[null,null,null,null,null,null,null,null,0,0,0,0]
[null,null,null,null,null,null,null,null,0,0,0,0]
[null,null,null,null,null,null,null,null,0,0,0,0]
[null,null,null,null,null,null,null,null,0,0,0,0]
[null,null,null,null,null,null,null,null,0,0,0,0]
[null,null,null,null,null,null,null,null,0,0,0,0]
[null,null,null,null,null,null,null,null,0,0,0,0]
[null,null,null,null,null,null,null,null,0,0,0,0]
[null,null,null,null,null,null,null,null,0,0,0,0]
[null,null,null,null,null,null,null,null,0,0,0,0]
[null,null,null,null,null,null,null,null,0,0,0,0]
[null,null,null,null,null,null,null,null,0,0,0,0]
[null,null,null,null,null,null,null,null,0,0,0,0]
[null,null,null,null,null,null,null,null,0,0,0,0]
[null,null,null,null,null,null,null,null,0,0,0,0]
[null,null,null,null,null,null,null,null,0,0,0,0]
[null,null,null,null,null,null,null,null,0,0,0,0]
[null,null,null,null,null,null,null,null,0,0,0,0]
[null,null,null,null,null,null,null,null,0,0,0,0]
[null,null,null,null,null,null,null,null,0,0,0,0]
[null,null,null,null,null,null,null,null,0,0,0,0]
[null,null,null,null,null,null,null,null,0,0,0,0]
[null,null,null,null,null,null,null,null,0,0,0,0]
[null,null,null,null,null,null,null,null,0,0,0,0]
[null,null,null,null,null,null,null,null,0,0,0,0]
[null,null,null,null,null,null,null,null,0,0,0,0]
[null,null,null,null,null,null,null,null,0,0,0,0]
[null,null,null,null,null,null,null,null,0,0,0,0]
[null,null,null,null,null,null,null,null,0,0,0,0]
[null,null,null,null,null,null,null,null,0,0,0,0]
[null,null,null,null,null,null,null,null,0,0,0,0]
[null,null,null,null,null,null,null,null,0,0,{"$f":"SUM(F74:G74)","v":0},0]
[null,null,null,null,null,null,null,null,{"$f":"SUM(D75:E75)","v":0},{"$f":"E75","v":0},0,{"$f":"SUM(H75,I75,K75)","v":0}]
[null,null,null,null,null,null,null,null,0,0,0,0]
[null,null,null,null,null,null,null,null,0,0,0,0]
[null,null,null,null,null,null,null,null,0,0,0,0]
[null,null,null,null,null,null,null,null,0,0,0,0]
[null,null,null,null,null,null,null,null,0,0,0,0]
[null,null,null,null,null,null,null,null,0,0,0,0]
[null,null,null,null,null,null,null,null,0,0,0,0]
[null,null,null,null,null,null,null,null,0,0,0,0]
[null,null,null,null,null,null,null,null,0,0,0,0]
[null,null,null,null,null,null,null,null,0,0,0,0]
[null,null,null,null,null,null,null,null,0,0,0,0]
[null,null,null,null,null,null,null,null,0,0,0,0]
[null,null,null,null,null,null,null,null,0,0,0,0]
[null,null,null,null,null,null,null,null,0,0,0,0]
[null,null,null,null,null,null,null,null,0,0,0,0]
[null,null,null,null,null,null,null,null,0,0,0,0]
[null,null,null,null,null,null,null,null,0,0,0,0]
[null,null,null,null,null,null,null,null,0,0,0,0]
[null,null,null,null,null,null,null,null,0,0,0,0]
[null,null,null,null,null,null,null,null,0,0,0,0]
[null,null,null,null,null,null,null,null,0,0,0,0]
[null,null,null,null,null,null,null,null,0,0,0,0]
[null,null,null,null,null,null,null,null,0,0,0,0]
[null,null,null,null,null,null,null,null,0,0,0,0]
[null,null,null,null,null,null,null,null,0,0,0,0]
[null,null,null,null,null,null,null,null,0,0,0,0]
[null,null,null,null,null,null,null,null,0,0,0,0]
[null,null,null,null,null,null,null,null,0,0,0,0]
[null,null,null,null,null,null,null,null,0,0,0,0]
[null,null,null,null,null,null,null,null,0,0,0,0]
[null,null,null,null,null,null,null,null,0,0,0,0]
[null,null,null,null,null,null,null,null,0,0,0,0]
[null,null,null,null,null,null,null,null,0,0,0,0]
[null,null,null,null,null,null,null,null,0,0,0,0]
[null,null,null,null,null,null,null,null,0,0,0,0]
[null,null,null,null,null,null,null,null,0,0,0,0]
[null,null,null,null,null,null,null,null,0,0,0,0]
[null,null,null,null,null,null,null,null,0,0,0,0]
[null,null,null,null,null,null,null,null,0,0,0,0]
[null,null,null,null,null,null,null,null,0,0,0,0]
[null,null,null,null,null,null,null,null,0,0,0,0]
[null,null,null,null,null,null,null,null,0,0,0,0]
[null,null,null,null,null,null,null,null,0,0,0,0]
[null,null,null,null,null,null,null,null,0,0,0,0]
[null,null,null,null,null,null,null,null,0,0,0,0]
[null,null,null,null,null,null,null,null,0,0,0,0]
[null,null,null,null,null,null,null,null,0,0,0,0]
[null,null,null,null,null,null,null,null,0,0,0,0]
[null,null,null,null,null,null,null,null,0,0,0,0]
[null,null,null,null,null,null,null,null,0,0,0,0]
[null,null,null,null,null,null,null,null,0,0,0,0]
[null,null,null,null,null,null,null,null,0,0,0,0]
[null,null,null,null,null,null,null,null,0,0,0,0]
[null,null,null,null,null,null,null,null,0,0,0,0]
[null,null,null,null,null,null,null,null,0,0,0,0]
[null,null,null,null,null,null,null,null,0,0,0,0]
[null,null,null,null,null,null,null,null,0,0,0,0]
[null,null,null,null,null,null,null,null,0,0,0,0]
[null,null,null,null,null,null,null,null,0,0,0,0]
[null,null,null,null,null,null,null,null,0,0,0,0]
[null,null,null,null,null,null,null,null,0,0,0,0]
[null,null,null,null,null,null,null,null,0,0,0,0]
[null,null,null,null,null,null,null,null,0,0,{"$f":"SUM(F138:G138)","v":0},0]
[null,null,null,null,null,null,null,null,{"$f":"SUM(D139:E139)","v":0},{"$f":"E139","v":0},0,{"$f":"SUM(H139,I139,K139)","v":0}]
[null,null,null,null,null,null,null,null,0,0,{"$f":"SUM(F140:G140)","v":0},0]
[null,null,null,null,null,null,null,null,0,0,0,0]
[null,null,null,null,null,null,null,null,0,0,0,0]
[null,null,null,null,null,null,null,null,0,0,0,0]
[null,null,null,null,null,null,null,null,0,0,0,0]
[null,null,null,null,null,null,null,null,0,0,0,0]
[null,null,null,null,null,null,null,null,0,0,0,0]
[null,null,null,null,null,null,null,null,0,0,0,0]
[null,null,null,null,null,null,null,null,0,0,0,0]
[null,null,null,null,null,null,null,null,0,0,0,0]
[null,null,null,null,null,null,null,null,0,0,0,0]
[null,null,null,null,null,null,null,null,0,0,0,0]
[null,null,null,null,null,null,null,null,0,0,0,0]
[null,null,null,null,null,null,null,null,0,0,0,0]
[null,null,null,null,null,null,null,null,0,0,0,0]
[null,null,null,null,null,null,null,null,0,0,0,0]
[null,null,null,null,null,null,null,null,0,0,0,0]
[null,null,null,null,null,null,null,null,0,0,0,0]
[null,null,null,null,null,null,null,null,0,0,0,0]
[null,null,null,null,null,null,null,null,0,0,0,0]
[null,null,null,null,null,null,null,null,0,0,0,0]
[null,null,null,null,null,null,null,null,0,0,0,0]
[null,null,null,null,null,null,null,null,0,0,0,0]
[null,null,null,null,null,null,null,null,0,0,0,0]
[null,null,null,null,null,null,null,null,0,0,0,0]
[null,null,null,null,null,null,null,null,0,0,0,0]
[null,null,null,null,null,null,null,null,0,0,0,0]
[null,null,null,null,null,null,null,null,0,0,0,0]
[null,null,null,null,null,null,null,null,0,0,0,0]
[null,null,null,null,null,null,null,null,0,0,0,0]
[null,null,null,null,null,null,null,null,0,0,0,0]
[null,null,null,null,null,null,null,null,0,0,0,0]
[null,null,null,null,null,null,null,null,0,0,0,0]
[null,null,null,null,null,null,null,null,0,0,0,0]
[null,null,null,null,null,null,null,null,0,0,0,0]
[null,null,null,null,null,null,null,null,0,0,0,0]
[null,null,null,null,null,null,null,null,0,0,0,0]
[null,null,null,null,null,null,null,null,0,0,0,0]
[null,null,null,null,null,null,null,null,0,0,0,0]
[null,null,null,null,null,null,null,null,0,0,0,0]
[null,null,null,null,null,null,null,null,0,0,0,0]
[null,null,null,null,null,null,null,null,0,0,0,0]
[null,null,null,null,null,null,null,null,0,0,0,0]
[null,null,null,null,null,null,null,null,0,0,0,0]
[null,null,null,null,null,null,null,null,0,0,0,0]
[null,null,null,null,null,null,null,null,0,0,0,0]
[null,null,null,null,null,null,null,null,0,0,0,0]
[null,null,null,null,null,null,null,null,0,0,0,0]
[null,null,null,null,null,null,null,null,0,0,0,0]
[null,null,null,null,null,null,null,null,0,0,0,0]
[null,null,null,null,null,null,null,null,0,0,0,0]
[null,null,null,null,null,null,null,null,0,0,0,0]
[null,null,null,null,null,null,null,null,0,0,0,0]
[null,null,null,null,null,null,null,null,0,0,0,0]
[null,null,null,null,null,null,null,null,0,0,0,0]
[null,null,null,null,null,null,null,null,0,0,0,0]
[null,null,null,null,null,null,null,null,0,0,0,0]
[null,null,null,null,null,null,null,null,0,0,0,0]
[null,null,null,null,null,null,null,null,0,0,0,0]
[null,null,null,null,null,null,null,null,0,0,0,0]
[null,null,null,null,null,null,null,null,0,0,0,0]
[null,null,null,null,null,null,null,null,0,0,0,0]
[null,null,null,null,null,null,null,null,0,0,0,0]
[null,null,null,null,null,null,null,null,{"$f":"SUM(D203:E203)","v":0},{"$f":"E203","v":0},0,{"$f":"SUM(H203,I203,K203)","v":0}]
[null,null,null,null,null,null,null,null,0,0,{"$f":"SUM(F204:G204)","v":0},0]
[null,null,null,null,null,null,null,null,0,0,0,0]
[null,null,null,null,null,null,null,null,0,0,0,0]
[null,null,null,null,null,null,null,null,0,0,0,0]
[null,null,null,null,null,null,null,null,0,0,0,0]
[null,null,null,null,null,null,null,null,0,0,0,0]

{"sheet":"Ajustement","index":19,"n_rows":209,"n_cols":13,"rows_kept":209,"cut":false,"hidden":false,"merged":[[5,12,7,12],[0,0,0,11],[7,3,7,4],[7,7,7,11],[7,5,7,6],[2,0,2,1],[3,0,3,1],[4,0,4,1],[2,2,2,3],[3,2,3,3],[4,2,4,3],[6,3,6,11]]}
["Ajustement MLNU fait par le MFFP"]
[]
["Année de récolte :",null,"2021-2022"]
["Unité d'aménagement :",null,{"$f":"Sommaire!$C$4","v":0}]
["No. Du BGAd :"]
[null,null,null,null,null,null,null,null,null,null,null,null,"Ajustement MLNU - Volumes SNT saisons antérieures"]
[null,null,null,"Répartition des volumes"]
[null,null,null,"MLNU-RG",null,"MLNU-ND Qualité «U»",null,"MLNU Déclarée"]
["Code Essence","Nom essence","No. Client","Superficies traitées «V»","Superficies non traitées non justifiées «W»","Ententes\nOM MLNU","Entente allègement copeaux","MLNU-ND\nQualité \"X\"","MLNU-RG","MLNU-ND\nQualité \"W\"","MLNU-ND\nQualité \"U\"","Total du Client","SNT saisons antérieures"]
["010","Épinette (autre que Norvège)",null,null,null,null,null,null,{"$f":"SUM(D10:E10)","v":0},{"$f":"SUM(E10,M10)","v":0},{"$f":"SUM(F10:G10)","v":0},{"$f":"SUM(H10,I10,K10)","v":0}]
["014","Épinette de Norvège",null,null,null,null,null,null,{"$f":"SUM(D11:E11)","v":0},{"$f":"SUM(E11,M11)","v":0},0,{"$f":"SUM(H11,I11,K11)","v":0}]
["030","Mélèze laricin",null,null,null,null,null,null,0,0,0,0]
["043","Pin gris et sylvestre",null,null,null,null,null,null,0,0,0,0]
["060","Sapin baumier",null,null,null,null,null,null,0,0,0,0]
["190","Peuplier (autre que Baumier)",null,null,null,null,null,null,0,0,0,0]
["191","Peuplier baumier",null,null,null,null,null,null,0,0,0,0]
["105","Bouleau blanc ",null,null,null,null,null,null,0,0,0,0]
["104","Bouleau jaune",null,null,null,null,null,null,0,0,0,0]
["132","Érable à sucre",null,null,null,null,null,null,0,0,0,0]
["133","Érable rouge",null,null,null,null,null,null,0,0,0,0]
["135","Érables - Autres ",null,null,null,null,null,null,0,0,0,0]
["120","Chêne ",null,null,null,null,null,null,0,0,0,0]
["141","Frêne d’Amérique (blanc)",null,null,null,null,null,null,0,0,0,0]
["142","Frêne noir",null,null,null,null,null,null,0,0,0,0]
["150","Hêtre",null,null,null,null,null,null,0,0,0,0]
["160","Noyer",null,null,null,null,null,null,0,0,0,0]
["165","Caryer",null,null,null,null,null,null,0,0,0,0]
["170","Orme",null,null,null,null,null,null,0,0,0,0]
["180","Ostryer de Virginie",null,null,null,null,null,null,0,0,0,0]
["110","Cerisier tardif",null,null,null,null,null,null,0,0,0,0]
["210","Tilleul d’Amérique",null,null,null,null,null,null,0,0,0,0]
["041","Pin blanc",null,null,null,null,null,null,0,0,0,0]
["042","Pin rouge",null,null,null,null,null,null,0,0,0,0]
["050","Pruche de l’Est",null,null,null,null,null,null,0,0,0,0]
["080","Thuya occidental",null,null,null,null,null,null,0,0,0,0]
[null,null,null,null,null,null,null,null,0,0,0,0]
[null,null,null,null,null,null,null,null,0,0,0,0]
[null,null,null,null,null,null,null,null,0,0,0,0]
[null,null,null,null,null,null,null,null,0,0,0,0]
[null,null,null,null,null,null,null,null,0,0,0,0]
[null,null,null,null,null,null,null,null,0,0,0,0]
[null,null,null,null,null,null,null,null,0,0,{"$f":"SUM(F42:G42)","v":0},0]
[null,null,null,null,null,null,null,null,0,0,0,0]
[null,null,null,null,null,null,null,null,0,0,0,0]
[null,null,null,null,null,null,null,null,0,0,0,0]
[null,null,null,null,null,null,null,null,0,0,0,0]
[null,null,null,null,null,null,null,null,0,0,0,0]
[null,null,null,null,null,null,null,null,0,0,0,0]
[null,null,null,null,null,null,null,null,0,0,0,0]
[null,null,null,null,null,null,null,null,0,0,0,0]
[null,null,null,null,null,null,null,null,0,0,0,0]
[null,null,null,null,null,null,null,null,0,0,0,0]
[null,null,null,null,null,null,null,null,0,0,0,0]
[null,null,null,null,null,null,null,null,0,0,0,0]
[null,null,null,null,null,null,null,null,0,0,0,0]
[null,null,null,null,null,null,null,null,0,0,0,0]
[null,null,null,null,null,null,null,null,0,0,0,0]
[null,null,null,null,null,null,null,null,0,0,0,0]
[null,null,null,null,null,null,null,null,0,0,0,0]
[null,null,null,null,null,null,null,null,0,0,0,0]
[null,null,null,null,null,null,null,null,0,0,0,0]
[null,null,null,null,null,null,null,null,0,0,0,0]
[null,null,null,null,null,null,null,null,0,0,0,0]
[null,null,null,null,null,null,null,null,0,0,0,0]
[null,null,null,null,null,null,null,null,0,0,0,0]
[null,null,null,null,null,null,null,null,0,0,0,0]
[null,null,null,null,null,null,null,null,0,0,0,0]
[null,null,null,null,null,null,null,null,0,0,0,0]
[null,null,null,null,null,null,null,null,0,0,0,0]
[null,null,null,null,null,null,null,null,0,0,0,0]
[null,null,null,null,null,null,null,null,0,0,0,0]
[null,null,null,null,null,null,null,null,0,0,0,0]
[null,null,null,null,null,null,null,null,0,0,0,0]
[null,null,null,null,null,null,null,null,0,0,{"$f":"SUM(F74:G74)","v":0},0]
[null,null,null,null,null,null,null,null,{"$f":"SUM(D75:E75)","v":0},{"$f":"SUM(E75,M75)","v":0},0,{"$f":"SUM(H75,I75,K75)","v":0}]
[null,null,null,null,null,null,null,null,0,0,0,0]
[null,null,null,null,null,null,null,null,0,0,0,0]
[null,null,null,null,null,null,null,null,0,0,0,0]
[null,null,null,null,null,null,null,null,0,0,0,0]
[null,null,null,null,null,null,null,null,0,0,0,0]
[null,null,null,null,null,null,null,null,0,0,0,0]
[null,null,null,null,null,null,null,null,0,0,0,0]
[null,null,null,null,null,null,null,null,0,0,0,0]
[null,null,null,null,null,null,null,null,0,0,0,0]
[null,null,null,null,null,null,null,null,0,0,0,0]
[null,null,null,null,null,null,null,null,0,0,0,0]
[null,null,null,null,null,null,null,null,0,0,0,0]
[null,null,null,null,null,null,null,null,0,0,0,0]
[null,null,null,null,null,null,null,null,0,0,0,0]
[null,null,null,null,null,null,null,null,0,0,0,0]
[null,null,null,null,null,null,null,null,0,0,0,0]
[null,null,null,null,null,null,null,null,0,0,0,0]
[null,null,null,null,null,null,null,null,0,0,0,0]
[null,null,null,null,null,null,null,null,0,0,0,0]
[null,null,null,null,null,null,null,null,0,0,0,0]
[null,null,null,null,null,null,null,null,0,0,0,0]
[null,null,null,null,null,null,null,null,0,0,0,0]
[null,null,null,null,null,null,null,null,0,0,0,0]
[null,null,null,null,null,null,null,null,0,0,0,0]
[null,null,null,null,null,null,null,null,0,0,0,0]
[null,null,null,null,null,null,null,null,0,0,0,0]
[null,null,null,null,null,null,null,null,0,0,0,0]
[null,null,null,null,null,null,null,null,0,0,0,0]
[null,null,null,null,null,null,null,null,0,0,0,0]
[null,null,null,null,null,null,null,null,0,0,0,0]
[null,null,null,null,null,null,null,null,0,0,{"$f":"SUM(F106:G106)","v":0},0]
[null,null,null,null,null,null,null,null,0,0,0,0]
[null,null,null,null,null,null,null,null,0,0,0,0]
[null,null,null,null,null,null,null,null,0,0,0,0]
[null,null,null,null,null,null,null,null,0,0,0,0]
[null,null,null,null,null,null,null,null,0,0,0,0]
[null,null,null,null,null,null,null,null,0,0,0,0]
[null,null,null,null,null,null,null,null,0,0,0,0]
[null,null,null,null,null,null,null,null,0,0,0,0]
[null,null,null,null,null,null,null,null,0,0,0,0]
[null,null,null,null,null,null,null,null,0,0,0,0]
[null,null,null,null,null,null,null,null,0,0,0,0]
[null,null,null,null,null,null,null,null,0,0,0,0]
[null,null,null,null,null,null,null,null,0,0,0,0]
[null,null,null,null,null,null,null,null,0,0,0,0]
[null,null,null,null,null,null,null,null,0,0,0,0]
[null,null,null,null,null,null,null,null,0,0,0,0]
[null,null,null,null,null,null,null,null,0,0,0,0]
[null,null,null,null,null,null,null,null,0,0,0,0]
[null,null,null,null,null,null,null,null,0,0,0,0]
[null,null,null,null,null,null,null,null,0,0,0,0]
[null,null,null,null,null,null,null,null,0,0,0,0]
[null,null,null,null,null,null,null,null,0,0,0,0]
[null,null,null,null,null,null,null,null,0,0,0,0]
[null,null,null,null,null,null,null,null,0,0,0,0]
[null,null,null,null,null,null,null,null,0,0,0,0]
[null,null,null,null,null,null,null,null,0,0,0,0]
[null,null,null,null,null,null,null,null,0,0,0,0]
[null,null,null,null,null,null,null,null,0,0,0,0]
[null,null,null,null,null,null,null,null,0,0,0,0]
[null,null,null,null,null,null,null,null,0,0,0,0]
[null,null,null,null,null,null,null,null,0,0,0,0]
[null,null,null,null,null,null,null,null,0,0,0,0]
[null,null,null,null,null,null,null,null,{"$f":"SUM(D139:E139)","v":0},{"$f":"SUM(E139,M139)","v":0},0,{"$f":"SUM(H139,I139,K139)","v":0}]
[null,null,null,null,null,null,null,null,0,0,{"$f":"SUM(F140:G140)","v":0},0]
[null,null,null,null,null,null,null,null,0,0,0,0]
[null,null,null,null,null,null,null,null,0,0,0,0]
[null,null,null,null,null,null,null,null,0,0,0,0]
[null,null,null,null,null,null,null,null,0,0,0,0]
[null,null,null,null,null,null,null,null,0,0,0,0]
[null,null,null,null,null,null,null,null,0,0,0,0]
[null,null,null,null,null,null,null,null,0,0,0,0]
[null,null,null,null,null,null,null,null,0,0,0,0]
[null,null,null,null,null,null,null,null,0,0,0,0]
[null,null,null,null,null,null,null,null,0,0,0,0]
[null,null,null,null,null,null,null,null,0,0,0,0]
[null,null,null,null,null,null,null,null,0,0,0,0]
[null,null,null,null,null,null,null,null,0,0,0,0]
[null,null,null,null,null,null,null,null,0,0,0,0]
[null,null,null,null,null,null,null,null,0,0,0,0]
[null,null,null,null,null,null,null,null,0,0,0,0]
[null,null,null,null,null,null,null,null,0,0,0,0]
[null,null,null,null,null,null,null,null,0,0,0,0]
[null,null,null,null,null,null,null,null,0,0,0,0]
[null,null,null,null,null,null,null,null,0,0,0,0]
[null,null,null,null,null,null,null,null,0,0,0,0]
[null,null,null,null,null,null,null,null,0,0,0,0]
[null,null,null,null,null,null,null,null,0,0,0,0]
[null,null,null,null,null,null,null,null,0,0,0,0]
[null,null,null,null,null,null,null,null,0,0,0,0]
[null,null,null,null,null,null,null,null,0,0,0,0]
[null,null,null,null,null,null,null,null,0,0,0,0]
[null,null,null,null,null,null,null,null,0,0,0,0]
[null,null,null,null,null,null,null,null,0,0,0,0]
[null,null,null,null,null,null,null,null,0,0,0,0]
[null,null,null,null,null,null,null,null,0,0,0,0]
[null,null,null,null,null,null,null,null,0,0,0,0]
[null,null,null,null,null,null,null,null,0,0,0,0]
[null,null,null,null,null,null,null,null,0,0,0,0]
[null,null,null,null,null,null,null,null,0,0,0,0]
[null,null,null,null,null,null,null,null,0,0,0,0]
[null,null,null,null,null,null,null,null,0,0,0,0]
[null,null,null,null,null,null,null,null,0,0,0,0]
[null,null,null,null,null,null,null,null,0,0,0,0]
[null,null,null,null,null,null,null,null,0,0,0,0]
[null,null,null,null,null,null,null,null,0,0,0,0]
[null,null,null,null,null,null,null,null,0,0,0,0]
[null,null,null,null,null,null,null,null,0,0,0,0]
[null,null,null,null,null,null,null,null,0,0,0,0]
[null,null,null,null,null,null,null,null,0,0,0,0]
[null,null,null,null,null,null,null,null,0,0,0,0]
[null,null,null,null,null,null,null,null,0,0,0,0]
[null,null,null,null,null,null,null,null,0,0,0,0]
[null,null,null,null,null,null,null,null,0,0,0,0]
[null,null,null,null,null,null,null,null,0,0,0,0]
[null,null,null,null,null,null,null,null,0,0,0,0]
[null,null,null,null,null,null,null,null,0,0,0,0]
[null,null,null,null,null,null,null,null,0,0,0,0]
[null,null,null,null,null,null,null,null,0,0,0,0]
[null,null,null,null,null,null,null,null,0,0,0,0]
[null,null,null,null,null,null,null,null,0,0,0,0]
[null,null,null,null,null,null,null,null,0,0,0,0]
[null,null,null,null,null,null,null,null,0,0,0,0]
[null,null,null,null,null,null,null,null,0,0,0,0]
[null,null,null,null,null,null,null,null,0,0,0,0]
[null,null,null,null,null,null,null,null,0,0,0,0]
[null,null,null,null,null,null,null,null,0,0,0,0]
[null,null,null,null,null,null,null,null,{"$f":"SUM(D203:E203)","v":0},{"$f":"SUM(E203,M203)","v":0},0,{"$f":"SUM(H203,I203,K203)","v":0}]
[null,null,null,null,null,null,null,null,0,0,{"$f":"SUM(F204:G204)","v":0},0]
[null,null,null,null,null,null,null,null,0,0,0,0]
[null,null,null,null,null,null,null,null,0,0,0,0]
[null,null,null,null,null,null,null,null,0,0,0,0]
[null,null,null,null,null,null,null,null,0,0,0,0]
[null,null,null,null,null,null,null,null,0,{"$f":"SUM(E209,M209)","v":0},0,0]